Workbook

Sheet DATA
A1: STATE | B1: COUNTY | C1: COUNTYFP | D1: ROW INDEX | E1: YBL INDEX | F1: BLD INDEX | G1: HFL INDEX | H1: BLD INDEX | I1: HFL INDEX | J1: OWNER 0-30% | K1: OWNER 30-50% | L1: OWNER 50-80% | M1: OWNER 80-100% | N1: OWNER 100%+ | O1: RENTER 0-30% | P1: RENTER 30-50% | Q1: RENTER 50-80% | R1: RENTER 80-100% | S1: RENTER 100%+ | T1: OWNER HINCP 0-30% | U1: OWNER HINCP 30-50% | V1: OWNER HINCP 50-80% | W1: OWNER HINCP 80-100% | X1: OWNER HINCP 100%+ | Y1: RENTER HINCP 0-30% | Z1: RENTER HINCP 30-50% | AA1: RENTER HINCP 50-80% | AB1: RENTER HINCP 80-100% | AC1: RENTER HINCP 100%+ | AD1: OWNER ELEP 0-30% | AE1: OWNER ELEP 30-50% | AF1: OWNER ELEP 50-80% | AG1: OWNER ELEP 80-100% | AH1: OWNER ELEP 100%+ | AI1: RENTER ELEP 0-30% | AJ1: RENTER ELEP 30-50% | AK1: RENTER ELEP 50-80% | AL1: RENTER ELEP 80-100% | AM1: RENTER ELEP 100%+ | AN1: OWNER GASP 0-30% | AO1: OWNER GASP 30-50% | AP1: OWNER GASP 50-80% | AQ1: OWNER GASP 80-100% | AR1: OWNER GASP 100%+ | AS1: RENTER GASP 0-30% | AT1: RENTER GASP 30-50% | AU1: RENTER GASP 50-80% | AV1: RENTER GASP 80-100% | AW1: RENTER GASP 100%+ | AX1: OWNER FULP 0-30% | AY1: OWNER FULP 30-50% | AZ1: OWNER FULP 50-80% | BA1: OWNER FULP 80-100% | BB1: OWNER FULP 100%+ | BC1: RENTER FULP 0-30% | BD1: RENTER FULP 30-50% | BE1: RENTER FULP 50-80% | BF1: RENTER FULP 80-100% | BG1: RENTER FULP 100%+ | BH1: OWNER H 0-30% | BI1: OWNER H 30-50% | BJ1: OWNER H 50-80% | BK1: OWNER H 80-100% | BL1: OWNER H 100%+ | BM1: RENTER H 0-30% | BN1: RENTER H 30-50% | BO1: RENTER H 50-80% | BP1: RENTER H 80-100% | BQ1: RENTER H 100%+ | BR1: OWNER E 0-30% | BS1: OWNER E 30-50% | BT1: OWNER E 50-80% | BU1: OWNER E 80-100% | BV1: OWNER E 100%+ | BW1: RENTER E 0-30% | BX1: RENTER E 30-50% | BY1: RENTER E 50-80% | BZ1: RENTER E 80-100% | CA1: RENTER E 100%+ | CB1: OWNER E | CC1: RENTER E | CD1: BOTH E | CE1: HU_SUM | CF1: OWNER H 0-30% | CG1: OWNER H 30-50% | CH1: OWNER H 50-80% | CI1: OWNER H 80-100% | CJ1: OWNER H 100%+ | CK1: RENTER H 0-30% | CL1: RENTER H 30-50% | CM1: RENTER H 50-80% | CN1: RENTER H 80-100% | CO1: RENTER H 100%+ | CP1: OWNER E 0-30% | CQ1: OWNER E 30-50% | CR1: OWNER E 50-80% | CS1: OWNER E 80-100% | CT1: OWNER E 100%+ | CU1: RENTER E 0-30% | CV1: RENTER E 30-50% | CW1: RENTER E 50-80% | CX1: RENTER E 80-100% | CY1: RENTER E 100%+ | CZ1: OWNER E | DA1: RENTER E | DB1: BOTH E | DC1: CENSUS DIVISION | DD1: 1 | DE1: 1 | DF1: 1
A2: 2 | B2: 13 | C2: 2013 | D2: 0 | E2: 0 | F2: 0 | G2: 0 | H2: 0 | I2: 0 | J2: 2.426578046e-05 | K2: 8.018292387e-06 | L2: 4.887902659e-06 | M2: 2.107590427e-06 | N2: 0.007197108595 | O2: 0 | P2: 0 | Q2: 0 | R2: 0 | S2: 0 | T2: 0 | U2: 0 | V2: 0 | W2: 0 | X2: 101327.9168 | Y2: 0 | Z2: 0 | AA2: 0 | AB2: 0 | AC2: 0 | AD2: 0 | AE2: 0 | AF2: 0 | AG2: 0 | AH2: 478.0304296 | AI2: 0 | AJ2: 0 | AK2: 0 | AL2: 0 | AM2: 0 | AN2: 0 | AO2: 0 | AP2: 0 | AQ2: 0 | AR2: 195.5013278 | AS2: 0 | AT2: 0 | AU2: 0 | AV2: 0 | AW2: 0 | AX2: 0 | AY2: 0 | AZ2: 0 | BA2: 0 | BB2: 1e-09 | BC2: 0 | BD2: 0 | BE2: 0 | BF2: 0 | BG2: 0 | BH2: 0 | BI2: 0 | BJ2: 0 | BK2: 0 | BL2: 0.007197108595 | BM2: 0 | BN2: 0 | BO2: 0 | BP2: 0 | BQ2: 0 | BR2: 0 | BS2: 0 | BT2: 0 | BU2: 0 | BV2: 0.007197108595 | BW2: 0 | BX2: 0 | BY2: 0 | BZ2: 0 | CA2: 0 | CB2: =SUM(BR2:BV2) -> 0.007197108595 | CC2: =SUM(BW2:CA2) -> 0 | CD2: =SUM(BR2:CA2) -> 0.007197108595 | CE2: 0.007236388161 | CF2: 0 | CG2: 0 | CH2: 0 | CI2: 0 | CJ2: 729.2680209 | CK2: 0 | CL2: 0 | CM2: 0 | CN2: 0 | CO2: 0 | CP2: =BR2*(AD2*$DD$1+AN2*$DE$1+AX2*$DF$1/12) -> 0 | CQ2: =BS2*(AE2*$DD$1+AO2*$DE$1+AY2*$DF$1/12) -> 0 | CR2: =BT2*(AF2*$DD$1+AP2*$DE$1+AZ2*$DF$1/12) -> 0 | CS2: =BU2*(AG2*$DD$1+AQ2*$DE$1+BA2*$DF$1/12) -> 0 | CT2: =BV2*(AH2*$DD$1+AR2*$DE$1+BB2*$DF$1/12) -> 4.8474812 | CU2: =BW2*(AI2*$DD$1+AS2*$DE$1+BC2*$DF$1/12) -> 0 | CV2: =BX2*(AJ2*$DD$1+AT2*$DE$1+BD2*$DF$1/12) -> 0 | CW2: =BY2*(AK2*$DD$1+AU2*$DE$1+BE2*$DF$1/12) -> 0 | CX2: =BZ2*(AL2*$DD$1+AV2*$DE$1+BF2*$DF$1/12) -> 0 | CY2: =CA2*(AM2*$DD$1+AW2*$DE$1+BG2*$DF$1/12) -> 0 | CZ2: =SUM(CP2:CT2) -> 4.8474812 | DA2: =SUM(CU2:CY2) -> 0 | DB2: =SUM(CP2:CY2) -> 4.8474812 | DC2: =INDEX(LOOKUP!$G$2:$G$6,MATCH($A2,LOOKUP!$I$2:$I$6,0)) -> PACIFIC
A3: 2 | B3: 13 | C3: 2013 | D3: 1 | E3: 0 | F3: 0 | G3: 1 | H3: 0 | I3: 1 | J3: 0 | K3: 0 | L3: 0 | M3: 0 | N3: 0 | O3: 0.001312214608 | P3: 0.0001049603532 | Q3: 0.001317235927 | R3: 0.0006173222549 | S3: 0.003323202197 | T3: 0 | U3: 0 | V3: 0 | W3: 0 | X3: 0 | Y3: 0 | Z3: 0 | AA3: 0 | AB3: 0 | AC3: 0 | AD3: 0 | AE3: 0 | AF3: 0 | AG3: 0 | AH3: 0 | AI3: 0 | AJ3: 0 | AK3: 0 | AL3: 0 | AM3: 0 | AN3: 0 | AO3: 0 | AP3: 0 | AQ3: 0 | AR3: 0 | AS3: 0 | AT3: 0 | AU3: 0 | AV3: 0 | AW3: 0 | AX3: 0 | AY3: 0 | AZ3: 0 | BA3: 0 | BB3: 0 | BC3: 0 | BD3: 0 | BE3: 0 | BF3: 0 | BG3: 0 | BH3: 0 | BI3: 0 | BJ3: 0 | BK3: 0 | BL3: 0 | BM3: 0 | BN3: 0 | BO3: 0 | BP3: 0 | BQ3: 0 | BR3: 0 | BS3: 0 | BT3: 0 | BU3: 0 | BV3: 0 | BW3: 0 | BX3: 0 | BY3: 0 | BZ3: 0 | CA3: 0 | CB3: 0 | CC3: 0 | CD3: 0 | CE3: 0.006674935341 | CF3: 0 | CG3: 0 | CH3: 0 | CI3: 0 | CJ3: 0 | CK3: 0 | CL3: 0 | CM3: 0 | CN3: 0 | CO3: 0 | CP3: 0 | CQ3: 0 | CR3: 0 | CS3: 0 | CT3: 0 | CU3: 0 | CV3: 0 | CW3: 0 | CX3: 0 | CY3: 0 | CZ3: 0 | DA3: 0 | DB3: 0 | DC3: =INDEX(LOOKUP!$G$2:$G$6,MATCH($A3,LOOKUP!$I$2:$I$6,0)) -> PACIFIC
A4: 2 | B4: 13 | C4: 2013 | D4: 2 | E4: 0 | F4: 0 | G4: 2 | H4: 0 | I4: 2 | J4: 1.740903511e-05 | K4: 9.983021721e-06 | L4: 1.7627036e-05 | M4: 0.0001703249915 | N4: 0.05402606079 | O4: 0.002075240635 | P4: 3.571932286e-05 | Q4: 1.650158293e-07 | R4: 2.667535873e-08 | S4: 6.908859244e-06 | T4: 0 | U4: 0 | V4: 0 | W4: 69714.62 | X4: 97111.74186 | Y4: 0 | Z4: 0 | AA4: 0 | AB4: 0 | AC4: 0 | AD4: 0 | AE4: 0 | AF4: 0 | AG4: 85.12213765 | AH4: 228.2338863 | AI4: 0 | AJ4: 0 | AK4: 0 | AL4: 0 | AM4: 0 | AN4: 0 | AO4: 0 | AP4: 0 | AQ4: 9.946462404e-10 | AR4: 9.85674506e-10 | AS4: 0 | AT4: 0 | AU4: 0 | AV4: 0 | AW4: 0 | AX4: 0 | AY4: 0 | AZ4: 0 | BA4: 1.017534e-09 | BB4: 1.008355817e-09 | BC4: 0 | BD4: 0 | BE4: 0 | BF4: 0 | BG4: 0 | BH4: 0 | BI4: 0 | BJ4: 0 | BK4: 0.0001703249915 | BL4: 0.05402606079 | BM4: 0 | BN4: 0 | BO4: 0 | BP4: 0 | BQ4: 0 | BR4: 0 | BS4: 0 | BT4: 0 | BU4: 0.0001703249915 | BV4: 0.05402606079 | BW4: 0 | BX4: 0 | BY4: 0 | BZ4: 0 | CA4: 0 | CB4: 0.05419638579 | CC4: 0 | CD4: 0.05419638579 | CE4: 0.05635946539 | CF4: 0 | CG4: 0 | CH4: 0 | CI4: 11.87414206 | CJ4: 5246.56487 | CK4: 0 | CL4: 0 | CM4: 0 | CN4: 0 | CO4: 0 | CP4: 0 | CQ4: 0 | CR4: 0 | CS4: 0.01449842737 | CT4: 12.33057781 | CU4: 0 | CV4: 0 | CW4: 0 | CX4: 0 | CY4: 0 | CZ4: 12.34507624 | DA4: 0 | DB4: 12.34507624 | DC4: =INDEX(LOOKUP!$G$2:$G$6,MATCH($A4,LOOKUP!$I$2:$I$6,0)) -> PACIFIC
A5: 2 | B5: 13 | C5: 2013 | D5: 3 | E5: 0 | F5: 0 | G5: 3 | H5: 0 | I5: 3 | J5: 0.3537817256 | K5: 0.1861198277 | L5: 0.3721879889 | M5: 0.07598291307 | N5: 0.6872192616 | O5: 0.1551586879 | P5: 0.1495085611 | Q5: 0.1739094733 | R5: 0.0125725169 | S5: 2.307467774 | T5: 22480.74045 | U5: 25310.86532 | V5: 49211.59299 | W5: 59403.64884 | X5: 104043.4196 | Y5: 0 | Z5: 32140.5744 | AA5: 45647.44753 | AB5: 59363.598 | AC5: 68085.952 | AD5: 197.5667549 | AE5: 127.3881169 | AF5: 246.0888247 | AG5: 300.2320652 | AH5: 206.9171374 | AI5: 95.60608592 | AJ5: 119.5076074 | AK5: 107.7032692 | AL5: 95.71603292 | AM5: 59.7538037 | AN5: 9.824890301e-10 | AO5: 9.841276809e-10 | AP5: 9.957795694e-10 | AQ5: 9.94949326e-10 | AR5: 9.807810384e-10 | AS5: 498.5283859 | AT5: 29.32519917 | AU5: 14.77531851 | AV5: 9.786307716e-10 | AW5: 19.55013278 | AX5: 778.0980696 | AY5: 2942.78917 | AZ5: 2350.591563 | BA5: 2046.107827 | BB5: 2642.751723 | BC5: 1000 | BD5: 2000 | BE5: 2746.231394 | BF5: 3504.025 | BG5: 1e-09 | BH5: 0.3537817256 | BI5: 0.1861198277 | BJ5: 0.3721879889 | BK5: 0.07598291307 | BL5: 0.6872192616 | BM5: 0 | BN5: 0.1495085611 | BO5: 0.1739094733 | BP5: 0.0125725169 | BQ5: 2.307467774 | BR5: 0.3537817256 | BS5: 0.1861198277 | BT5: 0.3721879889 | BU5: 0.07598291307 | BV5: 0.6872192616 | BW5: 0.1551586879 | BX5: 0.1495085611 | BY5: 0.1739094733 | BZ5: 0.0125725169 | CA5: 2.307467774 | CB5: 1.675291717 | CC5: 2.798617014 | CD5: 4.473908731 | CE5: 4.473908731 | CF5: 7953.27515 | CG5: 4710.853894 | CH5: 18315.96383 | CI5: 4513.662286 | CJ5: 71500.64203 | CK5: 0 | CL5: 4805.291033 | CM5: 7938.523558 | CN5: 746.3498389 | CO5: 157106.1401 | CP5: 92.83524729 | CQ5: 69.35207215 | CR5: 164.496467 | CS5: 35.76827634 | CT5: 293.5432664 | CU5: 105.1150157 | CV5: 47.16987229 | CW5: 61.09982463 | CX5: 4.874592568 | CY5: 182.9912778 | CZ5: 655.9953292 | DA5: 401.250583 | DB5: 1057.245912 | DC5: =INDEX(LOOKUP!$G$2:$G$6,MATCH($A5,LOOKUP!$I$2:$I$6,0)) -> PACIFIC
A6: 2 | B6: 13 | C6: 2013 | D6: 5 | E6: 0 | F6: 0 | G6: 4 | H6: 0 | I6: 5 | J6: 0.0002389133158 | K6: 0.0001459450876 | L6: 0.001388811801 | M6: 9.654785126e-05 | N6: 0.2096573445 | O6: 0.05547850564 | P6: 0.01484618777 | Q6: 0.01497000107 | R6: 0.004350377533 | S6: 0.08710361089 | T6: 32070.12666 | U6: 28842.54367 | V6: 32610.72015 | W6: 42944.21296 | X6: 124804.3376 | Y6: 33327.16426 | Z6: 0 | AA6: 0 | AB6: 78646.6715 | AC6: 137354.8735 | AD6: 300.7706188 | AE6: 157.6297137 | AF6: 139.8417376 | AG6: 107.5568467 | AH6: 231.2681146 | AI6: 152.8870382 | AJ6: 0 | AK6: 0 | AL6: 1.196450411e-09 | AM6: 34.11693949 | AN6: 9.874253898e-10 | AO6: 34.44760238 | AP6: 68.86315427 | AQ6: 146.6259959 | AR6: 56.27848115 | AS6: 1.001870503e-09 | AT6: 0 | AU6: 0 | AV6: 9.786307716e-10 | AW6: 9.954799651e-10 | AX6: 441.8790509 | AY6: 41.64759725 | AZ6: 259.7014925 | BA6: 800 | BB6: 1184.039564 | BC6: 1017.534 | BD6: 0 | BE6: 0 | BF6: 1.00115e-09 | BG6: 1370.300294 | BH6: 0.0002389133158 | BI6: 0.0001459450876 | BJ6: 0.001388811801 | BK6: 9.654785126e-05 | BL6: 0.2096573445 | BM6: 0.05547850564 | BN6: 0 | BO6: 0 | BP6: 0.004350377533 | BQ6: 0.08710361089 | BR6: 0.0002389133158 | BS6: 0.0001459450876 | BT6: 0.001388811801 | BU6: 9.654785126e-05 | BV6: 0.2096573445 | BW6: 0.05547850564 | BX6: 0 | BY6: 0 | BZ6: 0.004350377533 | CA6: 0.08710361089 | CB6: 0.2115275626 | CC6: 0.1469324941 | CD6: 0.3584600566 | CE6: 0.3882762455 | CF6: 7.661980298 | CG6: 4.209427564 | CH6: 45.290153 | CI6: 4.146171485 | CJ6: 26166.14601 | CK6: 1848.94127 | CL6: 0 | CM6: 0 | CN6: 342.1427127 | CO6: 11964.10546 | CP6: 0.08065567159 | CQ6: 0.02853926259 | CR6: 0.3199081917 | CS6: 0.03097733069 | CT6: 80.97313824 | CU6: 13.18621656 | CV6: 0 | CW6: 0 | CX6: 9.825372684e-12 | CY6: 12.91821726 | CZ6: 81.4332187 | DA6: 26.10443381 | DB6: 107.5376525 | DC6: =INDEX(LOOKUP!$G$2:$G$6,MATCH($A6,LOOKUP!$I$2:$I$6,0)) -> PACIFIC
A7: 2 | B7: 13 | C7: 2013 | D7: 7 | E7: 0 | F7: 0 | G7: 4 | H7: 0 | I7: 7 | J7: 0 | K7: 0 | L7: 0 | M7: 0 | N7: 0 | O7: 0.0001077971323 | P7: 4.283036727e-06 | Q7: 8.297070774e-06 | R7: 1.510786582e-06 | S7: 0.002140509099 | T7: 0 | U7: 0 | V7: 0 | W7: 0 | X7: 0 | Y7: 0 | Z7: 0 | AA7: 0 | AB7: 0 | AC7: 0 | AD7: 0 | AE7: 0 | AF7: 0 | AG7: 0 | AH7: 0 | AI7: 0 | AJ7: 0 | AK7: 0 | AL7: 0 | AM7: 0 | AN7: 0 | AO7: 0 | AP7: 0 | AQ7: 0 | AR7: 0 | AS7: 0 | AT7: 0 | AU7: 0 | AV7: 0 | AW7: 0 | AX7: 0 | AY7: 0 | AZ7: 0 | BA7: 0 | BB7: 0 | BC7: 0 | BD7: 0 | BE7: 0 | BF7: 0 | BG7: 0 | BH7: 0 | BI7: 0 | BJ7: 0 | BK7: 0 | BL7: 0 | BM7: 0 | BN7: 0 | BO7: 0 | BP7: 0 | BQ7: 0 | BR7: 0 | BS7: 0 | BT7: 0 | BU7: 0 | BV7: 0 | BW7: 0 | BX7: 0 | BY7: 0 | BZ7: 0 | CA7: 0 | CB7: 0 | CC7: 0 | CD7: 0 | CE7: 0.002262397125 | CF7: 0 | CG7: 0 | CH7: 0 | CI7: 0 | CJ7: 0 | CK7: 0 | CL7: 0 | CM7: 0 | CN7: 0 | CO7: 0 | CP7: 0 | CQ7: 0 | CR7: 0 | CS7: 0 | CT7: 0 | CU7: 0 | CV7: 0 | CW7: 0 | CX7: 0 | CY7: 0 | CZ7: 0 | DA7: 0 | DB7: 0 | DC7: =INDEX(LOOKUP!$G$2:$G$6,MATCH($A7,LOOKUP!$I$2:$I$6,0)) -> PACIFIC
A8: 2 | B8: 13 | C8: 2013 | D8: 9 | E8: 0 | F8: 1 | G8: 0 | H8: 1 | I8: 0 | J8: 5.511324133e-05 | K8: 1.886991524e-05 | L8: 9.509736058e-06 | M8: 2.869885926e-06 | N8: 0.0002285845601 | O8: 0 | P8: 0 | Q8: 0 | R8: 0 | S8: 0 | T8: 0 | U8: 0 | V8: 0 | W8: 0 | X8: 0 | Y8: 0 | Z8: 0 | AA8: 0 | AB8: 0 | AC8: 0 | AD8: 0 | AE8: 0 | AF8: 0 | AG8: 0 | AH8: 0 | AI8: 0 | AJ8: 0 | AK8: 0 | AL8: 0 | AM8: 0 | AN8: 0 | AO8: 0 | AP8: 0 | AQ8: 0 | AR8: 0 | AS8: 0 | AT8: 0 | AU8: 0 | AV8: 0 | AW8: 0 | AX8: 0 | AY8: 0 | AZ8: 0 | BA8: 0 | BB8: 0 | BC8: 0 | BD8: 0 | BE8: 0 | BF8: 0 | BG8: 0 | BH8: 0 | BI8: 0 | BJ8: 0 | BK8: 0 | BL8: 0 | BM8: 0 | BN8: 0 | BO8: 0 | BP8: 0 | BQ8: 0 | BR8: 0 | BS8: 0 | BT8: 0 | BU8: 0 | BV8: 0 | BW8: 0 | BX8: 0 | BY8: 0 | BZ8: 0 | CA8: 0 | CB8: 0 | CC8: 0 | CD8: 0 | CE8: 0.0003149473387 | CF8: 0 | CG8: 0 | CH8: 0 | CI8: 0 | CJ8: 0 | CK8: 0 | CL8: 0 | CM8: 0 | CN8: 0 | CO8: 0 | CP8: 0 | CQ8: 0 | CR8: 0 | CS8: 0 | CT8: 0 | CU8: 0 | CV8: 0 | CW8: 0 | CX8: 0 | CY8: 0 | CZ8: 0 | DA8: 0 | DB8: 0 | DC8: =INDEX(LOOKUP!$G$2:$G$6,MATCH($A8,LOOKUP!$I$2:$I$6,0)) -> PACIFIC
A9: 2 | B9: 13 | C9: 2013 | D9: 10 | E9: 0 | F9: 1 | G9: 1 | H9: 1 | I9: 1 | J9: 0 | K9: 0 | L9: 0 | M9: 0 | N9: 0 | O9: 0.001315068475 | P9: 0.0007287758911 | Q9: 0.000797690071 | R9: 0.000237586917 | S9: 0.002083066626 | T9: 0 | U9: 0 | V9: 0 | W9: 0 | X9: 0 | Y9: 0 | Z9: 0 | AA9: 0 | AB9: 0 | AC9: 0 | AD9: 0 | AE9: 0 | AF9: 0 | AG9: 0 | AH9: 0 | AI9: 0 | AJ9: 0 | AK9: 0 | AL9: 0 | AM9: 0 | AN9: 0 | AO9: 0 | AP9: 0 | AQ9: 0 | AR9: 0 | AS9: 0 | AT9: 0 | AU9: 0 | AV9: 0 | AW9: 0 | AX9: 0 | AY9: 0 | AZ9: 0 | BA9: 0 | BB9: 0 | BC9: 0 | BD9: 0 | BE9: 0 | BF9: 0 | BG9: 0 | BH9: 0 | BI9: 0 | BJ9: 0 | BK9: 0 | BL9: 0 | BM9: 0 | BN9: 0 | BO9: 0 | BP9: 0 | BQ9: 0 | BR9: 0 | BS9: 0 | BT9: 0 | BU9: 0 | BV9: 0 | BW9: 0 | BX9: 0 | BY9: 0 | BZ9: 0 | CA9: 0 | CB9: 0 | CC9: 0 | CD9: 0 | CE9: 0.00516218798 | CF9: 0 | CG9: 0 | CH9: 0 | CI9: 0 | CJ9: 0 | CK9: 0 | CL9: 0 | CM9: 0 | CN9: 0 | CO9: 0 | CP9: 0 | CQ9: 0 | CR9: 0 | CS9: 0 | CT9: 0 | CU9: 0 | CV9: 0 | CW9: 0 | CX9: 0 | CY9: 0 | CZ9: 0 | DA9: 0 | DB9: 0 | DC9: =INDEX(LOOKUP!$G$2:$G$6,MATCH($A9,LOOKUP!$I$2:$I$6,0)) -> PACIFIC
A10: 2 | B10: 13 | C10: 2013 | D10: 11 | E10: 0 | F10: 1 | G10: 2 | H10: 1 | I10: 2 | J10: 9.982043677e-06 | K10: 5.721712354e-06 | L10: 7.365053761e-06 | M10: 1.4431251e-06 | N10: 0.0001984393644 | O10: 0.0007063990579 | P10: 0.0005703557711 | Q10: 1.419067466e-05 | R10: 2.070700886e-05 | S10: 0.0003264126683 | T10: 0 | U10: 0 | V10: 0 | W10: 0 | X10: 0 | Y10: 0 | Z10: 0 | AA10: 0 | AB10: 0 | AC10: 0 | AD10: 0 | AE10: 0 | AF10: 0 | AG10: 0 | AH10: 0 | AI10: 0 | AJ10: 0 | AK10: 0 | AL10: 0 | AM10: 0 | AN10: 0 | AO10: 0 | AP10: 0 | AQ10: 0 | AR10: 0 | AS10: 0 | AT10: 0 | AU10: 0 | AV10: 0 | AW10: 0 | AX10: 0 | AY10: 0 | AZ10: 0 | BA10: 0 | BB10: 0 | BC10: 0 | BD10: 0 | BE10: 0 | BF10: 0 | BG10: 0 | BH10: 0 | BI10: 0 | BJ10: 0 | BK10: 0 | BL10: 0 | BM10: 0 | BN10: 0 | BO10: 0 | BP10: 0 | BQ10: 0 | BR10: 0 | BS10: 0 | BT10: 0 | BU10: 0 | BV10: 0 | BW10: 0 | BX10: 0 | BY10: 0 | BZ10: 0 | CA10: 0 | CB10: 0 | CC10: 0 | CD10: 0 | CE10: 0.00186101648 | CF10: 0 | CG10: 0 | CH10: 0 | CI10: 0 | CJ10: 0 | CK10: 0 | CL10: 0 | CM10: 0 | CN10: 0 | CO10: 0 | CP10: 0 | CQ10: 0 | CR10: 0 | CS10: 0 | CT10: 0 | CU10: 0 | CV10: 0 | CW10: 0 | CX10: 0 | CY10: 0 | CZ10: 0 | DA10: 0 | DB10: 0 | DC10: =INDEX(LOOKUP!$G$2:$G$6,MATCH($A10,LOOKUP!$I$2:$I$6,0)) -> PACIFIC
A11: 2 | B11: 13 | C11: 2013 | D11: 12 | E11: 0 | F11: 1 | G11: 3 | H11: 1 | I11: 3 | J11: 0.01549188233 | K11: 0.02598506834 | L11: 0.007365569736 | M11: 0.0009445762529 | N11: 0.01568734002 | O11: 0.00133053917 | P11: 0.0005659333884 | Q11: 0.0004934406266 | R11: 0.0001403067602 | S11: 0.001713657272 | T11: 29926.02585 | U11: 29926.02585 | V11: 29926.02585 | W11: 0 | X11: 0 | Y11: 0 | Z11: 0 | AA11: 0 | AB11: 0 | AC11: 0 | AD11: 291.8473291 | AE11: 291.8473291 | AF11: 291.8473291 | AG11: 0 | AH11: 0 | AI11: 0 | AJ11: 0 | AK11: 0 | AL11: 0 | AM11: 0 | AN11: 9.946462404e-10 | AO11: 9.946462404e-10 | AP11: 9.946462404e-10 | AQ11: 0 | AR11: 0 | AS11: 0 | AT11: 0 | AU11: 0 | AV11: 0 | AW11: 0 | AX11: 1.017534e-09 | AY11: 1.017534e-09 | AZ11: 1.017534e-09 | BA11: 0 | BB11: 0 | BC11: 0 | BD11: 0 | BE11: 0 | BF11: 0 | BG11: 0 | BH11: 0.01549188233 | BI11: 0.02598506834 | BJ11: 0.007365569736 | BK11: 0 | BL11: 0 | BM11: 0 | BN11: 0 | BO11: 0 | BP11: 0 | BQ11: 0 | BR11: 0.01549188233 | BS11: 0.02598506834 | BT11: 0.007365569736 | BU11: 0 | BV11: 0 | BW11: 0 | BX11: 0 | BY11: 0 | BZ11: 0 | CA11: 0 | CB11: 0.04884252041 | CC11: 0 | CD11: 0.04884252041 | CE11: 0.0697183139 | CF11: 463.6104712 | CG11: 777.629827 | CH11: 220.4222303 | CI11: 0 | CJ11: 0 | CK11: 0 | CL11: 0 | CM11: 0 | CN11: 0 | CO11: 0 | CP11: 4.521264481 | CQ11: 7.583672792 | CR11: 2.149621855 | CS11: 0 | CT11: 0 | CU11: 0 | CV11: 0 | CW11: 0 | CX11: 0 | CY11: 0 | CZ11: 14.25455913 | DA11: 0 | DB11: 14.25455913 | DC11: =INDEX(LOOKUP!$G$2:$G$6,MATCH($A11,LOOKUP!$I$2:$I$6,0)) -> PACIFIC
A12: 2 | B12: 13 | C12: 2013 | D12: 14 | E12: 0 | F12: 1 | G12: 4 | H12: 1 | I12: 5 | J12: 0 | K12: 0 | L12: 0 | M12: 0 | N12: 0.0004232104222 | O12: 0.0003102626456 | P12: 6.200248675e-05 | Q12: 7.569226754e-05 | R12: 2.43765581e-05 | S12: 0.0001793321348 | T12: 0 | U12: 0 | V12: 0 | W12: 0 | X12: 0 | Y12: 0 | Z12: 0 | AA12: 0 | AB12: 0 | AC12: 0 | AD12: 0 | AE12: 0 | AF12: 0 | AG12: 0 | AH12: 0 | AI12: 0 | AJ12: 0 | AK12: 0 | AL12: 0 | AM12: 0 | AN12: 0 | AO12: 0 | AP12: 0 | AQ12: 0 | AR12: 0 | AS12: 0 | AT12: 0 | AU12: 0 | AV12: 0 | AW12: 0 | AX12: 0 | AY12: 0 | AZ12: 0 | BA12: 0 | BB12: 0 | BC12: 0 | BD12: 0 | BE12: 0 | BF12: 0 | BG12: 0 | BH12: 0 | BI12: 0 | BJ12: 0 | BK12: 0 | BL12: 0 | BM12: 0 | BN12: 0 | BO12: 0 | BP12: 0 | BQ12: 0 | BR12: 0 | BS12: 0 | BT12: 0 | BU12: 0 | BV12: 0 | BW12: 0 | BX12: 0 | BY12: 0 | BZ12: 0 | CA12: 0 | CB12: 0 | CC12: 0 | CD12: 0 | CE12: 0.001074876515 | CF12: 0 | CG12: 0 | CH12: 0 | CI12: 0 | CJ12: 0 | CK12: 0 | CL12: 0 | CM12: 0 | CN12: 0 | CO12: 0 | CP12: 0 | CQ12: 0 | CR12: 0 | CS12: 0 | CT12: 0 | CU12: 0 | CV12: 0 | CW12: 0 | CX12: 0 | CY12: 0 | CZ12: 0 | DA12: 0 | DB12: 0 | DC12: =INDEX(LOOKUP!$G$2:$G$6,MATCH($A12,LOOKUP!$I$2:$I$6,0)) -> PACIFIC
A13: 2 | B13: 13 | C13: 2013 | D13: 16 | E13: 0 | F13: 1 | G13: 4 | H13: 1 | I13: 7 | J13: 0 | K13: 0 | L13: 0 | M13: 0 | N13: 0 | O13: 0.0005721296143 | P13: 8.00983127e-05 | Q13: 0.0002558269401 | R13: 3.31448604e-05 | S13: 0.0008085140103 | T13: 0 | U13: 0 | V13: 0 | W13: 0 | X13: 0 | Y13: 0 | Z13: 0 | AA13: 0 | AB13: 0 | AC13: 0 | AD13: 0 | AE13: 0 | AF13: 0 | AG13: 0 | AH13: 0 | AI13: 0 | AJ13: 0 | AK13: 0 | AL13: 0 | AM13: 0 | AN13: 0 | AO13: 0 | AP13: 0 | AQ13: 0 | AR13: 0 | AS13: 0 | AT13: 0 | AU13: 0 | AV13: 0 | AW13: 0 | AX13: 0 | AY13: 0 | AZ13: 0 | BA13: 0 | BB13: 0 | BC13: 0 | BD13: 0 | BE13: 0 | BF13: 0 | BG13: 0 | BH13: 0 | BI13: 0 | BJ13: 0 | BK13: 0 | BL13: 0 | BM13: 0 | BN13: 0 | BO13: 0 | BP13: 0 | BQ13: 0 | BR13: 0 | BS13: 0 | BT13: 0 | BU13: 0 | BV13: 0 | BW13: 0 | BX13: 0 | BY13: 0 | BZ13: 0 | CA13: 0 | CB13: 0 | CC13: 0 | CD13: 0 | CE13: 0.001749713738 | CF13: 0 | CG13: 0 | CH13: 0 | CI13: 0 | CJ13: 0 | CK13: 0 | CL13: 0 | CM13: 0 | CN13: 0 | CO13: 0 | CP13: 0 | CQ13: 0 | CR13: 0 | CS13: 0 | CT13: 0 | CU13: 0 | CV13: 0 | CW13: 0 | CX13: 0 | CY13: 0 | CZ13: 0 | DA13: 0 | DB13: 0 | DC13: =INDEX(LOOKUP!$G$2:$G$6,MATCH($A13,LOOKUP!$I$2:$I$6,0)) -> PACIFIC
A14: 2 | B14: 13 | C14: 2013 | D14: 81 | E14: 1 | F14: 0 | G14: 0 | H14: 0 | I14: 0 | J14: 0.01065931739 | K14: 0.04877423266 | L14: 0.009016920694 | M14: 6.677578373e-05 | N14: 0.05874400143 | O14: 0 | P14: 0 | Q14: 0 | R14: 0 | S14: 0 | T14: 42701.15797 | U14: 31660.4684 | V14: 40249.54459 | W14: 0 | X14: 195540.0094 | Y14: 0 | Z14: 0 | AA14: 0 | AB14: 0 | AC14: 0 | AD14: 262.4311684 | AE14: 179.77528 | AF14: 244.0772168 | AG14: 0 | AH14: 199.5707621 | AI14: 0 | AJ14: 0 | AK14: 0 | AL14: 0 | AM14: 0 | AN14: 32.48180089 | AO14: 360.082985 | AP14: 105.2264823 | AQ14: 0 | AR14: 99.52474959 | AS14: 0 | AT14: 0 | AU14: 0 | AV14: 0 | AW14: 0 | AX14: 1.001288847e-09 | AY14: 1.015854449e-09 | AZ14: 1.004523176e-09 | BA14: 0 | BB14: 1.018149091e-09 | BC14: 0 | BD14: 0 | BE14: 0 | BF14: 0 | BG14: 0 | BH14: 0.01065931739 | BI14: 0.04877423266 | BJ14: 0.009016920694 | BK14: 0 | BL14: 0.05874400143 | BM14: 0 | BN14: 0 | BO14: 0 | BP14: 0 | BQ14: 0 | BR14: 0.01065931739 | BS14: 0.04877423266 | BT14: 0.009016920694 | BU14: 0 | BV14: 0.05874400143 | BW14: 0 | BX14: 0 | BY14: 0 | BZ14: 0 | CA14: 0 | CB14: 0.1271944722 | CC14: 0 | CD14: 0.1271944722 | CE14: 0.127261248 | CF14: 455.1651959 | CG14: 1544.215052 | CH14: 362.9269516 | CI14: 0 | CJ14: 11486.80259 | CK14: 0 | CL14: 0 | CM14: 0 | CN14: 0 | CO14: 0 | CP14: 3.143570943 | CQ14: 26.33117262 | CR14: 3.149643753 | CS14: 0 | CT14: 17.57006716 | CU14: 0 | CV14: 0 | CW14: 0 | CX14: 0 | CY14: 0 | CZ14: 50.19445448 | DA14: 0 | DB14: 50.19445448 | DC14: =INDEX(LOOKUP!$G$2:$G$6,MATCH($A14,LOOKUP!$I$2:$I$6,0)) -> PACIFIC
A15: 2 | B15: 13 | C15: 2013 | D15: 82 | E15: 1 | F15: 0 | G15: 1 | H15: 0 | I15: 1 | J15: 0 | K15: 0 | L15: 0 | M15: 0 | N15: 0 | O15: 1.477712668e-05 | P15: 1.009819206e-06 | Q15: 0.001174955112 | R15: 0.0005785355196 | S15: 0.001160766291 | T15: 0 | U15: 0 | V15: 0 | W15: 0 | X15: 0 | Y15: 0 | Z15: 0 | AA15: 0 | AB15: 0 | AC15: 0 | AD15: 0 | AE15: 0 | AF15: 0 | AG15: 0 | AH15: 0 | AI15: 0 | AJ15: 0 | AK15: 0 | AL15: 0 | AM15: 0 | AN15: 0 | AO15: 0 | AP15: 0 | AQ15: 0 | AR15: 0 | AS15: 0 | AT15: 0 | AU15: 0 | AV15: 0 | AW15: 0 | AX15: 0 | AY15: 0 | AZ15: 0 | BA15: 0 | BB15: 0 | BC15: 0 | BD15: 0 | BE15: 0 | BF15: 0 | BG15: 0 | BH15: 0 | BI15: 0 | BJ15: 0 | BK15: 0 | BL15: 0 | BM15: 0 | BN15: 0 | BO15: 0 | BP15: 0 | BQ15: 0 | BR15: 0 | BS15: 0 | BT15: 0 | BU15: 0 | BV15: 0 | BW15: 0 | BX15: 0 | BY15: 0 | BZ15: 0 | CA15: 0 | CB15: 0 | CC15: 0 | CD15: 0 | CE15: 0.002930043868 | CF15: 0 | CG15: 0 | CH15: 0 | CI15: 0 | CJ15: 0 | CK15: 0 | CL15: 0 | CM15: 0 | CN15: 0 | CO15: 0 | CP15: 0 | CQ15: 0 | CR15: 0 | CS15: 0 | CT15: 0 | CU15: 0 | CV15: 0 | CW15: 0 | CX15: 0 | CY15: 0 | CZ15: 0 | DA15: 0 | DB15: 0 | DC15: =INDEX(LOOKUP!$G$2:$G$6,MATCH($A15,LOOKUP!$I$2:$I$6,0)) -> PACIFIC
A16: 2 | B16: 13 | C16: 2013 | D16: 83 | E16: 1 | F16: 0 | G16: 2 | H16: 0 | I16: 2 | J16: 0.0003961176739 | K16: 0.0002531679315 | L16: 0.0003663959479 | M16: 0.0008870380157 | N16: 0.05258148764 | O16: 0.009208027729 | P16: 0.007159503052 | Q16: 0.007557556871 | R16: 0.003752100473 | S16: 0.186163698 | T16: 0 | U16: 0 | V16: 0 | W16: 51965.6016 | X16: 103654.7677 | Y16: 0 | Z16: 0 | AA16: 0 | AB16: 0 | AC16: 104906.3473 | AD16: 0 | AE16: 0 | AF16: 0 | AG16: 262.9167363 | AH16: 234.0157162 | AI16: 0 | AJ16: 0 | AK16: 0 | AL16: 0 | AM16: 239.0152148 | AN16: 0 | AO16: 0 | AP16: 0 | AQ16: 9.77506639e-10 | AR16: 3.31155513 | AS16: 0 | AT16: 0 | AU16: 0 | AV16: 0 | AW16: 7.650051958 | AX16: 0 | AY16: 0 | AZ16: 0 | BA16: 500 | BB16: 170.0730915 | BC16: 0 | BD16: 0 | BE16: 0 | BF16: 0 | BG16: 1e-09 | BH16: 0 | BI16: 0 | BJ16: 0 | BK16: 0.0008870380157 | BL16: 0.05258148764 | BM16: 0 | BN16: 0 | BO16: 0 | BP16: 0 | BQ16: 0.186163698 | BR16: 0 | BS16: 0 | BT16: 0 | BU16: 0.0008870380157 | BV16: 0.05258148764 | BW16: 0 | BX16: 0 | BY16: 0 | BZ16: 0 | CA16: 0.186163698 | CB16: 0.05346852566 | CC16: 0.186163698 | CD16: 0.2396322236 | CE16: 0.2683250933 | CF16: 0 | CG16: 0 | CH16: 0 | CI16: 46.09546413 | CJ16: 5450.321886 | CK16: 0 | CL16: 0 | CM16: 0 | CN16: 0 | CO16: 19529.75355 | CP16: 0 | CQ16: 0 | CR16: 0 | CS16: 0.2701770574 | CT16: 13.22424566 | CU16: 0 | CV16: 0 | CW16: 0 | CX16: 0 | CY16: 45.92011822 | CZ16: 13.49442272 | DA16: 45.92011822 | DB16: 59.41454094 | DC16: =INDEX(LOOKUP!$G$2:$G$6,MATCH($A16,LOOKUP!$I$2:$I$6,0)) -> PACIFIC
A17: 2 | B17: 13 | C17: 2013 | D17: 84 | E17: 1 | F17: 0 | G17: 3 | H17: 0 | I17: 3 | J17: 1.427260613 | K17: 0.9101022955 | L17: 1.736776305 | M17: 0.4519214063 | N17: 8.318575083 | O17: 0.9805804244 | P17: 0.6056446496 | Q17: 1.323497371 | R17: 0.409081824 | S17: 3.835283212 | T17: 21300.34138 | U17: 26804.26617 | V17: 50282.85301 | W17: 59843.91504 | X17: 127206.3167 | Y17: 19412.10677 | Z17: 30462.47066 | AA17: 48449.7422 | AB17: 71954.97262 | AC17: 89650.02178 | AD17: 215.023704 | AE17: 161.88128 | AF17: 219.357725 | AG17: 226.9274543 | AH17: 230.7740118 | AI17: 218.0884615 | AJ17: 317.9242725 | AK17: 212.9169223 | AL17: 305.0399569 | AM17: 279.0460886 | AN17: 3.775682006 | AO17: 8.207487748 | AP17: 14.23379328 | AQ17: 8.135812617 | AR17: 30.8910339 | AS17: 8.668624583 | AT17: 9.913704015e-10 | AU17: 1.907922068 | AV17: 1.587691369 | AW17: 9.748719894 | AX17: 2730.383627 | AY17: 2232.396706 | AZ17: 2821.150108 | BA17: 2525.338722 | BB17: 3283.356045 | BC17: 2311.41031 | BD17: 751.5096209 | BE17: 2231.729987 | BF17: 4402.740671 | BG17: 3007.469912 | BH17: 1.427260613 | BI17: 0.9101022955 | BJ17: 1.736776305 | BK17: 0.4519214063 | BL17: 8.318575083 | BM17: 0.9805804244 | BN17: 0.6056446496 | BO17: 1.323497371 | BP17: 0.409081824 | BQ17: 3.835283212 | BR17: 1.427260613 | BS17: 0.9101022955 | BT17: 1.736776305 | BU17: 0.4519214063 | BV17: 8.318575083 | BW17: 0.9805804244 | BX17: 0.6056446496 | BY17: 1.323497371 | BZ17: 0.409081824 | CA17: 3.835283212 | CB17: 12.8446357 | CC17: 7.154087481 | CD17: 19.99872318 | CE17: 19.99872318 | CF17: 30401.1383 | CG17: 24394.62417 | CH17: 87330.06766 | CI17: 27044.74624 | CJ17: 1058175.296 | CK17: 19035.13189 | CL17: 18449.43237 | CM17: 64123.10642 | CN17: 29435.47144 | CO17: 343833.2235 | CP17: 637.0311634 | CQ17: 324.1072918 | CR17: 814.0051026 | CS17: 201.3346744 | CT17: 4452.750644 | CU17: 411.2305349 | CV17: 230.4781164 | CW17: 530.4608475 | CX17: 275.5258963 | CY17: 2068.818119 | CZ17: 6429.228876 | DA17: 3516.513515 | DB17: 9945.742391 | DC17: =INDEX(LOOKUP!$G$2:$G$6,MATCH($A17,LOOKUP!$I$2:$I$6,0)) -> PACIFIC
A18: 2 | B18: 13 | C18: 2013 | D18: 86 | E18: 1 | F18: 0 | G18: 4 | H18: 0 | I18: 5 | J18: 0.1280109434 | K18: 0.05333386749 | L18: 0.1655124169 | M18: 0.04418140313 | N18: 0.315385021 | O18: 0.006822939513 | P18: 0.0001871823546 | Q18: 0.05896146597 | R18: 0.02326447585 | S18: 0.06963018248 | T18: 22303.50744 | U18: 29801.94229 | V18: 48374.32202 | W18: 57557.30098 | X18: 95406.35139 | Y18: 23340.13872 | Z18: 45178.92875 | AA18: 51331.88096 | AB18: 75885.13758 | AC18: 94466.38574 | AD18: 211.2278162 | AE18: 200.1044227 | AF18: 143.0605038 | AG18: 146.2925661 | AH18: 169.304549 | AI18: 208.8670379 | AJ18: 275.1835946 | AK18: 139.3239726 | AL18: 187.9500095 | AM18: 224.3561123 | AN18: 11.52062513 | AO18: 20.93475125 | AP18: 24.18845624 | AQ18: 30.56999572 | AR18: 34.58337087 | AS18: 9.887517706e-10 | AT18: 9.786307716e-10 | AU18: 9.81702001e-10 | AV18: 19.02736266 | AW18: 23.26989335 | AX18: 1722.849959 | AY18: 2406.008112 | AZ18: 1607.408758 | BA18: 2070.368978 | BB18: 1409.559833 | BC18: 2652.996886 | BD18: 7208.28 | BE18: 2876.991658 | BF18: 1478.872474 | BG18: 1683.327598 | BH18: 0.1280109434 | BI18: 0.05333386749 | BJ18: 0.1655124169 | BK18: 0.04418140313 | BL18: 0.315385021 | BM18: 0.006822939513 | BN18: 0.0001871823546 | BO18: 0.05896146597 | BP18: 0.02326447585 | BQ18: 0.06963018248 | BR18: 0.1280109434 | BS18: 0.05333386749 | BT18: 0.1655124169 | BU18: 0.04418140313 | BV18: 0.315385021 | BW18: 0.006822939513 | BX18: 0.0001871823546 | BY18: 0.05896146597 | BZ18: 0.02326447585 | CA18: 0.06963018248 | CB18: 0.7064236519 | CC18: 0.1588662462 | CD18: 0.8652898981 | CE18: 0.8652898981 | CF18: 2855.093028 | CG18: 1589.452841 | CH18: 8006.550954 | CI18: 2542.962318 | CJ18: 30089.73414 | CK18: 159.2483547 | CL18: 8.456698262 | CM18: 3026.602952 | CN18: 1765.427951 | CO18: 6577.711677 | CP18: 46.89287549 | CQ18: 22.4823505 | CR18: 49.85228864 | CS18: 15.43668668 | CT18: 101.3493674 | CU18: 2.933523606 | CV18: 0.1639480818 | CW18: 22.35071614 | CX18: 7.682319488 | CY18: 27.00977794 | CZ18: 236.0135687 | DA18: 60.14028526 | DB18: 296.1538539 | DC18: =INDEX(LOOKUP!$G$2:$G$6,MATCH($A18,LOOKUP!$I$2:$I$6,0)) -> PACIFIC
A19: 2 | B19: 13 | C19: 2013 | D19: 88 | E19: 1 | F19: 0 | G19: 4 | H19: 0 | I19: 7 | J19: 0 | K19: 0 | L19: 0 | M19: 0 | N19: 0 | O19: 6.376691524e-05 | P19: 7.402362579e-06 | Q19: 0.0001405245183 | R19: 5.369776204e-05 | S19: 0.000727733933 | T19: 0 | U19: 0 | V19: 0 | W19: 0 | X19: 0 | Y19: 0 | Z19: 0 | AA19: 0 | AB19: 0 | AC19: 0 | AD19: 0 | AE19: 0 | AF19: 0 | AG19: 0 | AH19: 0 | AI19: 0 | AJ19: 0 | AK19: 0 | AL19: 0 | AM19: 0 | AN19: 0 | AO19: 0 | AP19: 0 | AQ19: 0 | AR19: 0 | AS19: 0 | AT19: 0 | AU19: 0 | AV19: 0 | AW19: 0 | AX19: 0 | AY19: 0 | AZ19: 0 | BA19: 0 | BB19: 0 | BC19: 0 | BD19: 0 | BE19: 0 | BF19: 0 | BG19: 0 | BH19: 0 | BI19: 0 | BJ19: 0 | BK19: 0 | BL19: 0 | BM19: 0 | BN19: 0 | BO19: 0 | BP19: 0 | BQ19: 0 | BR19: 0 | BS19: 0 | BT19: 0 | BU19: 0 | BV19: 0 | BW19: 0 | BX19: 0 | BY19: 0 | BZ19: 0 | CA19: 0 | CB19: 0 | CC19: 0 | CD19: 0 | CE19: 0.0009931254912 | CF19: 0 | CG19: 0 | CH19: 0 | CI19: 0 | CJ19: 0 | CK19: 0 | CL19: 0 | CM19: 0 | CN19: 0 | CO19: 0 | CP19: 0 | CQ19: 0 | CR19: 0 | CS19: 0 | CT19: 0 | CU19: 0 | CV19: 0 | CW19: 0 | CX19: 0 | CY19: 0 | CZ19: 0 | DA19: 0 | DB19: 0 | DC19: =INDEX(LOOKUP!$G$2:$G$6,MATCH($A19,LOOKUP!$I$2:$I$6,0)) -> PACIFIC
A20: 2 | B20: 13 | C20: 2013 | D20: 90 | E20: 1 | F20: 1 | G20: 0 | H20: 1 | I20: 0 | J20: 0.0004050459278 | K20: 4.375664536e-05 | L20: 5.651440937e-05 | M20: 1.481511974e-05 | N20: 0.0004476934581 | O20: 0 | P20: 0 | Q20: 0 | R20: 0 | S20: 0 | T20: 0 | U20: 0 | V20: 0 | W20: 0 | X20: 0 | Y20: 0 | Z20: 0 | AA20: 0 | AB20: 0 | AC20: 0 | AD20: 0 | AE20: 0 | AF20: 0 | AG20: 0 | AH20: 0 | AI20: 0 | AJ20: 0 | AK20: 0 | AL20: 0 | AM20: 0 | AN20: 0 | AO20: 0 | AP20: 0 | AQ20: 0 | AR20: 0 | AS20: 0 | AT20: 0 | AU20: 0 | AV20: 0 | AW20: 0 | AX20: 0 | AY20: 0 | AZ20: 0 | BA20: 0 | BB20: 0 | BC20: 0 | BD20: 0 | BE20: 0 | BF20: 0 | BG20: 0 | BH20: 0 | BI20: 0 | BJ20: 0 | BK20: 0 | BL20: 0 | BM20: 0 | BN20: 0 | BO20: 0 | BP20: 0 | BQ20: 0 | BR20: 0 | BS20: 0 | BT20: 0 | BU20: 0 | BV20: 0 | BW20: 0 | BX20: 0 | BY20: 0 | BZ20: 0 | CA20: 0 | CB20: 0 | CC20: 0 | CD20: 0 | CE20: 0.0009678255603 | CF20: 0 | CG20: 0 | CH20: 0 | CI20: 0 | CJ20: 0 | CK20: 0 | CL20: 0 | CM20: 0 | CN20: 0 | CO20: 0 | CP20: 0 | CQ20: 0 | CR20: 0 | CS20: 0 | CT20: 0 | CU20: 0 | CV20: 0 | CW20: 0 | CX20: 0 | CY20: 0 | CZ20: 0 | DA20: 0 | DB20: 0 | DC20: =INDEX(LOOKUP!$G$2:$G$6,MATCH($A20,LOOKUP!$I$2:$I$6,0)) -> PACIFIC
A21: 2 | B21: 13 | C21: 2013 | D21: 91 | E21: 1 | F21: 1 | G21: 1 | H21: 1 | I21: 1 | J21: 0 | K21: 0 | L21: 0 | M21: 0 | N21: 0 | O21: 4.020186862e-05 | P21: 1.748822484e-06 | Q21: 2.980592613e-05 | R21: 1.436215581e-05 | S21: 0.002415683236 | T21: 0 | U21: 0 | V21: 0 | W21: 0 | X21: 0 | Y21: 0 | Z21: 0 | AA21: 0 | AB21: 0 | AC21: 0 | AD21: 0 | AE21: 0 | AF21: 0 | AG21: 0 | AH21: 0 | AI21: 0 | AJ21: 0 | AK21: 0 | AL21: 0 | AM21: 0 | AN21: 0 | AO21: 0 | AP21: 0 | AQ21: 0 | AR21: 0 | AS21: 0 | AT21: 0 | AU21: 0 | AV21: 0 | AW21: 0 | AX21: 0 | AY21: 0 | AZ21: 0 | BA21: 0 | BB21: 0 | BC21: 0 | BD21: 0 | BE21: 0 | BF21: 0 | BG21: 0 | BH21: 0 | BI21: 0 | BJ21: 0 | BK21: 0 | BL21: 0 | BM21: 0 | BN21: 0 | BO21: 0 | BP21: 0 | BQ21: 0 | BR21: 0 | BS21: 0 | BT21: 0 | BU21: 0 | BV21: 0 | BW21: 0 | BX21: 0 | BY21: 0 | BZ21: 0 | CA21: 0 | CB21: 0 | CC21: 0 | CD21: 0 | CE21: 0.002501802009 | CF21: 0 | CG21: 0 | CH21: 0 | CI21: 0 | CJ21: 0 | CK21: 0 | CL21: 0 | CM21: 0 | CN21: 0 | CO21: 0 | CP21: 0 | CQ21: 0 | CR21: 0 | CS21: 0 | CT21: 0 | CU21: 0 | CV21: 0 | CW21: 0 | CX21: 0 | CY21: 0 | CZ21: 0 | DA21: 0 | DB21: 0 | DC21: =INDEX(LOOKUP!$G$2:$G$6,MATCH($A21,LOOKUP!$I$2:$I$6,0)) -> PACIFIC
A22: 2 | B22: 13 | C22: 2013 | D22: 92 | E22: 1 | F22: 1 | G22: 2 | H22: 1 | I22: 2 | J22: 0.005957091438 | K22: 0.002716139127 | L22: 0.0062151681 | M22: 0.01114695457 | N22: 0.1191444514 | O22: 0.002553260965 | P22: 0.0002697143583 | Q22: 8.785916694e-06 | R22: 4.664839023e-06 | S22: 0.09243323881 | T22: 0 | U22: 0 | V22: 0 | W22: 77901.0444 | X22: 77901.0444 | Y22: 0 | Z22: 0 | AA22: 0 | AB22: 0 | AC22: 0 | AD22: 0 | AE22: 0 | AF22: 0 | AG22: 185.0542436 | AH22: 185.0542436 | AI22: 0 | AJ22: 0 | AK22: 0 | AL22: 0 | AM22: 0 | AN22: 0 | AO22: 0 | AP22: 0 | AQ22: 1.009094766e-09 | AR22: 1.009094766e-09 | AS22: 0 | AT22: 0 | AU22: 0 | AV22: 0 | AW22: 0 | AX22: 0 | AY22: 0 | AZ22: 0 | BA22: 1.032315e-09 | BB22: 1.032315e-09 | BC22: 0 | BD22: 0 | BE22: 0 | BF22: 0 | BG22: 0 | BH22: 0 | BI22: 0 | BJ22: 0 | BK22: 0.01114695457 | BL22: 0.1191444514 | BM22: 0 | BN22: 0 | BO22: 0 | BP22: 0 | BQ22: 0 | BR22: 0 | BS22: 0 | BT22: 0 | BU22: 0.01114695457 | BV22: 0.1191444514 | BW22: 0 | BX22: 0 | BY22: 0 | BZ22: 0 | CA22: 0 | CB22: 0.130291406 | CC22: 0 | CD22: 0.130291406 | CE22: 0.2404494695 | CF22: 0 | CG22: 0 | CH22: 0 | CI22: 868.3594028 | CJ22: 9281.477199 | CK22: 0 | CL22: 0 | CM22: 0 | CN22: 0 | CO22: 0 | CP22: 0 | CQ22: 0 | CR22: 0 | CS22: 2.062791246 | CT22: 22.04818633 | CU22: 0 | CV22: 0 | CW22: 0 | CX22: 0 | CY22: 0 | CZ22: 24.11097758 | DA22: 0 | DB22: 24.11097758 | DC22: =INDEX(LOOKUP!$G$2:$G$6,MATCH($A22,LOOKUP!$I$2:$I$6,0)) -> PACIFIC
A23: 2 | B23: 13 | C23: 2013 | D23: 93 | E23: 1 | F23: 1 | G23: 3 | H23: 1 | I23: 3 | J23: 0.003040163045 | K23: 0.0001598062782 | L23: 0.0003030221826 | M23: 6.794380603e-05 | N23: 0.001467620159 | O23: 0.01468172773 | P23: 0.008135375284 | Q23: 0.05412333768 | R23: 0.008344843073 | S23: 0.2849478966 | T23: 0 | U23: 0 | V23: 0 | W23: 0 | X23: 0 | Y23: 0 | Z23: 0 | AA23: 0 | AB23: 0 | AC23: 0 | AD23: 0 | AE23: 0 | AF23: 0 | AG23: 0 | AH23: 0 | AI23: 0 | AJ23: 0 | AK23: 0 | AL23: 0 | AM23: 0 | AN23: 0 | AO23: 0 | AP23: 0 | AQ23: 0 | AR23: 0 | AS23: 0 | AT23: 0 | AU23: 0 | AV23: 0 | AW23: 0 | AX23: 0 | AY23: 0 | AZ23: 0 | BA23: 0 | BB23: 0 | BC23: 0 | BD23: 0 | BE23: 0 | BF23: 0 | BG23: 0 | BH23: 0 | BI23: 0 | BJ23: 0 | BK23: 0 | BL23: 0 | BM23: 0 | BN23: 0 | BO23: 0 | BP23: 0 | BQ23: 0 | BR23: 0 | BS23: 0 | BT23: 0 | BU23: 0 | BV23: 0 | BW23: 0 | BX23: 0 | BY23: 0 | BZ23: 0 | CA23: 0 | CB23: 0 | CC23: 0 | CD23: 0 | CE23: 0.3752717358 | CF23: 0 | CG23: 0 | CH23: 0 | CI23: 0 | CJ23: 0 | CK23: 0 | CL23: 0 | CM23: 0 | CN23: 0 | CO23: 0 | CP23: 0 | CQ23: 0 | CR23: 0 | CS23: 0 | CT23: 0 | CU23: 0 | CV23: 0 | CW23: 0 | CX23: 0 | CY23: 0 | CZ23: 0 | DA23: 0 | DB23: 0 | DC23: =INDEX(LOOKUP!$G$2:$G$6,MATCH($A23,LOOKUP!$I$2:$I$6,0)) -> PACIFIC
A24: 2 | B24: 13 | C24: 2013 | D24: 95 | E24: 1 | F24: 1 | G24: 4 | H24: 1 | I24: 5 | J24: 0.007829759515 | K24: 0.001385870141 | L24: 0.02414340051 | M24: 0.003502227876 | N24: 0.06406312119 | O24: 0.0003171685476 | P24: 1.892294132e-43 | Q24: 1.741137461e-43 | R24: 4.809427891e-44 | S24: 2.448559908e-42 | T24: 0 | U24: 0 | V24: 41191.068 | W24: 41191.068 | X24: 134200.6435 | Y24: 0 | Z24: 0 | AA24: 0 | AB24: 0 | AC24: 0 | AD24: 0 | AE24: 0 | AF24: 191.4320658 | AG24: 191.4320658 | AH24: 291.8473291 | AI24: 0 | AJ24: 0 | AK24: 0 | AL24: 0 | AM24: 0 | AN24: 0 | AO24: 0 | AP24: 9.786307716e-10 | AQ24: 9.786307716e-10 | AR24: 109.4110864 | AS24: 0 | AT24: 0 | AU24: 0 | AV24: 0 | AW24: 0 | AX24: 0 | AY24: 0 | AZ24: 1.00115e-09 | BA24: 1.00115e-09 | BB24: 6105.204 | BC24: 0 | BD24: 0 | BE24: 0 | BF24: 0 | BG24: 0 | BH24: 0 | BI24: 0 | BJ24: 0.02414340051 | BK24: 0.003502227876 | BL24: 0.06406312119 | BM24: 0 | BN24: 0 | BO24: 0 | BP24: 0 | BQ24: 0 | BR24: 0 | BS24: 0 | BT24: 0.02414340051 | BU24: 0.003502227876 | BV24: 0.06406312119 | BW24: 0 | BX24: 0 | BY24: 0 | BZ24: 0 | CA24: 0 | CB24: 0.09170874958 | CC24: 0 | CD24: 0.09170874958 | CE24: 0.1012415478 | CF24: 0 | CG24: 0 | CH24: 994.4924521 | CI24: 144.2605066 | CJ24: 8597.312089 | CK24: 0 | CL24: 0 | CM24: 0 | CN24: 0 | CO24: 0 | CP24: 0 | CQ24: 0 | CR24: 4.621821036 | CS24: 0.6704387174 | CT24: 58.29906848 | CU24: 0 | CV24: 0 | CW24: 0 | CX24: 0 | CY24: 0 | CZ24: 63.59132824 | DA24: 0 | DB24: 63.59132824 | DC24: =INDEX(LOOKUP!$G$2:$G$6,MATCH($A24,LOOKUP!$I$2:$I$6,0)) -> PACIFIC
A25: 2 | B25: 13 | C25: 2013 | D25: 97 | E25: 1 | F25: 1 | G25: 4 | H25: 1 | I25: 7 | J25: 0 | K25: 0 | L25: 0 | M25: 0 | N25: 0 | O25: 0.0001548790322 | P25: 1.027453086e-05 | Q25: 2.90091849e-05 | R25: 2.546343523e-06 | S25: 0.0006504847172 | T25: 0 | U25: 0 | V25: 0 | W25: 0 | X25: 0 | Y25: 0 | Z25: 0 | AA25: 0 | AB25: 0 | AC25: 0 | AD25: 0 | AE25: 0 | AF25: 0 | AG25: 0 | AH25: 0 | AI25: 0 | AJ25: 0 | AK25: 0 | AL25: 0 | AM25: 0 | AN25: 0 | AO25: 0 | AP25: 0 | AQ25: 0 | AR25: 0 | AS25: 0 | AT25: 0 | AU25: 0 | AV25: 0 | AW25: 0 | AX25: 0 | AY25: 0 | AZ25: 0 | BA25: 0 | BB25: 0 | BC25: 0 | BD25: 0 | BE25: 0 | BF25: 0 | BG25: 0 | BH25: 0 | BI25: 0 | BJ25: 0 | BK25: 0 | BL25: 0 | BM25: 0 | BN25: 0 | BO25: 0 | BP25: 0 | BQ25: 0 | BR25: 0 | BS25: 0 | BT25: 0 | BU25: 0 | BV25: 0 | BW25: 0 | BX25: 0 | BY25: 0 | BZ25: 0 | CA25: 0 | CB25: 0 | CC25: 0 | CD25: 0 | CE25: 0.0008471938087 | CF25: 0 | CG25: 0 | CH25: 0 | CI25: 0 | CJ25: 0 | CK25: 0 | CL25: 0 | CM25: 0 | CN25: 0 | CO25: 0 | CP25: 0 | CQ25: 0 | CR25: 0 | CS25: 0 | CT25: 0 | CU25: 0 | CV25: 0 | CW25: 0 | CX25: 0 | CY25: 0 | CZ25: 0 | DA25: 0 | DB25: 0 | DC25: =INDEX(LOOKUP!$G$2:$G$6,MATCH($A25,LOOKUP!$I$2:$I$6,0)) -> PACIFIC
A26: 2 | B26: 13 | C26: 2013 | D26: 100 | E26: 1 | F26: 2 | G26: 1 | H26: 2 | I26: 1 | J26: 0 | K26: 0 | L26: 0 | M26: 0 | N26: 0 | O26: 5.588883738e-05 | P26: 3.274913045e-06 | Q26: 0.004191317175 | R26: 0.002063595847 | S26: 0.005158450034 | T26: 0 | U26: 0 | V26: 0 | W26: 0 | X26: 0 | Y26: 0 | Z26: 0 | AA26: 0 | AB26: 0 | AC26: 0 | AD26: 0 | AE26: 0 | AF26: 0 | AG26: 0 | AH26: 0 | AI26: 0 | AJ26: 0 | AK26: 0 | AL26: 0 | AM26: 0 | AN26: 0 | AO26: 0 | AP26: 0 | AQ26: 0 | AR26: 0 | AS26: 0 | AT26: 0 | AU26: 0 | AV26: 0 | AW26: 0 | AX26: 0 | AY26: 0 | AZ26: 0 | BA26: 0 | BB26: 0 | BC26: 0 | BD26: 0 | BE26: 0 | BF26: 0 | BG26: 0 | BH26: 0 | BI26: 0 | BJ26: 0 | BK26: 0 | BL26: 0 | BM26: 0 | BN26: 0 | BO26: 0 | BP26: 0 | BQ26: 0 | BR26: 0 | BS26: 0 | BT26: 0 | BU26: 0 | BV26: 0 | BW26: 0 | BX26: 0 | BY26: 0 | BZ26: 0 | CA26: 0 | CB26: 0 | CC26: 0 | CD26: 0 | CE26: 0.01147252681 | CF26: 0 | CG26: 0 | CH26: 0 | CI26: 0 | CJ26: 0 | CK26: 0 | CL26: 0 | CM26: 0 | CN26: 0 | CO26: 0 | CP26: 0 | CQ26: 0 | CR26: 0 | CS26: 0 | CT26: 0 | CU26: 0 | CV26: 0 | CW26: 0 | CX26: 0 | CY26: 0 | CZ26: 0 | DA26: 0 | DB26: 0 | DC26: =INDEX(LOOKUP!$G$2:$G$6,MATCH($A26,LOOKUP!$I$2:$I$6,0)) -> PACIFIC
A27: 2 | B27: 13 | C27: 2013 | D27: 101 | E27: 1 | F27: 2 | G27: 2 | H27: 2 | I27: 2 | J27: 0 | K27: 0 | L27: 0 | M27: 0 | N27: 0 | O27: 0.0133087816 | P27: 0.007523611099 | Q27: 0.1246821173 | R27: 0.04986386408 | S27: 0.09585928018 | T27: 0 | U27: 0 | V27: 0 | W27: 0 | X27: 0 | Y27: 0 | Z27: 0 | AA27: 0 | AB27: 0 | AC27: 0 | AD27: 0 | AE27: 0 | AF27: 0 | AG27: 0 | AH27: 0 | AI27: 0 | AJ27: 0 | AK27: 0 | AL27: 0 | AM27: 0 | AN27: 0 | AO27: 0 | AP27: 0 | AQ27: 0 | AR27: 0 | AS27: 0 | AT27: 0 | AU27: 0 | AV27: 0 | AW27: 0 | AX27: 0 | AY27: 0 | AZ27: 0 | BA27: 0 | BB27: 0 | BC27: 0 | BD27: 0 | BE27: 0 | BF27: 0 | BG27: 0 | BH27: 0 | BI27: 0 | BJ27: 0 | BK27: 0 | BL27: 0 | BM27: 0 | BN27: 0 | BO27: 0 | BP27: 0 | BQ27: 0 | BR27: 0 | BS27: 0 | BT27: 0 | BU27: 0 | BV27: 0 | BW27: 0 | BX27: 0 | BY27: 0 | BZ27: 0 | CA27: 0 | CB27: 0 | CC27: 0 | CD27: 0 | CE27: 0.2912376542 | CF27: 0 | CG27: 0 | CH27: 0 | CI27: 0 | CJ27: 0 | CK27: 0 | CL27: 0 | CM27: 0 | CN27: 0 | CO27: 0 | CP27: 0 | CQ27: 0 | CR27: 0 | CS27: 0 | CT27: 0 | CU27: 0 | CV27: 0 | CW27: 0 | CX27: 0 | CY27: 0 | CZ27: 0 | DA27: 0 | DB27: 0 | DC27: =INDEX(LOOKUP!$G$2:$G$6,MATCH($A27,LOOKUP!$I$2:$I$6,0)) -> PACIFIC
A28: 2 | B28: 13 | C28: 2013 | D28: 102 | E28: 1 | F28: 2 | G28: 3 | H28: 2 | I28: 3 | J28: 0 | K28: 0 | L28: 0 | M28: 0 | N28: 0 | O28: 0.108628158 | P28: 0.03790717313 | Q28: 0.7229544169 | R28: 0.4700925377 | S28: 7.714715394 | T28: 0 | U28: 0 | V28: 0 | W28: 0 | X28: 0 | Y28: 0 | Z28: 0 | AA28: 0 | AB28: 67561.6685 | AC28: 108072.8438 | AD28: 0 | AE28: 0 | AF28: 0 | AG28: 0 | AH28: 0 | AI28: 0 | AJ28: 0 | AK28: 0 | AL28: 170.2442753 | AM28: 111.4013812 | AN28: 0 | AO28: 0 | AP28: 0 | AQ28: 0 | AR28: 0 | AS28: 0 | AT28: 0 | AU28: 0 | AV28: 29.83938721 | AW28: 5.698066894 | AX28: 0 | AY28: 0 | AZ28: 0 | BA28: 0 | BB28: 0 | BC28: 0 | BD28: 0 | BE28: 0 | BF28: 3052.602 | BG28: 1714.242018 | BH28: 0 | BI28: 0 | BJ28: 0 | BK28: 0 | BL28: 0 | BM28: 0 | BN28: 0 | BO28: 0 | BP28: 0.4700925377 | BQ28: 7.714715394 | BR28: 0 | BS28: 0 | BT28: 0 | BU28: 0 | BV28: 0 | BW28: 0 | BX28: 0 | BY28: 0 | BZ28: 0.4700925377 | CA28: 7.714715394 | CB28: 0 | CC28: 8.184807932 | CD28: 8.184807932 | CE28: 9.05429768 | CF28: 0 | CG28: 0 | CH28: 0 | CI28: 0 | CJ28: 0 | CK28: 0 | CL28: 0 | CM28: 0 | CN28: 31760.2362 | CO28: 833751.2321 | CP28: 0 | CQ28: 0 | CR28: 0 | CS28: 0 | CT28: 0 | CU28: 0 | CV28: 0 | CW28: 0 | CX28: 213.6416217 | CY28: 2005.463022 | CZ28: 0 | DA28: 2219.104644 | DB28: 2219.104644 | DC28: =INDEX(LOOKUP!$G$2:$G$6,MATCH($A28,LOOKUP!$I$2:$I$6,0)) -> PACIFIC
A29: 2 | B29: 13 | C29: 2013 | D29: 104 | E29: 1 | F29: 2 | G29: 4 | H29: 2 | I29: 5 | J29: 0 | K29: 0 | L29: 0 | M29: 0 | N29: 0 | O29: 0.003257184092 | P29: 0.0002476883856 | Q29: 0.1298424449 | R29: 0.06774021725 | S29: 0.2473536807 | T29: 0 | U29: 0 | V29: 0 | W29: 0 | X29: 0 | Y29: 0 | Z29: 0 | AA29: 67339.3195 | AB29: 68590.58225 | AC29: 62338.90418 | AD29: 0 | AE29: 0 | AF29: 0 | AG29: 0 | AH29: 0 | AI29: 0 | AJ29: 0 | AK29: 131.6095453 | AL29: 148.379019 | AM29: 132.8990173 | AN29: 0 | AO29: 0 | AP29: 0 | AQ29: 0 | AR29: 0 | AS29: 0 | AT29: 0 | AU29: 19.57261543 | AV29: 13.11091189 | AW29: 2.778808469 | AX29: 0 | AY29: 0 | AZ29: 0 | BA29: 0 | BB29: 0 | BC29: 0 | BD29: 0 | BE29: 1.00115e-09 | BF29: 161.2457711 | BG29: 498.2725719 | BH29: 0 | BI29: 0 | BJ29: 0 | BK29: 0 | BL29: 0 | BM29: 0 | BN29: 0 | BO29: 0.1298424449 | BP29: 0.06774021725 | BQ29: 0.2473536807 | BR29: 0 | BS29: 0 | BT29: 0 | BU29: 0 | BV29: 0 | BW29: 0 | BX29: 0 | BY29: 0.1298424449 | BZ29: 0.06774021725 | CA29: 0.2473536807 | CB29: 0 | CC29: 0.4449363428 | CD29: 0.4449363428 | CE29: 0.4484412153 | CF29: 0 | CG29: 0 | CH29: 0 | CI29: 0 | CJ29: 0 | CK29: 0 | CL29: 0 | CM29: 8743.501881 | CN29: 4646.340943 | CO29: 15419.7574 | CP29: 0 | CQ29: 0 | CR29: 0 | CS29: 0 | CT29: 0 | CU29: 0 | CV29: 0 | CW29: 19.62986137 | CX29: 11.8495983 | CY29: 43.83120582 | CZ29: 0 | DA29: 75.31066548 | DB29: 75.31066548 | DC29: =INDEX(LOOKUP!$G$2:$G$6,MATCH($A29,LOOKUP!$I$2:$I$6,0)) -> PACIFIC
A30: 2 | B30: 13 | C30: 2013 | D30: 106 | E30: 1 | F30: 2 | G30: 4 | H30: 2 | I30: 7 | J30: 0 | K30: 0 | L30: 0 | M30: 0 | N30: 0 | O30: 0.004710007555 | P30: 0.0007433793906 | Q30: 0.02419938914 | R30: 0.007932103442 | S30: 0.1957287938 | T30: 0 | U30: 0 | V30: 0 | W30: 0 | X30: 0 | Y30: 0 | Z30: 0 | AA30: 0 | AB30: 0 | AC30: 97923.8028 | AD30: 0 | AE30: 0 | AF30: 0 | AG30: 0 | AH30: 0 | AI30: 0 | AJ30: 0 | AK30: 0 | AL30: 0 | AM30: 209.7281427 | AN30: 0 | AO30: 0 | AP30: 0 | AQ30: 0 | AR30: 0 | AS30: 0 | AT30: 0 | AU30: 0 | AV30: 0 | AW30: 100.9094766 | AX30: 0 | AY30: 0 | AZ30: 0 | BA30: 0 | BB30: 0 | BC30: 0 | BD30: 0 | BE30: 0 | BF30: 0 | BG30: 1.032315e-09 | BH30: 0 | BI30: 0 | BJ30: 0 | BK30: 0 | BL30: 0 | BM30: 0 | BN30: 0 | BO30: 0 | BP30: 0 | BQ30: 0.1957287938 | BR30: 0 | BS30: 0 | BT30: 0 | BU30: 0 | BV30: 0 | BW30: 0 | BX30: 0 | BY30: 0 | BZ30: 0 | CA30: 0.1957287938 | CB30: 0 | CC30: 0.1957287938 | CD30: 0.1957287938 | CE30: 0.2333136733 | CF30: 0 | CG30: 0 | CH30: 0 | CI30: 0 | CJ30: 0 | CK30: 0 | CL30: 0 | CM30: 0 | CN30: 0 | CO30: 19166.50781 | CP30: 0 | CQ30: 0 | CR30: 0 | CS30: 0 | CT30: 0 | CU30: 0 | CV30: 0 | CW30: 0 | CX30: 0 | CY30: 60.80072655 | CZ30: 0 | DA30: 60.80072655 | DB30: 60.80072655 | DC30: =INDEX(LOOKUP!$G$2:$G$6,MATCH($A30,LOOKUP!$I$2:$I$6,0)) -> PACIFIC
A31: 2 | B31: 13 | C31: 2013 | D31: 109 | E31: 1 | F31: 2 | G31: 1 | H31: 3 | I31: 1 | J31: 0 | K31: 0 | L31: 0 | M31: 0 | N31: 0 | O31: 0.005855177292 | P31: 0.0001668406391 | Q31: 0.006385959209 | R31: 0.003001750693 | S31: 0.01255399851 | T31: 0 | U31: 0 | V31: 0 | W31: 0 | X31: 0 | Y31: 0 | Z31: 0 | AA31: 0 | AB31: 0 | AC31: 0 | AD31: 0 | AE31: 0 | AF31: 0 | AG31: 0 | AH31: 0 | AI31: 0 | AJ31: 0 | AK31: 0 | AL31: 0 | AM31: 0 | AN31: 0 | AO31: 0 | AP31: 0 | AQ31: 0 | AR31: 0 | AS31: 0 | AT31: 0 | AU31: 0 | AV31: 0 | AW31: 0 | AX31: 0 | AY31: 0 | AZ31: 0 | BA31: 0 | BB31: 0 | BC31: 0 | BD31: 0 | BE31: 0 | BF31: 0 | BG31: 0 | BH31: 0 | BI31: 0 | BJ31: 0 | BK31: 0 | BL31: 0 | BM31: 0 | BN31: 0 | BO31: 0 | BP31: 0 | BQ31: 0 | BR31: 0 | BS31: 0 | BT31: 0 | BU31: 0 | BV31: 0 | BW31: 0 | BX31: 0 | BY31: 0 | BZ31: 0 | CA31: 0 | CB31: 0 | CC31: 0 | CD31: 0 | CE31: 0.02796372634 | CF31: 0 | CG31: 0 | CH31: 0 | CI31: 0 | CJ31: 0 | CK31: 0 | CL31: 0 | CM31: 0 | CN31: 0 | CO31: 0 | CP31: 0 | CQ31: 0 | CR31: 0 | CS31: 0 | CT31: 0 | CU31: 0 | CV31: 0 | CW31: 0 | CX31: 0 | CY31: 0 | CZ31: 0 | DA31: 0 | DB31: 0 | DC31: =INDEX(LOOKUP!$G$2:$G$6,MATCH($A31,LOOKUP!$I$2:$I$6,0)) -> PACIFIC
A32: 2 | B32: 13 | C32: 2013 | D32: 110 | E32: 1 | F32: 2 | G32: 2 | H32: 3 | I32: 2 | J32: 0 | K32: 0 | L32: 0 | M32: 0 | N32: 0 | O32: 0.2910831531 | P32: 0.2063654378 | Q32: 0.2162474987 | R32: 0.01449708151 | S32: 0.6050609835 | T32: 0 | U32: 0 | V32: 0 | W32: 0 | X32: 0 | Y32: 0 | Z32: 0 | AA32: 0 | AB32: 0 | AC32: 102775.753 | AD32: 0 | AE32: 0 | AF32: 0 | AG32: 0 | AH32: 0 | AI32: 0 | AJ32: 0 | AK32: 0 | AL32: 0 | AM32: 179.4675617 | AN32: 0 | AO32: 0 | AP32: 0 | AQ32: 0 | AR32: 0 | AS32: 0 | AT32: 0 | AU32: 0 | AV32: 0 | AW32: 9.786307716e-10 | AX32: 0 | AY32: 0 | AZ32: 0 | BA32: 0 | BB32: 0 | BC32: 0 | BD32: 0 | BE32: 0 | BF32: 0 | BG32: 1.00115e-09 | BH32: 0 | BI32: 0 | BJ32: 0 | BK32: 0 | BL32: 0 | BM32: 0 | BN32: 0 | BO32: 0 | BP32: 0 | BQ32: 0.6050609835 | BR32: 0 | BS32: 0 | BT32: 0 | BU32: 0 | BV32: 0 | BW32: 0 | BX32: 0 | BY32: 0 | BZ32: 0 | CA32: 0.6050609835 | CB32: 0 | CC32: 0.6050609835 | CD32: 0.6050609835 | CE32: 1.333254155 | CF32: 0 | CG32: 0 | CH32: 0 | CI32: 0 | CJ32: 0 | CK32: 0 | CL32: 0 | CM32: 0 | CN32: 0 | CO32: 62185.59819 | CP32: 0 | CQ32: 0 | CR32: 0 | CS32: 0 | CT32: 0 | CU32: 0 | CV32: 0 | CW32: 0 | CX32: 0 | CY32: 108.5888194 | CZ32: 0 | DA32: 108.5888194 | DB32: 108.5888194 | DC32: =INDEX(LOOKUP!$G$2:$G$6,MATCH($A32,LOOKUP!$I$2:$I$6,0)) -> PACIFIC
A33: 2 | B33: 13 | C33: 2013 | D33: 111 | E33: 1 | F33: 2 | G33: 3 | H33: 3 | I33: 3 | J33: 0 | K33: 0 | L33: 0 | M33: 0 | N33: 0 | O33: 2.763552137 | P33: 0.8532791914 | Q33: 5.326726458 | R33: 0.2562973383 | S33: 4.386794294 | T33: 0 | U33: 0 | V33: 0 | W33: 0 | X33: 0 | Y33: 0 | Z33: 29512.7116 | AA33: 29512.7116 | AB33: 0 | AC33: 88641.563 | AD33: 0 | AE33: 0 | AF33: 0 | AG33: 0 | AH33: 0 | AI33: 0 | AJ33: 61.68474787 | AK33: 61.68474787 | AL33: 0 | AM33: 1.196450411e-09 | AN33: 0 | AO33: 0 | AP33: 0 | AQ33: 0 | AR33: 0 | AS33: 0 | AT33: 20.18189532 | AU33: 20.18189532 | AV33: 0 | AW33: 9.786307716e-10 | AX33: 0 | AY33: 0 | AZ33: 0 | BA33: 0 | BB33: 0 | BC33: 0 | BD33: 309.6945 | BE33: 309.6945 | BF33: 0 | BG33: 1.00115e-09 | BH33: 0 | BI33: 0 | BJ33: 0 | BK33: 0 | BL33: 0 | BM33: 0 | BN33: 0.8532791914 | BO33: 5.326726458 | BP33: 0 | BQ33: 4.386794294 | BR33: 0 | BS33: 0 | BT33: 0 | BU33: 0 | BV33: 0 | BW33: 0 | BX33: 0.8532791914 | BY33: 5.326726458 | BZ33: 0 | CA33: 4.386794294 | CB33: 0 | CC33: 10.56679994 | CD33: 10.56679994 | CE33: 13.58664942 | CF33: 0 | CG33: 0 | CH33: 0 | CI33: 0 | CJ33: 0 | CK33: 0 | CL33: 25182.58269 | CM33: 157206.1417 | CN33: 0 | CO33: 388852.3028 | CP33: 0 | CQ33: 0 | CR33: 0 | CS33: 0 | CT33: 0 | CU33: 0 | CV33: 91.87642581 | CW33: 573.5527049 | CX33: 0 | CY33: 9.907620315e-09 | CZ33: 0 | DA33: 665.4291307 | DB33: 665.4291307 | DC33: =INDEX(LOOKUP!$G$2:$G$6,MATCH($A33,LOOKUP!$I$2:$I$6,0)) -> PACIFIC
A34: 2 | B34: 13 | C34: 2013 | D34: 113 | E34: 1 | F34: 2 | G34: 4 | H34: 3 | I34: 5 | J34: 0 | K34: 0 | L34: 0 | M34: 0 | N34: 0 | O34: 0.003551006522 | P34: 2.197694608e-42 | Q34: 9.197964031e-42 | R34: 3.4923488e-43 | S34: 7.732280054e-42 | T34: 0 | U34: 0 | V34: 0 | W34: 0 | X34: 0 | Y34: 0 | Z34: 0 | AA34: 0 | AB34: 0 | AC34: 0 | AD34: 0 | AE34: 0 | AF34: 0 | AG34: 0 | AH34: 0 | AI34: 0 | AJ34: 0 | AK34: 0 | AL34: 0 | AM34: 0 | AN34: 0 | AO34: 0 | AP34: 0 | AQ34: 0 | AR34: 0 | AS34: 0 | AT34: 0 | AU34: 0 | AV34: 0 | AW34: 0 | AX34: 0 | AY34: 0 | AZ34: 0 | BA34: 0 | BB34: 0 | BC34: 0 | BD34: 0 | BE34: 0 | BF34: 0 | BG34: 0 | BH34: 0 | BI34: 0 | BJ34: 0 | BK34: 0 | BL34: 0 | BM34: 0 | BN34: 0 | BO34: 0 | BP34: 0 | BQ34: 0 | BR34: 0 | BS34: 0 | BT34: 0 | BU34: 0 | BV34: 0 | BW34: 0 | BX34: 0 | BY34: 0 | BZ34: 0 | CA34: 0 | CB34: 0 | CC34: 0 | CD34: 0 | CE34: 0.003551006522 | CF34: 0 | CG34: 0 | CH34: 0 | CI34: 0 | CJ34: 0 | CK34: 0 | CL34: 0 | CM34: 0 | CN34: 0 | CO34: 0 | CP34: 0 | CQ34: 0 | CR34: 0 | CS34: 0 | CT34: 0 | CU34: 0 | CV34: 0 | CW34: 0 | CX34: 0 | CY34: 0 | CZ34: 0 | DA34: 0 | DB34: 0 | DC34: =INDEX(LOOKUP!$G$2:$G$6,MATCH($A34,LOOKUP!$I$2:$I$6,0)) -> PACIFIC
A35: 2 | B35: 13 | C35: 2013 | D35: 115 | E35: 1 | F35: 2 | G35: 4 | H35: 3 | I35: 7 | J35: 0 | K35: 0 | L35: 0 | M35: 0 | N35: 0 | O35: 0.002688585518 | P35: 0.0005284270442 | Q35: 0.002570385705 | R35: 3.789188282e-05 | S35: 0.003650077816 | T35: 0 | U35: 0 | V35: 0 | W35: 0 | X35: 0 | Y35: 0 | Z35: 0 | AA35: 0 | AB35: 0 | AC35: 0 | AD35: 0 | AE35: 0 | AF35: 0 | AG35: 0 | AH35: 0 | AI35: 0 | AJ35: 0 | AK35: 0 | AL35: 0 | AM35: 0 | AN35: 0 | AO35: 0 | AP35: 0 | AQ35: 0 | AR35: 0 | AS35: 0 | AT35: 0 | AU35: 0 | AV35: 0 | AW35: 0 | AX35: 0 | AY35: 0 | AZ35: 0 | BA35: 0 | BB35: 0 | BC35: 0 | BD35: 0 | BE35: 0 | BF35: 0 | BG35: 0 | BH35: 0 | BI35: 0 | BJ35: 0 | BK35: 0 | BL35: 0 | BM35: 0 | BN35: 0 | BO35: 0 | BP35: 0 | BQ35: 0 | BR35: 0 | BS35: 0 | BT35: 0 | BU35: 0 | BV35: 0 | BW35: 0 | BX35: 0 | BY35: 0 | BZ35: 0 | CA35: 0 | CB35: 0 | CC35: 0 | CD35: 0 | CE35: 0.009475367966 | CF35: 0 | CG35: 0 | CH35: 0 | CI35: 0 | CJ35: 0 | CK35: 0 | CL35: 0 | CM35: 0 | CN35: 0 | CO35: 0 | CP35: 0 | CQ35: 0 | CR35: 0 | CS35: 0 | CT35: 0 | CU35: 0 | CV35: 0 | CW35: 0 | CX35: 0 | CY35: 0 | CZ35: 0 | DA35: 0 | DB35: 0 | DC35: =INDEX(LOOKUP!$G$2:$G$6,MATCH($A35,LOOKUP!$I$2:$I$6,0)) -> PACIFIC
A36: 2 | B36: 13 | C36: 2013 | D36: 118 | E36: 1 | F36: 3 | G36: 1 | H36: 4 | I36: 1 | J36: 0 | K36: 0 | L36: 0 | M36: 0 | N36: 0 | O36: 0.004656781728 | P36: 0.006696456485 | Q36: 0.001714731121 | R36: 0.0008254205653 | S36: 0.00487518421 | T36: 0 | U36: 0 | V36: 0 | W36: 0 | X36: 0 | Y36: 0 | Z36: 0 | AA36: 0 | AB36: 0 | AC36: 0 | AD36: 0 | AE36: 0 | AF36: 0 | AG36: 0 | AH36: 0 | AI36: 0 | AJ36: 0 | AK36: 0 | AL36: 0 | AM36: 0 | AN36: 0 | AO36: 0 | AP36: 0 | AQ36: 0 | AR36: 0 | AS36: 0 | AT36: 0 | AU36: 0 | AV36: 0 | AW36: 0 | AX36: 0 | AY36: 0 | AZ36: 0 | BA36: 0 | BB36: 0 | BC36: 0 | BD36: 0 | BE36: 0 | BF36: 0 | BG36: 0 | BH36: 0 | BI36: 0 | BJ36: 0 | BK36: 0 | BL36: 0 | BM36: 0 | BN36: 0 | BO36: 0 | BP36: 0 | BQ36: 0 | BR36: 0 | BS36: 0 | BT36: 0 | BU36: 0 | BV36: 0 | BW36: 0 | BX36: 0 | BY36: 0 | BZ36: 0 | CA36: 0 | CB36: 0 | CC36: 0 | CD36: 0 | CE36: 0.01876857411 | CF36: 0 | CG36: 0 | CH36: 0 | CI36: 0 | CJ36: 0 | CK36: 0 | CL36: 0 | CM36: 0 | CN36: 0 | CO36: 0 | CP36: 0 | CQ36: 0 | CR36: 0 | CS36: 0 | CT36: 0 | CU36: 0 | CV36: 0 | CW36: 0 | CX36: 0 | CY36: 0 | CZ36: 0 | DA36: 0 | DB36: 0 | DC36: =INDEX(LOOKUP!$G$2:$G$6,MATCH($A36,LOOKUP!$I$2:$I$6,0)) -> PACIFIC
A37: 2 | B37: 13 | C37: 2013 | D37: 119 | E37: 1 | F37: 3 | G37: 2 | H37: 4 | I37: 2 | J37: 0 | K37: 0 | L37: 0 | M37: 0 | N37: 0 | O37: 0.005762784992 | P37: 0.000191632789 | Q37: 4.493975693e-07 | R37: 2.409847264e-07 | S37: 4.960175518e-06 | T37: 0 | U37: 0 | V37: 0 | W37: 0 | X37: 0 | Y37: 0 | Z37: 0 | AA37: 0 | AB37: 0 | AC37: 0 | AD37: 0 | AE37: 0 | AF37: 0 | AG37: 0 | AH37: 0 | AI37: 0 | AJ37: 0 | AK37: 0 | AL37: 0 | AM37: 0 | AN37: 0 | AO37: 0 | AP37: 0 | AQ37: 0 | AR37: 0 | AS37: 0 | AT37: 0 | AU37: 0 | AV37: 0 | AW37: 0 | AX37: 0 | AY37: 0 | AZ37: 0 | BA37: 0 | BB37: 0 | BC37: 0 | BD37: 0 | BE37: 0 | BF37: 0 | BG37: 0 | BH37: 0 | BI37: 0 | BJ37: 0 | BK37: 0 | BL37: 0 | BM37: 0 | BN37: 0 | BO37: 0 | BP37: 0 | BQ37: 0 | BR37: 0 | BS37: 0 | BT37: 0 | BU37: 0 | BV37: 0 | BW37: 0 | BX37: 0 | BY37: 0 | BZ37: 0 | CA37: 0 | CB37: 0 | CC37: 0 | CD37: 0 | CE37: 0.005960068339 | CF37: 0 | CG37: 0 | CH37: 0 | CI37: 0 | CJ37: 0 | CK37: 0 | CL37: 0 | CM37: 0 | CN37: 0 | CO37: 0 | CP37: 0 | CQ37: 0 | CR37: 0 | CS37: 0 | CT37: 0 | CU37: 0 | CV37: 0 | CW37: 0 | CX37: 0 | CY37: 0 | CZ37: 0 | DA37: 0 | DB37: 0 | DC37: =INDEX(LOOKUP!$G$2:$G$6,MATCH($A37,LOOKUP!$I$2:$I$6,0)) -> PACIFIC
A38: 2 | B38: 13 | C38: 2013 | D38: 120 | E38: 1 | F38: 3 | G38: 3 | H38: 4 | I38: 3 | J38: 0 | K38: 0 | L38: 0 | M38: 0 | N38: 0 | O38: 0.7729472734 | P38: 2.136999209 | Q38: 0.596949729 | R38: 0.04081033404 | S38: 5.717011999 | T38: 0 | U38: 0 | V38: 0 | W38: 0 | X38: 0 | Y38: 0 | Z38: 0 | AA38: 0 | AB38: 0 | AC38: 0 | AD38: 0 | AE38: 0 | AF38: 0 | AG38: 0 | AH38: 0 | AI38: 0 | AJ38: 0 | AK38: 0 | AL38: 0 | AM38: 0 | AN38: 0 | AO38: 0 | AP38: 0 | AQ38: 0 | AR38: 0 | AS38: 0 | AT38: 0 | AU38: 0 | AV38: 0 | AW38: 0 | AX38: 0 | AY38: 0 | AZ38: 0 | BA38: 0 | BB38: 0 | BC38: 0 | BD38: 0 | BE38: 0 | BF38: 0 | BG38: 0 | BH38: 0 | BI38: 0 | BJ38: 0 | BK38: 0 | BL38: 0 | BM38: 0 | BN38: 0 | BO38: 0 | BP38: 0 | BQ38: 0 | BR38: 0 | BS38: 0 | BT38: 0 | BU38: 0 | BV38: 0 | BW38: 0 | BX38: 0 | BY38: 0 | BZ38: 0 | CA38: 0 | CB38: 0 | CC38: 0 | CD38: 0 | CE38: 9.264718544 | CF38: 0 | CG38: 0 | CH38: 0 | CI38: 0 | CJ38: 0 | CK38: 0 | CL38: 0 | CM38: 0 | CN38: 0 | CO38: 0 | CP38: 0 | CQ38: 0 | CR38: 0 | CS38: 0 | CT38: 0 | CU38: 0 | CV38: 0 | CW38: 0 | CX38: 0 | CY38: 0 | CZ38: 0 | DA38: 0 | DB38: 0 | DC38: =INDEX(LOOKUP!$G$2:$G$6,MATCH($A38,LOOKUP!$I$2:$I$6,0)) -> PACIFIC
A39: 2 | B39: 13 | C39: 2013 | D39: 122 | E39: 1 | F39: 3 | G39: 4 | H39: 4 | I39: 5 | J39: 0 | K39: 0 | L39: 0 | M39: 0 | N39: 0 | O39: 0.002381062173 | P39: 1.727842552e-41 | Q39: 6.642965359e-43 | R39: 1.830411868e-43 | S39: 1.958284932e-42 | T39: 0 | U39: 0 | V39: 0 | W39: 0 | X39: 0 | Y39: 0 | Z39: 0 | AA39: 0 | AB39: 0 | AC39: 0 | AD39: 0 | AE39: 0 | AF39: 0 | AG39: 0 | AH39: 0 | AI39: 0 | AJ39: 0 | AK39: 0 | AL39: 0 | AM39: 0 | AN39: 0 | AO39: 0 | AP39: 0 | AQ39: 0 | AR39: 0 | AS39: 0 | AT39: 0 | AU39: 0 | AV39: 0 | AW39: 0 | AX39: 0 | AY39: 0 | AZ39: 0 | BA39: 0 | BB39: 0 | BC39: 0 | BD39: 0 | BE39: 0 | BF39: 0 | BG39: 0 | BH39: 0 | BI39: 0 | BJ39: 0 | BK39: 0 | BL39: 0 | BM39: 0 | BN39: 0 | BO39: 0 | BP39: 0 | BQ39: 0 | BR39: 0 | BS39: 0 | BT39: 0 | BU39: 0 | BV39: 0 | BW39: 0 | BX39: 0 | BY39: 0 | BZ39: 0 | CA39: 0 | CB39: 0 | CC39: 0 | CD39: 0 | CE39: 0.002381062173 | CF39: 0 | CG39: 0 | CH39: 0 | CI39: 0 | CJ39: 0 | CK39: 0 | CL39: 0 | CM39: 0 | CN39: 0 | CO39: 0 | CP39: 0 | CQ39: 0 | CR39: 0 | CS39: 0 | CT39: 0 | CU39: 0 | CV39: 0 | CW39: 0 | CX39: 0 | CY39: 0 | CZ39: 0 | DA39: 0 | DB39: 0 | DC39: =INDEX(LOOKUP!$G$2:$G$6,MATCH($A39,LOOKUP!$I$2:$I$6,0)) -> PACIFIC
A40: 2 | B40: 13 | C40: 2013 | D40: 124 | E40: 1 | F40: 3 | G40: 4 | H40: 4 | I40: 7 | J40: 0 | K40: 0 | L40: 0 | M40: 0 | N40: 0 | O40: 0.002418723531 | P40: 0.0006133210769 | Q40: 0.0002027276279 | R40: 1.742089436e-05 | S40: 0.003102761598 | T40: 0 | U40: 0 | V40: 0 | W40: 0 | X40: 0 | Y40: 0 | Z40: 0 | AA40: 0 | AB40: 0 | AC40: 0 | AD40: 0 | AE40: 0 | AF40: 0 | AG40: 0 | AH40: 0 | AI40: 0 | AJ40: 0 | AK40: 0 | AL40: 0 | AM40: 0 | AN40: 0 | AO40: 0 | AP40: 0 | AQ40: 0 | AR40: 0 | AS40: 0 | AT40: 0 | AU40: 0 | AV40: 0 | AW40: 0 | AX40: 0 | AY40: 0 | AZ40: 0 | BA40: 0 | BB40: 0 | BC40: 0 | BD40: 0 | BE40: 0 | BF40: 0 | BG40: 0 | BH40: 0 | BI40: 0 | BJ40: 0 | BK40: 0 | BL40: 0 | BM40: 0 | BN40: 0 | BO40: 0 | BP40: 0 | BQ40: 0 | BR40: 0 | BS40: 0 | BT40: 0 | BU40: 0 | BV40: 0 | BW40: 0 | BX40: 0 | BY40: 0 | BZ40: 0 | CA40: 0 | CB40: 0 | CC40: 0 | CD40: 0 | CE40: 0.006354954728 | CF40: 0 | CG40: 0 | CH40: 0 | CI40: 0 | CJ40: 0 | CK40: 0 | CL40: 0 | CM40: 0 | CN40: 0 | CO40: 0 | CP40: 0 | CQ40: 0 | CR40: 0 | CS40: 0 | CT40: 0 | CU40: 0 | CV40: 0 | CW40: 0 | CX40: 0 | CY40: 0 | CZ40: 0 | DA40: 0 | DB40: 0 | DC40: =INDEX(LOOKUP!$G$2:$G$6,MATCH($A40,LOOKUP!$I$2:$I$6,0)) -> PACIFIC
A41: 2 | B41: 13 | C41: 2013 | D41: 127 | E41: 1 | F41: 4 | G41: 1 | H41: 5 | I41: 1 | J41: 0 | K41: 0 | L41: 0 | M41: 0 | N41: 0 | O41: 0.003234044004 | P41: 0.000210562201 | Q41: 0.001346483052 | R41: 0.0006467869767 | S41: 0.003895467078 | T41: 0 | U41: 0 | V41: 0 | W41: 0 | X41: 0 | Y41: 0 | Z41: 0 | AA41: 0 | AB41: 0 | AC41: 0 | AD41: 0 | AE41: 0 | AF41: 0 | AG41: 0 | AH41: 0 | AI41: 0 | AJ41: 0 | AK41: 0 | AL41: 0 | AM41: 0 | AN41: 0 | AO41: 0 | AP41: 0 | AQ41: 0 | AR41: 0 | AS41: 0 | AT41: 0 | AU41: 0 | AV41: 0 | AW41: 0 | AX41: 0 | AY41: 0 | AZ41: 0 | BA41: 0 | BB41: 0 | BC41: 0 | BD41: 0 | BE41: 0 | BF41: 0 | BG41: 0 | BH41: 0 | BI41: 0 | BJ41: 0 | BK41: 0 | BL41: 0 | BM41: 0 | BN41: 0 | BO41: 0 | BP41: 0 | BQ41: 0 | BR41: 0 | BS41: 0 | BT41: 0 | BU41: 0 | BV41: 0 | BW41: 0 | BX41: 0 | BY41: 0 | BZ41: 0 | CA41: 0 | CB41: 0 | CC41: 0 | CD41: 0 | CE41: 0.009333343311 | CF41: 0 | CG41: 0 | CH41: 0 | CI41: 0 | CJ41: 0 | CK41: 0 | CL41: 0 | CM41: 0 | CN41: 0 | CO41: 0 | CP41: 0 | CQ41: 0 | CR41: 0 | CS41: 0 | CT41: 0 | CU41: 0 | CV41: 0 | CW41: 0 | CX41: 0 | CY41: 0 | CZ41: 0 | DA41: 0 | DB41: 0 | DC41: =INDEX(LOOKUP!$G$2:$G$6,MATCH($A41,LOOKUP!$I$2:$I$6,0)) -> PACIFIC
A42: 2 | B42: 13 | C42: 2013 | D42: 128 | E42: 1 | F42: 4 | G42: 2 | H42: 5 | I42: 2 | J42: 0 | K42: 0 | L42: 0 | M42: 0 | N42: 0 | O42: 0.9512176034 | P42: 0.4003355185 | Q42: 0.06850561356 | R42: 0.006670547388 | S42: 0.1149480675 | T42: 0 | U42: 0 | V42: 0 | W42: 0 | X42: 0 | Y42: 22411.1999 | Z42: 0 | AA42: 0 | AB42: 0 | AC42: 0 | AD42: 0 | AE42: 0 | AF42: 0 | AG42: 0 | AH42: 0 | AI42: 97.28244303 | AJ42: 0 | AK42: 0 | AL42: 0 | AM42: 0 | AN42: 0 | AO42: 0 | AP42: 0 | AQ42: 0 | AR42: 0 | AS42: 9.946462404e-10 | AT42: 0 | AU42: 0 | AV42: 0 | AW42: 0 | AX42: 0 | AY42: 0 | AZ42: 0 | BA42: 0 | BB42: 0 | BC42: 1.017534e-09 | BD42: 0 | BE42: 0 | BF42: 0 | BG42: 0 | BH42: 0 | BI42: 0 | BJ42: 0 | BK42: 0 | BL42: 0 | BM42: 0.9512176034 | BN42: 0 | BO42: 0 | BP42: 0 | BQ42: 0 | BR42: 0 | BS42: 0 | BT42: 0 | BU42: 0 | BV42: 0 | BW42: 0.9512176034 | BX42: 0 | BY42: 0 | BZ42: 0 | CA42: 0 | CB42: 0 | CC42: 0.9512176034 | CD42: 0.9512176034 | CE42: 1.54167735 | CF42: 0 | CG42: 0 | CH42: 0 | CI42: 0 | CJ42: 0 | CK42: 21317.92786 | CL42: 0 | CM42: 0 | CN42: 0 | CO42: 0 | CP42: 0 | CQ42: 0 | CR42: 0 | CS42: 0 | CT42: 0 | CU42: 92.53677231 | CV42: 0 | CW42: 0 | CX42: 0 | CY42: 0 | CZ42: 0 | DA42: 92.53677231 | DB42: 92.53677231 | DC42: =INDEX(LOOKUP!$G$2:$G$6,MATCH($A42,LOOKUP!$I$2:$I$6,0)) -> PACIFIC
A43: 2 | B43: 13 | C43: 2013 | D43: 129 | E43: 1 | F43: 4 | G43: 3 | H43: 5 | I43: 3 | J43: 0 | K43: 0 | L43: 0 | M43: 0 | N43: 0 | O43: 1.624353277 | P43: 1.955397235 | Q43: 0.6706408835 | R43: 0.007220254903 | S43: 0.8887899961 | T43: 0 | U43: 0 | V43: 0 | W43: 0 | X43: 0 | Y43: 29095.5708 | Z43: 0 | AA43: 0 | AB43: 0 | AC43: 131347.0085 | AD43: 0 | AE43: 0 | AF43: 0 | AG43: 0 | AH43: 0 | AI43: 123.3694957 | AJ43: 0 | AK43: 0 | AL43: 0 | AM43: 83.7515288 | AN43: 0 | AO43: 0 | AP43: 0 | AQ43: 0 | AR43: 0 | AS43: 1.009094766e-09 | AT43: 0 | AU43: 0 | AV43: 0 | AW43: 9.786307716e-10 | AX43: 0 | AY43: 0 | AZ43: 0 | BA43: 0 | BB43: 0 | BC43: 1.032315e-09 | BD43: 0 | BE43: 0 | BF43: 0 | BG43: 1.00115e-09 | BH43: 0 | BI43: 0 | BJ43: 0 | BK43: 0 | BL43: 0 | BM43: 1.624353277 | BN43: 0 | BO43: 0 | BP43: 0 | BQ43: 0.8887899961 | BR43: 0 | BS43: 0 | BT43: 0 | BU43: 0 | BV43: 0 | BW43: 1.624353277 | BX43: 0 | BY43: 0 | BZ43: 0 | CA43: 0.8887899961 | CB43: 0 | CC43: 2.513143273 | CD43: 2.513143273 | CE43: 5.146401646 | CF43: 0 | CG43: 0 | CH43: 0 | CI43: 0 | CJ43: 0 | CK43: 47261.48577 | CL43: 0 | CM43: 0 | CN43: 0 | CO43: 116739.9072 | CP43: 0 | CQ43: 0 | CR43: 0 | CS43: 0 | CT43: 0 | CU43: 200.3956446 | CV43: 0 | CW43: 0 | CX43: 0 | CY43: 74.43752096 | CZ43: 0 | DA43: 274.8331656 | DB43: 274.8331656 | DC43: =INDEX(LOOKUP!$G$2:$G$6,MATCH($A43,LOOKUP!$I$2:$I$6,0)) -> PACIFIC
A44: 2 | B44: 13 | C44: 2013 | D44: 131 | E44: 1 | F44: 4 | G44: 4 | H44: 5 | I44: 5 | J44: 0 | K44: 0 | L44: 0 | M44: 0 | N44: 0 | O44: 0.001184466787 | P44: 1.050209533e-42 | Q44: 2.204492387e-42 | R44: 4.388531771e-43 | S44: 3.258847669e-42 | T44: 0 | U44: 0 | V44: 0 | W44: 0 | X44: 0 | Y44: 0 | Z44: 0 | AA44: 0 | AB44: 0 | AC44: 0 | AD44: 0 | AE44: 0 | AF44: 0 | AG44: 0 | AH44: 0 | AI44: 0 | AJ44: 0 | AK44: 0 | AL44: 0 | AM44: 0 | AN44: 0 | AO44: 0 | AP44: 0 | AQ44: 0 | AR44: 0 | AS44: 0 | AT44: 0 | AU44: 0 | AV44: 0 | AW44: 0 | AX44: 0 | AY44: 0 | AZ44: 0 | BA44: 0 | BB44: 0 | BC44: 0 | BD44: 0 | BE44: 0 | BF44: 0 | BG44: 0 | BH44: 0 | BI44: 0 | BJ44: 0 | BK44: 0 | BL44: 0 | BM44: 0 | BN44: 0 | BO44: 0 | BP44: 0 | BQ44: 0 | BR44: 0 | BS44: 0 | BT44: 0 | BU44: 0 | BV44: 0 | BW44: 0 | BX44: 0 | BY44: 0 | BZ44: 0 | CA44: 0 | CB44: 0 | CC44: 0 | CD44: 0 | CE44: 0.001184466787 | CF44: 0 | CG44: 0 | CH44: 0 | CI44: 0 | CJ44: 0 | CK44: 0 | CL44: 0 | CM44: 0 | CN44: 0 | CO44: 0 | CP44: 0 | CQ44: 0 | CR44: 0 | CS44: 0 | CT44: 0 | CU44: 0 | CV44: 0 | CW44: 0 | CX44: 0 | CY44: 0 | CZ44: 0 | DA44: 0 | DB44: 0 | DC44: =INDEX(LOOKUP!$G$2:$G$6,MATCH($A44,LOOKUP!$I$2:$I$6,0)) -> PACIFIC
A45: 2 | B45: 13 | C45: 2013 | D45: 133 | E45: 1 | F45: 4 | G45: 4 | H45: 5 | I45: 7 | J45: 0 | K45: 0 | L45: 0 | M45: 0 | N45: 0 | O45: 0.003130167698 | P45: 2.680370832e-06 | Q45: 1.452502941e-05 | R45: 6.353462656e-07 | S45: 1.87220351e-05 | T45: 0 | U45: 0 | V45: 0 | W45: 0 | X45: 0 | Y45: 0 | Z45: 0 | AA45: 0 | AB45: 0 | AC45: 0 | AD45: 0 | AE45: 0 | AF45: 0 | AG45: 0 | AH45: 0 | AI45: 0 | AJ45: 0 | AK45: 0 | AL45: 0 | AM45: 0 | AN45: 0 | AO45: 0 | AP45: 0 | AQ45: 0 | AR45: 0 | AS45: 0 | AT45: 0 | AU45: 0 | AV45: 0 | AW45: 0 | AX45: 0 | AY45: 0 | AZ45: 0 | BA45: 0 | BB45: 0 | BC45: 0 | BD45: 0 | BE45: 0 | BF45: 0 | BG45: 0 | BH45: 0 | BI45: 0 | BJ45: 0 | BK45: 0 | BL45: 0 | BM45: 0 | BN45: 0 | BO45: 0 | BP45: 0 | BQ45: 0 | BR45: 0 | BS45: 0 | BT45: 0 | BU45: 0 | BV45: 0 | BW45: 0 | BX45: 0 | BY45: 0 | BZ45: 0 | CA45: 0 | CB45: 0 | CC45: 0 | CD45: 0 | CE45: 0.003166730479 | CF45: 0 | CG45: 0 | CH45: 0 | CI45: 0 | CJ45: 0 | CK45: 0 | CL45: 0 | CM45: 0 | CN45: 0 | CO45: 0 | CP45: 0 | CQ45: 0 | CR45: 0 | CS45: 0 | CT45: 0 | CU45: 0 | CV45: 0 | CW45: 0 | CX45: 0 | CY45: 0 | CZ45: 0 | DA45: 0 | DB45: 0 | DC45: =INDEX(LOOKUP!$G$2:$G$6,MATCH($A45,LOOKUP!$I$2:$I$6,0)) -> PACIFIC
A46: 2 | B46: 13 | C46: 2013 | D46: 162 | E46: 2 | F46: 0 | G46: 0 | H46: 0 | I46: 0 | J46: 0.1181917649 | K46: 0.7029140023 | L46: 0.3688678594 | M46: 0.04829332435 | N46: 1.854335257 | O46: 0 | P46: 0 | Q46: 0 | R46: 0 | S46: 0 | T46: 29029.52591 | U46: 25349.94714 | V46: 39461.65549 | W46: 58425.73967 | X46: 133843.5316 | Y46: 0 | Z46: 0 | AA46: 0 | AB46: 0 | AC46: 0 | AD46: 330.3195714 | AE46: 274.9185691 | AF46: 168.9499099 | AG46: 116.1042149 | AH46: 183.4195044 | AI46: 0 | AJ46: 0 | AK46: 0 | AL46: 0 | AM46: 0 | AN46: 100.9094766 | AO46: 212.490366 | AP46: 80.71748524 | AQ46: 45.46561192 | AR46: 129.9882806 | AS46: 0 | AT46: 0 | AU46: 0 | AV46: 0 | AW46: 0 | AX46: 1.032315e-09 | AY46: 1.019726285e-09 | AZ46: 86.35290111 | BA46: 468.2688454 | BB46: 70.76199208 | BC46: 0 | BD46: 0 | BE46: 0 | BF46: 0 | BG46: 0 | BH46: 0.1181917649 | BI46: 0.7029140023 | BJ46: 0.3688678594 | BK46: 0.04829332435 | BL46: 1.854335257 | BM46: 0 | BN46: 0 | BO46: 0 | BP46: 0 | BQ46: 0 | BR46: 0.1181917649 | BS46: 0.7029140023 | BT46: 0.3688678594 | BU46: 0.04829332435 | BV46: 1.854335257 | BW46: 0 | BX46: 0 | BY46: 0 | BZ46: 0 | CA46: 0 | CB46: 3.092602208 | CC46: 0 | CD46: 3.092602208 | CE46: 3.092602208 | CF46: 3431.0509 | CG46: 17818.8328 | CH46: 14556.13639 | CI46: 2821.573196 | CJ46: 248190.7795 | CK46: 0 | CL46: 0 | CM46: 0 | CN46: 0 | CO46: 0 | CP46: 50.96772225 | CQ46: 342.6065653 | CR46: 94.7486784 | CS46: 9.687265657 | CT46: 592.0978104 | CU46: 0 | CV46: 0 | CW46: 0 | CX46: 0 | CY46: 0 | CZ46: 1090.108042 | DA46: 0 | DB46: 1090.108042 | DC46: =INDEX(LOOKUP!$G$2:$G$6,MATCH($A46,LOOKUP!$I$2:$I$6,0)) -> PACIFIC
A47: 2 | B47: 13 | C47: 2013 | D47: 163 | E47: 2 | F47: 0 | G47: 1 | H47: 0 | I47: 1 | J47: 0 | K47: 0 | L47: 0 | M47: 0 | N47: 0 | O47: 0.06758510913 | P47: 0.005458469565 | Q47: 0.2179179335 | R47: 0.1052835838 | S47: 1.456805822 | T47: 0 | U47: 0 | V47: 0 | W47: 0 | X47: 0 | Y47: 0 | Z47: 0 | AA47: 35436.4335 | AB47: 35436.4335 | AC47: 35436.4335 | AD47: 0 | AE47: 0 | AF47: 0 | AG47: 0 | AH47: 0 | AI47: 0 | AJ47: 0 | AK47: 1.196450411e-09 | AL47: 1.196450411e-09 | AM47: 1.196450411e-09 | AN47: 0 | AO47: 0 | AP47: 0 | AQ47: 0 | AR47: 0 | AS47: 0 | AT47: 0 | AU47: 9.786307716e-10 | AV47: 9.786307716e-10 | AW47: 9.786307716e-10 | AX47: 0 | AY47: 0 | AZ47: 0 | BA47: 0 | BB47: 0 | BC47: 0 | BD47: 0 | BE47: 1.00115e-09 | BF47: 1.00115e-09 | BG47: 1.00115e-09 | BH47: 0 | BI47: 0 | BJ47: 0 | BK47: 0 | BL47: 0 | BM47: 0 | BN47: 0 | BO47: 0.2179179335 | BP47: 0.1052835838 | BQ47: 1.456805822 | BR47: 0 | BS47: 0 | BT47: 0 | BU47: 0 | BV47: 0 | BW47: 0 | BX47: 0 | BY47: 0.2179179335 | BZ47: 0.1052835838 | CA47: 1.456805822 | CB47: 0 | CC47: 1.78000734 | CD47: 1.78000734 | CE47: 1.853050918 | CF47: 0 | CG47: 0 | CH47: 0 | CI47: 0 | CJ47: 0 | CK47: 0 | CL47: 0 | CM47: 7722.23436 | CN47: 3730.874715 | CO47: 51624.00264 | CP47: 0 | CQ47: 0 | CR47: 0 | CS47: 0 | CT47: 0 | CU47: 0 | CV47: 0 | CW47: 4.921699083e-10 | CX47: 2.377840636e-10 | CY47: 3.290211027e-09 | CZ47: 0 | DA47: 4.020164999e-09 | DB47: 4.020164999e-09 | DC47: =INDEX(LOOKUP!$G$2:$G$6,MATCH($A47,LOOKUP!$I$2:$I$6,0)) -> PACIFIC
A48: 2 | B48: 13 | C48: 2013 | D48: 164 | E48: 2 | F48: 0 | G48: 2 | H48: 0 | I48: 2 | J48: 0.2181257112 | K48: 0.1427704046 | L48: 0.2284532579 | M48: 0.0758319065 | N48: 2.356347846 | O48: 0.9281206952 | P48: 0.2030777017 | Q48: 0.1654055802 | R48: 0.03056518563 | S48: 1.328363514 | T48: 17222.27861 | U48: 24531.1561 | V48: 53449.27103 | W48: 60716.68493 | X48: 126177.8474 | Y48: 8906.437866 | Z48: 33556.33731 | AA48: 39438.90309 | AB48: 43649.19554 | AC48: 104821.3163 | AD48: 253.9520612 | AE48: 223.019965 | AF48: 331.0699766 | AG48: 276.9613203 | AH48: 311.3161419 | AI48: 267.1709962 | AJ48: 201.816093 | AK48: 235.4901725 | AL48: 244.2577863 | AM48: 225.3482557 | AN48: 9.943592641e-10 | AO48: 113.4775941 | AP48: 38.68862897 | AQ48: 2.394141313 | AR48: 1.032651955 | AS48: 20.95791931 | AT48: 24.02631016 | AU48: 35.78133406 | AV48: 42.48633026 | AW48: 1.641379589 | AX48: 1143.40586 | AY48: 760.3479397 | AZ48: 40.72960634 | BA48: 371.6164548 | BB48: 507.5423371 | BC48: 1.003451485e-09 | BD48: 1.010307969e-09 | BE48: 1.006417995e-09 | BF48: 1.006782326e-09 | BG48: 791.8407855 | BH48: 0.2181257112 | BI48: 0.1427704046 | BJ48: 0.2284532579 | BK48: 0.0758319065 | BL48: 2.356347846 | BM48: 0.9281206952 | BN48: 0.2030777017 | BO48: 0.1654055802 | BP48: 0.03056518563 | BQ48: 1.328363514 | BR48: 0.2181257112 | BS48: 0.1427704046 | BT48: 0.2284532579 | BU48: 0.0758319065 | BV48: 2.356347846 | BW48: 0.9281206952 | BX48: 0.2030777017 | BY48: 0.1654055802 | BZ48: 0.03056518563 | CA48: 1.328363514 | CB48: 3.021529126 | CC48: 2.655532676 | CD48: 5.677061802 | CE48: 5.677061802 | CF48: 3756.621772 | CG48: 3502.323081 | CH48: 12210.6601 | CI48: 4604.261975 | CJ48: 297318.899 | CK48: 8266.249304 | CL48: 6814.543858 | CM48: 6523.414647 | CN48: 1334.145764 | CO48: 139240.8121 | CP48: 76.17732536 | CQ48: 57.08815791 | CR48: 85.24795903 | CS48: 23.5324226 | CT48: 835.6645987 | CU48: 267.4184093 | CV48: 45.86355617 | CW48: 44.86982094 | CX48: 8.764387149 | CY48: 389.1791168 | CZ48: 1077.710464 | DA48: 756.0952904 | DB48: 1833.805754 | DC48: =INDEX(LOOKUP!$G$2:$G$6,MATCH($A48,LOOKUP!$I$2:$I$6,0)) -> PACIFIC
A49: 2 | B49: 13 | C49: 2013 | D49: 165 | E49: 2 | F49: 0 | G49: 3 | H49: 0 | I49: 3 | J49: 24.71373154 | K49: 13.65844819 | L49: 24.7215012 | M49: 5.782033356 | N49: 123.300482 | O49: 7.619314518 | P49: 7.354119114 | Q49: 8.641179414 | R49: 3.103133291 | S49: 37.3640845 | T49: 17383.30567 | U49: 28016.97114 | V49: 48377.66023 | W49: 62035.39097 | X49: 125881.9302 | Y49: 15294.52173 | Z49: 27855.61554 | AA49: 52053.09376 | AB49: 59870.38791 | AC49: 91781.19563 | AD49: 212.2795616 | AE49: 182.6726175 | AF49: 232.0403055 | AG49: 214.9636767 | AH49: 217.6942267 | AI49: 176.6381197 | AJ49: 110.0426256 | AK49: 175.2989437 | AL49: 181.8256005 | AM49: 184.3460825 | AN49: 16.81176617 | AO49: 36.32274961 | AP49: 19.04876948 | AQ49: 28.25231207 | AR49: 19.27480195 | AS49: 1.675139908 | AT49: 6.780861157 | AU49: 15.9551814 | AV49: 22.85072059 | AW49: 27.09121073 | AX49: 2551.114308 | AY49: 2527.978 | AZ49: 2996.954041 | BA49: 3099.579702 | BB49: 3450.80829 | BC49: 2523.761581 | BD49: 2023.713736 | BE49: 1912.432789 | BF49: 2783.507589 | BG49: 2799.871886 | BH49: 24.71373154 | BI49: 13.65844819 | BJ49: 24.7215012 | BK49: 5.782033356 | BL49: 123.300482 | BM49: 7.619314518 | BN49: 7.354119114 | BO49: 8.641179414 | BP49: 3.103133291 | BQ49: 37.3640845 | BR49: 24.71373154 | BS49: 13.65844819 | BT49: 24.7215012 | BU49: 5.782033356 | BV49: 123.300482 | BW49: 7.619314518 | BX49: 7.354119114 | BY49: 8.641179414 | BZ49: 3.103133291 | CA49: 37.3640845 | CB49: 192.1761963 | CC49: 64.08183083 | CD49: 256.2580271 | CE49: 256.2580271 | CF49: 429606.3496 | CG49: 382668.3487 | CH49: 1195968.385 | CI49: 358690.6999 | CJ49: 15521302.67 | CK49: 116533.7715 | CL49: 204853.5147 | CM49: 449800.1222 | CN49: 185785.7939 | CO49: 3429320.349 | CP49: 10915.66442 | CQ49: 5868.491587 | CR49: 12381.39911 | CS49: 2899.772396 | CT49: 64675.58924 | CU49: 2961.069246 | CV49: 2099.353159 | CW49: 3029.800779 | CX49: 1354.937495 | CY49: 16618.04837 | CZ49: 96740.91675 | DA49: 26063.20905 | DB49: 122804.1258 | DC49: =INDEX(LOOKUP!$G$2:$G$6,MATCH($A49,LOOKUP!$I$2:$I$6,0)) -> PACIFIC
A50: 2 | B50: 13 | C50: 2013 | D50: 167 | E50: 2 | F50: 0 | G50: 4 | H50: 0 | I50: 5 | J50: 1.229113891 | K50: 0.6928803646 | L50: 1.830731175 | M50: 0.3514449777 | N50: 6.426573026 | O50: 0.748941526 | P50: 0.4486145166 | Q50: 0.4702692705 | R50: 0.09930991118 | S50: 0.9992578365 | T50: 16058.76756 | U50: 29091.51801 | V50: 43859.04039 | W50: 56987.63749 | X50: 119582.4573 | Y50: 10805.11918 | Z50: 28501.0808 | AA50: 39119.67822 | AB50: 64640.39309 | AC50: 99499.94512 | AD50: 161.4921118 | AE50: 129.2661092 | AF50: 159.9704023 | AG50: 161.6526597 | AH50: 168.0281779 | AI50: 151.8083571 | AJ50: 181.2511805 | AK50: 186.8011968 | AL50: 227.6308844 | AM50: 153.3358142 | AN50: 10.71917261 | AO50: 23.32991773 | AP50: 7.460350871 | AQ50: 18.24207436 | AR50: 19.82668807 | AS50: 28.07537539 | AT50: 7.362104123 | AU50: 14.73517624 | AV50: 11.39079798 | AW50: 7.465974525 | AX50: 1186.001901 | AY50: 1744.270377 | AZ50: 2229.720893 | BA50: 1479.908714 | BB50: 1417.209501 | BC50: 895.5765722 | BD50: 781.4898555 | BE50: 845.3051964 | BF50: 1630.204154 | BG50: 1461.839423 | BH50: 1.229113891 | BI50: 0.6928803646 | BJ50: 1.830731175 | BK50: 0.3514449777 | BL50: 6.426573026 | BM50: 0.748941526 | BN50: 0.4486145166 | BO50: 0.4702692705 | BP50: 0.09930991118 | BQ50: 0.9992578365 | BR50: 1.229113891 | BS50: 0.6928803646 | BT50: 1.830731175 | BU50: 0.3514449777 | BV50: 6.426573026 | BW50: 0.748941526 | BX50: 0.4486145166 | BY50: 0.4702692705 | BZ50: 0.09930991118 | CA50: 0.9992578365 | CB50: 10.53074343 | CC50: 2.766393061 | CD50: 13.29713649 | CE50: 13.29713649 | CF50: 19738.05428 | CG50: 20156.94161 | CH50: 80294.11253 | CI50: 20028.01898 | CJ50: 768505.3943 | CK50: 8092.402445 | CL50: 12785.99858 | CM50: 18396.78254 | CN50: 6419.431696 | CO50: 99426.09989 | CP50: 333.1448994 | CQ50: 206.4450154 | CR50: 646.6889952 | CS50: 106.5653079 | CT50: 1966.246377 | CU50: 190.6169375 | CV50: 113.8302987 | CW50: 127.903118 | CX50: 37.22850785 | CY50: 282.4119892 | CZ50: 3259.090594 | DA50: 751.9908511 | DB50: 4011.081446 | DC50: =INDEX(LOOKUP!$G$2:$G$6,MATCH($A50,LOOKUP!$I$2:$I$6,0)) -> PACIFIC
A51: 2 | B51: 13 | C51: 2013 | D51: 169 | E51: 2 | F51: 0 | G51: 4 | H51: 0 | I51: 7 | J51: 0 | K51: 0 | L51: 0 | M51: 0 | N51: 0 | O51: 0.02171102671 | P51: 0.003110168198 | Q51: 0.1630740217 | R51: 0.04544028859 | S51: 0.2124096511 | T51: 0 | U51: 0 | V51: 0 | W51: 0 | X51: 0 | Y51: 0 | Z51: 0 | AA51: 52142.6 | AB51: 52142.6 | AC51: 52142.6 | AD51: 0 | AE51: 0 | AF51: 0 | AG51: 0 | AH51: 0 | AI51: 0 | AJ51: 0 | AK51: 148.0433949 | AL51: 148.0433949 | AM51: 148.0433949 | AN51: 0 | AO51: 0 | AP51: 0 | AQ51: 0 | AR51: 0 | AS51: 0 | AT51: 0 | AU51: 1.009094766e-09 | AV51: 1.009094766e-09 | AW51: 1.009094766e-09 | AX51: 0 | AY51: 0 | AZ51: 0 | BA51: 0 | BB51: 0 | BC51: 0 | BD51: 0 | BE51: 5161.575 | BF51: 5161.575 | BG51: 5161.575 | BH51: 0 | BI51: 0 | BJ51: 0 | BK51: 0 | BL51: 0 | BM51: 0 | BN51: 0 | BO51: 0.1630740217 | BP51: 0.04544028859 | BQ51: 0.2124096511 | BR51: 0 | BS51: 0 | BT51: 0 | BU51: 0 | BV51: 0 | BW51: 0 | BX51: 0 | BY51: 0.1630740217 | BZ51: 0.04544028859 | CA51: 0.2124096511 | CB51: 0 | CC51: 0.4209239614 | CD51: 0.4209239614 | CE51: 0.4457451563 | CF51: 0 | CG51: 0 | CH51: 0 | CI51: 0 | CJ51: 0 | CK51: 0 | CL51: 0 | CM51: 8503.103484 | CN51: 2369.374792 | CO51: 11075.59148 | CP51: 0 | CQ51: 0 | CR51: 0 | CS51: 0 | CT51: 0 | CU51: 0 | CV51: 0 | CW51: 94.28526459 | CX51: 26.27242272 | CY51: 122.8098746 | CZ51: 0 | DA51: 243.3675619 | DB51: 243.3675619 | DC51: =INDEX(LOOKUP!$G$2:$G$6,MATCH($A51,LOOKUP!$I$2:$I$6,0)) -> PACIFIC
A52: 2 | B52: 13 | C52: 2013 | D52: 171 | E52: 2 | F52: 1 | G52: 0 | H52: 1 | I52: 0 | J52: 0.008069518342 | K52: 0.01690991362 | L52: 0.1855868137 | M52: 0.0007952542401 | N52: 0.1696209902 | O52: 0 | P52: 0 | Q52: 0 | R52: 0 | S52: 0 | T52: 0 | U52: 0 | V52: 39349.6752 | W52: 0 | X52: 307328.7006 | Y52: 0 | Z52: 0 | AA52: 0 | AB52: 0 | AC52: 0 | AD52: 0 | AE52: 0 | AF52: 239.0152148 | AG52: 0 | AH52: 24.32061076 | AI52: 0 | AJ52: 0 | AK52: 0 | AL52: 0 | AM52: 0 | AN52: 0 | AO52: 0 | AP52: 146.6259959 | AQ52: 0 | AR52: 99.46462404 | AS52: 0 | AT52: 0 | AU52: 0 | AV52: 0 | AW52: 0 | AX52: 0 | AY52: 0 | AZ52: 1e-09 | BA52: 0 | BB52: 1.017534e-09 | BC52: 0 | BD52: 0 | BE52: 0 | BF52: 0 | BG52: 0 | BH52: 0 | BI52: 0 | BJ52: 0.1855868137 | BK52: 0 | BL52: 0.1696209902 | BM52: 0 | BN52: 0 | BO52: 0 | BP52: 0 | BQ52: 0 | BR52: 0 | BS52: 0 | BT52: 0.1855868137 | BU52: 0 | BV52: 0.1696209902 | BW52: 0 | BX52: 0 | BY52: 0 | BZ52: 0 | CA52: 0 | CB52: 0.355207804 | CC52: 0 | CD52: 0.355207804 | CE52: 0.3809824902 | CF52: 0 | CG52: 0 | CH52: 7302.780842 | CI52: 0 | CJ52: 52129.39851 | CK52: 0 | CL52: 0 | CM52: 0 | CN52: 0 | CO52: 0 | CP52: 0 | CQ52: 0 | CR52: 71.56992353 | CS52: 0 | CT52: 20.9965741 | CU52: 0 | CV52: 0 | CW52: 0 | CX52: 0 | CY52: 0 | CZ52: 92.56649763 | DA52: 0 | DB52: 92.56649763 | DC52: =INDEX(LOOKUP!$G$2:$G$6,MATCH($A52,LOOKUP!$I$2:$I$6,0)) -> PACIFIC
A53: 2 | B53: 13 | C53: 2013 | D53: 172 | E53: 2 | F53: 1 | G53: 1 | H53: 1 | I53: 1 | J53: 0 | K53: 0 | L53: 0 | M53: 0 | N53: 0 | O53: 0.009105989943 | P53: 0.01312509559 | Q53: 0.01239294053 | R53: 0.00153296342 | S53: 0.4316857872 | T53: 0 | U53: 0 | V53: 0 | W53: 0 | X53: 0 | Y53: 0 | Z53: 0 | AA53: 0 | AB53: 0 | AC53: 0 | AD53: 0 | AE53: 0 | AF53: 0 | AG53: 0 | AH53: 0 | AI53: 0 | AJ53: 0 | AK53: 0 | AL53: 0 | AM53: 0 | AN53: 0 | AO53: 0 | AP53: 0 | AQ53: 0 | AR53: 0 | AS53: 0 | AT53: 0 | AU53: 0 | AV53: 0 | AW53: 0 | AX53: 0 | AY53: 0 | AZ53: 0 | BA53: 0 | BB53: 0 | BC53: 0 | BD53: 0 | BE53: 0 | BF53: 0 | BG53: 0 | BH53: 0 | BI53: 0 | BJ53: 0 | BK53: 0 | BL53: 0 | BM53: 0 | BN53: 0 | BO53: 0 | BP53: 0 | BQ53: 0 | BR53: 0 | BS53: 0 | BT53: 0 | BU53: 0 | BV53: 0 | BW53: 0 | BX53: 0 | BY53: 0 | BZ53: 0 | CA53: 0 | CB53: 0 | CC53: 0 | CD53: 0 | CE53: 0.4678427767 | CF53: 0 | CG53: 0 | CH53: 0 | CI53: 0 | CJ53: 0 | CK53: 0 | CL53: 0 | CM53: 0 | CN53: 0 | CO53: 0 | CP53: 0 | CQ53: 0 | CR53: 0 | CS53: 0 | CT53: 0 | CU53: 0 | CV53: 0 | CW53: 0 | CX53: 0 | CY53: 0 | CZ53: 0 | DA53: 0 | DB53: 0 | DC53: =INDEX(LOOKUP!$G$2:$G$6,MATCH($A53,LOOKUP!$I$2:$I$6,0)) -> PACIFIC
A54: 2 | B54: 13 | C54: 2013 | D54: 173 | E54: 2 | F54: 1 | G54: 2 | H54: 1 | I54: 2 | J54: 0.003707430645 | K54: 0.03061042773 | L54: 0.2393746437 | M54: 0.0004555247335 | N54: 0.1251014315 | O54: 0.0009106303937 | P54: 1.631116033e-05 | Q54: 6.579997673e-08 | R54: 3.42785548e-08 | S54: 8.181694989e-07 | T54: 0 | U54: 28365.5744 | V54: 28365.5744 | W54: 0 | X54: 436516.0427 | Y54: 0 | Z54: 0 | AA54: 0 | AB54: 0 | AC54: 0 | AD54: 0 | AE54: 160.3803445 | AF54: 160.3803445 | AG54: 0 | AH54: 243.2061076 | AI54: 0 | AJ54: 0 | AK54: 0 | AL54: 0 | AM54: 0 | AN54: 0 | AO54: 100.9094766 | AP54: 100.9094766 | AQ54: 0 | AR54: 9.946462404e-10 | AS54: 0 | AT54: 0 | AU54: 0 | AV54: 0 | AW54: 0 | AX54: 0 | AY54: 1.032315e-09 | AZ54: 1.032315e-09 | BA54: 0 | BB54: 1.017534e-09 | BC54: 0 | BD54: 0 | BE54: 0 | BF54: 0 | BG54: 0 | BH54: 0 | BI54: 0.03061042773 | BJ54: 0.2393746437 | BK54: 0 | BL54: 0.1251014315 | BM54: 0 | BN54: 0 | BO54: 0 | BP54: 0 | BQ54: 0 | BR54: 0 | BS54: 0.03061042773 | BT54: 0.2393746437 | BU54: 0 | BV54: 0.1251014315 | BW54: 0 | BX54: 0 | BY54: 0 | BZ54: 0 | CA54: 0 | CB54: 0.3950865029 | CC54: 0 | CD54: 0.3950865029 | CE54: 0.4001773181 | CF54: 0 | CG54: 868.2823651 | CH54: 6789.999266 | CI54: 0 | CJ54: 54608.78179 | CK54: 0 | CL54: 0 | CM54: 0 | CN54: 0 | CO54: 0 | CP54: 0 | CQ54: 7.998193183 | CR54: 62.54615782 | CS54: 0 | CT54: 30.4254322 | CU54: 0 | CV54: 0 | CW54: 0 | CX54: 0 | CY54: 0 | CZ54: 100.9697832 | DA54: 0 | DB54: 100.9697832 | DC54: =INDEX(LOOKUP!$G$2:$G$6,MATCH($A54,LOOKUP!$I$2:$I$6,0)) -> PACIFIC
A55: 2 | B55: 13 | C55: 2013 | D55: 174 | E55: 2 | F55: 1 | G55: 3 | H55: 1 | I55: 3 | J55: 0.3527893317 | K55: 0.5685600726 | L55: 1.173496611 | M55: 0.003385591063 | N55: 4.29837654 | O55: 0.6136291213 | P55: 0.6039908556 | Q55: 0.2765319852 | R55: 0.04900445194 | S55: 2.182904291 | T55: 16483.30802 | U55: 26649.63544 | V55: 32104.803 | W55: 0 | X55: 157954.4806 | Y55: 0 | Z55: 0 | AA55: 51765.3488 | AB55: 51765.3488 | AC55: 75151.98194 | AD55: 137.2107709 | AE55: 148.2878385 | AF55: 179.4675617 | AG55: 0 | AH55: 298.6460177 | AI55: 0 | AJ55: 0 | AK55: 382.4243437 | AL55: 382.4243437 | AM55: 102.2306625 | AN55: 16.41617251 | AO55: 0.1391335743 | AP55: 9.786307716e-10 | AQ55: 0 | AR55: 4.120550618 | AS55: 0 | AT55: 0 | AU55: 9.77506639e-10 | AV55: 9.77506639e-10 | AW55: 9.780868365e-10 | AX55: 1.000983362e-09 | AY55: 1.000725929e-09 | AZ55: 1.00115e-09 | BA55: 0 | BB55: 2086.843952 | BC55: 0 | BD55: 0 | BE55: 1000 | BF55: 1000 | BG55: 2130.812903 | BH55: 0.3527893317 | BI55: 0.5685600726 | BJ55: 1.173496611 | BK55: 0 | BL55: 4.29837654 | BM55: 0 | BN55: 0 | BO55: 0.2765319852 | BP55: 0.04900445194 | BQ55: 2.182904291 | BR55: 0.3527893317 | BS55: 0.5685600726 | BT55: 1.173496611 | BU55: 0 | BV55: 4.29837654 | BW55: 0 | BX55: 0 | BY55: 0.2765319852 | BZ55: 0.04900445194 | CA55: 2.182904291 | CB55: 6.393222555 | CC55: 2.508440729 | CD55: 8.901663283 | CE55: 10.12266885 | CF55: 5815.13522 | CG55: 15151.91866 | CH55: 37674.87751 | CI55: 0 | CJ55: 678947.8339 | CK55: 0 | CL55: 0 | CM55: 14314.77467 | CN55: 2536.732547 | CO55: 164049.5839 | CP55: 54.19794669 | CQ55: 84.38965 | CR55: 210.6045754 | CS55: 0 | CT55: 2048.908138 | CU55: 0 | CV55: 0 | CW55: 128.796895 | CX55: 22.8241997 | CY55: 610.7731377 | CZ55: 2398.10031 | DA55: 762.3942324 | DB55: 3160.494543 | DC55: =INDEX(LOOKUP!$G$2:$G$6,MATCH($A55,LOOKUP!$I$2:$I$6,0)) -> PACIFIC
A56: 2 | B56: 13 | C56: 2013 | D56: 176 | E56: 2 | F56: 1 | G56: 4 | H56: 1 | I56: 5 | J56: 0 | K56: 0 | L56: 0 | M56: 0 | N56: 0.001460721637 | O56: 0.0003706825633 | P56: 4.147637334e-41 | Q56: 4.069774986e-41 | R56: 1.082397262e-41 | S56: 1.296199363e-40 | T56: 0 | U56: 0 | V56: 0 | W56: 0 | X56: 0 | Y56: 0 | Z56: 0 | AA56: 0 | AB56: 0 | AC56: 0 | AD56: 0 | AE56: 0 | AF56: 0 | AG56: 0 | AH56: 0 | AI56: 0 | AJ56: 0 | AK56: 0 | AL56: 0 | AM56: 0 | AN56: 0 | AO56: 0 | AP56: 0 | AQ56: 0 | AR56: 0 | AS56: 0 | AT56: 0 | AU56: 0 | AV56: 0 | AW56: 0 | AX56: 0 | AY56: 0 | AZ56: 0 | BA56: 0 | BB56: 0 | BC56: 0 | BD56: 0 | BE56: 0 | BF56: 0 | BG56: 0 | BH56: 0 | BI56: 0 | BJ56: 0 | BK56: 0 | BL56: 0 | BM56: 0 | BN56: 0 | BO56: 0 | BP56: 0 | BQ56: 0 | BR56: 0 | BS56: 0 | BT56: 0 | BU56: 0 | BV56: 0 | BW56: 0 | BX56: 0 | BY56: 0 | BZ56: 0 | CA56: 0 | CB56: 0 | CC56: 0 | CD56: 0 | CE56: 0.0018314042 | CF56: 0 | CG56: 0 | CH56: 0 | CI56: 0 | CJ56: 0 | CK56: 0 | CL56: 0 | CM56: 0 | CN56: 0 | CO56: 0 | CP56: 0 | CQ56: 0 | CR56: 0 | CS56: 0 | CT56: 0 | CU56: 0 | CV56: 0 | CW56: 0 | CX56: 0 | CY56: 0 | CZ56: 0 | DA56: 0 | DB56: 0 | DC56: =INDEX(LOOKUP!$G$2:$G$6,MATCH($A56,LOOKUP!$I$2:$I$6,0)) -> PACIFIC
A57: 2 | B57: 13 | C57: 2013 | D57: 178 | E57: 2 | F57: 1 | G57: 4 | H57: 1 | I57: 7 | J57: 0 | K57: 0 | L57: 0 | M57: 0 | N57: 0 | O57: 0.0001518495409 | P57: 1.402382569e-05 | Q57: 3.819568655e-05 | R57: 2.614404988e-06 | S57: 0.0007844200927 | T57: 0 | U57: 0 | V57: 0 | W57: 0 | X57: 0 | Y57: 0 | Z57: 0 | AA57: 0 | AB57: 0 | AC57: 0 | AD57: 0 | AE57: 0 | AF57: 0 | AG57: 0 | AH57: 0 | AI57: 0 | AJ57: 0 | AK57: 0 | AL57: 0 | AM57: 0 | AN57: 0 | AO57: 0 | AP57: 0 | AQ57: 0 | AR57: 0 | AS57: 0 | AT57: 0 | AU57: 0 | AV57: 0 | AW57: 0 | AX57: 0 | AY57: 0 | AZ57: 0 | BA57: 0 | BB57: 0 | BC57: 0 | BD57: 0 | BE57: 0 | BF57: 0 | BG57: 0 | BH57: 0 | BI57: 0 | BJ57: 0 | BK57: 0 | BL57: 0 | BM57: 0 | BN57: 0 | BO57: 0 | BP57: 0 | BQ57: 0 | BR57: 0 | BS57: 0 | BT57: 0 | BU57: 0 | BV57: 0 | BW57: 0 | BX57: 0 | BY57: 0 | BZ57: 0 | CA57: 0 | CB57: 0 | CC57: 0 | CD57: 0 | CE57: 0.0009911035508 | CF57: 0 | CG57: 0 | CH57: 0 | CI57: 0 | CJ57: 0 | CK57: 0 | CL57: 0 | CM57: 0 | CN57: 0 | CO57: 0 | CP57: 0 | CQ57: 0 | CR57: 0 | CS57: 0 | CT57: 0 | CU57: 0 | CV57: 0 | CW57: 0 | CX57: 0 | CY57: 0 | CZ57: 0 | DA57: 0 | DB57: 0 | DC57: =INDEX(LOOKUP!$G$2:$G$6,MATCH($A57,LOOKUP!$I$2:$I$6,0)) -> PACIFIC
A58: 2 | B58: 13 | C58: 2013 | D58: 180 | E58: 2 | F58: 2 | G58: 0 | H58: 2 | I58: 0 | J58: 1.895004584e-05 | K58: 6.312535528e-06 | L58: 3.192975451e-06 | M58: 9.652737216e-07 | N58: 9.201506444e-05 | O58: 0 | P58: 0 | Q58: 0 | R58: 0 | S58: 0 | T58: 0 | U58: 0 | V58: 0 | W58: 0 | X58: 0 | Y58: 0 | Z58: 0 | AA58: 0 | AB58: 0 | AC58: 0 | AD58: 0 | AE58: 0 | AF58: 0 | AG58: 0 | AH58: 0 | AI58: 0 | AJ58: 0 | AK58: 0 | AL58: 0 | AM58: 0 | AN58: 0 | AO58: 0 | AP58: 0 | AQ58: 0 | AR58: 0 | AS58: 0 | AT58: 0 | AU58: 0 | AV58: 0 | AW58: 0 | AX58: 0 | AY58: 0 | AZ58: 0 | BA58: 0 | BB58: 0 | BC58: 0 | BD58: 0 | BE58: 0 | BF58: 0 | BG58: 0 | BH58: 0 | BI58: 0 | BJ58: 0 | BK58: 0 | BL58: 0 | BM58: 0 | BN58: 0 | BO58: 0 | BP58: 0 | BQ58: 0 | BR58: 0 | BS58: 0 | BT58: 0 | BU58: 0 | BV58: 0 | BW58: 0 | BX58: 0 | BY58: 0 | BZ58: 0 | CA58: 0 | CB58: 0 | CC58: 0 | CD58: 0 | CE58: 0.000121435895 | CF58: 0 | CG58: 0 | CH58: 0 | CI58: 0 | CJ58: 0 | CK58: 0 | CL58: 0 | CM58: 0 | CN58: 0 | CO58: 0 | CP58: 0 | CQ58: 0 | CR58: 0 | CS58: 0 | CT58: 0 | CU58: 0 | CV58: 0 | CW58: 0 | CX58: 0 | CY58: 0 | CZ58: 0 | DA58: 0 | DB58: 0 | DC58: =INDEX(LOOKUP!$G$2:$G$6,MATCH($A58,LOOKUP!$I$2:$I$6,0)) -> PACIFIC
A59: 2 | B59: 13 | C59: 2013 | D59: 181 | E59: 2 | F59: 2 | G59: 1 | H59: 2 | I59: 1 | J59: 0 | K59: 0 | L59: 0 | M59: 0 | N59: 0 | O59: 0.0004225625147 | P59: 5.80160149e-05 | Q59: 0.04502006332 | R59: 0.02217381138 | S59: 0.04336634556 | T59: 0 | U59: 0 | V59: 0 | W59: 0 | X59: 0 | Y59: 0 | Z59: 0 | AA59: 0 | AB59: 0 | AC59: 0 | AD59: 0 | AE59: 0 | AF59: 0 | AG59: 0 | AH59: 0 | AI59: 0 | AJ59: 0 | AK59: 0 | AL59: 0 | AM59: 0 | AN59: 0 | AO59: 0 | AP59: 0 | AQ59: 0 | AR59: 0 | AS59: 0 | AT59: 0 | AU59: 0 | AV59: 0 | AW59: 0 | AX59: 0 | AY59: 0 | AZ59: 0 | BA59: 0 | BB59: 0 | BC59: 0 | BD59: 0 | BE59: 0 | BF59: 0 | BG59: 0 | BH59: 0 | BI59: 0 | BJ59: 0 | BK59: 0 | BL59: 0 | BM59: 0 | BN59: 0 | BO59: 0 | BP59: 0 | BQ59: 0 | BR59: 0 | BS59: 0 | BT59: 0 | BU59: 0 | BV59: 0 | BW59: 0 | BX59: 0 | BY59: 0 | BZ59: 0 | CA59: 0 | CB59: 0 | CC59: 0 | CD59: 0 | CE59: 0.1110407988 | CF59: 0 | CG59: 0 | CH59: 0 | CI59: 0 | CJ59: 0 | CK59: 0 | CL59: 0 | CM59: 0 | CN59: 0 | CO59: 0 | CP59: =BR59*(AD59*$DD$1+AN59*$DE$1+AX59*$DF$1/12) -> 0 | CQ59: =BS59*(AE59*$DD$1+AO59*$DE$1+AY59*$DF$1/12) -> 0 | CR59: =BT59*(AF59*$DD$1+AP59*$DE$1+AZ59*$DF$1/12) -> 0 | CS59: =BU59*(AG59*$DD$1+AQ59*$DE$1+BA59*$DF$1/12) -> 0 | CT59: =BV59*(AH59*$DD$1+AR59*$DE$1+BB59*$DF$1/12) -> 0 | CU59: =BW59*(AI59*$DD$1+AS59*$DE$1+BC59*$DF$1/12) -> 0 | CV59: =BX59*(AJ59*$DD$1+AT59*$DE$1+BD59*$DF$1/12) -> 0 | CW59: =BY59*(AK59*$DD$1+AU59*$DE$1+BE59*$DF$1/12) -> 0 | CX59: =BZ59*(AL59*$DD$1+AV59*$DE$1+BF59*$DF$1/12) -> 0 | CY59: =CA59*(AM59*$DD$1+AW59*$DE$1+BG59*$DF$1/12) -> 0 | CZ59: 0 | DA59: 0 | DB59: 0 | DC59: =INDEX(LOOKUP!$G$2:$G$6,MATCH($A59,LOOKUP!$I$2:$I$6,0)) -> PACIFIC
A60: 2 | B60: 13 | C60: 2013 | D60: 182 | E60: 2 | F60: 2 | G60: 2 | H60: 2 | I60: 2 | J60: 6.442478485e-06 | K60: 3.687630918e-06 | L60: 4.757933133e-06 | M60: 9.326412959e-07 | N60: 7.526291442e-05 | O60: 0.007973129362 | P60: 0.02407137125 | Q60: 0.0001336039736 | R60: 0.009750997942 | S60: 0.2147822644 | T60: 0 | U60: 0 | V60: 0 | W60: 0 | X60: 0 | Y60: 17822.4992 | Z60: 17822.4992 | AA60: 0 | AB60: 73405.394 | AC60: 118579.7881 | AD60: 0 | AE60: 0 | AF60: 0 | AG60: 0 | AH60: 0 | AI60: 119.5076074 | AJ60: 119.5076074 | AK60: 0 | AL60: 218.8854968 | AM60: 244.0203904 | AN60: 0 | AO60: 0 | AP60: 0 | AQ60: 0 | AR60: 0 | AS60: 9.77506639e-10 | AT60: 9.77506639e-10 | AU60: 0 | AV60: 9.946462404 | AW60: 4.035800173 | AX60: 0 | AY60: 0 | AZ60: 0 | BA60: 0 | BB60: 0 | BC60: 1e-09 | BD60: 1e-09 | BE60: 0 | BF60: 1.017534e-09 | BG60: 1.011448904e-09 | BH60: 0 | BI60: 0 | BJ60: 0 | BK60: 0 | BL60: 0 | BM60: 0.007973129362 | BN60: 0.02407137125 | BO60: 0 | BP60: 0.009750997942 | BQ60: 0.2147822644 | BR60: 0 | BS60: 0 | BT60: 0 | BU60: 0 | BV60: 0 | BW60: 0.007973129362 | BX60: 0.02407137125 | BY60: 0 | BZ60: 0.009750997942 | CA60: 0.2147822644 | CB60: =SUM(BR60:BV60) -> 0 | CC60: =SUM(BW60:CA60) -> 0.2565777629 | CD60: =SUM(BR60:CA60) -> 0.2565777629 | CE60: 0.2568024505 | CF60: 0 | CG60: 0 | CH60: 0 | CI60: 0 | CJ60: 0 | CK60: 142.1010917 | CL60: 429.0119948 | CM60: 0 | CN60: 715.7758458 | CO60: 25468.8354 | CP60: 0 | CQ60: 0 | CR60: 0 | CS60: 0 | CT60: 0 | CU60: 0.9528496136 | CV60: 2.876711985 | CW60: 0 | CX60: 2.231339963 | CY60: 53.2780703 | CZ60: =SUM(CP60:CT60) -> 0 | DA60: =SUM(CU60:CY60) -> 59.33897186 | DB60: =SUM(CP60:CY60) -> 59.33897186 | DC60: =INDEX(LOOKUP!$G$2:$G$6,MATCH($A60,LOOKUP!$I$2:$I$6,0)) -> PACIFIC
A61: 2 | B61: 13 | C61: 2013 | D61: 183 | E61: 2 | F61: 2 | G61: 3 | H61: 2 | I61: 3 | J61: 0.2402916047 | K61: 0.002806152106 | L61: 0.1469453026 | M61: 0.02027462342 | N61: 0.08258459643 | O61: 0.1749141553 | P61: 0.1064180948 | Q61: 0.5546701224 | R61: 0.2800377391 | S61: 3.357000658 | T61: 14818.7072 | U61: 0 | V61: 39676.6905 | W61: 39676.6905 | X61: 199289.0172 | Y61: 1726.999797 | Z61: 28263.94809 | AA61: 44817.62031 | AB61: 51169.95642 | AC61: 52696.88683 | AD61: 1.195076074e-09 | AE61: 0 | AF61: 275.1835946 | AG61: 275.1835946 | AH61: 518.1518821 | AI61: 84.90582326 | AJ61: 260.4731633 | AK61: 150.1526976 | AL61: 34.88602674 | AM61: 54.96936241 | AN61: 9.77506639e-10 | AO61: 0 | AP61: 9.786307716e-10 | AQ61: 9.786307716e-10 | AR61: 1.009094766e-09 | AS61: 9.960373279e-10 | AT61: 9.906945184e-10 | AU61: 9.990752517e-10 | AV61: 9.927346497e-10 | AW61: 9.864705744e-10 | AX61: 1e-09 | AY61: 0 | AZ61: 1.00115e-09 | BA61: 1.00115e-09 | BB61: 3406.6395 | BC61: 410.1338607 | BD61: 1911.518715 | BE61: 1465.849072 | BF61: 255.9524916 | BG61: 1.009170204e-09 | BH61: 0.2402916047 | BI61: 0 | BJ61: 0.1469453026 | BK61: 0.02027462342 | BL61: 0.08258459643 | BM61: 0.1749141553 | BN61: 0.1064180948 | BO61: 0.5546701224 | BP61: 0.2800377391 | BQ61: 3.357000658 | BR61: 0.2402916047 | BS61: 0 | BT61: 0.1469453026 | BU61: 0.02027462342 | BV61: 0.08258459643 | BW61: 0.1749141553 | BX61: 0.1064180948 | BY61: 0.5546701224 | BZ61: 0.2800377391 | CA61: 3.357000658 | CB61: 0.4900961271 | CC61: 4.473040769 | CD61: 4.963136897 | CE61: 4.965943049 | CF61: 3560.810932 | CG61: 0 | CH61: 5830.303291 | CI61: 804.4299582 | CJ61: 16458.20306 | CK61: 302.0767107 | CL61: 3007.795506 | CM61: 24858.99494 | CN61: 14329.5189 | CO61: 176903.4838 | CP61: 5.420776868e-10 | CQ61: 0 | CR61: 40.43693658 | CS61: 5.579243751 | CT61: 66.23602643 | CU61: 20.82941517 | CV61: 44.67073942 | CW61: 151.0404389 | CX61: 15.74243381 | CY61: 184.5321858 | CZ61: 112.2522068 | DA61: 416.815213 | DB61: 529.0674198 | DC61: =INDEX(LOOKUP!$G$2:$G$6,MATCH($A61,LOOKUP!$I$2:$I$6,0)) -> PACIFIC
A62: 2 | B62: 13 | C62: 2013 | D62: 185 | E62: 2 | F62: 2 | G62: 4 | H62: 2 | I62: 5 | J62: 1.04548786e-05 | K62: 4.58198426e-06 | L62: 5.391683399e-06 | M62: 1.192475583e-06 | N62: 0.01562274301 | O62: 0.001818609834 | P62: 9.614658698e-05 | Q62: 9.30557403e-05 | R62: 0.0003215141616 | S62: 0.003673154937 | T62: 0 | U62: 0 | V62: 0 | W62: 0 | X62: 114455.0026 | Y62: 0 | Z62: 0 | AA62: 0 | AB62: 54517.59 | AC62: 54517.59 | AD62: 0 | AE62: 0 | AF62: 0 | AG62: 0 | AH62: 340.4885506 | AI62: 0 | AJ62: 0 | AK62: 0 | AL62: 1.196450411e-09 | AM62: 1.196450411e-09 | AN62: 0 | AO62: 0 | AP62: 0 | AQ62: 0 | AR62: 9.946462404e-10 | AS62: 0 | AT62: 0 | AU62: 0 | AV62: 9.786307716e-10 | AW62: 9.786307716e-10 | AX62: 0 | AY62: 0 | AZ62: 0 | BA62: 0 | BB62: 1.017534e-09 | BC62: 0 | BD62: 0 | BE62: 0 | BF62: 1.00115e-09 | BG62: 1.00115e-09 | BH62: 0 | BI62: 0 | BJ62: 0 | BK62: 0 | BL62: 0.01562274301 | BM62: 0 | BN62: 0 | BO62: 0 | BP62: 0.0003215141616 | BQ62: 0.003673154937 | BR62: 0 | BS62: 0 | BT62: 0 | BU62: 0 | BV62: 0.01562274301 | BW62: 0 | BX62: 0 | BY62: 0 | BZ62: 0.0003215141616 | CA62: 0.003673154937 | CB62: 0.01562274301 | CC62: 0.003994669099 | CD62: 0.01961741211 | CE62: 0.02164684529 | CF62: 0 | CG62: 0 | CH62: 0 | CI62: 0 | CJ62: 1788.101092 | CK62: 0 | CL62: 0 | CM62: 0 | CN62: 17.52817724 | CO62: 200.2515549 | CP62: 0 | CQ62: 0 | CR62: 0 | CS62: 0 | CT62: 5.319365125 | CU62: 0 | CV62: 0 | CW62: 0 | CX62: 7.261430616e-13 | CY62: 8.295858442e-12 | CZ62: 5.319365125 | DA62: 9.022001504e-12 | DB62: 5.319365125 | DC62: =INDEX(LOOKUP!$G$2:$G$6,MATCH($A62,LOOKUP!$I$2:$I$6,0)) -> PACIFIC
A63: 2 | B63: 13 | C63: 2013 | D63: 187 | E63: 2 | F63: 2 | G63: 4 | H63: 2 | I63: 7 | J63: 0 | K63: 0 | L63: 0 | M63: 0 | N63: 0 | O63: 0.0001069427979 | P63: 6.053670421e-06 | Q63: 2.031348684e-05 | R63: 1.997470123e-06 | S63: 0.0004023557285 | T63: 0 | U63: 0 | V63: 0 | W63: 0 | X63: 0 | Y63: 0 | Z63: 0 | AA63: 0 | AB63: 0 | AC63: 0 | AD63: 0 | AE63: 0 | AF63: 0 | AG63: 0 | AH63: 0 | AI63: 0 | AJ63: 0 | AK63: 0 | AL63: 0 | AM63: 0 | AN63: 0 | AO63: 0 | AP63: 0 | AQ63: 0 | AR63: 0 | AS63: 0 | AT63: 0 | AU63: 0 | AV63: 0 | AW63: 0 | AX63: 0 | AY63: 0 | AZ63: 0 | BA63: 0 | BB63: 0 | BC63: 0 | BD63: 0 | BE63: 0 | BF63: 0 | BG63: 0 | BH63: 0 | BI63: 0 | BJ63: 0 | BK63: 0 | BL63: 0 | BM63: 0 | BN63: 0 | BO63: 0 | BP63: 0 | BQ63: 0 | BR63: 0 | BS63: 0 | BT63: 0 | BU63: 0 | BV63: 0 | BW63: 0 | BX63: 0 | BY63: 0 | BZ63: 0 | CA63: 0 | CB63: 0 | CC63: 0 | CD63: 0 | CE63: 0.0005376631538 | CF63: 0 | CG63: 0 | CH63: 0 | CI63: 0 | CJ63: 0 | CK63: 0 | CL63: 0 | CM63: 0 | CN63: 0 | CO63: 0 | CP63: 0 | CQ63: 0 | CR63: 0 | CS63: 0 | CT63: 0 | CU63: 0 | CV63: 0 | CW63: 0 | CX63: 0 | CY63: 0 | CZ63: 0 | DA63: 0 | DB63: 0 | DC63: =INDEX(LOOKUP!$G$2:$G$6,MATCH($A63,LOOKUP!$I$2:$I$6,0)) -> PACIFIC
A64: 2 | B64: 13 | C64: 2013 | D64: 189 | E64: 2 | F64: 2 | G64: 0 | H64: 3 | I64: 0 | J64: 0.002388348137 | K64: 0.001061675621 | L64: 0.0005706484274 | M64: 0.00017244442 | N64: 0.4094533589 | O64: 0 | P64: 0 | Q64: 0 | R64: 0 | S64: 0 | T64: 0 | U64: 0 | V64: 0 | W64: 0 | X64: 238116.4359 | Y64: 0 | Z64: 0 | AA64: 0 | AB64: 0 | AC64: 0 | AD64: 0 | AE64: 0 | AF64: 0 | AG64: 0 | AH64: 182.4045807 | AI64: 0 | AJ64: 0 | AK64: 0 | AL64: 0 | AM64: 0 | AN64: 0 | AO64: 0 | AP64: 0 | AQ64: 0 | AR64: 49.73231202 | AS64: 0 | AT64: 0 | AU64: 0 | AV64: 0 | AW64: 0 | AX64: 0 | AY64: 0 | AZ64: 0 | BA64: 0 | BB64: 1.017534e-09 | BC64: 0 | BD64: 0 | BE64: 0 | BF64: 0 | BG64: 0 | BH64: 0 | BI64: 0 | BJ64: 0 | BK64: 0 | BL64: 0.4094533589 | BM64: 0 | BN64: 0 | BO64: 0 | BP64: 0 | BQ64: 0 | BR64: 0 | BS64: 0 | BT64: 0 | BU64: 0 | BV64: 0.4094533589 | BW64: 0 | BX64: 0 | BY64: 0 | BZ64: 0 | CA64: 0 | CB64: 0.4094533589 | CC64: 0 | CD64: 0.4094533589 | CE64: 0.4136464755 | CF64: 0 | CG64: 0 | CH64: 0 | CI64: 0 | CJ64: 97497.5745 | CK64: 0 | CL64: 0 | CM64: 0 | CN64: 0 | CO64: 0 | CP64: 0 | CQ64: 0 | CR64: 0 | CS64: 0 | CT64: 95.04923045 | CU64: 0 | CV64: 0 | CW64: 0 | CX64: 0 | CY64: 0 | CZ64: 95.04923045 | DA64: 0 | DB64: 95.04923045 | DC64: =INDEX(LOOKUP!$G$2:$G$6,MATCH($A64,LOOKUP!$I$2:$I$6,0)) -> PACIFIC
A65: 2 | B65: 13 | C65: 2013 | D65: 190 | E65: 2 | F65: 2 | G65: 1 | H65: 3 | I65: 1 | J65: 0 | K65: 0 | L65: 0 | M65: 0 | N65: 0 | O65: 0.002924552008 | P65: 0.002092044437 | Q65: 0.06690582698 | R65: 0.03204258414 | S65: 0.2742971823 | T65: 0 | U65: 0 | V65: 0 | W65: 0 | X65: 0 | Y65: 0 | Z65: 0 | AA65: 0 | AB65: 0 | AC65: 0 | AD65: 0 | AE65: 0 | AF65: 0 | AG65: 0 | AH65: 0 | AI65: 0 | AJ65: 0 | AK65: 0 | AL65: 0 | AM65: 0 | AN65: 0 | AO65: 0 | AP65: 0 | AQ65: 0 | AR65: 0 | AS65: 0 | AT65: 0 | AU65: 0 | AV65: 0 | AW65: 0 | AX65: 0 | AY65: 0 | AZ65: 0 | BA65: 0 | BB65: 0 | BC65: 0 | BD65: 0 | BE65: 0 | BF65: 0 | BG65: 0 | BH65: 0 | BI65: 0 | BJ65: 0 | BK65: 0 | BL65: 0 | BM65: 0 | BN65: 0 | BO65: 0 | BP65: 0 | BQ65: 0 | BR65: 0 | BS65: 0 | BT65: 0 | BU65: 0 | BV65: 0 | BW65: 0 | BX65: 0 | BY65: 0 | BZ65: 0 | CA65: 0 | CB65: 0 | CC65: 0 | CD65: 0 | CE65: 0.3782621899 | CF65: 0 | CG65: 0 | CH65: 0 | CI65: 0 | CJ65: 0 | CK65: 0 | CL65: 0 | CM65: 0 | CN65: 0 | CO65: 0 | CP65: 0 | CQ65: 0 | CR65: 0 | CS65: 0 | CT65: 0 | CU65: 0 | CV65: 0 | CW65: 0 | CX65: 0 | CY65: 0 | CZ65: 0 | DA65: 0 | DB65: 0 | DC65: =INDEX(LOOKUP!$G$2:$G$6,MATCH($A65,LOOKUP!$I$2:$I$6,0)) -> PACIFIC
A66: 2 | B66: 13 | C66: 2013 | D66: 191 | E66: 2 | F66: 2 | G66: 2 | H66: 3 | I66: 2 | J66: 4.272201109e-05 | K66: 2.317057273e-05 | L66: 3.147370963e-05 | M66: 6.104946373e-06 | N66: 0.001394778554 | O66: 0.3073114602 | P66: 0.4079621979 | Q66: 0.238182819 | R66: 0.1321816805 | S66: 0.9788966154 | T66: 0 | U66: 0 | V66: 0 | W66: 0 | X66: 0 | Y66: 33627.052 | Z66: 26073.47027 | AA66: 73938.2068 | AB66: 73938.2068 | AC66: 73938.2068 | AD66: 0 | AE66: 0 | AF66: 0 | AG66: 0 | AH66: 0 | AI66: 206.7251914 | AJ66: 249.593483 | AK66: 493.4779829 | AL66: 493.4779829 | AM66: 493.4779829 | AN66: 0 | AO66: 0 | AP66: 0 | AQ66: 0 | AR66: 0 | AS66: 9.946462404e-10 | AT66: 9.946462404e-10 | AU66: 151.3642149 | AV66: 151.3642149 | AW66: 151.3642149 | AX66: 0 | AY66: 0 | AZ66: 0 | BA66: 0 | BB66: 0 | BC66: 1.017534e-09 | BD66: 1.017534e-09 | BE66: 1.032315e-09 | BF66: 1.032315e-09 | BG66: 1.032315e-09 | BH66: 0 | BI66: 0 | BJ66: 0 | BK66: 0 | BL66: 0 | BM66: 0.3073114602 | BN66: 0.4079621979 | BO66: 0.238182819 | BP66: 0.1321816805 | BQ66: 0.9788966154 | BR66: 0 | BS66: 0 | BT66: 0 | BU66: 0 | BV66: 0 | BW66: 0.3073114602 | BX66: 0.4079621979 | BY66: 0.238182819 | BZ66: 0.1321816805 | CA66: 0.9788966154 | CB66: 0 | CC66: 2.064534773 | CD66: 2.064534773 | CE66: 2.066033023 | CF66: 0 | CG66: 0 | CH66: 0 | CI66: 0 | CJ66: 0 | CK66: 10333.97845 | CL66: 10636.99024 | CM66: 17610.81052 | CN66: 9773.276428 | CO66: 72377.86038 | CP66: 0 | CQ66: 0 | CR66: 0 | CS66: 0 | CT66: 0 | CU66: 63.52902044 | CV66: 101.8247059 | CW66: 153.5903325 | CX66: 85.23632537 | CY66: 631.2338449 | CZ66: 0 | DA66: 1035.414229 | DB66: 1035.414229 | DC66: =INDEX(LOOKUP!$G$2:$G$6,MATCH($A66,LOOKUP!$I$2:$I$6,0)) -> PACIFIC
A67: 2 | B67: 13 | C67: 2013 | D67: 192 | E67: 2 | F67: 2 | G67: 3 | H67: 3 | I67: 3 | J67: 0.07034596514 | K67: 0.01709909587 | L67: 0.05969557985 | M67: 0.04537331783 | N67: 0.882096405 | O67: 0.5179227925 | P67: 1.430261131 | Q67: 1.226557578 | R67: 0.4485179243 | S67: 9.872974423 | T67: 0 | U67: 0 | V67: 65422.11758 | W67: 65422.11758 | X67: 62481.17347 | Y67: 12615.9264 | Z67: 0 | AA67: 41392.985 | AB67: 50829.31717 | AC67: 103085.7494 | AD67: 0 | AE67: 0 | AF67: 239.2900823 | AG67: 239.2900823 | AH67: 137.6570425 | AI67: 119.5076074 | AJ67: 0 | AK67: 155.5385535 | AL67: 121.493574 | AM67: 105.7886478 | AN67: 0 | AO67: 0 | AP67: 9.786307716e-10 | AQ67: 9.786307716e-10 | AR67: 9.786307716e-10 | AS67: 9.77506639e-10 | AT67: 0 | AU67: 352.3070778 | AV67: 141.2996301 | AW67: 3.54042737 | AX67: 0 | AY67: 0 | AZ67: 3003.45 | BA67: 3003.45 | BB67: 1181.096678 | BC67: 2400 | BD67: 0 | BE67: 1.00115e-09 | BF67: 1.019815668e-09 | BG67: 195.5823831 | BH67: 0 | BI67: 0 | BJ67: 0.05969557985 | BK67: 0.04537331783 | BL67: 0.882096405 | BM67: 0.5179227925 | BN67: 0 | BO67: 1.226557578 | BP67: 0.4485179243 | BQ67: 9.872974423 | BR67: 0 | BS67: 0 | BT67: 0.05969557985 | BU67: 0.04537331783 | BV67: 0.882096405 | BW67: 0.5179227925 | BX67: 0 | BY67: 1.226557578 | BZ67: 0.4485179243 | CA67: 9.872974423 | CB67: 0.9871653027 | CC67: 12.06597272 | CD67: 13.05313802 | CE67: 14.57084421 | CF67: 0 | CG67: 0 | CH67: 3905.411244 | CI67: 2968.418534 | CJ67: 55114.4185 | CK67: 6534.075831 | CL67: 0 | CM67: 50770.87944 | CN67: 22797.85983 | CO67: 1017762.967 | CP67: 0 | CQ67: 0 | CR67: 29.22561765 | CS67: 22.21375924 | CT67: 208.2468768 | CU67: 165.4802723 | CV67: 0 | CW67: 622.9019077 | CX67: 117.8674624 | CY67: 1240.318152 | CZ67: 259.6862537 | DA67: 2146.567794 | DB67: 2406.254048 | DC67: =INDEX(LOOKUP!$G$2:$G$6,MATCH($A67,LOOKUP!$I$2:$I$6,0)) -> PACIFIC
A68: 2 | B68: 13 | C68: 2013 | D68: 194 | E68: 2 | F68: 2 | G68: 4 | H68: 3 | I68: 5 | J68: 0 | K68: 0 | L68: 0 | M68: 0 | N68: 0.00277416819 | O68: 0.004113850685 | P68: 0.01139463705 | Q68: 0.06354376781 | R68: 0.001622650232 | S68: 0.005187969384 | T68: 0 | U68: 0 | V68: 0 | W68: 0 | X68: 0 | Y68: 0 | Z68: 0 | AA68: 0 | AB68: 0 | AC68: 0 | AD68: 0 | AE68: 0 | AF68: 0 | AG68: 0 | AH68: 0 | AI68: 0 | AJ68: 0 | AK68: 0 | AL68: 0 | AM68: 0 | AN68: 0 | AO68: 0 | AP68: 0 | AQ68: 0 | AR68: 0 | AS68: 0 | AT68: 0 | AU68: 0 | AV68: 0 | AW68: 0 | AX68: 0 | AY68: 0 | AZ68: 0 | BA68: 0 | BB68: 0 | BC68: 0 | BD68: 0 | BE68: 0 | BF68: 0 | BG68: 0 | BH68: 0 | BI68: 0 | BJ68: 0 | BK68: 0 | BL68: 0 | BM68: 0 | BN68: 0 | BO68: 0 | BP68: 0 | BQ68: 0 | BR68: 0 | BS68: 0 | BT68: 0 | BU68: 0 | BV68: 0 | BW68: 0 | BX68: 0 | BY68: 0 | BZ68: 0 | CA68: 0 | CB68: 0 | CC68: 0 | CD68: 0 | CE68: 0.08863704335 | CF68: 0 | CG68: 0 | CH68: 0 | CI68: 0 | CJ68: 0 | CK68: 0 | CL68: 0 | CM68: 0 | CN68: 0 | CO68: 0 | CP68: 0 | CQ68: 0 | CR68: 0 | CS68: 0 | CT68: 0 | CU68: 0 | CV68: 0 | CW68: 0 | CX68: 0 | CY68: 0 | CZ68: 0 | DA68: 0 | DB68: 0 | DC68: =INDEX(LOOKUP!$G$2:$G$6,MATCH($A68,LOOKUP!$I$2:$I$6,0)) -> PACIFIC
A69: 2 | B69: 13 | C69: 2013 | D69: 196 | E69: 2 | F69: 2 | G69: 4 | H69: 3 | I69: 7 | J69: 0 | K69: 0 | L69: 0 | M69: 0 | N69: 0 | O69: 0.002089221249 | P69: 0.004313457802 | Q69: 0.02718172987 | R69: 0.004107221829 | S69: 0.09051962265 | T69: 0 | U69: 0 | V69: 0 | W69: 0 | X69: 0 | Y69: 0 | Z69: 0 | AA69: 0 | AB69: 0 | AC69: 126393.6624 | AD69: 0 | AE69: 0 | AF69: 0 | AG69: 0 | AH69: 0 | AI69: 0 | AJ69: 0 | AK69: 0 | AL69: 0 | AM69: 222.0650923 | AN69: 0 | AO69: 0 | AP69: 0 | AQ69: 0 | AR69: 0 | AS69: 0 | AT69: 0 | AU69: 0 | AV69: 0 | AW69: 1.009094766e-09 | AX69: 0 | AY69: 0 | AZ69: 0 | BA69: 0 | BB69: 0 | BC69: 0 | BD69: 0 | BE69: 0 | BF69: 0 | BG69: 1.032315e-09 | BH69: 0 | BI69: 0 | BJ69: 0 | BK69: 0 | BL69: 0 | BM69: 0 | BN69: 0 | BO69: 0 | BP69: 0 | BQ69: 0.09051962265 | BR69: 0 | BS69: 0 | BT69: 0 | BU69: 0 | BV69: 0 | BW69: 0 | BX69: 0 | BY69: 0 | BZ69: 0 | CA69: 0.09051962265 | CB69: 0 | CC69: 0.09051962265 | CD69: 0.09051962265 | CE69: 0.1282112534 | CF69: 0 | CG69: 0 | CH69: 0 | CI69: 0 | CJ69: 0 | CK69: 0 | CL69: 0 | CM69: 0 | CN69: 0 | CO69: 11441.10663 | CP69: 0 | CQ69: 0 | CR69: 0 | CS69: 0 | CT69: 0 | CU69: 0 | CV69: 0 | CW69: 0 | CX69: 0 | CY69: 20.10124836 | CZ69: 0 | DA69: 20.10124836 | DB69: 20.10124836 | DC69: =INDEX(LOOKUP!$G$2:$G$6,MATCH($A69,LOOKUP!$I$2:$I$6,0)) -> PACIFIC
A70: 2 | B70: 13 | C70: 2013 | D70: 199 | E70: 2 | F70: 3 | G70: 1 | H70: 4 | I70: 1 | J70: 0 | K70: 0 | L70: 0 | M70: 0 | N70: 0 | O70: 0.0008985666496 | P70: 0.000183431827 | Q70: 0.0009543177544 | R70: 0.0004572107325 | S70: 0.003721263914 | T70: 0 | U70: 0 | V70: 0 | W70: 0 | X70: 0 | Y70: 0 | Z70: 0 | AA70: 0 | AB70: 0 | AC70: 0 | AD70: 0 | AE70: 0 | AF70: 0 | AG70: 0 | AH70: 0 | AI70: 0 | AJ70: 0 | AK70: 0 | AL70: 0 | AM70: 0 | AN70: 0 | AO70: 0 | AP70: 0 | AQ70: 0 | AR70: 0 | AS70: 0 | AT70: 0 | AU70: 0 | AV70: 0 | AW70: 0 | AX70: 0 | AY70: 0 | AZ70: 0 | BA70: 0 | BB70: 0 | BC70: 0 | BD70: 0 | BE70: 0 | BF70: 0 | BG70: 0 | BH70: 0 | BI70: 0 | BJ70: 0 | BK70: 0 | BL70: 0 | BM70: 0 | BN70: 0 | BO70: 0 | BP70: 0 | BQ70: 0 | BR70: 0 | BS70: 0 | BT70: 0 | BU70: 0 | BV70: 0 | BW70: 0 | BX70: 0 | BY70: 0 | BZ70: 0 | CA70: 0 | CB70: 0 | CC70: 0 | CD70: 0 | CE70: 0.006214790878 | CF70: 0 | CG70: 0 | CH70: 0 | CI70: 0 | CJ70: 0 | CK70: 0 | CL70: 0 | CM70: 0 | CN70: 0 | CO70: 0 | CP70: 0 | CQ70: 0 | CR70: 0 | CS70: 0 | CT70: 0 | CU70: 0 | CV70: 0 | CW70: 0 | CX70: 0 | CY70: 0 | CZ70: 0 | DA70: 0 | DB70: 0 | DC70: =INDEX(LOOKUP!$G$2:$G$6,MATCH($A70,LOOKUP!$I$2:$I$6,0)) -> PACIFIC
A71: 2 | B71: 13 | C71: 2013 | D71: 200 | E71: 2 | F71: 3 | G71: 2 | H71: 4 | I71: 2 | J71: 0 | K71: 0 | L71: 0 | M71: 0 | N71: 0 | O71: 1.905676067 | P71: 0.9648804606 | Q71: 0.4069293326 | R71: 0.04604333033 | S71: 1.985403378 | T71: 0 | U71: 0 | V71: 0 | W71: 0 | X71: 0 | Y71: 11837.20434 | Z71: 19763.50104 | AA71: 0 | AB71: 61307.857 | AC71: 101529.093 | AD71: 0 | AE71: 0 | AF71: 0 | AG71: 0 | AH71: 0 | AI71: 167.4971874 | AJ71: 96.81855337 | AK71: 0 | AL71: 182.4045807 | AM71: 135.9233863 | AN71: 0 | AO71: 0 | AP71: 0 | AQ71: 0 | AR71: 0 | AS71: 21.40017827 | AT71: 9.810282424e-10 | AU71: 0 | AV71: 9.946462404e-10 | AW71: 40.95984241 | AX71: 0 | AY71: 0 | AZ71: 0 | BA71: 0 | BB71: 0 | BC71: 1.004897825e-09 | BD71: 1.003602639e-09 | BE71: 0 | BF71: 1.017534e-09 | BG71: 1.00292673e-09 | BH71: 0 | BI71: 0 | BJ71: 0 | BK71: 0 | BL71: 0 | BM71: 1.905676067 | BN71: 0.9648804606 | BO71: 0 | BP71: 0.04604333033 | BQ71: 1.985403378 | BR71: 0 | BS71: 0 | BT71: 0 | BU71: 0 | BV71: 0 | BW71: 1.905676067 | BX71: 0.9648804606 | BY71: 0 | BZ71: 0.04604333033 | CA71: 1.985403378 | CB71: 0 | CC71: 4.902003236 | CD71: 4.902003236 | CE71: 5.308932569 | CF71: 0 | CG71: 0 | CH71: 0 | CI71: 0 | CJ71: 0 | CK71: 22557.87701 | CL71: 19069.41599 | CM71: 0 | CN71: 2822.817912 | CO71: 201576.2041 | CP71: 0 | CQ71: 0 | CR71: 0 | CS71: 0 | CT71: 0 | CU71: 359.9771888 | CV71: 93.41833037 | CW71: 0 | CX71: 8.398514362 | CY71: 351.1845597 | CZ71: 0 | DA71: 812.9785933 | DB71: 812.9785933 | DC71: =INDEX(LOOKUP!$G$2:$G$6,MATCH($A71,LOOKUP!$I$2:$I$6,0)) -> PACIFIC
A72: 2 | B72: 13 | C72: 2013 | D72: 201 | E72: 2 | F72: 3 | G72: 3 | H72: 4 | I72: 3 | J72: 0 | K72: 0 | L72: 0 | M72: 0 | N72: 0 | O72: 3.144282576 | P72: 1.731820912 | Q72: 1.36103917 | R72: 0.4072956346 | S72: 7.007634499 | T72: 0 | U72: 0 | V72: 0 | W72: 0 | X72: 0 | Y72: 13715.25505 | Z72: 0 | AA72: 37092.2787 | AB72: 37092.2787 | AC72: 86472.38797 | AD72: 0 | AE72: 0 | AF72: 0 | AG72: 0 | AH72: 0 | AI72: 26.31882576 | AJ72: 0 | AK72: 72.96183227 | AL72: 72.96183227 | AM72: 135.4922279 | AN72: 0 | AO72: 0 | AP72: 0 | AQ72: 0 | AR72: 0 | AS72: 1.002352121e-09 | AT72: 0 | AU72: 9.946462404e-10 | AV72: 9.946462404e-10 | AW72: 9.847235705e-10 | AX72: 0 | AY72: 0 | AZ72: 0 | BA72: 0 | BB72: 0 | BC72: 1.0254172e-09 | BD72: 0 | BE72: 1.017534e-09 | BF72: 1.017534e-09 | BG72: 1.007383e-09 | BH72: 0 | BI72: 0 | BJ72: 0 | BK72: 0 | BL72: 0 | BM72: 3.144282576 | BN72: 0 | BO72: 1.36103917 | BP72: 0.4072956346 | BQ72: 7.007634499 | BR72: 0 | BS72: 0 | BT72: 0 | BU72: 0 | BV72: 0 | BW72: 3.144282576 | BX72: 0 | BY72: 1.36103917 | BZ72: 0.4072956346 | CA72: 7.007634499 | CB72: 0 | CC72: 11.92025188 | CD72: 11.92025188 | CE72: 13.65207279 | CF72: 0 | CG72: 0 | CH72: 0 | CI72: 0 | CJ72: 0 | CK72: 43124.63747 | CL72: 0 | CM72: 50484.04421 | CN72: 15107.52319 | CO72: 605966.8891 | CP72: 0 | CQ72: 0 | CR72: 0 | CS72: 0 | CT72: 0 | CU72: 82.75382526 | CV72: 0 | CW72: 99.30391163 | CX72: 29.71703577 | CY72: 949.4800107 | CZ72: 0 | DA72: 1161.254783 | DB72: 1161.254783 | DC72: =INDEX(LOOKUP!$G$2:$G$6,MATCH($A72,LOOKUP!$I$2:$I$6,0)) -> PACIFIC
A73: 2 | B73: 13 | C73: 2013 | D73: 203 | E73: 2 | F73: 3 | G73: 4 | H73: 4 | I73: 5 | J73: 0 | K73: 0 | L73: 0 | M73: 0 | N73: 0 | O73: 0.0007884538189 | P73: 7.486451901e-43 | Q73: 1.337715785e-42 | R73: 1.490732882e-43 | S73: 7.384204239e-42 | T73: 0 | U73: 0 | V73: 0 | W73: 0 | X73: 0 | Y73: 0 | Z73: 0 | AA73: 0 | AB73: 0 | AC73: 0 | AD73: 0 | AE73: 0 | AF73: 0 | AG73: 0 | AH73: 0 | AI73: 0 | AJ73: 0 | AK73: 0 | AL73: 0 | AM73: 0 | AN73: 0 | AO73: 0 | AP73: 0 | AQ73: 0 | AR73: 0 | AS73: 0 | AT73: 0 | AU73: 0 | AV73: 0 | AW73: 0 | AX73: 0 | AY73: 0 | AZ73: 0 | BA73: 0 | BB73: 0 | BC73: 0 | BD73: 0 | BE73: 0 | BF73: 0 | BG73: 0 | BH73: 0 | BI73: 0 | BJ73: 0 | BK73: 0 | BL73: 0 | BM73: 0 | BN73: 0 | BO73: 0 | BP73: 0 | BQ73: 0 | BR73: 0 | BS73: 0 | BT73: 0 | BU73: 0 | BV73: 0 | BW73: 0 | BX73: 0 | BY73: 0 | BZ73: 0 | CA73: 0 | CB73: 0 | CC73: 0 | CD73: 0 | CE73: 0.0007884538189 | CF73: 0 | CG73: 0 | CH73: 0 | CI73: 0 | CJ73: 0 | CK73: 0 | CL73: 0 | CM73: 0 | CN73: 0 | CO73: 0 | CP73: 0 | CQ73: 0 | CR73: 0 | CS73: 0 | CT73: 0 | CU73: 0 | CV73: 0 | CW73: 0 | CX73: 0 | CY73: 0 | CZ73: 0 | DA73: 0 | DB73: 0 | DC73: =INDEX(LOOKUP!$G$2:$G$6,MATCH($A73,LOOKUP!$I$2:$I$6,0)) -> PACIFIC
A74: 2 | B74: 13 | C74: 2013 | D74: 205 | E74: 2 | F74: 3 | G74: 4 | H74: 4 | I74: 7 | J74: 0 | K74: 0 | L74: 0 | M74: 0 | N74: 0 | O74: 0.0003779334306 | P74: 9.869357182e-05 | Q74: 0.0003420283613 | R74: 7.900481751e-06 | S74: 0.001279883747 | T74: 0 | U74: 0 | V74: 0 | W74: 0 | X74: 0 | Y74: 0 | Z74: 0 | AA74: 0 | AB74: 0 | AC74: 0 | AD74: 0 | AE74: 0 | AF74: 0 | AG74: 0 | AH74: 0 | AI74: 0 | AJ74: 0 | AK74: 0 | AL74: 0 | AM74: 0 | AN74: 0 | AO74: 0 | AP74: 0 | AQ74: 0 | AR74: 0 | AS74: 0 | AT74: 0 | AU74: 0 | AV74: 0 | AW74: 0 | AX74: 0 | AY74: 0 | AZ74: 0 | BA74: 0 | BB74: 0 | BC74: 0 | BD74: 0 | BE74: 0 | BF74: 0 | BG74: 0 | BH74: 0 | BI74: 0 | BJ74: 0 | BK74: 0 | BL74: 0 | BM74: 0 | BN74: 0 | BO74: 0 | BP74: 0 | BQ74: 0 | BR74: 0 | BS74: 0 | BT74: 0 | BU74: 0 | BV74: 0 | BW74: 0 | BX74: 0 | BY74: 0 | BZ74: 0 | CA74: 0 | CB74: 0 | CC74: 0 | CD74: 0 | CE74: 0.002106439592 | CF74: 0 | CG74: 0 | CH74: 0 | CI74: 0 | CJ74: 0 | CK74: 0 | CL74: 0 | CM74: 0 | CN74: 0 | CO74: 0 | CP74: 0 | CQ74: 0 | CR74: 0 | CS74: 0 | CT74: 0 | CU74: 0 | CV74: 0 | CW74: 0 | CX74: 0 | CY74: 0 | CZ74: 0 | DA74: 0 | DB74: 0 | DC74: =INDEX(LOOKUP!$G$2:$G$6,MATCH($A74,LOOKUP!$I$2:$I$6,0)) -> PACIFIC
A75: 2 | B75: 13 | C75: 2013 | D75: 207 | E75: 2 | F75: 4 | G75: 0 | H75: 5 | I75: 0 | J75: 0.0006660721311 | K75: 0.0002256508635 | L75: 0.0001143000248 | M75: 3.465444059e-05 | N75: 0.002782647307 | O75: 0 | P75: 0 | Q75: 0 | R75: 0 | S75: 0 | T75: 0 | U75: 0 | V75: 0 | W75: 0 | X75: 0 | Y75: 0 | Z75: 0 | AA75: 0 | AB75: 0 | AC75: 0 | AD75: 0 | AE75: 0 | AF75: 0 | AG75: 0 | AH75: 0 | AI75: 0 | AJ75: 0 | AK75: 0 | AL75: 0 | AM75: 0 | AN75: 0 | AO75: 0 | AP75: 0 | AQ75: 0 | AR75: 0 | AS75: 0 | AT75: 0 | AU75: 0 | AV75: 0 | AW75: 0 | AX75: 0 | AY75: 0 | AZ75: 0 | BA75: 0 | BB75: 0 | BC75: 0 | BD75: 0 | BE75: 0 | BF75: 0 | BG75: 0 | BH75: 0 | BI75: 0 | BJ75: 0 | BK75: 0 | BL75: 0 | BM75: 0 | BN75: 0 | BO75: 0 | BP75: 0 | BQ75: 0 | BR75: 0 | BS75: 0 | BT75: 0 | BU75: 0 | BV75: 0 | BW75: 0 | BX75: 0 | BY75: 0 | BZ75: 0 | CA75: 0 | CB75: 0 | CC75: 0 | CD75: 0 | CE75: 0.003823324767 | CF75: 0 | CG75: 0 | CH75: 0 | CI75: 0 | CJ75: 0 | CK75: 0 | CL75: 0 | CM75: 0 | CN75: 0 | CO75: 0 | CP75: 0 | CQ75: 0 | CR75: 0 | CS75: 0 | CT75: 0 | CU75: 0 | CV75: 0 | CW75: 0 | CX75: 0 | CY75: 0 | CZ75: 0 | DA75: 0 | DB75: 0 | DC75: =INDEX(LOOKUP!$G$2:$G$6,MATCH($A75,LOOKUP!$I$2:$I$6,0)) -> PACIFIC
A76: 2 | B76: 13 | C76: 2013 | D76: 208 | E76: 2 | F76: 4 | G76: 1 | H76: 5 | I76: 1 | J76: 0 | K76: 0 | L76: 0 | M76: 0 | N76: 0 | O76: 0.001278612707 | P76: 0.0001795824833 | Q76: 0.001005664851 | R76: 0.0004809957258 | S76: 0.001964062249 | T76: 0 | U76: 0 | V76: 0 | W76: 0 | X76: 0 | Y76: 0 | Z76: 0 | AA76: 0 | AB76: 0 | AC76: 0 | AD76: 0 | AE76: 0 | AF76: 0 | AG76: 0 | AH76: 0 | AI76: 0 | AJ76: 0 | AK76: 0 | AL76: 0 | AM76: 0 | AN76: 0 | AO76: 0 | AP76: 0 | AQ76: 0 | AR76: 0 | AS76: 0 | AT76: 0 | AU76: 0 | AV76: 0 | AW76: 0 | AX76: 0 | AY76: 0 | AZ76: 0 | BA76: 0 | BB76: 0 | BC76: 0 | BD76: 0 | BE76: 0 | BF76: 0 | BG76: 0 | BH76: 0 | BI76: 0 | BJ76: 0 | BK76: 0 | BL76: 0 | BM76: 0 | BN76: 0 | BO76: 0 | BP76: 0 | BQ76: 0 | BR76: 0 | BS76: 0 | BT76: 0 | BU76: 0 | BV76: 0 | BW76: 0 | BX76: 0 | BY76: 0 | BZ76: 0 | CA76: 0 | CB76: 0 | CC76: 0 | CD76: 0 | CE76: 0.004908918017 | CF76: 0 | CG76: 0 | CH76: 0 | CI76: 0 | CJ76: 0 | CK76: 0 | CL76: 0 | CM76: 0 | CN76: 0 | CO76: 0 | CP76: 0 | CQ76: 0 | CR76: 0 | CS76: 0 | CT76: 0 | CU76: 0 | CV76: 0 | CW76: 0 | CX76: 0 | CY76: 0 | CZ76: 0 | DA76: 0 | DB76: 0 | DC76: =INDEX(LOOKUP!$G$2:$G$6,MATCH($A76,LOOKUP!$I$2:$I$6,0)) -> PACIFIC
A77: 2 | B77: 13 | C77: 2013 | D77: 209 | E77: 2 | F77: 4 | G77: 2 | H77: 5 | I77: 2 | J77: 0.000116989229 | K77: 6.688115998e-05 | L77: 8.629322528e-05 | M77: 1.694655736e-05 | N77: 0.002417894391 | O77: 0.07491654832 | P77: 0.1160725505 | Q77: 0.002111869748 | R77: 0.0005494736804 | S77: 0.008924895069 | T77: 0 | U77: 0 | V77: 0 | W77: 0 | X77: 0 | Y77: 32328.412 | Z77: 32328.412 | AA77: 0 | AB77: 0 | AC77: 0 | AD77: 0 | AE77: 0 | AF77: 0 | AG77: 0 | AH77: 0 | AI77: 12.33694957 | AJ77: 12.33694957 | AK77: 0 | AL77: 0 | AM77: 0 | AN77: 0 | AO77: 0 | AP77: 0 | AQ77: 0 | AR77: 0 | AS77: 1.009094766e-09 | AT77: 1.009094766e-09 | AU77: 0 | AV77: 0 | AW77: 0 | AX77: 0 | AY77: 0 | AZ77: 0 | BA77: 0 | BB77: 0 | BC77: 1.032315e-09 | BD77: 1.032315e-09 | BE77: 0 | BF77: 0 | BG77: 0 | BH77: 0 | BI77: 0 | BJ77: 0 | BK77: 0 | BL77: 0 | BM77: 0.07491654832 | BN77: 0.1160725505 | BO77: 0 | BP77: 0 | BQ77: 0 | BR77: 0 | BS77: 0 | BT77: 0 | BU77: 0 | BV77: 0 | BW77: 0.07491654832 | BX77: 0.1160725505 | BY77: 0 | BZ77: 0 | CA77: 0 | CB77: 0 | CC77: 0.1909890988 | CD77: 0.1909890988 | CE77: 0.2052803419 | CF77: 0 | CG77: 0 | CH77: 0 | CI77: 0 | CJ77: 0 | CK77: 2421.93304 | CL77: 3752.441235 | CM77: 0 | CN77: 0 | CO77: 0 | CP77: 0 | CQ77: 0 | CR77: 0 | CS77: 0 | CT77: 0 | CU77: 0.9242416789 | CV77: 1.431981203 | CW77: 0 | CX77: 0 | CY77: 0 | CZ77: 0 | DA77: 2.356222882 | DB77: 2.356222882 | DC77: =INDEX(LOOKUP!$G$2:$G$6,MATCH($A77,LOOKUP!$I$2:$I$6,0)) -> PACIFIC
A78: 2 | B78: 13 | C78: 2013 | D78: 210 | E78: 2 | F78: 4 | G78: 3 | H78: 5 | I78: 3 | J78: 0.2019234284 | K78: 0.05035535506 | L78: 0.0609468474 | M78: 0.1428106358 | N78: 1.532888307 | O78: 1.040522933 | P78: 1.720307927 | Q78: 0.5049838523 | R78: 0.2956051093 | S78: 1.929110773 | T78: 0 | U78: 0 | V78: 0 | W78: 56063.72352 | X78: 56063.72352 | Y78: 13765.6464 | Z78: 0 | AA78: 45051.2064 | AB78: 45051.2064 | AC78: 143747.4218 | AD78: 0 | AE78: 0 | AF78: 0 | AG78: 222.0650923 | AH78: 222.0650923 | AI78: 86.35864701 | AJ78: 0 | AK78: 1.233694957e-09 | AL78: 1.233694957e-09 | AM78: 1.233694957e-09 | AN78: 0 | AO78: 0 | AP78: 0 | AQ78: 1.009094766e-09 | AR78: 1.009094766e-09 | AS78: 1.009094766e-09 | AT78: 0 | AU78: 1.009094766e-09 | AV78: 1.009094766e-09 | AW78: 1.009094766e-09 | AX78: 0 | AY78: 0 | AZ78: 0 | BA78: 2580.7875 | BB78: 2580.7875 | BC78: 1.032315e-09 | BD78: 0 | BE78: 1.032315e-09 | BF78: 1.032315e-09 | BG78: 1.032315e-09 | BH78: 0 | BI78: 0 | BJ78: 0 | BK78: 0.1428106358 | BL78: 1.532888307 | BM78: 1.040522933 | BN78: 0 | BO78: 0.5049838523 | BP78: 0.2956051093 | BQ78: 1.929110773 | BR78: 0 | BS78: 0 | BT78: 0 | BU78: 0.1428106358 | BV78: 1.532888307 | BW78: 1.040522933 | BX78: 0 | BY78: 0.5049838523 | BZ78: 0.2956051093 | CA78: 1.929110773 | CB78: 1.675698943 | CC78: 3.770222668 | CD78: 5.445921611 | CE78: 7.479455169 | CF78: 0 | CG78: 0 | CH78: 0 | CI78: 8006.495999 | CJ78: 85939.42624 | CK78: 14323.47077 | CL78: 0 | CM78: 22750.13176 | CN78: 13317.36679 | CO78: 277304.7001 | CP78: 0 | CQ78: 0 | CR78: 0 | CS78: 62.42691565 | CT78: 670.0725653 | CU78: 89.85815272 | CV78: 0 | CW78: 1.176014462e-09 | CX78: 6.884099004e-10 | CY78: 4.492543983e-09 | CZ78: 732.499481 | DA78: 89.85815273 | DB78: 822.3576337 | DC78: =INDEX(LOOKUP!$G$2:$G$6,MATCH($A78,LOOKUP!$I$2:$I$6,0)) -> PACIFIC
A79: 2 | B79: 13 | C79: 2013 | D79: 212 | E79: 2 | F79: 4 | G79: 4 | H79: 5 | I79: 5 | J79: 0 | K79: 0 | L79: 0 | M79: 0 | N79: 0.005137618352 | O79: 0.000622526253 | P79: 4.059224726e-41 | Q79: 3.335067841e-42 | R79: 2.02981119e-43 | S79: 1.860821221e-42 | T79: 0 | U79: 0 | V79: 0 | W79: 0 | X79: 0 | Y79: 0 | Z79: 0 | AA79: 0 | AB79: 0 | AC79: 0 | AD79: 0 | AE79: 0 | AF79: 0 | AG79: 0 | AH79: 0 | AI79: 0 | AJ79: 0 | AK79: 0 | AL79: 0 | AM79: 0 | AN79: 0 | AO79: 0 | AP79: 0 | AQ79: 0 | AR79: 0 | AS79: 0 | AT79: 0 | AU79: 0 | AV79: 0 | AW79: 0 | AX79: 0 | AY79: 0 | AZ79: 0 | BA79: 0 | BB79: 0 | BC79: 0 | BD79: 0 | BE79: 0 | BF79: 0 | BG79: 0 | BH79: 0 | BI79: 0 | BJ79: 0 | BK79: 0 | BL79: 0 | BM79: 0 | BN79: 0 | BO79: 0 | BP79: 0 | BQ79: 0 | BR79: 0 | BS79: 0 | BT79: 0 | BU79: 0 | BV79: 0 | BW79: 0 | BX79: 0 | BY79: 0 | BZ79: 0 | CA79: 0 | CB79: 0 | CC79: 0 | CD79: 0 | CE79: 0.005760144605 | CF79: 0 | CG79: 0 | CH79: 0 | CI79: 0 | CJ79: 0 | CK79: 0 | CL79: 0 | CM79: 0 | CN79: 0 | CO79: 0 | CP79: 0 | CQ79: 0 | CR79: 0 | CS79: 0 | CT79: 0 | CU79: 0 | CV79: 0 | CW79: 0 | CX79: 0 | CY79: 0 | CZ79: 0 | DA79: 0 | DB79: 0 | DC79: =INDEX(LOOKUP!$G$2:$G$6,MATCH($A79,LOOKUP!$I$2:$I$6,0)) -> PACIFIC
A80: 2 | B80: 13 | C80: 2013 | D80: 214 | E80: 2 | F80: 4 | G80: 4 | H80: 5 | I80: 7 | J80: 0 | K80: 0 | L80: 0 | M80: 0 | N80: 0 | O80: 0.08999057395 | P80: 0.03413762865 | Q80: 0.2072728747 | R80: 1.425005513e-05 | S80: 0.001474848861 | T80: 0 | U80: 0 | V80: 0 | W80: 0 | X80: 0 | Y80: 0 | Z80: 26655.59 | AA80: 26655.59 | AB80: 0 | AC80: 0 | AD80: 0 | AE80: 0 | AF80: 0 | AG80: 0 | AH80: 0 | AI80: 0 | AJ80: 48.64122152 | AK80: 48.64122152 | AL80: 0 | AM80: 0 | AN80: 0 | AO80: 0 | AP80: 0 | AQ80: 0 | AR80: 0 | AS80: 0 | AT80: 9.946462404e-10 | AU80: 9.946462404e-10 | AV80: 0 | AW80: 0 | AX80: 0 | AY80: 0 | AZ80: 0 | BA80: 0 | BB80: 0 | BC80: 0 | BD80: 1.017534e-09 | BE80: 1.017534e-09 | BF80: 0 | BG80: 0 | BH80: 0 | BI80: 0 | BJ80: 0 | BK80: 0 | BL80: 0 | BM80: 0 | BN80: 0.03413762865 | BO80: 0.2072728747 | BP80: 0 | BQ80: 0 | BR80: 0 | BS80: 0 | BT80: 0 | BU80: 0 | BV80: 0 | BW80: 0 | BX80: 0.03413762865 | BY80: 0.2072728747 | BZ80: 0 | CA80: 0 | CB80: 0 | CC80: 0.2414105034 | CD80: 0.2414105034 | CE80: 0.3328901763 | CF80: 0 | CG80: 0 | CH80: 0 | CI80: 0 | CJ80: 0 | CK80: 0 | CL80: 909.958633 | CM80: 5524.980767 | CN80: 0 | CO80: 0 | CP80: 0 | CQ80: 0 | CR80: 0 | CS80: 0 | CT80: 0 | CU80: 0 | CV80: 1.660495957 | CW80: 10.08200581 | CX80: 0 | CY80: 0 | CZ80: 0 | DA80: 11.74250177 | DB80: 11.74250177 | DC80: =INDEX(LOOKUP!$G$2:$G$6,MATCH($A80,LOOKUP!$I$2:$I$6,0)) -> PACIFIC
A81: 2 | B81: 13 | C81: 2013 | D81: 234 | E81: 2 | F81: 6 | G81: 0 | H81: 8 | I81: 0 | J81: 1.041998233e-05 | K81: 2.636012823e-06 | L81: 2.902068614e-06 | M81: 2.458001674e-07 | N81: 0.01685748051 | O81: 0 | P81: 0 | Q81: 0 | R81: 0 | S81: 0 | T81: 0 | U81: 0 | V81: 0 | W81: 0 | X81: 67785.5728 | Y81: 0 | Z81: 0 | AA81: 0 | AB81: 0 | AC81: 0 | AD81: 0 | AE81: 0 | AF81: 0 | AG81: 0 | AH81: 59.7538037 | AI81: 0 | AJ81: 0 | AK81: 0 | AL81: 0 | AM81: 0 | AN81: 0 | AO81: 0 | AP81: 0 | AQ81: 0 | AR81: 29.32519917 | AS81: 0 | AT81: 0 | AU81: 0 | AV81: 0 | AW81: 0 | AX81: 0 | AY81: 0 | AZ81: 0 | BA81: 0 | BB81: 1e-09 | BC81: 0 | BD81: 0 | BE81: 0 | BF81: 0 | BG81: 0 | BH81: 0 | BI81: 0 | BJ81: 0 | BK81: 0 | BL81: 0.01685748051 | BM81: 0 | BN81: 0 | BO81: 0 | BP81: 0 | BQ81: 0 | BR81: 0 | BS81: 0 | BT81: 0 | BU81: 0 | BV81: 0.01685748051 | BW81: 0 | BX81: 0 | BY81: 0 | BZ81: 0 | CA81: 0 | CB81: 0.01685748051 | CC81: 0 | CD81: 0.01685748051 | CE81: 0.01687368437 | CF81: 0 | CG81: 0 | CH81: 0 | CI81: 0 | CJ81: 1142.693972 | CK81: 0 | CL81: 0 | CM81: 0 | CN81: 0 | CO81: 0 | CP81: 0 | CQ81: 0 | CR81: 0 | CS81: 0 | CT81: 1.501647554 | CU81: 0 | CV81: 0 | CW81: 0 | CX81: 0 | CY81: 0 | CZ81: 1.501647554 | DA81: 0 | DB81: 1.501647554 | DC81: =INDEX(LOOKUP!$G$2:$G$6,MATCH($A81,LOOKUP!$I$2:$I$6,0)) -> PACIFIC
A82: 2 | B82: 13 | C82: 2013 | D82: 235 | E82: 2 | F82: 6 | G82: 1 | H82: 8 | I82: 1 | J82: 0 | K82: 0 | L82: 0 | M82: 0 | N82: 0 | O82: 0.06993935202 | P82: 0.0003115294143 | Q82: 0.002154372998 | R82: 0.001000068087 | S82: 0.02804583495 | T82: 0 | U82: 0 | V82: 0 | W82: 0 | X82: 0 | Y82: 0 | Z82: 0 | AA82: 0 | AB82: 0 | AC82: 75085.344 | AD82: 0 | AE82: 0 | AF82: 0 | AG82: 0 | AH82: 0 | AI82: 0 | AJ82: 0 | AK82: 0 | AL82: 0 | AM82: 1.233694957e-09 | AN82: 0 | AO82: 0 | AP82: 0 | AQ82: 0 | AR82: 0 | AS82: 0 | AT82: 0 | AU82: 0 | AV82: 0 | AW82: 1.009094766e-09 | AX82: 0 | AY82: 0 | AZ82: 0 | BA82: 0 | BB82: 0 | BC82: 0 | BD82: 0 | BE82: 0 | BF82: 0 | BG82: 1.032315e-09 | BH82: 0 | BI82: 0 | BJ82: 0 | BK82: 0 | BL82: 0 | BM82: 0 | BN82: 0 | BO82: 0 | BP82: 0 | BQ82: 0.02804583495 | BR82: 0 | BS82: 0 | BT82: 0 | BU82: 0 | BV82: 0 | BW82: 0 | BX82: 0 | BY82: 0 | BZ82: 0 | CA82: 0.02804583495 | CB82: 0 | CC82: 0.02804583495 | CD82: 0.02804583495 | CE82: 0.1014511575 | CF82: 0 | CG82: 0 | CH82: 0 | CI82: 0 | CJ82: 0 | CK82: 0 | CL82: 0 | CM82: 0 | CN82: 0 | CO82: 2105.831165 | CP82: 0 | CQ82: 0 | CR82: 0 | CS82: 0 | CT82: 0 | CU82: 0 | CV82: 0 | CW82: 0 | CX82: 0 | CY82: 6.531358842e-11 | CZ82: 0 | DA82: 6.531358842e-11 | DB82: 6.531358842e-11 | DC82: =INDEX(LOOKUP!$G$2:$G$6,MATCH($A82,LOOKUP!$I$2:$I$6,0)) -> PACIFIC
A83: 2 | B83: 13 | C83: 2013 | D83: 236 | E83: 2 | F83: 6 | G83: 2 | H83: 8 | I83: 2 | J83: 0.02066890588 | K83: 0.0003395157343 | L83: 9.009024543e-06 | M83: 1.421610007e-06 | N83: 0.1625292904 | O83: 0.06226383618 | P83: 0.0010436529 | Q83: 3.423683478e-05 | R83: 1.754383342e-05 | S83: 0.00102623249 | T83: 16355.277 | U83: 16355.277 | V83: 0 | W83: 0 | X83: 98163.42844 | Y83: 14235.1485 | Z83: 0 | AA83: 0 | AB83: 0 | AC83: 0 | AD83: 107.680537 | AE83: 107.680537 | AF83: 0 | AG83: 0 | AH83: 224.6747404 | AI83: 131.6095453 | AJ83: 0 | AK83: 0 | AL83: 0 | AM83: 0 | AN83: 9.786307716e-10 | AO83: 9.786307716e-10 | AP83: 0 | AQ83: 0 | AR83: 39.49062253 | AS83: 9.786307716e-10 | AT83: 0 | AU83: 0 | AV83: 0 | AW83: 0 | AX83: 550.6325 | AY83: 550.6325 | AZ83: 0 | BA83: 0 | BB83: 1.01091723e-09 | BC83: 1.00115e-09 | BD83: 0 | BE83: 0 | BF83: 0 | BG83: 0 | BH83: 0.02066890588 | BI83: 0.0003395157343 | BJ83: 0 | BK83: 0 | BL83: 0.1625292904 | BM83: 0.06226383618 | BN83: 0 | BO83: 0 | BP83: 0 | BQ83: 0 | BR83: 0.02066890588 | BS83: 0.0003395157343 | BT83: 0 | BU83: 0 | BV83: 0.1625292904 | BW83: 0.06226383618 | BX83: 0 | BY83: 0 | BZ83: 0 | CA83: 0 | CB83: 0.183537712 | CC83: 0.06226383618 | CD83: 0.2458015482 | CE83: 0.2479336449 | CF83: 338.045681 | CG83: 5.55287388 | CH83: 0 | CI83: 0 | CJ83: 15954.43237 | CK83: 886.3349542 | CL83: 0 | CM83: 0 | CN83: 0 | CO83: 0 | CP83: 3.174053162 | CQ83: 0.05213826973 | CR83: 0 | CS83: 0 | CT83: 42.93460899 | CU83: 8.194515166 | CV83: 0 | CW83: 0 | CX83: 0 | CY83: 0 | CZ83: 46.16080042 | DA83: 8.194515166 | DB83: 54.35531559 | DC83: =INDEX(LOOKUP!$G$2:$G$6,MATCH($A83,LOOKUP!$I$2:$I$6,0)) -> PACIFIC
A84: 2 | B84: 13 | C84: 2013 | D84: 237 | E84: 2 | F84: 6 | G84: 3 | H84: 8 | I84: 3 | J84: 0.2795236817 | K84: 0.00973529906 | L84: 0.2835440145 | M84: 0.04836713095 | N84: 0.8850275003 | O84: 0.5717375202 | P84: 0.9764802681 | Q84: 0.9188997007 | R84: 0.003799383942 | S84: 0.3230975786 | T84: 5873.667212 | U84: 30034.1376 | V84: 41563.98456 | W84: 46529.92419 | X84: 68042.23602 | Y84: 15254.76038 | Z84: 26107.84813 | AA84: 27051.22881 | AB84: 0 | AC84: 0 | AD84: 105.3747154 | AE84: 197.3911932 | AF84: 196.7009067 | AG84: 219.7688334 | AH84: 225.5132068 | AI84: 41.89661132 | AJ84: 152.7410788 | AK84: 149.7856974 | AL84: 0 | AM84: 0 | AN84: 12.43307801 | AO84: 181.6370579 | AP84: 28.83410788 | AQ84: 11.7826742 | AR84: 24.36604337 | AS84: 9.81688525e-10 | AT84: 18.69173591 | AU84: 17.72301757 | AV84: 0 | AW84: 0 | AX84: 610.5204 | AY84: 1548.4725 | AZ84: 1160.335931 | BA84: 512.5570125 | BB84: 1904.419586 | BC84: 2897.824282 | BD84: 184.6234478 | BE84: 392.9747664 | BF84: 0 | BG84: 0 | BH84: 0.2795236817 | BI84: 0.00973529906 | BJ84: 0.2835440145 | BK84: 0.04836713095 | BL84: 0.8850275003 | BM84: 0.5717375202 | BN84: 0.9764802681 | BO84: 0.9188997007 | BP84: 0 | BQ84: 0 | BR84: 0.2795236817 | BS84: 0.00973529906 | BT84: 0.2835440145 | BU84: 0.04836713095 | BV84: 0.8850275003 | BW84: 0.5717375202 | BX84: 0.9764802681 | BY84: 0.9188997007 | BZ84: 0 | CA84: 0 | CB84: 1.506197627 | CC84: 2.467117489 | CD84: 3.973315116 | CE84: 4.300212078 | CF84: 1641.829084 | CG84: 292.3913116 | CH84: 11785.21904 | CI84: 2250.518936 | CJ84: 60219.25006 | CK84: 8721.718874 | CL84: 25493.79854 | CM84: 24857.36605 | CN84: 0 | CO84: 0 | CP84: 47.15131065 | CQ84: 4.946190283 | CR84: 91.36629579 | CS84: 13.26539143 | CT84: 361.6053169 | CU84: 162.0201038 | CV84: 182.4241903 | CW84: 184.015741 | CX84: 0 | CY84: 0 | CZ84: 518.3345051 | DA84: 528.460035 | DB84: 1046.79454 | DC84: =INDEX(LOOKUP!$G$2:$G$6,MATCH($A84,LOOKUP!$I$2:$I$6,0)) -> PACIFIC
A85: 2 | B85: 13 | C85: 2013 | D85: 239 | E85: 2 | F85: 6 | G85: 4 | H85: 8 | I85: 5 | J85: 0.00015549537 | K85: 0.0002462176518 | L85: 0.001067772841 | M85: 8.812161281e-05 | N85: 0.2999985171 | O85: 0.002810157655 | P85: 0.0002782242309 | Q85: 0.0002504334991 | R85: 6.625190273e-05 | S85: 0.03497734913 | T85: 36916.9608 | U85: 36916.9608 | V85: 37796.83388 | W85: 37965.9004 | X85: 100711.2536 | Y85: 0 | Z85: 0 | AA85: 0 | AB85: 0 | AC85: 121877.5592 | AD85: 172.717294 | AE85: 172.717294 | AF85: 164.662555 | AG85: 163.1148469 | AH85: 157.2362883 | AI85: 0 | AJ85: 0 | AK85: 0 | AL85: 0 | AM85: 133.7633592 | AN85: 161.4551626 | AO85: 161.4551626 | AP85: 26.02310246 | AQ85: 9.7832419e-10 | AR85: 42.48148744 | AS85: 0 | AT85: 0 | AU85: 0 | AV85: 0 | AW85: 79.57169923 | AX85: 3096.945 | AY85: 3096.945 | AZ85: 499.1609792 | BA85: 1.000836364e-09 | BB85: 568.2202703 | BC85: 0 | BD85: 0 | BE85: 0 | BF85: 0 | BG85: 814.0272 | BH85: 0.00015549537 | BI85: 0.0002462176518 | BJ85: 0.001067772841 | BK85: 8.812161281e-05 | BL85: 0.2999985171 | BM85: 0 | BN85: 0 | BO85: 0 | BP85: 0 | BQ85: 0.03497734913 | BR85: 0.00015549537 | BS85: 0.0002462176518 | BT85: 0.001067772841 | BU85: 8.812161281e-05 | BV85: 0.2999985171 | BW85: 0 | BX85: 0 | BY85: 0 | BZ85: 0 | CA85: 0.03497734913 | CB85: 0.3015561246 | CC85: 0.03497734913 | CD85: 0.3365334737 | CE85: 0.339938541 | CF85: 5.740416478 | CG85: 9.089607401 | CH85: 40.35843269 | CI85: 3.345616375 | CJ85: 30213.22673 | CK85: 0 | CL85: 0 | CM85: 0 | CN85: 0 | CO85: 4262.953939 | CP85: 0.09209232048 | CQ85: 0.1458227014 | CR85: 0.2480248443 | CS85: 0.01437394338 | CT85: 74.12047309 | CU85: 0 | CV85: 0 | CW85: 0 | CX85: 0 | CY85: 9.834604284 | CZ85: 74.6207869 | DA85: 9.834604284 | DB85: 84.45539119 | DC85: =INDEX(LOOKUP!$G$2:$G$6,MATCH($A85,LOOKUP!$I$2:$I$6,0)) -> PACIFIC
A86: 2 | B86: 13 | C86: 2013 | D86: 241 | E86: 2 | F86: 6 | G86: 4 | H86: 8 | I86: 7 | J86: 0 | K86: 0 | L86: 0 | M86: 0 | N86: 0 | O86: 0.0002195684427 | P86: 2.871173792e-05 | Q86: 7.869695565e-05 | R86: 5.539743845e-06 | S86: 0.001386797692 | T86: 0 | U86: 0 | V86: 0 | W86: 0 | X86: 0 | Y86: 0 | Z86: 0 | AA86: 0 | AB86: 0 | AC86: 0 | AD86: 0 | AE86: 0 | AF86: 0 | AG86: 0 | AH86: 0 | AI86: 0 | AJ86: 0 | AK86: 0 | AL86: 0 | AM86: 0 | AN86: 0 | AO86: 0 | AP86: 0 | AQ86: 0 | AR86: 0 | AS86: 0 | AT86: 0 | AU86: 0 | AV86: 0 | AW86: 0 | AX86: 0 | AY86: 0 | AZ86: 0 | BA86: 0 | BB86: 0 | BC86: 0 | BD86: 0 | BE86: 0 | BF86: 0 | BG86: 0 | BH86: 0 | BI86: 0 | BJ86: 0 | BK86: 0 | BL86: 0 | BM86: 0 | BN86: 0 | BO86: 0 | BP86: 0 | BQ86: 0 | BR86: 0 | BS86: 0 | BT86: 0 | BU86: 0 | BV86: 0 | BW86: 0 | BX86: 0 | BY86: 0 | BZ86: 0 | CA86: 0 | CB86: 0 | CC86: 0 | CD86: 0 | CE86: 0.001719314572 | CF86: 0 | CG86: 0 | CH86: 0 | CI86: 0 | CJ86: 0 | CK86: 0 | CL86: 0 | CM86: 0 | CN86: 0 | CO86: 0 | CP86: 0 | CQ86: 0 | CR86: 0 | CS86: 0 | CT86: 0 | CU86: 0 | CV86: 0 | CW86: 0 | CX86: 0 | CY86: 0 | CZ86: 0 | DA86: 0 | DB86: 0 | DC86: =INDEX(LOOKUP!$G$2:$G$6,MATCH($A86,LOOKUP!$I$2:$I$6,0)) -> PACIFIC
A87: 2 | B87: 13 | C87: 2013 | D87: 243 | E87: 3 | F87: 0 | G87: 0 | H87: 0 | I87: 0 | J87: 0.02187991276 | K87: 0.05448929554 | L87: 0.02262953574 | M87: 0.009773451838 | N87: 0.07290237594 | O87: 0 | P87: 0 | Q87: 0 | R87: 0 | S87: 0 | T87: 14833.8939 | U87: 34628.7655 | V87: 65477.24675 | W87: 69278.36755 | X87: 102419.6065 | Y87: 0 | Z87: 0 | AA87: 0 | AB87: 0 | AC87: 0 | AD87: 60.00130384 | AE87: 71.78702469 | AF87: 52.67577803 | AG87: 82.58553041 | AH87: 348.8678476 | AI87: 0 | AJ87: 0 | AK87: 0 | AL87: 0 | AM87: 0 | AN87: 96.34397775 | AO87: 29.35892315 | AP87: 29.33205074 | AQ87: 62.26544794 | AR87: 55.1873524 | AS87: 0 | AT87: 0 | AU87: 0 | AV87: 0 | AW87: 0 | AX87: 1.000023653e-09 | AY87: 1.00115e-09 | AZ87: 63.74670185 | BA87: 53.59695296 | BB87: 341.7763844 | BC87: 0 | BD87: 0 | BE87: 0 | BF87: 0 | BG87: 0 | BH87: 0.02187991276 | BI87: 0.05448929554 | BJ87: 0.02262953574 | BK87: 0.009773451838 | BL87: 0.07290237594 | BM87: 0 | BN87: 0 | BO87: 0 | BP87: 0 | BQ87: 0 | BR87: 0.02187991276 | BS87: 0.05448929554 | BT87: 0.02262953574 | BU87: 0.009773451838 | BV87: 0.07290237594 | BW87: 0 | BX87: 0 | BY87: 0 | BZ87: 0 | CA87: 0 | CB87: 0.1816745718 | CC87: 0 | CD87: 0.1816745718 | CE87: 0.1816745718 | CF87: 324.5643045 | CG87: 1886.897038 | CH87: 1481.719696 | CI87: 677.0887887 | CJ87: 7466.632655 | CK87: 0 | CL87: 0 | CM87: 0 | CN87: 0 | CO87: 0 | CP87: 3.420821121 | CQ87: 5.511371445 | CR87: 1.976012282 | CS87: 1.45934633 | CT87: 31.5329433 | CU87: 0 | CV87: 0 | CW87: 0 | CX87: 0 | CY87: 0 | CZ87: 43.90049448 | DA87: 0 | DB87: 43.90049448 | DC87: =INDEX(LOOKUP!$G$2:$G$6,MATCH($A87,LOOKUP!$I$2:$I$6,0)) -> PACIFIC
A88: 2 | B88: 13 | C88: 2013 | D88: 244 | E88: 3 | F88: 0 | G88: 1 | H88: 0 | I88: 1 | J88: 0 | K88: 0 | L88: 0 | M88: 0 | N88: 0 | O88: 0.01302134415 | P88: 0.009228758704 | Q88: 0.03759824447 | R88: 0.01450359546 | S88: 0.05855737968 | T88: 0 | U88: 0 | V88: 0 | W88: 0 | X88: 0 | Y88: 0 | Z88: 33342.0912 | AA88: 33342.0912 | AB88: 0 | AC88: 0 | AD88: 0 | AE88: 0 | AF88: 0 | AG88: 0 | AH88: 0 | AI88: 0 | AJ88: 95.60608592 | AK88: 95.60608592 | AL88: 0 | AM88: 0 | AN88: 0 | AO88: 0 | AP88: 0 | AQ88: 0 | AR88: 0 | AS88: 0 | AT88: 146.6259959 | AU88: 146.6259959 | AV88: 0 | AW88: 0 | AX88: 0 | AY88: 0 | AZ88: 0 | BA88: 0 | BB88: 0 | BC88: 0 | BD88: 1e-09 | BE88: 1e-09 | BF88: 0 | BG88: 0 | BH88: 0 | BI88: 0 | BJ88: 0 | BK88: 0 | BL88: 0 | BM88: 0 | BN88: 0.009228758704 | BO88: 0.03759824447 | BP88: 0 | BQ88: 0 | BR88: 0 | BS88: 0 | BT88: 0 | BU88: 0 | BV88: 0 | BW88: 0 | BX88: 0.009228758704 | BY88: 0.03759824447 | BZ88: 0 | CA88: 0 | CB88: 0 | CC88: 0.04682700317 | CD88: 0.04682700317 | CE88: 0.1329093225 | CF88: 0 | CG88: 0 | CH88: 0 | CI88: 0 | CJ88: 0 | CK88: 0 | CL88: 307.7061144 | CM88: 1253.604096 | CN88: 0 | CO88: 0 | CP88: 0 | CQ88: 0 | CR88: 0 | CS88: 0 | CT88: 0 | CU88: 0 | CV88: 2.235501433 | CW88: 9.107501028 | CX88: 0 | CY88: 0 | CZ88: 0 | DA88: 11.34300246 | DB88: 11.34300246 | DC88: =INDEX(LOOKUP!$G$2:$G$6,MATCH($A88,LOOKUP!$I$2:$I$6,0)) -> PACIFIC
A89: 2 | B89: 13 | C89: 2013 | D89: 245 | E89: 3 | F89: 0 | G89: 2 | H89: 0 | I89: 2 | J89: 0.02451958509 | K89: 0.03768944536 | L89: 0.1569484421 | M89: 0.03304427571 | N89: 0.4912366718 | O89: 0.08557484139 | P89: 0.1896399609 | Q89: 0.1805803323 | R89: 0.09005109832 | S89: 0.4382339171 | T89: 21541.43694 | U89: 27734.6595 | V89: 46361.75962 | W89: 60843.73312 | X89: 95555.74742 | Y89: 30222.06493 | Z89: 44155.7424 | AA89: 54432.79501 | AB89: 64353.61574 | AC89: 78243.96598 | AD89: 574.9659694 | AE89: 152.9847543 | AF89: 205.5962235 | AG89: 358.4915425 | AH89: 220.9402612 | AI89: 186.7085486 | AJ89: 203.1629326 | AK89: 215.301189 | AL89: 228.115105 | AM89: 364.7744044 | AN89: 42.85974182 | AO89: 23.31472154 | AP89: 17.67855538 | AQ89: 1.214932156 | AR89: 9.280889257 | AS89: 9.834603846e-10 | AT89: 9.77506639e-10 | AU89: 9.780713541e-10 | AV89: 9.786307716e-10 | AW89: 9.786307716e-10 | AX89: 1816.971088 | AY89: 200.0994835 | AZ89: 2227.090261 | BA89: 898.4863359 | BB89: 129.7848213 | BC89: 218.6553582 | BD89: 1e-09 | BE89: 1.00057771e-09 | BF89: 1.00115e-09 | BG89: 1.00115e-09 | BH89: 0.02451958509 | BI89: 0.03768944536 | BJ89: 0.1569484421 | BK89: 0.03304427571 | BL89: 0.4912366718 | BM89: 0.08557484139 | BN89: 0.1896399609 | BO89: 0.1805803323 | BP89: 0.09005109832 | BQ89: 0.4382339171 | BR89: 0.02451958509 | BS89: 0.03768944536 | BT89: 0.1569484421 | BU89: 0.03304427571 | BV89: 0.4912366718 | BW89: 0.08557484139 | BX89: 0.1896399609 | BY89: 0.1805803323 | BZ89: 0.09005109832 | CA89: 0.4382339171 | CB89: 0.74343842 | CC89: 0.9840801501 | CD89: 1.72751857 | CE89: 1.72751857 | CF89: 528.1870961 | CG89: 1045.303934 | CH89: 7276.405945 | CI89: 2010.537092 | CJ89: 46940.48733 | CK89: 2586.248413 | CL89: 8373.693263 | CM89: 9829.492214 | CN89: 5795.113778 | CO89: 34289.1597 | CP89: 18.86144486 | CQ89: 7.273099342 | CR89: 64.17082428 | CS89: 14.36039244 | CT89: 118.4059937 | CU89: 17.53683757 | CV89: 38.52781059 | CW89: 38.87916027 | CX89: 20.54201575 | CY89: 159.8565161 | CZ89: 223.0717546 | DA89: 275.3423403 | DB89: 498.4140949 | DC89: =INDEX(LOOKUP!$G$2:$G$6,MATCH($A89,LOOKUP!$I$2:$I$6,0)) -> PACIFIC
A90: 2 | B90: 13 | C90: 2013 | D90: 246 | E90: 3 | F90: 0 | G90: 3 | H90: 0 | I90: 3 | J90: 10.60350276 | K90: 8.710369539 | L90: 13.26178083 | M90: 3.043038643 | N90: 41.69758824 | O90: 8.804922639 | P90: 6.128246561 | Q90: 8.350711774 | R90: 2.521697033 | S90: 20.04946582 | T90: 18612.59619 | U90: 25406.8555 | V90: 44928.71084 | W90: 60778.18513 | X90: 126392.2244 | Y90: 15699.41455 | Z90: 24065.06035 | AA90: 47219.59528 | AB90: 61891.51968 | AC90: 95579.38249 | AD90: 160.7491546 | AE90: 176.6454438 | AF90: 200.8525243 | AG90: 206.8823273 | AH90: 225.8027103 | AI90: 154.0766309 | AJ90: 129.3309537 | AK90: 205.0972267 | AL90: 192.4030988 | AM90: 176.3119923 | AN90: 18.99407335 | AO90: 28.70205127 | AP90: 11.28060802 | AQ90: 18.59482217 | AR90: 26.51314512 | AS90: 4.561150089 | AT90: 2.005836119 | AU90: 3.512412112 | AV90: 2.423410341 | AW90: 42.71896674 | AX90: 2655.14015 | AY90: 2569.542791 | AZ90: 2796.450845 | BA90: 2861.277425 | BB90: 2858.720487 | BC90: 2478.182348 | BD90: 2022.312985 | BE90: 2168.808294 | BF90: 2121.059921 | BG90: 1988.484926 | BH90: 10.60350276 | BI90: 8.710369539 | BJ90: 13.26178083 | BK90: 3.043038643 | BL90: 41.69758824 | BM90: 8.804922639 | BN90: 6.128246561 | BO90: 8.350711774 | BP90: 2.521697033 | BQ90: 20.04946582 | BR90: 10.60350276 | BS90: 8.710369539 | BT90: 13.26178083 | BU90: 3.043038643 | BV90: 41.69758824 | BW90: 8.804922639 | BX90: 6.128246561 | BY90: 8.350711774 | BZ90: 2.521697033 | CA90: 20.04946582 | CB90: 77.31628001 | CC90: 45.85504382 | CD90: 123.1713238 | CE90: 123.1713238 | CF90: 197358.715 | CG90: 221303.1003 | CH90: 595834.7162 | CI90: 184950.366 | CJ90: 5270250.931 | CK90: 138232.1306 | CL90: 147476.6233 | CM90: 394317.2303 | CN90: 156071.6615 | CO90: 1916315.562 | CP90: 4252.056638 | CQ90: 3653.791504 | CR90: 5903.756293 | CS90: 1411.71716 | CT90: 20454.44179 | CU90: 3215.14371 | CV90: 1837.633614 | CW90: 3251.296713 | CX90: 937.0159725 | CY90: 7713.792105 | CZ90: 35675.76339 | DA90: 16954.88211 | DB90: 52630.6455 | DC90: =INDEX(LOOKUP!$G$2:$G$6,MATCH($A90,LOOKUP!$I$2:$I$6,0)) -> PACIFIC
A91: 2 | B91: 13 | C91: 2013 | D91: 248 | E91: 3 | F91: 0 | G91: 4 | H91: 0 | I91: 5 | J91: 0.5948005816 | K91: 0.5602089498 | L91: 0.7795945682 | M91: 0.1169269318 | N91: 2.593739224 | O91: 0.5737711546 | P91: 0.2265265867 | Q91: 0.2011676994 | R91: 0.06332710944 | S91: 0.711828912 | T91: 15116.46759 | U91: 29238.48856 | V91: 44191.65532 | W91: 60320.44415 | X91: 106690.9336 | Y91: 10109.91408 | Z91: 30865.24762 | AA91: 42236.81825 | AB91: 56530.0514 | AC91: 84921.55757 | AD91: 161.6511054 | AE91: 178.5459617 | AF91: 233.8797155 | AG91: 201.6456784 | AH91: 205.8963221 | AI91: 122.5183808 | AJ91: 62.37218005 | AK91: 134.5523828 | AL91: 177.8338125 | AM91: 245.8348005 | AN91: 6.529047201 | AO91: 14.69379679 | AP91: 12.41256868 | AQ91: 18.22820307 | AR91: 45.55244647 | AS91: 24.37504322 | AT91: 6.981109591 | AU91: 6.931674007 | AV91: 22.61851322 | AW91: 29.21015874 | AX91: 1560.102134 | AY91: 1418.539097 | AZ91: 2224.126287 | BA91: 1732.762352 | BB91: 2162.353851 | BC91: 1242.322277 | BD91: 336.5248663 | BE91: 828.5435016 | BF91: 724.1766453 | BG91: 935.4505421 | BH91: 0.5948005816 | BI91: 0.5602089498 | BJ91: 0.7795945682 | BK91: 0.1169269318 | BL91: 2.593739224 | BM91: 0.5737711546 | BN91: 0.2265265867 | BO91: 0.2011676994 | BP91: 0.06332710944 | BQ91: 0.711828912 | BR91: 0.5948005816 | BS91: 0.5602089498 | BT91: 0.7795945682 | BU91: 0.1169269318 | BV91: 2.593739224 | BW91: 0.5737711546 | BX91: 0.2265265867 | BY91: 0.2011676994 | BZ91: 0.06332710944 | CA91: 0.711828912 | CB91: 4.645270256 | CC91: 1.776621462 | CD91: 6.421891718 | CE91: 6.421891718 | CF91: 8991.283713 | CG91: 16379.66297 | CH91: 34451.57445 | CI91: 7053.084461 | CJ91: 276728.4594 | CK91: 5800.777072 | CL91: 6991.799193 | CM91: 8496.683557 | CN91: 3579.884751 | CO91: 60449.61993 | CP91: 177.3627906 | CQ91: 174.4778336 | CR91: 336.5011913 | CS91: 42.59306047 | CT91: 1119.574367 | CU91: 143.6839334 | CV91: 22.06301643 | CW91: 42.35170472 | CX91: 16.51573417 | CY91: 251.2750159 | CZ91: 1850.509243 | DA91: 475.8894046 | DB91: 2326.398648 | DC91: =INDEX(LOOKUP!$G$2:$G$6,MATCH($A91,LOOKUP!$I$2:$I$6,0)) -> PACIFIC
A92: 2 | B92: 13 | C92: 2013 | D92: 250 | E92: 3 | F92: 0 | G92: 4 | H92: 0 | I92: 7 | J92: 0 | K92: 0 | L92: 0 | M92: 0 | N92: 0 | O92: 0.02239991613 | P92: 0.007099710793 | Q92: 0.03032189462 | R92: 0.01007319721 | S92: 0.1703669499 | T92: 0 | U92: 0 | V92: 0 | W92: 0 | X92: 0 | Y92: 0 | Z92: 44216.9248 | AA92: 48392.51616 | AB92: 58503.9972 | AC92: 81499.28883 | AD92: 0 | AE92: 0 | AF92: 0 | AG92: 0 | AH92: 0 | AI92: 0 | AJ92: 370.1084872 | AK92: 341.2633558 | AL92: 271.4128906 | AM92: 231.7577114 | AN92: 0 | AO92: 0 | AP92: 0 | AQ92: 0 | AR92: 0 | AS92: 0 | AT92: 1.009094766e-09 | AU92: 1.009094766e-09 | AV92: 1.009094766e-09 | AW92: 1.009094766e-09 | AX92: 0 | AY92: 0 | AZ92: 0 | BA92: 0 | BB92: 0 | BC92: 0 | BD92: 2477.556 | BE92: 2658.580865 | BF92: 3096.945 | BG92: 4092.409141 | BH92: 0 | BI92: 0 | BJ92: 0 | BK92: 0 | BL92: 0 | BM92: 0 | BN92: 0.007099710793 | BO92: 0.03032189462 | BP92: 0.01007319721 | BQ92: 0.1703669499 | BR92: 0 | BS92: 0 | BT92: 0 | BU92: 0 | BV92: 0 | BW92: 0 | BX92: 0.007099710793 | BY92: 0.03032189462 | BZ92: 0.01007319721 | CA92: 0.1703669499 | CB92: 0 | CC92: 0.2178617526 | CD92: 0.2178617526 | CE92: 0.2402616687 | CF92: 0 | CG92: 0 | CH92: 0 | CI92: 0 | CJ92: 0 | CK92: 0 | CL92: 313.9273782 | CM92: 1467.352775 | CN92: 589.3223016 | CO92: 13884.78526 | CP92: 0 | CQ92: 0 | CR92: 0 | CS92: 0 | CT92: 0 | CU92: 0 | CV92: 4.093490811 | CW92: 17.06551891 | CX92: 5.333673719 | CY92: 97.58479302 | CZ92: 0 | DA92: 124.0774765 | DB92: 124.0774765 | DC92: =INDEX(LOOKUP!$G$2:$G$6,MATCH($A92,LOOKUP!$I$2:$I$6,0)) -> PACIFIC
A93: 2 | B93: 13 | C93: 2013 | D93: 252 | E93: 3 | F93: 1 | G93: 0 | H93: 1 | I93: 0 | J93: 4.03688368e-05 | K93: 1.289311636e-05 | L93: 7.429489549e-05 | M93: 2.644858883e-05 | N93: 0.0007546649454 | O93: 0 | P93: 0 | Q93: 0 | R93: 0 | S93: 0 | T93: 0 | U93: 0 | V93: 0 | W93: 0 | X93: 0 | Y93: 0 | Z93: 0 | AA93: 0 | AB93: 0 | AC93: 0 | AD93: 0 | AE93: 0 | AF93: 0 | AG93: 0 | AH93: 0 | AI93: 0 | AJ93: 0 | AK93: 0 | AL93: 0 | AM93: 0 | AN93: 0 | AO93: 0 | AP93: 0 | AQ93: 0 | AR93: 0 | AS93: 0 | AT93: 0 | AU93: 0 | AV93: 0 | AW93: 0 | AX93: 0 | AY93: 0 | AZ93: 0 | BA93: 0 | BB93: 0 | BC93: 0 | BD93: 0 | BE93: 0 | BF93: 0 | BG93: 0 | BH93: 0 | BI93: 0 | BJ93: 0 | BK93: 0 | BL93: 0 | BM93: 0 | BN93: 0 | BO93: 0 | BP93: 0 | BQ93: 0 | BR93: 0 | BS93: 0 | BT93: 0 | BU93: 0 | BV93: 0 | BW93: 0 | BX93: 0 | BY93: 0 | BZ93: 0 | CA93: 0 | CB93: 0 | CC93: 0 | CD93: 0 | CE93: 0.0009086703829 | CF93: 0 | CG93: 0 | CH93: 0 | CI93: 0 | CJ93: 0 | CK93: 0 | CL93: 0 | CM93: 0 | CN93: 0 | CO93: 0 | CP93: 0 | CQ93: 0 | CR93: 0 | CS93: 0 | CT93: 0 | CU93: 0 | CV93: 0 | CW93: 0 | CX93: 0 | CY93: 0 | CZ93: 0 | DA93: 0 | DB93: 0 | DC93: =INDEX(LOOKUP!$G$2:$G$6,MATCH($A93,LOOKUP!$I$2:$I$6,0)) -> PACIFIC
A94: 2 | B94: 13 | C94: 2013 | D94: 253 | E94: 3 | F94: 1 | G94: 1 | H94: 1 | I94: 1 | J94: 0 | K94: 0 | L94: 0 | M94: 0 | N94: 0 | O94: 0.0003096470836 | P94: 2.393200885e-05 | Q94: 0.0007860959041 | R94: 0.0003798947956 | S94: 0.001831138924 | T94: 0 | U94: 0 | V94: 0 | W94: 0 | X94: 0 | Y94: 0 | Z94: 0 | AA94: 0 | AB94: 0 | AC94: 0 | AD94: 0 | AE94: 0 | AF94: 0 | AG94: 0 | AH94: 0 | AI94: 0 | AJ94: 0 | AK94: 0 | AL94: 0 | AM94: 0 | AN94: 0 | AO94: 0 | AP94: 0 | AQ94: 0 | AR94: 0 | AS94: 0 | AT94: 0 | AU94: 0 | AV94: 0 | AW94: 0 | AX94: 0 | AY94: 0 | AZ94: 0 | BA94: 0 | BB94: 0 | BC94: 0 | BD94: 0 | BE94: 0 | BF94: 0 | BG94: 0 | BH94: 0 | BI94: 0 | BJ94: 0 | BK94: 0 | BL94: 0 | BM94: 0 | BN94: 0 | BO94: 0 | BP94: 0 | BQ94: 0 | BR94: 0 | BS94: 0 | BT94: 0 | BU94: 0 | BV94: 0 | BW94: 0 | BX94: 0 | BY94: 0 | BZ94: 0 | CA94: 0 | CB94: 0 | CC94: 0 | CD94: 0 | CE94: 0.003330708717 | CF94: 0 | CG94: 0 | CH94: 0 | CI94: 0 | CJ94: 0 | CK94: 0 | CL94: 0 | CM94: 0 | CN94: 0 | CO94: 0 | CP94: 0 | CQ94: 0 | CR94: 0 | CS94: 0 | CT94: 0 | CU94: 0 | CV94: 0 | CW94: 0 | CX94: 0 | CY94: 0 | CZ94: 0 | DA94: 0 | DB94: 0 | DC94: =INDEX(LOOKUP!$G$2:$G$6,MATCH($A94,LOOKUP!$I$2:$I$6,0)) -> PACIFIC
A95: 2 | B95: 13 | C95: 2013 | D95: 254 | E95: 3 | F95: 1 | G95: 2 | H95: 1 | I95: 2 | J95: 0.0005266646502 | K95: 0.0003049471695 | L95: 0.0004340815131 | M95: 9.302319571e-05 | N95: 0.1621219439 | O95: 0.0126210255 | P95: 0.01674811399 | Q95: 0.0488777814 | R95: 0.001986273998 | S95: 0.04659370121 | T95: 0 | U95: 0 | V95: 0 | W95: 0 | X95: 100453.7075 | Y95: 917.70976 | Z95: 32328.412 | AA95: 32328.412 | AB95: 0 | AC95: 0 | AD95: 0 | AE95: 0 | AF95: 0 | AG95: 0 | AH95: 418.757644 | AI95: 123.3694957 | AJ95: 123.3694957 | AK95: 123.3694957 | AL95: 0 | AM95: 0 | AN95: 0 | AO95: 0 | AP95: 0 | AQ95: 0 | AR95: 156.5809235 | AS95: 1.009094766e-09 | AT95: 100.9094766 | AU95: 100.9094766 | AV95: 0 | AW95: 0 | AX95: 0 | AY95: 0 | AZ95: 0 | BA95: 0 | BB95: 450.5175 | BC95: 805.2057 | BD95: 1.032315e-09 | BE95: 1.032315e-09 | BF95: 0 | BG95: 0 | BH95: 0 | BI95: 0 | BJ95: 0 | BK95: 0 | BL95: 0.1621219439 | BM95: 0.0126210255 | BN95: 0.01674811399 | BO95: 0.0488777814 | BP95: 0 | BQ95: 0 | BR95: 0 | BS95: 0 | BT95: 0 | BU95: 0 | BV95: 0.1621219439 | BW95: 0.0126210255 | BX95: 0.01674811399 | BY95: 0.0488777814 | BZ95: 0 | CA95: 0 | CB95: 0.1621219439 | CC95: 0.0782469209 | CD95: 0.2403688648 | CE95: 0.2903075566 | CF95: 0 | CG95: 0 | CH95: 0 | CI95: 0 | CJ95: 16285.75034 | CK95: 11.58243829 | CL95: 541.4399292 | CM95: 1580.141055 | CN95: 0 | CO95: 0 | CP95: 0 | CQ95: 0 | CR95: 0 | CS95: 0 | CT95: 99.36157139 | CU95: 2.403926358 | CV95: 3.756249794 | CW95: 10.96225858 | CX95: 0 | CY95: 0 | CZ95: 99.36157139 | DA95: 17.12243474 | DB95: 116.4840061 | DC95: =INDEX(LOOKUP!$G$2:$G$6,MATCH($A95,LOOKUP!$I$2:$I$6,0)) -> PACIFIC
A96: 2 | B96: 13 | C96: 2013 | D96: 255 | E96: 3 | F96: 1 | G96: 3 | H96: 1 | I96: 3 | J96: 0.1172445873 | K96: 0.01065095813 | L96: 0.04574886001 | M96: 0.01453751425 | N96: 0.6148927517 | O96: 0.03780254214 | P96: 0.06441859225 | Q96: 0.3643167059 | R96: 0.0181550866 | S96: 1.37725813 | T96: 13225.2735 | U96: 0 | V96: 0 | W96: 0 | X96: 104659.7421 | Y96: 24230.04 | Z96: 26532.5642 | AA96: 26532.5642 | AB96: 69975.3692 | AC96: 111304.4447 | AD96: 194.5648861 | AE96: 0 | AF96: 0 | AG96: 0 | AH96: 382.5251284 | AI96: 155.5385535 | AJ96: 1.216030538e-09 | AK96: 1.216030538e-09 | AL96: 1.233694957e-09 | AM96: 197.7522945 | AN96: 9.946462404e-10 | AO96: 0 | AP96: 0 | AQ96: 0 | AR96: 9.778813499e-10 | AS96: 9.786307716e-10 | AT96: 9.946462404e-10 | AU96: 9.946462404e-10 | AV96: 1.009094766e-09 | AW96: 9.862076541e-10 | AX96: 3154.3554 | AY96: 0 | AZ96: 0 | BA96: 0 | BB96: 1600 | BC96: 6006.9 | BD96: 1.017534e-09 | BE96: 1.017534e-09 | BF96: 1.032315e-09 | BG96: 2707.732761 | BH96: 0.1172445873 | BI96: 0 | BJ96: 0 | BK96: 0 | BL96: 0.6148927517 | BM96: 0.03780254214 | BN96: 0.06441859225 | BO96: 0.3643167059 | BP96: 0.0181550866 | BQ96: 1.37725813 | BR96: 0.1172445873 | BS96: 0 | BT96: 0 | BU96: 0 | BV96: 0.6148927517 | BW96: 0.03780254214 | BX96: 0.06441859225 | BY96: 0.3643167059 | BZ96: 0.0181550866 | CA96: 1.37725813 | CB96: 0.732137339 | CC96: 1.861951057 | CD96: 2.594088396 | CE96: 2.665025728 | CF96: 1550.591734 | CG96: 0 | CH96: 0 | CI96: 0 | CJ96: 64354.51681 | CK96: 915.9571081 | CL96: 1709.190434 | CM96: 9666.256389 | CN96: 1270.408888 | CO96: 153294.9514 | CP96: 53.63093786 | CQ96: 0 | CR96: 0 | CS96: 0 | CT96: 317.197629 | CU96: 24.80276025 | CV96: 1.478710283e-10 | CW96: 8.362785347e-10 | CX96: 4.227985567e-11 | CY96: 583.1265354 | CZ96: 370.8285669 | DA96: 607.9292956 | DB96: 978.7578626 | DC96: =INDEX(LOOKUP!$G$2:$G$6,MATCH($A96,LOOKUP!$I$2:$I$6,0)) -> PACIFIC
A97: 2 | B97: 13 | C97: 2013 | D97: 257 | E97: 3 | F97: 1 | G97: 4 | H97: 1 | I97: 5 | J97: 0.0003935481994 | K97: 0.0001700752664 | L97: 0.02524607299 | M97: 0.009095056498 | N97: 0.01839185159 | O97: 0.00263758339 | P97: 0.0003661050428 | Q97: 0.0009943382586 | R97: 0.0002479097048 | S97: 0.01255848465 | T97: 0 | U97: 0 | V97: 51690.752 | W97: 51690.752 | X97: 51690.752 | Y97: 2132.4472 | Z97: 0 | AA97: 0 | AB97: 0 | AC97: 0 | AD97: 0 | AE97: 0 | AF97: 358.9351234 | AG97: 358.9351234 | AH97: 358.9351234 | AI97: 121.6030538 | AJ97: 0 | AK97: 0 | AL97: 0 | AM97: 0 | AN97: 0 | AO97: 0 | AP97: 29.35892315 | AQ97: 29.35892315 | AR97: 29.35892315 | AS97: 9.946462404e-10 | AT97: 0 | AU97: 0 | AV97: 0 | AW97: 0 | AX97: 0 | AY97: 0 | AZ97: 1802.07 | BA97: 1802.07 | BB97: 1802.07 | BC97: 356.1369 | BD97: 0 | BE97: 0 | BF97: 0 | BG97: 0 | BH97: 0 | BI97: 0 | BJ97: 0.02524607299 | BK97: 0.009095056498 | BL97: 0.01839185159 | BM97: 0.00263758339 | BN97: 0 | BO97: 0 | BP97: 0 | BQ97: 0 | BR97: 0 | BS97: 0 | BT97: 0.02524607299 | BU97: 0.009095056498 | BV97: 0.01839185159 | BW97: 0.00263758339 | BX97: 0 | BY97: 0 | BZ97: 0 | CA97: 0 | CB97: 0.05273298107 | CC97: 0.00263758339 | CD97: 0.05537056446 | CE97: 0.07010102559 | CF97: 0 | CG97: 0 | CH97: 1304.988498 | CI97: 470.1303099 | CJ97: 950.6886393 | CK97: 5.624507314 | CL97: 0 | CM97: 0 | CN97: 0 | CO97: 0 | CP97: 0 | CQ97: 0 | CR97: 13.59416574 | CS97: 4.897383664 | CT97: 9.90339681 | CU97: 0.3990165925 | CV97: 0 | CW97: 0 | CX97: 0 | CY97: 0 | CZ97: 28.39494621 | DA97: 0.3990165925 | DB97: 28.7939628 | DC97: =INDEX(LOOKUP!$G$2:$G$6,MATCH($A97,LOOKUP!$I$2:$I$6,0)) -> PACIFIC
A98: 2 | B98: 13 | C98: 2013 | D98: 259 | E98: 3 | F98: 1 | G98: 4 | H98: 1 | I98: 7 | J98: 0 | K98: 0 | L98: 0 | M98: 0 | N98: 0 | O98: 7.267416929e-05 | P98: 1.367558268e-05 | Q98: 7.570811301e-05 | R98: 4.192896323e-06 | S98: 0.0009626798649 | T98: 0 | U98: 0 | V98: 0 | W98: 0 | X98: 0 | Y98: 0 | Z98: 0 | AA98: 0 | AB98: 0 | AC98: 0 | AD98: 0 | AE98: 0 | AF98: 0 | AG98: 0 | AH98: 0 | AI98: 0 | AJ98: 0 | AK98: 0 | AL98: 0 | AM98: 0 | AN98: 0 | AO98: 0 | AP98: 0 | AQ98: 0 | AR98: 0 | AS98: 0 | AT98: 0 | AU98: 0 | AV98: 0 | AW98: 0 | AX98: 0 | AY98: 0 | AZ98: 0 | BA98: 0 | BB98: 0 | BC98: 0 | BD98: 0 | BE98: 0 | BF98: 0 | BG98: 0 | BH98: 0 | BI98: 0 | BJ98: 0 | BK98: 0 | BL98: 0 | BM98: 0 | BN98: 0 | BO98: 0 | BP98: 0 | BQ98: 0 | BR98: 0 | BS98: 0 | BT98: 0 | BU98: 0 | BV98: 0 | BW98: 0 | BX98: 0 | BY98: 0 | BZ98: 0 | CA98: 0 | CB98: 0 | CC98: 0 | CD98: 0 | CE98: 0.001128930626 | CF98: 0 | CG98: 0 | CH98: 0 | CI98: 0 | CJ98: 0 | CK98: 0 | CL98: 0 | CM98: 0 | CN98: 0 | CO98: 0 | CP98: 0 | CQ98: 0 | CR98: 0 | CS98: 0 | CT98: 0 | CU98: 0 | CV98: 0 | CW98: 0 | CX98: 0 | CY98: 0 | CZ98: 0 | DA98: 0 | DB98: 0 | DC98: =INDEX(LOOKUP!$G$2:$G$6,MATCH($A98,LOOKUP!$I$2:$I$6,0)) -> PACIFIC
A99: 2 | B99: 13 | C99: 2013 | D99: 261 | E99: 3 | F99: 2 | G99: 0 | H99: 2 | I99: 0 | J99: 0.0002992273009 | K99: 0.009255008872 | L99: 0.05626581108 | M99: 1.633309603e-05 | N99: 0.003402723005 | O99: 0 | P99: 0 | Q99: 0 | R99: 0 | S99: 0 | T99: 0 | U99: 31462.84484 | V99: 31462.84484 | W99: 0 | X99: 0 | Y99: 0 | Z99: 0 | AA99: 0 | AB99: 0 | AC99: 0 | AD99: 0 | AE99: 61.68474787 | AF99: 61.68474787 | AG99: 0 | AH99: 0 | AI99: 0 | AJ99: 0 | AK99: 0 | AL99: 0 | AM99: 0 | AN99: 0 | AO99: 50.4547383 | AP99: 50.4547383 | AQ99: 0 | AR99: 0 | AS99: 0 | AT99: 0 | AU99: 0 | AV99: 0 | AW99: 0 | AX99: 0 | AY99: 1.032315e-09 | AZ99: 1.032315e-09 | BA99: 0 | BB99: 0 | BC99: 0 | BD99: 0 | BE99: 0 | BF99: 0 | BG99: 0 | BH99: 0 | BI99: 0.009255008872 | BJ99: 0.05626581108 | BK99: 0 | BL99: 0 | BM99: 0 | BN99: 0 | BO99: 0 | BP99: 0 | BQ99: 0 | BR99: 0 | BS99: 0.009255008872 | BT99: 0.05626581108 | BU99: 0 | BV99: 0 | BW99: 0 | BX99: 0 | BY99: 0 | BZ99: 0 | CA99: 0 | CB99: 0.06552081995 | CC99: 0 | CD99: 0.06552081995 | CE99: 0.06923910335 | CF99: 0 | CG99: 291.1889081 | CH99: 1770.282484 | CI99: 0 | CJ99: 0 | CK99: 0 | CL99: 0 | CM99: 0 | CN99: 0 | CO99: 0 | CP99: 0 | CQ99: 1.037851939 | CR99: 6.309619143 | CS99: 0 | CT99: 0 | CU99: 0 | CV99: 0 | CW99: 0 | CX99: 0 | CY99: 0 | CZ99: 7.347471083 | DA99: 0 | DB99: 7.347471083 | DC99: =INDEX(LOOKUP!$G$2:$G$6,MATCH($A99,LOOKUP!$I$2:$I$6,0)) -> PACIFIC
A100: 2 | B100: 13 | C100: 2013 | D100: 262 | E100: 3 | F100: 2 | G100: 1 | H100: 2 | I100: 1 | J100: 0 | K100: 0 | L100: 0 | M100: 0 | N100: 0 | O100: 0.0331937341 | P100: 0.001755575357 | Q100: 0.03031857231 | R100: 0.01438062039 | S100: 0.2132348323 | T100: 0 | U100: 0 | V100: 0 | W100: 0 | X100: 0 | Y100: 0 | Z100: 0 | AA100: 0 | AB100: 0 | AC100: 92269.35 | AD100: 0 | AE100: 0 | AF100: 0 | AG100: 0 | AH100: 0 | AI100: 0 | AJ100: 0 | AK100: 0 | AL100: 0 | AM100: 206.7251914 | AN100: 0 | AO100: 0 | AP100: 0 | AQ100: 0 | AR100: 0 | AS100: 0 | AT100: 0 | AU100: 0 | AV100: 0 | AW100: 517.216045 | AX100: 0 | AY100: 0 | AZ100: 0 | BA100: 0 | BB100: 0 | BC100: 0 | BD100: 0 | BE100: 0 | BF100: 0 | BG100: 1.017534e-09 | BH100: 0 | BI100: 0 | BJ100: 0 | BK100: 0 | BL100: 0 | BM100: 0 | BN100: 0 | BO100: 0 | BP100: 0 | BQ100: 0.2132348323 | BR100: 0 | BS100: 0 | BT100: 0 | BU100: 0 | BV100: 0 | BW100: 0 | BX100: 0 | BY100: 0 | BZ100: 0 | CA100: 0.2132348323 | CB100: 0 | CC100: 0.2132348323 | CD100: 0.2132348323 | CE100: 0.2928833345 | CF100: 0 | CG100: 0 | CH100: 0 | CI100: 0 | CJ100: 0 | CK100: 0 | CL100: 0 | CM100: 0 | CN100: 0 | CO100: 19675.03938 | CP100: 0 | CQ100: 0 | CR100: 0 | CS100: 0 | CT100: 0 | CU100: 0 | CV100: 0 | CW100: 0 | CX100: 0 | CY100: 154.3694882 | CZ100: 0 | DA100: 154.3694882 | DB100: 154.3694882 | DC100: =INDEX(LOOKUP!$G$2:$G$6,MATCH($A100,LOOKUP!$I$2:$I$6,0)) -> PACIFIC
A101: 2 | B101: 13 | C101: 2013 | D101: 263 | E101: 3 | F101: 2 | G101: 2 | H101: 2 | I101: 2 | J101: 0.0004180844027 | K101: 0.0002370512453 | L101: 0.000325537448 | M101: 6.078363347e-05 | N101: 0.02183624631 | O101: 0.5433184881 | P101: 0.008834450288 | Q101: 1.881061388e-10 | R101: 1.42693478e-09 | S101: 2.14516831e-06 | T101: 0 | U101: 0 | V101: 0 | W101: 0 | X101: 142607.4065 | Y101: 0 | Z101: 0 | AA101: 0 | AB101: 51465.793 | AC101: 164983.3665 | AD101: 0 | AE101: 0 | AF101: 0 | AG101: 0 | AH101: 668.8167958 | AI101: 0 | AJ101: 0 | AK101: 0 | AL101: 121.6030538 | AM101: 79.80701957 | AN101: 0 | AO101: 0 | AP101: 0 | AQ101: 0 | AR101: 9.946462404e-10 | AS101: 0 | AT101: 0 | AU101: 0 | AV101: 9.946462404e-10 | AW101: 9.836369267e-10 | AX101: 0 | AY101: 0 | AZ101: 0 | BA101: 0 | BB101: 1.017534e-09 | BC101: 0 | BD101: 0 | BE101: 0 | BF101: 1.017534e-09 | BG101: 174.8676721 | BH101: 0 | BI101: 0 | BJ101: 0 | BK101: 0 | BL101: 0.02183624631 | BM101: 0 | BN101: 0 | BO101: 0 | BP101: 1.42693478e-09 | BQ101: 2.14516831e-06 | BR101: 0 | BS101: 0 | BT101: 0 | BU101: 0 | BV101: 0.02183624631 | BW101: 0 | BX101: 0 | BY101: 0 | BZ101: 1.42693478e-09 | CA101: 2.14516831e-06 | CB101: 0.02183624631 | CC101: 2.146595245e-06 | CD101: 0.0218383929 | CE101: 0.5750327882 | CF101: 0 | CG101: 0 | CH101: 0 | CI101: 0 | CJ101: 3114.010453 | CK101: 0 | CL101: 0 | CM101: 0 | CN101: 7.343832999e-05 | CO101: 0.3539170896 | CP101: 0 | CQ101: 0 | CR101: 0 | CS101: 0 | CT101: 14.60444829 | CU101: 0 | CV101: 0 | CW101: 0 | CX101: 1.735196268e-07 | CY101: 0.0002024595384 | CZ101: 14.60444829 | DA101: 0.000202633058 | DB101: 14.60465092 | DC101: =INDEX(LOOKUP!$G$2:$G$6,MATCH($A101,LOOKUP!$I$2:$I$6,0)) -> PACIFIC
A102: 2 | B102: 13 | C102: 2013 | D102: 264 | E102: 3 | F102: 2 | G102: 3 | H102: 2 | I102: 3 | J102: 0.1150242839 | K102: 0.02963130078 | L102: 0.9523424277 | M102: 0.1314894067 | N102: 0.1705292708 | O102: 0.9123547524 | P102: 0.1743798346 | Q102: 0.485311045 | R102: 0.1127863609 | S102: 2.904178388 | T102: 12202.46987 | U102: 42977.0128 | V102: 41629.37606 | W102: 37543.25599 | X102: 59923.78136 | Y102: 4076.247755 | Z102: 28436.24512 | AA102: 37072.88558 | AB102: 59534.84959 | AC102: 82367.40919 | AD102: 149.441386 | AE102: 243.2061076 | AF102: 345.421655 | AG102: 362.2979809 | AH102: 524.0920076 | AI102: 116.5943051 | AJ102: 11.07022691 | AK102: 60.26905784 | AL102: 108.8833556 | AM102: 105.2760275 | AN102: 9.824928493e-10 | AO102: 9.946462404e-10 | AP102: 24.49717455 | AQ102: 21.3494002 | AR102: 9.879368775e-10 | AS102: 9.992234763e-10 | AT102: 9.946462404e-10 | AU102: 9.929833705e-10 | AV102: 9.846047406e-10 | AW102: 9.932114752e-10 | AX102: 3912.813386 | AY102: 4884.1632 | AZ102: 3049.960746 | BA102: 3401.255057 | BB102: 2464.380034 | BC102: 1064.574844 | BD102: 1.017534e-09 | BE102: 1.015832866e-09 | BF102: 383.1234327 | BG102: 1209.874392 | BH102: 0.1150242839 | BI102: 0.02963130078 | BJ102: 0.9523424277 | BK102: 0.1314894067 | BL102: 0.1705292708 | BM102: 0.9123547524 | BN102: 0.1743798346 | BO102: 0.485311045 | BP102: 0.1127863609 | BQ102: 2.904178388 | BR102: 0.1150242839 | BS102: 0.02963130078 | BT102: 0.9523424277 | BU102: 0.1314894067 | BV102: 0.1705292708 | BW102: 0.9123547524 | BX102: 0.1743798346 | BY102: 0.485311045 | BZ102: 0.1127863609 | CA102: 2.904178388 | CB102: 1.39901669 | CC102: 4.589010381 | CD102: 5.988027071 | CE102: 5.988027071 | CF102: 1403.580359 | CG102: 1273.464793 | CH102: 39645.42106 | CI102: 4936.540457 | CJ102: 10218.75874 | CK102: 3718.984011 | CL102: 4958.707721 | CM102: 17991.88084 | CN102: 6714.719032 | CO102: 239209.6497 | CP102: 54.69510157 | CQ102: 19.26685573 | CR102: 594.3399813 | CS102: 87.71465065 | CT102: 124.3937721 | CU102: 187.3145282 | CV102: 1.930424338 | CW102: 29.24923944 | CX102: 15.88148225 | CY102: 598.5479523 | CZ102: 880.4103613 | DA102: 832.9236265 | DB102: 1713.333988 | DC102: =INDEX(LOOKUP!$G$2:$G$6,MATCH($A102,LOOKUP!$I$2:$I$6,0)) -> PACIFIC
A103: 2 | B103: 13 | C103: 2013 | D103: 266 | E103: 3 | F103: 2 | G103: 4 | H103: 2 | I103: 5 | J103: 0 | K103: 0 | L103: 0 | M103: 0 | N103: 0.0005162219421 | O103: 0.03077746256 | P103: 0.0001220283361 | Q103: 0.000226993589 | R103: 3.399543708e-05 | S103: 0.001424698365 | T103: 0 | U103: 0 | V103: 0 | W103: 0 | X103: 0 | Y103: 21504.1605 | Z103: 0 | AA103: 0 | AB103: 0 | AC103: 0 | AD103: 0 | AE103: 0 | AF103: 0 | AG103: 0 | AH103: 0 | AI103: 358.9351234 | AJ103: 0 | AK103: 0 | AL103: 0 | AM103: 0 | AN103: 0 | AO103: 0 | AP103: 0 | AQ103: 0 | AR103: 0 | AS103: 9.786307716e-10 | AT103: 0 | AU103: 0 | AV103: 0 | AW103: 0 | AX103: 0 | AY103: 0 | AZ103: 0 | BA103: 0 | BB103: 0 | BC103: 1.00115e-09 | BD103: 0 | BE103: 0 | BF103: 0 | BG103: 0 | BH103: 0 | BI103: 0 | BJ103: 0 | BK103: 0 | BL103: 0 | BM103: 0.03077746256 | BN103: 0 | BO103: 0 | BP103: 0 | BQ103: 0 | BR103: 0 | BS103: 0 | BT103: 0 | BU103: 0 | BV103: 0 | BW103: 0.03077746256 | BX103: 0 | BY103: 0 | BZ103: 0 | CA103: 0 | CB103: 0 | CC103: 0.03077746256 | CD103: 0.03077746256 | CE103: 0.03310140023 | CF103: 0 | CG103: 0 | CH103: 0 | CI103: 0 | CJ103: 0 | CK103: 661.8434946 | CL103: 0 | CM103: 0 | CN103: 0 | CO103: 0 | CP103: 0 | CQ103: 0 | CR103: 0 | CS103: 0 | CT103: 0 | CU103: 11.04711232 | CV103: 0 | CW103: 0 | CX103: 0 | CY103: 0 | CZ103: 0 | DA103: 11.04711232 | DB103: 11.04711232 | DC103: =INDEX(LOOKUP!$G$2:$G$6,MATCH($A103,LOOKUP!$I$2:$I$6,0)) -> PACIFIC
A104: 2 | B104: 13 | C104: 2013 | D104: 268 | E104: 3 | F104: 2 | G104: 4 | H104: 2 | I104: 7 | J104: 0 | K104: 0 | L104: 0 | M104: 0 | N104: 0 | O104: 0.0003967371971 | P104: 6.944071723e-06 | Q104: 2.548623631e-06 | R104: 5.077866484e-08 | S104: 0.0001776687229 | T104: 0 | U104: 0 | V104: 0 | W104: 0 | X104: 0 | Y104: 0 | Z104: 0 | AA104: 0 | AB104: 0 | AC104: 0 | AD104: 0 | AE104: 0 | AF104: 0 | AG104: 0 | AH104: 0 | AI104: 0 | AJ104: 0 | AK104: 0 | AL104: 0 | AM104: 0 | AN104: 0 | AO104: 0 | AP104: 0 | AQ104: 0 | AR104: 0 | AS104: 0 | AT104: 0 | AU104: 0 | AV104: 0 | AW104: 0 | AX104: 0 | AY104: 0 | AZ104: 0 | BA104: 0 | BB104: 0 | BC104: 0 | BD104: 0 | BE104: 0 | BF104: 0 | BG104: 0 | BH104: 0 | BI104: 0 | BJ104: 0 | BK104: 0 | BL104: 0 | BM104: 0 | BN104: 0 | BO104: 0 | BP104: 0 | BQ104: 0 | BR104: 0 | BS104: 0 | BT104: 0 | BU104: 0 | BV104: 0 | BW104: 0 | BX104: 0 | BY104: 0 | BZ104: 0 | CA104: 0 | CB104: 0 | CC104: 0 | CD104: 0 | CE104: 0.000583949394 | CF104: 0 | CG104: 0 | CH104: 0 | CI104: 0 | CJ104: 0 | CK104: 0 | CL104: 0 | CM104: 0 | CN104: 0 | CO104: 0 | CP104: 0 | CQ104: 0 | CR104: 0 | CS104: 0 | CT104: 0 | CU104: 0 | CV104: 0 | CW104: 0 | CX104: 0 | CY104: 0 | CZ104: 0 | DA104: 0 | DB104: 0 | DC104: =INDEX(LOOKUP!$G$2:$G$6,MATCH($A104,LOOKUP!$I$2:$I$6,0)) -> PACIFIC
A105: 2 | B105: 13 | C105: 2013 | D105: 270 | E105: 3 | F105: 2 | G105: 0 | H105: 3 | I105: 0 | J105: 0.0001501272291 | K105: 4.90561541e-05 | L105: 2.522173542e-05 | M105: 7.720856117e-06 | N105: 0.0006056577638 | O105: 0 | P105: 0 | Q105: 0 | R105: 0 | S105: 0 | T105: 0 | U105: 0 | V105: 0 | W105: 0 | X105: 0 | Y105: 0 | Z105: 0 | AA105: 0 | AB105: 0 | AC105: 0 | AD105: 0 | AE105: 0 | AF105: 0 | AG105: 0 | AH105: 0 | AI105: 0 | AJ105: 0 | AK105: 0 | AL105: 0 | AM105: 0 | AN105: 0 | AO105: 0 | AP105: 0 | AQ105: 0 | AR105: 0 | AS105: 0 | AT105: 0 | AU105: 0 | AV105: 0 | AW105: 0 | AX105: 0 | AY105: 0 | AZ105: 0 | BA105: 0 | BB105: 0 | BC105: 0 | BD105: 0 | BE105: 0 | BF105: 0 | BG105: 0 | BH105: 0 | BI105: 0 | BJ105: 0 | BK105: 0 | BL105: 0 | BM105: 0 | BN105: 0 | BO105: 0 | BP105: 0 | BQ105: 0 | BR105: 0 | BS105: 0 | BT105: 0 | BU105: 0 | BV105: 0 | BW105: 0 | BX105: 0 | BY105: 0 | BZ105: 0 | CA105: 0 | CB105: 0 | CC105: 0 | CD105: 0 | CE105: 0.0008377837385 | CF105: 0 | CG105: 0 | CH105: 0 | CI105: 0 | CJ105: 0 | CK105: 0 | CL105: 0 | CM105: 0 | CN105: 0 | CO105: 0 | CP105: 0 | CQ105: 0 | CR105: 0 | CS105: 0 | CT105: 0 | CU105: 0 | CV105: 0 | CW105: 0 | CX105: 0 | CY105: 0 | CZ105: 0 | DA105: 0 | DB105: 0 | DC105: =INDEX(LOOKUP!$G$2:$G$6,MATCH($A105,LOOKUP!$I$2:$I$6,0)) -> PACIFIC
A106: 2 | B106: 13 | C106: 2013 | D106: 271 | E106: 3 | F106: 2 | G106: 1 | H106: 3 | I106: 1 | J106: 0 | K106: 0 | L106: 0 | M106: 0 | N106: 0 | O106: 0.000175549107 | P106: 7.106690835e-05 | Q106: 0.001225175161 | R106: 0.0005814360393 | S106: 0.00567896594 | T106: 0 | U106: 0 | V106: 0 | W106: 0 | X106: 0 | Y106: 0 | Z106: 0 | AA106: 0 | AB106: 0 | AC106: 0 | AD106: 0 | AE106: 0 | AF106: 0 | AG106: 0 | AH106: 0 | AI106: 0 | AJ106: 0 | AK106: 0 | AL106: 0 | AM106: 0 | AN106: 0 | AO106: 0 | AP106: 0 | AQ106: 0 | AR106: 0 | AS106: 0 | AT106: 0 | AU106: 0 | AV106: 0 | AW106: 0 | AX106: 0 | AY106: 0 | AZ106: 0 | BA106: 0 | BB106: 0 | BC106: 0 | BD106: 0 | BE106: 0 | BF106: 0 | BG106: 0 | BH106: 0 | BI106: 0 | BJ106: 0 | BK106: 0 | BL106: 0 | BM106: 0 | BN106: 0 | BO106: 0 | BP106: 0 | BQ106: 0 | BR106: 0 | BS106: 0 | BT106: 0 | BU106: 0 | BV106: 0 | BW106: 0 | BX106: 0 | BY106: 0 | BZ106: 0 | CA106: 0 | CB106: 0 | CC106: 0 | CD106: 0 | CE106: 0.007732193156 | CF106: 0 | CG106: 0 | CH106: 0 | CI106: 0 | CJ106: 0 | CK106: 0 | CL106: 0 | CM106: 0 | CN106: 0 | CO106: 0 | CP106: 0 | CQ106: 0 | CR106: 0 | CS106: 0 | CT106: 0 | CU106: 0 | CV106: 0 | CW106: 0 | CX106: 0 | CY106: 0 | CZ106: 0 | DA106: 0 | DB106: 0 | DC106: =INDEX(LOOKUP!$G$2:$G$6,MATCH($A106,LOOKUP!$I$2:$I$6,0)) -> PACIFIC
A107: 2 | B107: 13 | C107: 2013 | D107: 272 | E107: 3 | F107: 2 | G107: 2 | H107: 3 | I107: 2 | J107: 0.0007360882824 | K107: 0.0004270640218 | L107: 0.0005436807851 | M107: 0.0001082613211 | N107: 0.0230224849 | O107: 0.7943425338 | P107: 0.148315323 | Q107: 0.4055392657 | R107: 0.1041484302 | S107: 1.516574752 | T107: 0 | U107: 0 | V107: 0 | W107: 0 | X107: 134069.2496 | Y107: 17663.95495 | Z107: 0 | AA107: 44825.574 | AB107: 44825.574 | AC107: 75792.53958 | AD107: 0 | AE107: 0 | AF107: 0 | AG107: 0 | AH107: 83.65532518 | AI107: 230.1964121 | AJ107: 0 | AK107: 47.85801646 | AL107: 47.85801646 | AM107: 6.623542475 | AN107: 0 | AO107: 0 | AP107: 0 | AQ107: 0 | AR107: 9.77506639e-10 | AS107: 1.005929467e-09 | AT107: 0 | AU107: 9.786307716e-10 | AV107: 9.786307716e-10 | AW107: 9.786307716e-10 | AX107: 0 | AY107: 0 | AZ107: 0 | BA107: 0 | BB107: 1e-09 | BC107: 1.029076864e-09 | BD107: 0 | BE107: 1.00115e-09 | BF107: 1.00115e-09 | BG107: 1.00115e-09 | BH107: 0 | BI107: 0 | BJ107: 0 | BK107: 0 | BL107: 0.0230224849 | BM107: 0.7943425338 | BN107: 0 | BO107: 0.4055392657 | BP107: 0.1041484302 | BQ107: 1.516574752 | BR107: 0 | BS107: 0 | BT107: 0 | BU107: 0 | BV107: 0.0230224849 | BW107: 0.7943425338 | BX107: 0 | BY107: 0.4055392657 | BZ107: 0.1041484302 | CA107: 1.516574752 | CB107: 0.0230224849 | CC107: 2.820604982 | CD107: 2.843627467 | CE107: 2.993757884 | CF107: 0 | CG107: 0 | CH107: 0 | CI107: 0 | CJ107: 3086.607275 | CK107: 14031.23074 | CL107: 0 | CM107: 18178.53036 | CN107: 4668.513163 | CO107: 114945.0519 | CP107: 0 | CQ107: 0 | CR107: 0 | CS107: 0 | CT107: 1.925953461 | CU107: 182.8548012 | CV107: 0 | CW107: 19.40830485 | CX107: 4.984337285 | CY107: 10.04509729 | CZ107: 1.925953461 | DA107: 217.2925407 | DB107: 219.2184941 | DC107: =INDEX(LOOKUP!$G$2:$G$6,MATCH($A107,LOOKUP!$I$2:$I$6,0)) -> PACIFIC
A108: 2 | B108: 13 | C108: 2013 | D108: 273 | E108: 3 | F108: 2 | G108: 3 | H108: 3 | I108: 3 | J108: 0.05409636858 | K108: 0.0132617316 | L108: 0.01601687281 | M108: 0.06361508038 | N108: 1.335445567 | O108: 0.1938082516 | P108: 0.6647736908 | Q108: 1.345657658 | R108: 0.1106910714 | S108: 5.821910526 | T108: 0 | U108: 0 | V108: 0 | W108: 68186.0784 | X108: 103192.858 | Y108: 0 | Z108: 30287.55 | AA108: 30287.55 | AB108: 0 | AC108: 108259.3913 | AD108: 0 | AE108: 0 | AF108: 0 | AG108: 59.7538037 | AH108: 351.609186 | AI108: 0 | AJ108: 71.78702469 | AK108: 71.78702469 | AL108: 0 | AM108: 151.9227084 | AN108: 0 | AO108: 0 | AP108: 0 | AQ108: 9.77506639e-10 | AR108: 9.864783734e-10 | AS108: 0 | AT108: 9.786307716e-10 | AU108: 9.786307716e-10 | AV108: 0 | AW108: 34.9808446 | AX108: 0 | AY108: 0 | AZ108: 0 | BA108: 7800 | BB108: 6424.092817 | BC108: 0 | BD108: 1.00115e-09 | BE108: 1.00115e-09 | BF108: 0 | BG108: 548.6474489 | BH108: 0 | BI108: 0 | BJ108: 0 | BK108: 0.06361508038 | BL108: 1.335445567 | BM108: 0 | BN108: 0.6647736908 | BO108: 1.345657658 | BP108: 0 | BQ108: 5.821910526 | BR108: 0 | BS108: 0 | BT108: 0 | BU108: 0.06361508038 | BV108: 1.335445567 | BW108: 0 | BX108: 0.6647736908 | BY108: 1.345657658 | BZ108: 0 | CA108: 5.821910526 | CB108: 1.399060648 | CC108: 7.832341874 | CD108: 9.231402522 | CE108: 9.619276818 | CF108: 0 | CG108: 0 | CH108: 0 | CI108: 4337.662858 | CJ108: 137808.4449 | CK108: 0 | CL108: 20134.3664 | CM108: 40756.6736 | CN108: 0 | CO108: 630276.49 | CP108: 0 | CQ108: 0 | CR108: 0 | CS108: 45.15104527 | CT108: 1184.473785 | CU108: 0 | CV108: 47.72212536 | CW108: 96.60075952 | CX108: 0 | CY108: 1354.317126 | CZ108: 1229.624831 | DA108: 1498.640011 | DB108: 2728.264841 | DC108: =INDEX(LOOKUP!$G$2:$G$6,MATCH($A108,LOOKUP!$I$2:$I$6,0)) -> PACIFIC
A109: 2 | B109: 13 | C109: 2013 | D109: 275 | E109: 3 | F109: 2 | G109: 4 | H109: 3 | I109: 5 | J109: 0 | K109: 0 | L109: 0 | M109: 0 | N109: 0.00112572799 | O109: 0.0009802443086 | P109: 3.396601805e-42 | Q109: 7.934332689e-41 | R109: 2.354354827e-41 | S109: 2.923129895e-40 | T109: 0 | U109: 0 | V109: 0 | W109: 0 | X109: 0 | Y109: 0 | Z109: 0 | AA109: 0 | AB109: 0 | AC109: 0 | AD109: 0 | AE109: 0 | AF109: 0 | AG109: 0 | AH109: 0 | AI109: 0 | AJ109: 0 | AK109: 0 | AL109: 0 | AM109: 0 | AN109: 0 | AO109: 0 | AP109: 0 | AQ109: 0 | AR109: 0 | AS109: 0 | AT109: 0 | AU109: 0 | AV109: 0 | AW109: 0 | AX109: 0 | AY109: 0 | AZ109: 0 | BA109: 0 | BB109: 0 | BC109: 0 | BD109: 0 | BE109: 0 | BF109: 0 | BG109: 0 | BH109: 0 | BI109: 0 | BJ109: 0 | BK109: 0 | BL109: 0 | BM109: 0 | BN109: 0 | BO109: 0 | BP109: 0 | BQ109: 0 | BR109: 0 | BS109: 0 | BT109: 0 | BU109: 0 | BV109: 0 | BW109: 0 | BX109: 0 | BY109: 0 | BZ109: 0 | CA109: 0 | CB109: 0 | CC109: 0 | CD109: 0 | CE109: 0.002105972299 | CF109: 0 | CG109: 0 | CH109: 0 | CI109: 0 | CJ109: 0 | CK109: 0 | CL109: 0 | CM109: 0 | CN109: 0 | CO109: 0 | CP109: 0 | CQ109: 0 | CR109: 0 | CS109: 0 | CT109: 0 | CU109: 0 | CV109: 0 | CW109: 0 | CX109: 0 | CY109: 0 | CZ109: 0 | DA109: 0 | DB109: 0 | DC109: =INDEX(LOOKUP!$G$2:$G$6,MATCH($A109,LOOKUP!$I$2:$I$6,0)) -> PACIFIC
A110: 2 | B110: 13 | C110: 2013 | D110: 277 | E110: 3 | F110: 2 | G110: 4 | H110: 3 | I110: 7 | J110: 0 | K110: 0 | L110: 0 | M110: 0 | N110: 0 | O110: 0.01656755256 | P110: 0.1129415636 | Q110: 0.03374860023 | R110: 0.004045075701 | S110: 0.2520262555 | T110: 0 | U110: 0 | V110: 0 | W110: 0 | X110: 0 | Y110: 6908.7216 | Z110: 0 | AA110: 0 | AB110: 0 | AC110: 0 | AD110: 0 | AE110: 0 | AF110: 0 | AG110: 0 | AH110: 0 | AI110: 1.195076074e-09 | AJ110: 0 | AK110: 0 | AL110: 0 | AM110: 0 | AN110: 0 | AO110: 0 | AP110: 0 | AQ110: 0 | AR110: 0 | AS110: 9.77506639e-10 | AT110: 0 | AU110: 0 | AV110: 0 | AW110: 0 | AX110: 0 | AY110: 0 | AZ110: 0 | BA110: 0 | BB110: 0 | BC110: 1e-09 | BD110: 0 | BE110: 0 | BF110: 0 | BG110: 0 | BH110: 0 | BI110: 0 | BJ110: 0 | BK110: 0 | BL110: 0 | BM110: 0.01656755256 | BN110: 0 | BO110: 0 | BP110: 0 | BQ110: 0 | BR110: 0 | BS110: 0 | BT110: 0 | BU110: 0 | BV110: 0 | BW110: 0.01656755256 | BX110: 0 | BY110: 0 | BZ110: 0 | CA110: 0 | CB110: 0 | CC110: 0.01656755256 | CD110: 0.01656755256 | CE110: 0.4193290476 | CF110: 0 | CG110: 0 | CH110: 0 | CI110: 0 | CJ110: 0 | CK110: 114.4606083 | CL110: 0 | CM110: 0 | CN110: 0 | CO110: 0 | CP110: 0 | CQ110: 0 | CR110: 0 | CS110: 0 | CT110: 0 | CU110: 3.737500768e-11 | CV110: 0 | CW110: 0 | CX110: 0 | CY110: 0 | CZ110: 0 | DA110: 3.737500768e-11 | DB110: 3.737500768e-11 | DC110: =INDEX(LOOKUP!$G$2:$G$6,MATCH($A110,LOOKUP!$I$2:$I$6,0)) -> PACIFIC
A111: 2 | B111: 13 | C111: 2013 | D111: 280 | E111: 3 | F111: 3 | G111: 1 | H111: 4 | I111: 1 | J111: 0 | K111: 0 | L111: 0 | M111: 0 | N111: 0 | O111: 0.8226243003 | P111: 0.1435203949 | Q111: 0.07133910801 | R111: 0.1858153078 | S111: 2.154044017 | T111: 0 | U111: 0 | V111: 0 | W111: 0 | X111: 0 | Y111: 0 | Z111: 0 | AA111: 0 | AB111: 0 | AC111: 0 | AD111: 0 | AE111: 0 | AF111: 0 | AG111: 0 | AH111: 0 | AI111: 0 | AJ111: 0 | AK111: 0 | AL111: 0 | AM111: 0 | AN111: 0 | AO111: 0 | AP111: 0 | AQ111: 0 | AR111: 0 | AS111: 0 | AT111: 0 | AU111: 0 | AV111: 0 | AW111: 0 | AX111: 0 | AY111: 0 | AZ111: 0 | BA111: 0 | BB111: 0 | BC111: 0 | BD111: 0 | BE111: 0 | BF111: 0 | BG111: 0 | BH111: 0 | BI111: 0 | BJ111: 0 | BK111: 0 | BL111: 0 | BM111: 0 | BN111: 0 | BO111: 0 | BP111: 0 | BQ111: 0 | BR111: 0 | BS111: 0 | BT111: 0 | BU111: 0 | BV111: 0 | BW111: 0 | BX111: 0 | BY111: 0 | BZ111: 0 | CA111: 0 | CB111: 0 | CC111: 0 | CD111: 0 | CE111: 3.377343128 | CF111: 0 | CG111: 0 | CH111: 0 | CI111: 0 | CJ111: 0 | CK111: 0 | CL111: 0 | CM111: 0 | CN111: 0 | CO111: 0 | CP111: 0 | CQ111: 0 | CR111: 0 | CS111: 0 | CT111: 0 | CU111: 0 | CV111: 0 | CW111: 0 | CX111: 0 | CY111: 0 | CZ111: 0 | DA111: 0 | DB111: 0 | DC111: =INDEX(LOOKUP!$G$2:$G$6,MATCH($A111,LOOKUP!$I$2:$I$6,0)) -> PACIFIC
A112: 2 | B112: 13 | C112: 2013 | D112: 281 | E112: 3 | F112: 3 | G112: 2 | H112: 4 | I112: 2 | J112: 0 | K112: 0 | L112: 0 | M112: 0 | N112: 0 | O112: 0.1974226716 | P112: 0.3743912461 | Q112: 0.001889879116 | R112: 0.002571278921 | S112: 0.03613244478 | T112: 0 | U112: 0 | V112: 0 | W112: 0 | X112: 0 | Y112: 10398.7255 | Z112: 0 | AA112: 0 | AB112: 0 | AC112: 0 | AD112: 0 | AE112: 0 | AF112: 0 | AG112: 0 | AH112: 0 | AI112: 35.89351234 | AJ112: 0 | AK112: 0 | AL112: 0 | AM112: 0 | AN112: 0 | AO112: 0 | AP112: 0 | AQ112: 0 | AR112: 0 | AS112: 9.786307716e-10 | AT112: 0 | AU112: 0 | AV112: 0 | AW112: 0 | AX112: 0 | AY112: 0 | AZ112: 0 | BA112: 0 | BB112: 0 | BC112: 1.00115e-09 | BD112: 0 | BE112: 0 | BF112: 0 | BG112: 0 | BH112: 0 | BI112: 0 | BJ112: 0 | BK112: 0 | BL112: 0 | BM112: 0.1974226716 | BN112: 0 | BO112: 0 | BP112: 0 | BQ112: 0 | BR112: 0 | BS112: 0 | BT112: 0 | BU112: 0 | BV112: 0 | BW112: 0.1974226716 | BX112: 0 | BY112: 0 | BZ112: 0 | CA112: 0 | CB112: 0 | CC112: 0.1974226716 | CD112: 0.1974226716 | CE112: 0.6124075205 | CF112: 0 | CG112: 0 | CH112: 0 | CI112: 0 | CJ112: 0 | CK112: 2052.94417 | CL112: 0 | CM112: 0 | CN112: 0 | CO112: 0 | CP112: 0 | CQ112: 0 | CR112: 0 | CS112: 0 | CT112: 0 | CU112: 7.086193101 | CV112: 0 | CW112: 0 | CX112: 0 | CY112: 0 | CZ112: 0 | DA112: 7.086193101 | DB112: 7.086193101 | DC112: =INDEX(LOOKUP!$G$2:$G$6,MATCH($A112,LOOKUP!$I$2:$I$6,0)) -> PACIFIC
A113: 2 | B113: 13 | C113: 2013 | D113: 282 | E113: 3 | F113: 3 | G113: 3 | H113: 4 | I113: 3 | J113: 0 | K113: 0 | L113: 0 | M113: 0 | N113: 0 | O113: 2.295327913 | P113: 3.590802394 | Q113: 3.478954635 | R113: 0.8532857161 | S113: 12.91979194 | T113: 0 | U113: 0 | V113: 0 | W113: 0 | X113: 0 | Y113: 4908.276131 | Z113: 21683.96033 | AA113: 49618.76796 | AB113: 70304.27761 | AC113: 72500.40079 | AD113: 0 | AE113: 0 | AF113: 0 | AG113: 0 | AH113: 0 | AI113: 313.0446915 | AJ113: 235.2361676 | AK113: 296.8960691 | AL113: 109.4458079 | AM113: 61.71283368 | AN113: 0 | AO113: 0 | AP113: 0 | AQ113: 0 | AR113: 0 | AS113: 9.925533761e-10 | AT113: 9.77506639e-10 | AU113: 9.81964933e-10 | AV113: 9.866310615e-10 | AW113: 9.779051545e-10 | AX113: 0 | AY113: 0 | AZ113: 0 | BA113: 0 | BB113: 0 | BC113: 1.015392977e-09 | BD113: 1e-09 | BE113: 1.004560884e-09 | BF113: 1122.338205 | BG113: 1549.177538 | BH113: 0 | BI113: 0 | BJ113: 0 | BK113: 0 | BL113: 0 | BM113: 2.295327913 | BN113: 3.590802394 | BO113: 3.478954635 | BP113: 0.8532857161 | BQ113: 12.91979194 | BR113: 0 | BS113: 0 | BT113: 0 | BU113: 0 | BV113: 0 | BW113: 2.295327913 | BX113: 3.590802394 | BY113: 3.478954635 | BZ113: 0.8532857161 | CA113: 12.91979194 | CB113: 0 | CC113: 23.1381626 | CD113: 23.1381626 | CE113: 23.1381626 | CF113: 0 | CG113: 0 | CH113: 0 | CI113: 0 | CJ113: 0 | CK113: 11266.10321 | CL113: 77862.81666 | CM113: 172621.4428 | CN113: 59989.63586 | CO113: 936690.0936 | CP113: 0 | CQ113: 0 | CR113: 0 | CS113: 0 | CT113: 0 | CU113: 718.5402185 | CV113: 844.6865938 | CW113: 1032.887956 | CX113: 173.1948077 | CY113: 2465.237927 | CZ113: 0 | DA113: 5234.547502 | DB113: 5234.547502 | DC113: =INDEX(LOOKUP!$G$2:$G$6,MATCH($A113,LOOKUP!$I$2:$I$6,0)) -> PACIFIC
A114: 2 | B114: 13 | C114: 2013 | D114: 284 | E114: 3 | F114: 3 | G114: 4 | H114: 4 | I114: 5 | J114: 0 | K114: 0 | L114: 0 | M114: 0 | N114: 0 | O114: 0.002038792751 | P114: 1.479329212e-40 | Q114: 1.581348172e-40 | R114: 5.943880634e-41 | S114: 6.886396451e-40 | T114: 0 | U114: 0 | V114: 0 | W114: 0 | X114: 0 | Y114: 0 | Z114: 0 | AA114: 0 | AB114: 0 | AC114: 0 | AD114: 0 | AE114: 0 | AF114: 0 | AG114: 0 | AH114: 0 | AI114: 0 | AJ114: 0 | AK114: 0 | AL114: 0 | AM114: 0 | AN114: 0 | AO114: 0 | AP114: 0 | AQ114: 0 | AR114: 0 | AS114: 0 | AT114: 0 | AU114: 0 | AV114: 0 | AW114: 0 | AX114: 0 | AY114: 0 | AZ114: 0 | BA114: 0 | BB114: 0 | BC114: 0 | BD114: 0 | BE114: 0 | BF114: 0 | BG114: 0 | BH114: 0 | BI114: 0 | BJ114: 0 | BK114: 0 | BL114: 0 | BM114: 0 | BN114: 0 | BO114: 0 | BP114: 0 | BQ114: 0 | BR114: 0 | BS114: 0 | BT114: 0 | BU114: 0 | BV114: 0 | BW114: 0 | BX114: 0 | BY114: 0 | BZ114: 0 | CA114: 0 | CB114: 0 | CC114: 0 | CD114: 0 | CE114: 0.002038792751 | CF114: 0 | CG114: 0 | CH114: 0 | CI114: 0 | CJ114: 0 | CK114: 0 | CL114: 0 | CM114: 0 | CN114: 0 | CO114: 0 | CP114: 0 | CQ114: 0 | CR114: 0 | CS114: 0 | CT114: 0 | CU114: 0 | CV114: 0 | CW114: 0 | CX114: 0 | CY114: 0 | CZ114: 0 | DA114: 0 | DB114: 0 | DC114: =INDEX(LOOKUP!$G$2:$G$6,MATCH($A114,LOOKUP!$I$2:$I$6,0)) -> PACIFIC
A115: 2 | B115: 13 | C115: 2013 | D115: 286 | E115: 3 | F115: 3 | G115: 4 | H115: 4 | I115: 7 | J115: 0 | K115: 0 | L115: 0 | M115: 0 | N115: 0 | O115: 0.0006670977492 | P115: 7.948504578e-05 | Q115: 0.0002850332162 | R115: 2.108488471e-05 | S115: 0.004398455524 | T115: 0 | U115: 0 | V115: 0 | W115: 0 | X115: 0 | Y115: 0 | Z115: 0 | AA115: 0 | AB115: 0 | AC115: 0 | AD115: 0 | AE115: 0 | AF115: 0 | AG115: 0 | AH115: 0 | AI115: 0 | AJ115: 0 | AK115: 0 | AL115: 0 | AM115: 0 | AN115: 0 | AO115: 0 | AP115: 0 | AQ115: 0 | AR115: 0 | AS115: 0 | AT115: 0 | AU115: 0 | AV115: 0 | AW115: 0 | AX115: 0 | AY115: 0 | AZ115: 0 | BA115: 0 | BB115: 0 | BC115: 0 | BD115: 0 | BE115: 0 | BF115: 0 | BG115: 0 | BH115: 0 | BI115: 0 | BJ115: 0 | BK115: 0 | BL115: 0 | BM115: 0 | BN115: 0 | BO115: 0 | BP115: 0 | BQ115: 0 | BR115: 0 | BS115: 0 | BT115: 0 | BU115: 0 | BV115: 0 | BW115: 0 | BX115: 0 | BY115: 0 | BZ115: 0 | CA115: 0 | CB115: 0 | CC115: 0 | CD115: 0 | CE115: 0.00545115642 | CF115: 0 | CG115: 0 | CH115: 0 | CI115: 0 | CJ115: 0 | CK115: 0 | CL115: 0 | CM115: 0 | CN115: 0 | CO115: 0 | CP115: 0 | CQ115: 0 | CR115: 0 | CS115: 0 | CT115: 0 | CU115: 0 | CV115: 0 | CW115: 0 | CX115: 0 | CY115: 0 | CZ115: 0 | DA115: 0 | DB115: 0 | DC115: =INDEX(LOOKUP!$G$2:$G$6,MATCH($A115,LOOKUP!$I$2:$I$6,0)) -> PACIFIC
A116: 2 | B116: 13 | C116: 2013 | D116: 289 | E116: 3 | F116: 4 | G116: 1 | H116: 5 | I116: 1 | J116: 0 | K116: 0 | L116: 0 | M116: 0 | N116: 0 | O116: 0.001124843902 | P116: 9.232611647e-05 | Q116: 0.001551965169 | R116: 0.0007032490089 | S116: 0.01236684482 | T116: 0 | U116: 0 | V116: 0 | W116: 0 | X116: 0 | Y116: 0 | Z116: 0 | AA116: 0 | AB116: 0 | AC116: 0 | AD116: 0 | AE116: 0 | AF116: 0 | AG116: 0 | AH116: 0 | AI116: 0 | AJ116: 0 | AK116: 0 | AL116: 0 | AM116: 0 | AN116: 0 | AO116: 0 | AP116: 0 | AQ116: 0 | AR116: 0 | AS116: 0 | AT116: 0 | AU116: 0 | AV116: 0 | AW116: 0 | AX116: 0 | AY116: 0 | AZ116: 0 | BA116: 0 | BB116: 0 | BC116: 0 | BD116: 0 | BE116: 0 | BF116: 0 | BG116: 0 | BH116: 0 | BI116: 0 | BJ116: 0 | BK116: 0 | BL116: 0 | BM116: 0 | BN116: 0 | BO116: 0 | BP116: 0 | BQ116: 0 | BR116: 0 | BS116: 0 | BT116: 0 | BU116: 0 | BV116: 0 | BW116: 0 | BX116: 0 | BY116: 0 | BZ116: 0 | CA116: 0 | CB116: 0 | CC116: 0 | CD116: 0 | CE116: 0.01583922901 | CF116: 0 | CG116: 0 | CH116: 0 | CI116: 0 | CJ116: 0 | CK116: 0 | CL116: 0 | CM116: 0 | CN116: 0 | CO116: 0 | CP116: 0 | CQ116: 0 | CR116: 0 | CS116: 0 | CT116: 0 | CU116: 0 | CV116: 0 | CW116: 0 | CX116: 0 | CY116: 0 | CZ116: 0 | DA116: 0 | DB116: 0 | DC116: =INDEX(LOOKUP!$G$2:$G$6,MATCH($A116,LOOKUP!$I$2:$I$6,0)) -> PACIFIC
A117: 2 | B117: 13 | C117: 2013 | D117: 290 | E117: 3 | F117: 4 | G117: 2 | H117: 5 | I117: 2 | J117: 0 | K117: 0 | L117: 0 | M117: 0 | N117: 0 | O117: 0.9373220746 | P117: 0.04741303386 | Q117: 0.0761483107 | R117: 0.002019244372 | S117: 0.4454881482 | T117: 0 | U117: 0 | V117: 0 | W117: 0 | X117: 0 | Y117: 12417.8955 | Z117: 42669.4483 | AA117: 42669.4483 | AB117: 0 | AC117: 67339.3195 | AD117: 0 | AE117: 0 | AF117: 0 | AG117: 0 | AH117: 0 | AI117: 47.85801646 | AJ117: 85.12213765 | AK117: 85.12213765 | AL117: 0 | AM117: 1.196450411e-09 | AN117: 0 | AO117: 0 | AP117: 0 | AQ117: 0 | AR117: 0 | AS117: 9.786307716e-10 | AT117: 9.946462404e-10 | AU117: 9.946462404e-10 | AV117: 0 | AW117: 9.786307716e-10 | AX117: 0 | AY117: 0 | AZ117: 0 | BA117: 0 | BB117: 0 | BC117: 1.00115e-09 | BD117: 1.017534e-09 | BE117: 1.017534e-09 | BF117: 0 | BG117: 1.00115e-09 | BH117: 0 | BI117: 0 | BJ117: 0 | BK117: 0 | BL117: 0 | BM117: 0.9373220746 | BN117: 0.04741303386 | BO117: 0.0761483107 | BP117: 0 | BQ117: 0.4454881482 | BR117: 0 | BS117: 0 | BT117: 0 | BU117: 0 | BV117: 0 | BW117: 0.9373220746 | BX117: 0.04741303386 | BY117: 0.0761483107 | BZ117: 0 | CA117: 0.4454881482 | CB117: 0 | CC117: 1.506371567 | CD117: 1.506371567 | CE117: 1.508390812 | CF117: 0 | CG117: 0 | CH117: 0 | CI117: 0 | CJ117: 0 | CK117: 11639.56757 | CL117: 2023.087997 | CM117: 3249.206407 | CN117: 0 | CO117: 29998.86874 | CP117: 0 | CQ117: 0 | CR117: 0 | CS117: 0 | CT117: 0 | CU117: 44.85837528 | CV117: 4.035898795 | CW117: 6.481906985 | CX117: 0 | CY117: 1.006139593e-09 | CZ117: 0 | DA117: 55.37618106 | DB117: 55.37618106 | DC117: =INDEX(LOOKUP!$G$2:$G$6,MATCH($A117,LOOKUP!$I$2:$I$6,0)) -> PACIFIC
A118: 2 | B118: 13 | C118: 2013 | D118: 291 | E118: 3 | F118: 4 | G118: 3 | H118: 5 | I118: 3 | J118: 0 | K118: 0 | L118: 0 | M118: 0 | N118: 0 | O118: 0.3037936329 | P118: 1.458698608 | Q118: 0.6642521974 | R118: 0.0791062162 | S118: 8.827133925 | T118: 0 | U118: 0 | V118: 0 | W118: 0 | X118: 0 | Y118: 0 | Z118: 0 | AA118: 42965.5024 | AB118: 42965.5024 | AC118: 59206.8537 | AD118: 0 | AE118: 0 | AF118: 0 | AG118: 0 | AH118: 0 | AI118: 0 | AJ118: 0 | AK118: 1.233694957e-09 | AL118: 1.233694957e-09 | AM118: 1.233694957e-09 | AN118: 0 | AO118: 0 | AP118: 0 | AQ118: 0 | AR118: 0 | AS118: 0 | AT118: 0 | AU118: 1.009094766e-09 | AV118: 1.009094766e-09 | AW118: 1.009094766e-09 | AX118: 0 | AY118: 0 | AZ118: 0 | BA118: 0 | BB118: 0 | BC118: 0 | BD118: 0 | BE118: 1.032315e-09 | BF118: 1.032315e-09 | BG118: 1.032315e-09 | BH118: 0 | BI118: 0 | BJ118: 0 | BK118: 0 | BL118: 0 | BM118: 0 | BN118: 0 | BO118: 0.6642521974 | BP118: 0.0791062162 | BQ118: 8.827133925 | BR118: 0 | BS118: 0 | BT118: 0 | BU118: 0 | BV118: 0 | BW118: 0 | BX118: 0 | BY118: 0.6642521974 | BZ118: 0.0791062162 | CA118: 8.827133925 | CB118: 0 | CC118: 9.570492339 | CD118: 9.570492339 | CE118: 11.33298458 | CF118: 0 | CG118: 0 | CH118: 0 | CI118: 0 | CJ118: 0 | CK118: 0 | CL118: 0 | CM118: 28539.92938 | CN118: 3398.838322 | CO118: 522626.8269 | CP118: 0 | CQ118: 0 | CR118: 0 | CS118: 0 | CT118: 0 | CU118: 0 | CV118: 0 | CW118: 1.546921128e-09 | CX118: 1.842238199e-10 | CY118: 2.055677048e-08 | CZ118: 0 | DA118: 2.228791543e-08 | DB118: 2.228791543e-08 | DC118: =INDEX(LOOKUP!$G$2:$G$6,MATCH($A118,LOOKUP!$I$2:$I$6,0)) -> PACIFIC
A119: 2 | B119: 13 | C119: 2013 | D119: 293 | E119: 3 | F119: 4 | G119: 4 | H119: 5 | I119: 5 | J119: 0 | K119: 0 | L119: 0 | M119: 0 | N119: 0 | O119: 0.002008686038 | P119: 1.584632157e-42 | Q119: 1.459099501e-41 | R119: 3.380017137e-43 | S119: 8.794956358e-41 | T119: 0 | U119: 0 | V119: 0 | W119: 0 | X119: 0 | Y119: 0 | Z119: 0 | AA119: 0 | AB119: 0 | AC119: 0 | AD119: 0 | AE119: 0 | AF119: 0 | AG119: 0 | AH119: 0 | AI119: 0 | AJ119: 0 | AK119: 0 | AL119: 0 | AM119: 0 | AN119: 0 | AO119: 0 | AP119: 0 | AQ119: 0 | AR119: 0 | AS119: 0 | AT119: 0 | AU119: 0 | AV119: 0 | AW119: 0 | AX119: 0 | AY119: 0 | AZ119: 0 | BA119: 0 | BB119: 0 | BC119: 0 | BD119: 0 | BE119: 0 | BF119: 0 | BG119: 0 | BH119: 0 | BI119: 0 | BJ119: 0 | BK119: 0 | BL119: 0 | BM119: 0 | BN119: 0 | BO119: 0 | BP119: 0 | BQ119: 0 | BR119: 0 | BS119: 0 | BT119: 0 | BU119: 0 | BV119: 0 | BW119: 0 | BX119: 0 | BY119: 0 | BZ119: 0 | CA119: 0 | CB119: 0 | CC119: 0 | CD119: 0 | CE119: 0.002008686038 | CF119: 0 | CG119: 0 | CH119: 0 | CI119: 0 | CJ119: 0 | CK119: 0 | CL119: 0 | CM119: 0 | CN119: 0 | CO119: 0 | CP119: 0 | CQ119: 0 | CR119: 0 | CS119: 0 | CT119: 0 | CU119: 0 | CV119: 0 | CW119: 0 | CX119: 0 | CY119: 0 | CZ119: 0 | DA119: 0 | DB119: 0 | DC119: =INDEX(LOOKUP!$G$2:$G$6,MATCH($A119,LOOKUP!$I$2:$I$6,0)) -> PACIFIC
A120: 2 | B120: 13 | C120: 2013 | D120: 295 | E120: 3 | F120: 4 | G120: 4 | H120: 5 | I120: 7 | J120: 0 | K120: 0 | L120: 0 | M120: 0 | N120: 0 | O120: 0.003685875704 | P120: 4.67414734e-05 | Q120: 0.0003062121403 | R120: 5.838314568e-06 | S120: 0.001324353393 | T120: 0 | U120: 0 | V120: 0 | W120: 0 | X120: 0 | Y120: 0 | Z120: 0 | AA120: 0 | AB120: 0 | AC120: 0 | AD120: 0 | AE120: 0 | AF120: 0 | AG120: 0 | AH120: 0 | AI120: 0 | AJ120: 0 | AK120: 0 | AL120: 0 | AM120: 0 | AN120: 0 | AO120: 0 | AP120: 0 | AQ120: 0 | AR120: 0 | AS120: 0 | AT120: 0 | AU120: 0 | AV120: 0 | AW120: 0 | AX120: 0 | AY120: 0 | AZ120: 0 | BA120: 0 | BB120: 0 | BC120: 0 | BD120: 0 | BE120: 0 | BF120: 0 | BG120: 0 | BH120: 0 | BI120: 0 | BJ120: 0 | BK120: 0 | BL120: 0 | BM120: 0 | BN120: 0 | BO120: 0 | BP120: 0 | BQ120: 0 | BR120: 0 | BS120: 0 | BT120: 0 | BU120: 0 | BV120: 0 | BW120: 0 | BX120: 0 | BY120: 0 | BZ120: 0 | CA120: 0 | CB120: 0 | CC120: 0 | CD120: 0 | CE120: 0.005369021025 | CF120: 0 | CG120: 0 | CH120: 0 | CI120: 0 | CJ120: 0 | CK120: 0 | CL120: 0 | CM120: 0 | CN120: 0 | CO120: 0 | CP120: 0 | CQ120: 0 | CR120: 0 | CS120: 0 | CT120: 0 | CU120: 0 | CV120: 0 | CW120: 0 | CX120: 0 | CY120: 0 | CZ120: 0 | DA120: 0 | DB120: 0 | DC120: =INDEX(LOOKUP!$G$2:$G$6,MATCH($A120,LOOKUP!$I$2:$I$6,0)) -> PACIFIC
A121: 2 | B121: 13 | C121: 2013 | D121: 315 | E121: 3 | F121: 6 | G121: 0 | H121: 8 | I121: 0 | J121: 0.04499544212 | K121: 0.006090415785 | L121: 0.0008020704387 | M121: 0.001229606731 | N121: 0.02136293402 | O121: 0 | P121: 0 | Q121: 0 | R121: 0 | S121: 0 | T121: 9812.3872 | U121: 0 | V121: 0 | W121: 0 | X121: 0 | Y121: 0 | Z121: 0 | AA121: 0 | AB121: 0 | AC121: 0 | AD121: 107.5568467 | AE121: 0 | AF121: 0 | AG121: 0 | AH121: 0 | AI121: 0 | AJ121: 0 | AK121: 0 | AL121: 0 | AM121: 0 | AN121: 117.3007967 | AO121: 0 | AP121: 0 | AQ121: 0 | AR121: 0 | AS121: 0 | AT121: 0 | AU121: 0 | AV121: 0 | AW121: 0 | AX121: 1e-09 | AY121: 0 | AZ121: 0 | BA121: 0 | BB121: 0 | BC121: 0 | BD121: 0 | BE121: 0 | BF121: 0 | BG121: 0 | BH121: 0.04499544212 | BI121: 0 | BJ121: 0 | BK121: 0 | BL121: 0 | BM121: 0 | BN121: 0 | BO121: 0 | BP121: 0 | BQ121: 0 | BR121: 0.04499544212 | BS121: 0 | BT121: 0 | BU121: 0 | BV121: 0 | BW121: 0 | BX121: 0 | BY121: 0 | BZ121: 0 | CA121: 0 | CB121: 0.04499544212 | CC121: 0 | CD121: 0.04499544212 | CE121: 0.07448046909 | CF121: 441.5127003 | CG121: 0 | CH121: 0 | CI121: 0 | CJ121: 0 | CK121: 0 | CL121: 0 | CM121: 0 | CN121: 0 | CO121: 0 | CP121: 10.11756908 | CQ121: 0 | CR121: 0 | CS121: 0 | CT121: 0 | CU121: 0 | CV121: 0 | CW121: 0 | CX121: 0 | CY121: 0 | CZ121: 10.11756908 | DA121: 0 | DB121: 10.11756908 | DC121: =INDEX(LOOKUP!$G$2:$G$6,MATCH($A121,LOOKUP!$I$2:$I$6,0)) -> PACIFIC
A122: 2 | B122: 13 | C122: 2013 | D122: 316 | E122: 3 | F122: 6 | G122: 1 | H122: 8 | I122: 1 | J122: 0 | K122: 0 | L122: 0 | M122: 0 | N122: 0 | O122: 0.0003940279624 | P122: 0.001748237572 | Q122: 0.001973864992 | R122: 0.000167513394 | S122: 0.001005674203 | T122: 0 | U122: 0 | V122: 0 | W122: 0 | X122: 0 | Y122: 0 | Z122: 0 | AA122: 0 | AB122: 0 | AC122: 0 | AD122: 0 | AE122: 0 | AF122: 0 | AG122: 0 | AH122: 0 | AI122: 0 | AJ122: 0 | AK122: 0 | AL122: 0 | AM122: 0 | AN122: 0 | AO122: 0 | AP122: 0 | AQ122: 0 | AR122: 0 | AS122: 0 | AT122: 0 | AU122: 0 | AV122: 0 | AW122: 0 | AX122: 0 | AY122: 0 | AZ122: 0 | BA122: 0 | BB122: 0 | BC122: 0 | BD122: 0 | BE122: 0 | BF122: 0 | BG122: 0 | BH122: 0 | BI122: 0 | BJ122: 0 | BK122: 0 | BL122: 0 | BM122: 0 | BN122: 0 | BO122: 0 | BP122: 0 | BQ122: 0 | BR122: 0 | BS122: 0 | BT122: 0 | BU122: 0 | BV122: 0 | BW122: 0 | BX122: 0 | BY122: 0 | BZ122: 0 | CA122: 0 | CB122: 0 | CC122: 0 | CD122: 0 | CE122: 0.005289318124 | CF122: 0 | CG122: 0 | CH122: 0 | CI122: 0 | CJ122: 0 | CK122: 0 | CL122: 0 | CM122: 0 | CN122: 0 | CO122: 0 | CP122: 0 | CQ122: 0 | CR122: 0 | CS122: 0 | CT122: 0 | CU122: 0 | CV122: 0 | CW122: 0 | CX122: 0 | CY122: 0 | CZ122: 0 | DA122: 0 | DB122: 0 | DC122: =INDEX(LOOKUP!$G$2:$G$6,MATCH($A122,LOOKUP!$I$2:$I$6,0)) -> PACIFIC
A123: 2 | B123: 13 | C123: 2013 | D123: 317 | E123: 3 | F123: 6 | G123: 2 | H123: 8 | I123: 2 | J123: 0.0004535704472 | K123: 0.000118185274 | L123: 1.600822033e-05 | M123: 0.002271356758 | N123: 0.2078433885 | O123: 0.008446255972 | P123: 0.3219008225 | Q123: 0.3028745618 | R123: 0.0004068711541 | S123: 0.004169217632 | T123: 0 | U123: 0 | V123: 0 | W123: 61177.2304 | X123: 95740.93039 | Y123: 0 | Z123: 25331.9792 | AA123: 25331.9792 | AB123: 56839.6355 | AC123: 56839.6355 | AD123: 0 | AE123: 0 | AF123: 0 | AG123: 95.60608592 | AH123: 170.2675458 | AI123: 0 | AJ123: 358.5228222 | AK123: 358.5228222 | AL123: 131.6095453 | AM123: 131.6095453 | AN123: 0 | AO123: 0 | AP123: 0 | AQ123: 29.32519917 | AR123: 2.807206987 | AS123: 0 | AT123: 9.77506639e-10 | AU123: 9.77506639e-10 | AV123: 9.786307716e-10 | AW123: 9.786307716e-10 | AX123: 0 | AY123: 0 | AZ123: 0 | BA123: 1500 | BB123: 336.9368986 | BC123: 0 | BD123: 1e-09 | BE123: 1e-09 | BF123: 1.00115e-09 | BG123: 1.00115e-09 | BH123: 0 | BI123: 0 | BJ123: 0 | BK123: 0.002271356758 | BL123: 0.2078433885 | BM123: 0 | BN123: 0.3219008225 | BO123: 0.3028745618 | BP123: 0.0004068711541 | BQ123: 0.004169217632 | BR123: 0 | BS123: 0 | BT123: 0 | BU123: 0.002271356758 | BV123: 0.2078433885 | BW123: 0 | BX123: 0.3219008225 | BY123: 0.3028745618 | BZ123: 0.0004068711541 | CA123: 0.004169217632 | CB123: 0.2101147452 | CC123: 0.629351473 | CD123: 0.8394662182 | CE123: 0.8485002381 | CF123: 0 | CG123: 0 | CH123: 0 | CI123: 138.9553157 | CJ123: 19899.11939 | CK123: 0 | CL123: 8154.384939 | CM123: 7672.412099 | CN123: 23.1264081 | CO123: 236.9768105 | CP123: =BR123*(AD123*$DD$1+AN123*$DE$1+AX123*$DF$1/12) -> 0 | CQ123: =BS123*(AE123*$DD$1+AO123*$DE$1+AY123*$DF$1/12) -> 0 | CR123: =BT123*(AF123*$DD$1+AP123*$DE$1+AZ123*$DF$1/12) -> 0 | CS123: =BU123*(AG123*$DD$1+AQ123*$DE$1+BA123*$DF$1/12) -> 0.5676831134 | CT123: =BV123*(AH123*$DD$1+AR123*$DE$1+BB123*$DF$1/12) -> 41.80828531 | CU123: =BW123*(AI123*$DD$1+AS123*$DE$1+BC123*$DF$1/12) -> 0 | CV123: =BX123*(AJ123*$DD$1+AT123*$DE$1+BD123*$DF$1/12) -> 115.4087913 | CW123: =BY123*(AK123*$DD$1+AU123*$DE$1+BE123*$DF$1/12) -> 108.5874427 | CX123: =BZ123*(AL123*$DD$1+AV123*$DE$1+BF123*$DF$1/12) -> 0.05354812758 | CY123: =CA123*(AM123*$DD$1+AW123*$DE$1+BG123*$DF$1/12) -> 0.5487088366 | CZ123: 42.37596842 | DA123: 224.598491 | DB123: 266.9744594 | DC123: =INDEX(LOOKUP!$G$2:$G$6,MATCH($A123,LOOKUP!$I$2:$I$6,0)) -> PACIFIC
A124: 2 | B124: 13 | C124: 2013 | D124: 318 | E124: 3 | F124: 6 | G124: 3 | H124: 8 | I124: 3 | J124: 0.7127734497 | K124: 0.4144284275 | L124: 0.6037658479 | M124: 0.2257237894 | N124: 6.383655103 | O124: 0.7539010847 | P124: 0.7836129364 | Q124: 0.8759843199 | R124: 0.1645921385 | S124: 4.68370046 | T124: 10204.43858 | U124: 22887.52034 | V124: 42225.52892 | W124: 70645.62783 | X124: 87088.35232 | Y124: 11733.64639 | Z124: 0 | AA124: 35626.99822 | AB124: 41733.88221 | AC124: 100849.654 | AD124: 234.5716501 | AE124: 106.0878301 | AF124: 111.9201115 | AG124: 51.61453066 | AH124: 228.133657 | AI124: 182.4945137 | AJ124: 0 | AK124: 202.2186952 | AL124: 260.8735318 | AM124: 147.074917 | AN124: 35.31831681 | AO124: 47.68957711 | AP124: 40.95545919 | AQ124: 29.10844371 | AR124: 15.68150626 | AS124: 16.11862447 | AT124: 0 | AU124: 1.009094766e-09 | AV124: 1.009094766e-09 | AW124: 14.80380517 | AX124: 309.6945 | AY124: 930.3392523 | AZ124: 1279.81876 | BA124: 2817.9682 | BB124: 1355.559431 | BC124: 995.7278824 | BD124: 0 | BE124: 2854.575391 | BF124: 888.3627322 | BG124: 2898.813954 | BH124: 0.7127734497 | BI124: 0.4144284275 | BJ124: 0.6037658479 | BK124: 0.2257237894 | BL124: 6.383655103 | BM124: 0.7539010847 | BN124: 0 | BO124: 0.8759843199 | BP124: 0.1645921385 | BQ124: 4.68370046 | BR124: 0.7127734497 | BS124: 0.4144284275 | BT124: 0.6037658479 | BU124: 0.2257237894 | BV124: 6.383655103 | BW124: 0.7539010847 | BX124: 0 | BY124: 0.8759843199 | BZ124: 0.1645921385 | CA124: 4.68370046 | CB124: =SUM(BR124:BV124) -> 8.340346618 | CC124: =SUM(BW124:CA124) -> 6.478178003 | CD124: =SUM(BR124:CA124) -> 14.81852462 | CE124: 15.60213756 | CF124: 7273.452886 | CG124: 9485.239062 | CH124: 25494.33227 | CI124: 15946.39882 | CJ124: 555942.0047 | CK124: 8846.00874 | CL124: 0 | CM124: 31208.6918 | CN124: 6869.068922 | CO124: 472349.571 | CP124: 210.7655708 | CQ124: 95.8596485 | CR124: 156.6936201 | CS124: 71.22796736 | CT124: 2277.550568 | CU124: 212.2913545 | CV124: 0 | CW124: 385.5206797 | CX124: 55.12252598 | CY124: 1889.6228 | CZ124: =SUM(CP124:CT124) -> 2812.097375 | DA124: =SUM(CU124:CY124) -> 2542.55736 | DB124: =SUM(CP124:CY124) -> 5354.654734 | DC124: =INDEX(LOOKUP!$G$2:$G$6,MATCH($A124,LOOKUP!$I$2:$I$6,0)) -> PACIFIC
A125: 2 | B125: 13 | C125: 2013 | D125: 320 | E125: 3 | F125: 6 | G125: 4 | H125: 8 | I125: 5 | J125: 0 | K125: 0 | L125: 0 | M125: 0 | N125: 2.419672564 | O125: 0.07459732112 | P125: 0.002287347239 | Q125: 0.00214477282 | R125: 0.001275887805 | S125: 0.0130735962 | T125: 13426.40541 | U125: 27667.58824 | V125: 61739.46154 | W125: 67974.16667 | X125: 228370.3376 | Y125: 6664.617218 | Z125: 0 | AA125: 0 | AB125: 69612.0985 | AC125: 69612.0985 | AD125: 90.01801802 | AE125: 98.64705882 | AF125: 254.9230769 | AG125: 254.8333333 | AH125: 76.36674969 | AI125: 67.29245222 | AJ125: 0 | AK125: 0 | AL125: 109.4427484 | AM125: 109.4427484 | AN125: 19.89189189 | AO125: 57.76470588 | AP125: 15.65384615 | AQ125: 18.83333333 | AR125: 4.358556974 | AS125: 68.80191587 | AT125: 0 | AU125: 0 | AV125: 59.67877442 | AW125: 59.67877442 | AX125: 568.7657658 | AY125: 170.8823529 | AZ125: 2926.153846 | BA125: 2739.5 | BB125: 169.0736672 | BC125: 351.9255682 | BD125: 0 | BE125: 0 | BF125: 254.3835 | BG125: 254.3835 | BH125: 0 | BI125: 0 | BJ125: 0 | BK125: 0 | BL125: 2.419672564 | BM125: 0.07459732112 | BN125: 0 | BO125: 0 | BP125: 0.001275887805 | BQ125: 0.0130735962 | BR125: 0 | BS125: 0 | BT125: 0 | BU125: 0 | BV125: 2.419672564 | BW125: 0.07459732112 | BX125: 0 | BY125: 0 | BZ125: 0.001275887805 | CA125: 0.0130735962 | CB125: 2.419672564 | CC125: 0.08894680512 | CD125: 2.508619369 | CE125: 2.513051489 | CF125: 0 | CG125: 0 | CH125: 0 | CI125: 0 | CJ125: 552581.4403 | CK125: 497.1625908 | CL125: 0 | CM125: 0 | CN125: 88.81722752 | CO125: 910.0804662 | CP125: 0 | CQ125: 0 | CR125: 0 | CS125: 0 | CT125: 229.4207192 | CU125: 12.34000066 | CV125: 0 | CW125: 0 | CX125: 0.2428271556 | CY125: 2.488168761 | CZ125: 229.4207192 | DA125: 15.07099658 | DB125: 244.4917158 | DC125: =INDEX(LOOKUP!$G$2:$G$6,MATCH($A125,LOOKUP!$I$2:$I$6,0)) -> PACIFIC
A126: 2 | B126: 13 | C126: 2013 | D126: 322 | E126: 3 | F126: 6 | G126: 4 | H126: 8 | I126: 7 | J126: 0 | K126: 0 | L126: 0 | M126: 0 | N126: 0 | O126: 0.0008009051691 | P126: 0.0001683079148 | Q126: 0.0001819947296 | R126: 3.972946972e-06 | S126: 0.0006376133309 | T126: 0 | U126: 0 | V126: 0 | W126: 0 | X126: 0 | Y126: 0 | Z126: 0 | AA126: 0 | AB126: 0 | AC126: 0 | AD126: 0 | AE126: 0 | AF126: 0 | AG126: 0 | AH126: 0 | AI126: 0 | AJ126: 0 | AK126: 0 | AL126: 0 | AM126: 0 | AN126: 0 | AO126: 0 | AP126: 0 | AQ126: 0 | AR126: 0 | AS126: 0 | AT126: 0 | AU126: 0 | AV126: 0 | AW126: 0 | AX126: 0 | AY126: 0 | AZ126: 0 | BA126: 0 | BB126: 0 | BC126: 0 | BD126: 0 | BE126: 0 | BF126: 0 | BG126: 0 | BH126: 0 | BI126: 0 | BJ126: 0 | BK126: 0 | BL126: 0 | BM126: 0 | BN126: 0 | BO126: 0 | BP126: 0 | BQ126: 0 | BR126: 0 | BS126: 0 | BT126: 0 | BU126: 0 | BV126: 0 | BW126: 0 | BX126: 0 | BY126: 0 | BZ126: 0 | CA126: 0 | CB126: 0 | CC126: 0 | CD126: 0 | CE126: 0.001792794091 | CF126: 0 | CG126: 0 | CH126: 0 | CI126: 0 | CJ126: 0 | CK126: 0 | CL126: 0 | CM126: 0 | CN126: 0 | CO126: 0 | CP126: 0 | CQ126: 0 | CR126: 0 | CS126: 0 | CT126: 0 | CU126: 0 | CV126: 0 | CW126: 0 | CX126: 0 | CY126: 0 | CZ126: 0 | DA126: 0 | DB126: 0 | DC126: =INDEX(LOOKUP!$G$2:$G$6,MATCH($A126,LOOKUP!$I$2:$I$6,0)) -> PACIFIC
A127: 2 | B127: 13 | C127: 2013 | D127: 324 | E127: 4 | F127: 0 | G127: 0 | H127: 0 | I127: 0 | J127: 0.02782687338 | K127: 0.002021542434 | L127: 0.008380934093 | M127: 5.966963013e-06 | N127: 0.4350847845 | O127: 0 | P127: 0 | Q127: 0 | R127: 0 | S127: 0 | T127: 42115.8322 | U127: 42115.8322 | V127: 42115.8322 | W127: 0 | X127: 107181.5682 | Y127: 0 | Z127: 0 | AA127: 0 | AB127: 0 | AC127: 0 | AD127: 121.6030538 | AE127: 121.6030538 | AF127: 121.6030538 | AG127: 0 | AH127: 206.7251914 | AI127: 0 | AJ127: 0 | AK127: 0 | AL127: 0 | AM127: 0 | AN127: 99.46462404 | AO127: 99.46462404 | AP127: 99.46462404 | AQ127: 0 | AR127: 132.0166828 | AS127: 0 | AT127: 0 | AU127: 0 | AV127: 0 | AW127: 0 | AX127: 1.017534e-09 | AY127: 1.017534e-09 | AZ127: 1.017534e-09 | BA127: 0 | BB127: 1.017534e-09 | BC127: 0 | BD127: 0 | BE127: 0 | BF127: 0 | BG127: 0 | BH127: 0.02782687338 | BI127: 0.002021542434 | BJ127: 0.008380934093 | BK127: 0 | BL127: 0.4350847845 | BM127: 0 | BN127: 0 | BO127: 0 | BP127: 0 | BQ127: 0 | BR127: 0.02782687338 | BS127: 0.002021542434 | BT127: 0.008380934093 | BU127: 0 | BV127: 0.4350847845 | BW127: 0 | BX127: 0 | BY127: 0 | BZ127: 0 | CA127: 0 | CB127: 0.4733141344 | CC127: 0 | CD127: 0.4733141344 | CE127: 0.4733201013 | CF127: 1171.95193 | CG127: 85.13894194 | CH127: 352.9700139 | CI127: 0 | CJ127: 46633.06949 | CK127: 0 | CL127: 0 | CM127: 0 | CN127: 0 | CO127: 0 | CP127: 6.151622279 | CQ127: 0.4468976916 | CR127: 1.852753638 | CS127: 0 | CT127: 147.3814353 | CU127: 0 | CV127: 0 | CW127: 0 | CX127: 0 | CY127: 0 | CZ127: 155.832709 | DA127: 0 | DB127: 155.832709 | DC127: =INDEX(LOOKUP!$G$2:$G$6,MATCH($A127,LOOKUP!$I$2:$I$6,0)) -> PACIFIC
A128: 2 | B128: 13 | C128: 2013 | D128: 325 | E128: 4 | F128: 0 | G128: 1 | H128: 0 | I128: 1 | J128: 0 | K128: 0 | L128: 0 | M128: 0 | N128: 0 | O128: 0.007028884591 | P128: 1.473455372e-05 | Q128: 6.145606777e-05 | R128: 2.92583161e-05 | S128: 0.0001813136761 | T128: 0 | U128: 0 | V128: 0 | W128: 0 | X128: 0 | Y128: 0 | Z128: 0 | AA128: 0 | AB128: 0 | AC128: 0 | AD128: 0 | AE128: 0 | AF128: 0 | AG128: 0 | AH128: 0 | AI128: 0 | AJ128: 0 | AK128: 0 | AL128: 0 | AM128: 0 | AN128: 0 | AO128: 0 | AP128: 0 | AQ128: 0 | AR128: 0 | AS128: 0 | AT128: 0 | AU128: 0 | AV128: 0 | AW128: 0 | AX128: 0 | AY128: 0 | AZ128: 0 | BA128: 0 | BB128: 0 | BC128: 0 | BD128: 0 | BE128: 0 | BF128: 0 | BG128: 0 | BH128: 0 | BI128: 0 | BJ128: 0 | BK128: 0 | BL128: 0 | BM128: 0 | BN128: 0 | BO128: 0 | BP128: 0 | BQ128: 0 | BR128: 0 | BS128: 0 | BT128: 0 | BU128: 0 | BV128: 0 | BW128: 0 | BX128: 0 | BY128: 0 | BZ128: 0 | CA128: 0 | CB128: 0 | CC128: 0 | CD128: 0 | CE128: 0.007315647205 | CF128: 0 | CG128: 0 | CH128: 0 | CI128: 0 | CJ128: 0 | CK128: 0 | CL128: 0 | CM128: 0 | CN128: 0 | CO128: 0 | CP128: 0 | CQ128: 0 | CR128: 0 | CS128: 0 | CT128: 0 | CU128: 0 | CV128: 0 | CW128: 0 | CX128: 0 | CY128: 0 | CZ128: 0 | DA128: 0 | DB128: 0 | DC128: =INDEX(LOOKUP!$G$2:$G$6,MATCH($A128,LOOKUP!$I$2:$I$6,0)) -> PACIFIC
A129: 2 | B129: 13 | C129: 2013 | D129: 326 | E129: 4 | F129: 0 | G129: 2 | H129: 0 | I129: 2 | J129: 0.03690551479 | K129: 0.04627636935 | L129: 0.0365593249 | M129: 0.006497678398 | N129: 0.2149493322 | O129: 0.1646500048 | P129: 0.1054631497 | Q129: 0.01231948032 | R129: 0.003178584044 | S129: 0.1786651814 | T129: 22554.73 | U129: 22254.37935 | V129: 36425.73368 | W129: 52274.2221 | X129: 138221.1175 | Y129: 18022.752 | Z129: 20029.1929 | AA129: 50824.16064 | AB129: 50824.16064 | AC129: 60075.84 | AD129: 243.2061076 | AE129: 192.2002436 | AF129: 130.110469 | AG129: 189.6057396 | AH129: 336.2753841 | AI129: 203.1629326 | AJ129: 168.527449 | AK129: 334.6213007 | AL129: 334.6213007 | AM129: 1.195076074e-09 | AN129: 9.946462404e-10 | AO129: 3.632626023 | AP129: 1.001953541e-09 | AQ129: 1.009094766e-09 | AR129: 9.993408813e-10 | AS129: 9.77506639e-10 | AT129: 9.893818747e-10 | AU129: 9.77506639e-10 | AV129: 9.77506639e-10 | AW129: 9.77506639e-10 | AX129: 1.017534e-09 | AY129: 1.001243966e-09 | AZ129: 1.025009448e-09 | BA129: 1.032315e-09 | BB129: 256.7978547 | BC129: 1e-09 | BD129: 1.012148496e-09 | BE129: 1e-09 | BF129: 1e-09 | BG129: 1e-09 | BH129: 0.03690551479 | BI129: 0.04627636935 | BJ129: 0.0365593249 | BK129: 0.006497678398 | BL129: 0.2149493322 | BM129: 0.1646500048 | BN129: 0.1054631497 | BO129: 0.01231948032 | BP129: 0.003178584044 | BQ129: 0.1786651814 | BR129: 0.03690551479 | BS129: 0.04627636935 | BT129: 0.0365593249 | BU129: 0.006497678398 | BV129: 0.2149493322 | BW129: 0.1646500048 | BX129: 0.1054631497 | BY129: 0.01231948032 | BZ129: 0.003178584044 | CA129: 0.1786651814 | CB129: 0.3411882196 | CC129: 0.4642764002 | CD129: 0.8054646198 | CE129: 0.8054646198 | CF129: 832.3939216 | CG129: 1029.851879 | CH129: 1331.700232 | CI129: 339.6610837 | CJ129: 29710.5369 | CK129: 2967.446203 | CL129: 2112.341769 | CM129: 626.1272469 | CN129: 161.548866 | CO129: 10733.46085 | CP129: 8.9756466 | CQ129: 9.062434207 | CR129: 4.75675091 | CS129: 1.231997118 | CT129: 76.88204652 | CU129: 33.45077783 | CV129: 17.77343557 | CW129: 4.12236053 | CX129: 1.063621927 | CY129: 4.030536496e-10 | CZ129: 100.9088754 | DA129: 56.41019586 | DB129: 157.3190712 | DC129: =INDEX(LOOKUP!$G$2:$G$6,MATCH($A129,LOOKUP!$I$2:$I$6,0)) -> PACIFIC
A130: 2 | B130: 13 | C130: 2013 | D130: 327 | E130: 4 | F130: 0 | G130: 3 | H130: 0 | I130: 3 | J130: 1.259874576 | K130: 1.448756101 | L130: 3.713370347 | M130: 0.7355138393 | N130: 12.30866768 | O130: 1.602985235 | P130: 1.817829436 | Q130: 3.717136599 | R130: 1.231183923 | S130: 7.388108387 | T130: 11801.38225 | U130: 25285.21743 | V130: 43291.01149 | W130: 53425.38055 | X130: 100677.9528 | Y130: 11526.01205 | Z130: 25192.3906 | AA130: 46320.30069 | AB130: 56379.43716 | AC130: 99078.13055 | AD130: 197.8092371 | AE130: 186.0834983 | AF130: 225.9245765 | AG130: 189.7081419 | AH130: 185.0271642 | AI130: 302.2220489 | AJ130: 107.7806693 | AK130: 160.3604637 | AL130: 187.2435219 | AM130: 281.1983954 | AN130: 2.199348975 | AO130: 45.63978494 | AP130: 58.08963853 | AQ130: 84.6212784 | AR130: 30.29796716 | AS130: 27.29316689 | AT130: 9.890231945e-10 | AU130: 9.917512864e-10 | AV130: 9.898507199e-10 | AW130: 2.206714061 | AX130: 1603.569046 | AY130: 2867.984811 | AZ130: 2671.5571 | BA130: 2553.343269 | BB130: 2804.277907 | BC130: 2312.446457 | BD130: 2486.851803 | BE130: 1819.379113 | BF130: 502.7232517 | BG130: 1526.35331 | BH130: 1.259874576 | BI130: 1.448756101 | BJ130: 3.713370347 | BK130: 0.7355138393 | BL130: 12.30866768 | BM130: 1.602985235 | BN130: 1.817829436 | BO130: 3.717136599 | BP130: 1.231183923 | BQ130: 7.388108387 | BR130: 1.259874576 | BS130: 1.448756101 | BT130: 3.713370347 | BU130: 0.7355138393 | BV130: 12.30866768 | BW130: 1.602985235 | BX130: 1.817829436 | BY130: 3.717136599 | BZ130: 1.231183923 | CA130: 7.388108387 | CB130: 19.46618254 | CC130: 15.75724358 | CD130: 35.22342612 | CE130: 35.22342612 | CF130: 14868.26146 | CG130: 36632.11302 | CH130: 160755.5584 | CI130: 39295.10677 | CJ130: 1239211.463 | CK130: 18476.02713 | CL130: 45795.4692 | CM130: 172178.885 | CN130: 69413.4566 | CO130: 731999.9673 | CP130: 420.3437218 | CQ130: 681.9613946 | CR130: 1881.356707 | CS130: 358.2746944 | CT130: 5526.775887 | CU130: 837.1094861 | CV130: 572.6495742 | CW130: 1159.65514 | CX130: 282.1099459 | CY130: 3033.566307 | CZ130: 8868.712405 | DA130: 5885.090452 | DB130: 14753.80286 | DC130: =INDEX(LOOKUP!$G$2:$G$6,MATCH($A130,LOOKUP!$I$2:$I$6,0)) -> PACIFIC
A131: 2 | B131: 13 | C131: 2013 | D131: 329 | E131: 4 | F131: 0 | G131: 4 | H131: 0 | I131: 5 | J131: 0 | K131: 0 | L131: 0 | M131: 0 | N131: 0.3694665293 | O131: 0.05483843763 | P131: 0.08464973574 | Q131: 0.1104350629 | R131: 0.02746032202 | S131: 0.03624100347 | T131: 1902.39726 | U131: 29076.09091 | V131: 37065.22222 | W131: 0 | X131: 113750.0192 | Y131: 0 | Z131: 24741.69387 | AA131: 49489.35625 | AB131: 53274.87167 | AC131: 55380.77366 | AD131: 47.80821918 | AE131: 83.72727273 | AF131: 210.8888889 | AG131: 0 | AH131: 225.5635997 | AI131: 0 | AJ131: 149.7069687 | AK131: 137.0883434 | AL131: 118.9107913 | AM131: 103.5614214 | AN131: 263.9315068 | AO131: 0 | AP131: 6.388888889 | AQ131: 0 | AR131: 8.256229905 | AS131: 0 | AT131: 6.667760518 | AU131: 78.32096504 | AV131: 74.34785011 | AW131: 51.2916797 | AX131: 2100 | AY131: 1501.727273 | AZ131: 934.6111111 | BA131: 0 | BB131: 2479.771106 | BC131: 0 | BD131: 151.5429305 | BE131: 1294.754102 | BF131: 1309.899233 | BG131: 903.6835871 | BH131: 0 | BI131: 0 | BJ131: 0 | BK131: 0 | BL131: 0.3694665293 | BM131: 0 | BN131: 0.08464973574 | BO131: 0.1104350629 | BP131: 0.02746032202 | BQ131: 0.03624100347 | BR131: 0 | BS131: 0 | BT131: 0 | BU131: 0 | BV131: 0.3694665293 | BW131: 0 | BX131: 0.08464973574 | BY131: 0.1104350629 | BZ131: 0.02746032202 | CA131: 0.03624100347 | CB131: 0.3694665293 | CC131: 0.2587861242 | CD131: 0.6282526535 | CE131: 0.6830910911 | CF131: 0 | CG131: 0 | CH131: 0 | CI131: 0 | CJ131: 42026.8248 | CK131: 0 | CL131: 2094.377848 | CM131: 5465.360172 | CN131: 1462.945132 | CO131: 2007.05481 | CP131: 0 | CQ131: 0 | CR131: 0 | CS131: 0 | CT131: 162.7379696 | CU131: 0 | CV131: 14.30608526 | CW131: 35.70426143 | CX131: 8.304465756 | CY131: 8.341231775 | CZ131: 162.7379696 | DA131: 66.65604422 | DB131: 229.3940138 | DC131: =INDEX(LOOKUP!$G$2:$G$6,MATCH($A131,LOOKUP!$I$2:$I$6,0)) -> PACIFIC
A132: 2 | B132: 13 | C132: 2013 | D132: 331 | E132: 4 | F132: 0 | G132: 4 | H132: 0 | I132: 7 | J132: 0 | K132: 0 | L132: 0 | M132: 0 | N132: 0 | O132: 0.003519253533 | P132: 0.01304513141 | Q132: 0.07339449011 | R132: 0.0001445796737 | S132: 0.05867179967 | T132: 0 | U132: 0 | V132: 0 | W132: 0 | X132: 0 | Y132: 0 | Z132: 33892.69 | AA132: 33892.69 | AB132: 0 | AC132: 0 | AD132: 0 | AE132: 0 | AF132: 0 | AG132: 0 | AH132: 0 | AI132: 0 | AJ132: 160.3803445 | AK132: 160.3803445 | AL132: 0 | AM132: 0 | AN132: 0 | AO132: 0 | AP132: 0 | AQ132: 0 | AR132: 0 | AS132: 0 | AT132: 1.009094766e-09 | AU132: 1.009094766e-09 | AV132: 0 | AW132: 0 | AX132: 0 | AY132: 0 | AZ132: 0 | BA132: 0 | BB132: 0 | BC132: 0 | BD132: 7226.205 | BE132: 7226.205 | BF132: 0 | BG132: 0 | BH132: 0 | BI132: 0 | BJ132: 0 | BK132: 0 | BL132: 0 | BM132: 0 | BN132: 0.01304513141 | BO132: 0.07339449011 | BP132: 0 | BQ132: 0 | BR132: 0 | BS132: 0 | BT132: 0 | BU132: 0 | BV132: 0 | BW132: 0 | BX132: 0.01304513141 | BY132: 0.07339449011 | BZ132: 0 | CA132: 0 | CB132: 0 | CC132: 0.08643962151 | CD132: 0.08643962151 | CE132: 0.1487752544 | CF132: 0 | CG132: 0 | CH132: 0 | CI132: 0 | CJ132: 0 | CK132: 0 | CL132: 442.1345948 | CM132: 2487.536701 | CN132: 0 | CO132: 0 | CP132: 0 | CQ132: 0 | CR132: 0 | CS132: 0 | CT132: 0 | CU132: 0 | CV132: 9.947748818 | CW132: 55.96800289 | CX132: 0 | CY132: 0 | CZ132: 0 | DA132: 65.9157517 | DB132: 65.9157517 | DC132: =INDEX(LOOKUP!$G$2:$G$6,MATCH($A132,LOOKUP!$I$2:$I$6,0)) -> PACIFIC
A133: 2 | B133: 13 | C133: 2013 | D133: 333 | E133: 4 | F133: 1 | G133: 0 | H133: 1 | I133: 0 | J133: 4.62904983e-05 | K133: 1.542623842e-05 | L133: 7.791795918e-06 | M133: 2.356426088e-06 | N133: 0.0002007987879 | O133: 0 | P133: 0 | Q133: 0 | R133: 0 | S133: 0 | T133: 0 | U133: 0 | V133: 0 | W133: 0 | X133: 0 | Y133: 0 | Z133: 0 | AA133: 0 | AB133: 0 | AC133: 0 | AD133: 0 | AE133: 0 | AF133: 0 | AG133: 0 | AH133: 0 | AI133: 0 | AJ133: 0 | AK133: 0 | AL133: 0 | AM133: 0 | AN133: 0 | AO133: 0 | AP133: 0 | AQ133: 0 | AR133: 0 | AS133: 0 | AT133: 0 | AU133: 0 | AV133: 0 | AW133: 0 | AX133: 0 | AY133: 0 | AZ133: 0 | BA133: 0 | BB133: 0 | BC133: 0 | BD133: 0 | BE133: 0 | BF133: 0 | BG133: 0 | BH133: 0 | BI133: 0 | BJ133: 0 | BK133: 0 | BL133: 0 | BM133: 0 | BN133: 0 | BO133: 0 | BP133: 0 | BQ133: 0 | BR133: 0 | BS133: 0 | BT133: 0 | BU133: 0 | BV133: 0 | BW133: 0 | BX133: 0 | BY133: 0 | BZ133: 0 | CA133: 0 | CB133: 0 | CC133: 0 | CD133: 0 | CE133: 0.0002726637467 | CF133: 0 | CG133: 0 | CH133: 0 | CI133: 0 | CJ133: 0 | CK133: 0 | CL133: 0 | CM133: 0 | CN133: 0 | CO133: 0 | CP133: 0 | CQ133: 0 | CR133: 0 | CS133: 0 | CT133: 0 | CU133: 0 | CV133: 0 | CW133: 0 | CX133: 0 | CY133: 0 | CZ133: 0 | DA133: 0 | DB133: 0 | DC133: =INDEX(LOOKUP!$G$2:$G$6,MATCH($A133,LOOKUP!$I$2:$I$6,0)) -> PACIFIC
A134: 2 | B134: 13 | C134: 2013 | D134: 334 | E134: 4 | F134: 1 | G134: 1 | H134: 1 | I134: 1 | J134: 0 | K134: 0 | L134: 0 | M134: 0 | N134: 0 | O134: 0.0005794608487 | P134: 2.593784402e-05 | Q134: 0.000354261568 | R134: 0.0001698007349 | S134: 0.001183038271 | T134: 0 | U134: 0 | V134: 0 | W134: 0 | X134: 0 | Y134: 0 | Z134: 0 | AA134: 0 | AB134: 0 | AC134: 0 | AD134: 0 | AE134: 0 | AF134: 0 | AG134: 0 | AH134: 0 | AI134: 0 | AJ134: 0 | AK134: 0 | AL134: 0 | AM134: 0 | AN134: 0 | AO134: 0 | AP134: 0 | AQ134: 0 | AR134: 0 | AS134: 0 | AT134: 0 | AU134: 0 | AV134: 0 | AW134: 0 | AX134: 0 | AY134: 0 | AZ134: 0 | BA134: 0 | BB134: 0 | BC134: 0 | BD134: 0 | BE134: 0 | BF134: 0 | BG134: 0 | BH134: 0 | BI134: 0 | BJ134: 0 | BK134: 0 | BL134: 0 | BM134: 0 | BN134: 0 | BO134: 0 | BP134: 0 | BQ134: 0 | BR134: 0 | BS134: 0 | BT134: 0 | BU134: 0 | BV134: 0 | BW134: 0 | BX134: 0 | BY134: 0 | BZ134: 0 | CA134: 0 | CB134: 0 | CC134: 0 | CD134: 0 | CE134: 0.002312499266 | CF134: 0 | CG134: 0 | CH134: 0 | CI134: 0 | CJ134: 0 | CK134: 0 | CL134: 0 | CM134: 0 | CN134: 0 | CO134: 0 | CP134: 0 | CQ134: 0 | CR134: 0 | CS134: 0 | CT134: 0 | CU134: 0 | CV134: 0 | CW134: 0 | CX134: 0 | CY134: 0 | CZ134: 0 | DA134: 0 | DB134: 0 | DC134: =INDEX(LOOKUP!$G$2:$G$6,MATCH($A134,LOOKUP!$I$2:$I$6,0)) -> PACIFIC
A135: 2 | B135: 13 | C135: 2013 | D135: 335 | E135: 4 | F135: 1 | G135: 2 | H135: 1 | I135: 2 | J135: 7.011277719e-06 | K135: 4.015229435e-06 | L135: 5.171170349e-06 | M135: 1.014214862e-06 | N135: 0.0001752083192 | O135: 0.0007200733136 | P135: 1.345727496e-05 | Q135: 6.358073033e-08 | R135: 3.4319809e-08 | S135: 7.156106986e-07 | T135: 0 | U135: 0 | V135: 0 | W135: 0 | X135: 0 | Y135: 0 | Z135: 0 | AA135: 0 | AB135: 0 | AC135: 0 | AD135: 0 | AE135: 0 | AF135: 0 | AG135: 0 | AH135: 0 | AI135: 0 | AJ135: 0 | AK135: 0 | AL135: 0 | AM135: 0 | AN135: 0 | AO135: 0 | AP135: 0 | AQ135: 0 | AR135: 0 | AS135: 0 | AT135: 0 | AU135: 0 | AV135: 0 | AW135: 0 | AX135: 0 | AY135: 0 | AZ135: 0 | BA135: 0 | BB135: 0 | BC135: 0 | BD135: 0 | BE135: 0 | BF135: 0 | BG135: 0 | BH135: 0 | BI135: 0 | BJ135: 0 | BK135: 0 | BL135: 0 | BM135: 0 | BN135: 0 | BO135: 0 | BP135: 0 | BQ135: 0 | BR135: 0 | BS135: 0 | BT135: 0 | BU135: 0 | BV135: 0 | BW135: 0 | BX135: 0 | BY135: 0 | BZ135: 0 | CA135: 0 | CB135: 0 | CC135: 0 | CD135: 0 | CE135: 0.0009267643114 | CF135: 0 | CG135: 0 | CH135: 0 | CI135: 0 | CJ135: 0 | CK135: 0 | CL135: 0 | CM135: 0 | CN135: 0 | CO135: 0 | CP135: 0 | CQ135: 0 | CR135: 0 | CS135: 0 | CT135: 0 | CU135: 0 | CV135: 0 | CW135: 0 | CX135: 0 | CY135: 0 | CZ135: 0 | DA135: 0 | DB135: 0 | DC135: =INDEX(LOOKUP!$G$2:$G$6,MATCH($A135,LOOKUP!$I$2:$I$6,0)) -> PACIFIC
A136: 2 | B136: 13 | C136: 2013 | D136: 336 | E136: 4 | F136: 1 | G136: 3 | H136: 1 | I136: 3 | J136: 0.02954641703 | K136: 0.007376292224 | L136: 0.06605690555 | M136: 0.02999033484 | N136: 0.2641792046 | O136: 0.02155445912 | P136: 0.01104790034 | Q136: 0.02437584396 | R136: 0.01915903196 | S136: 0.2282672213 | T136: 0 | U136: 0 | V136: 51147.97635 | W136: 51147.97635 | X136: 125239.1071 | Y136: 0 | Z136: 0 | AA136: 0 | AB136: 0 | AC136: 89054.49329 | AD136: 0 | AE136: 0 | AF136: 364.8091614 | AG136: 364.8091614 | AH136: 291.1231004 | AI136: 0 | AJ136: 0 | AK136: 0 | AL136: 0 | AM136: 241.0700938 | AN136: 0 | AO136: 0 | AP136: 9.946462404e-10 | AQ136: 9.946462404e-10 | AR136: 9.946462404e-10 | AS136: 0 | AT136: 0 | AU136: 0 | AV136: 0 | AW136: 9.859105302e-10 | AX136: 0 | AY136: 0 | AZ136: 864.9039 | BA136: 864.9039 | BB136: 3639.516175 | BC136: 0 | BD136: 0 | BE136: 0 | BF136: 0 | BG136: 2730.409091 | BH136: 0 | BI136: 0 | BJ136: 0.06605690555 | BK136: 0.02999033484 | BL136: 0.2641792046 | BM136: 0 | BN136: 0 | BO136: 0 | BP136: 0 | BQ136: 0.2282672213 | BR136: 0 | BS136: 0 | BT136: 0.06605690555 | BU136: 0.02999033484 | BV136: 0.2641792046 | BW136: 0 | BX136: 0 | BY136: 0 | BZ136: 0 | CA136: 0.2282672213 | CB136: 0.360226445 | CC136: 0.2282672213 | CD136: 0.5884936664 | CE136: 0.701553611 | CF136: 0 | CG136: 0 | CH136: 3378.677043 | CI136: 1533.944937 | CJ136: 33085.56771 | CK136: 0 | CL136: 0 | CM136: 0 | CN136: 0 | CO136: 20328.22173 | CP136: 0 | CQ136: 0 | CR136: 28.85923725 | CS136: 13.10231203 | CT136: 157.0323765 | CU136: 0 | CV136: 0 | CW136: 0 | CX136: 0 | CY136: 106.9669751 | CZ136: 198.9939258 | DA136: 106.9669751 | DB136: 305.9609009 | DC136: =INDEX(LOOKUP!$G$2:$G$6,MATCH($A136,LOOKUP!$I$2:$I$6,0)) -> PACIFIC
A137: 2 | B137: 13 | C137: 2013 | D137: 338 | E137: 4 | F137: 1 | G137: 4 | H137: 1 | I137: 5 | J137: 0 | K137: 0 | L137: 0 | M137: 0 | N137: 0.0003664038426 | O137: 0.0002933725486 | P137: 1.832073271e-43 | Q137: 1.609000224e-43 | R137: 4.409152625e-44 | S137: 4.744852041e-43 | T137: 0 | U137: 0 | V137: 0 | W137: 0 | X137: 0 | Y137: 0 | Z137: 0 | AA137: 0 | AB137: 0 | AC137: 0 | AD137: 0 | AE137: 0 | AF137: 0 | AG137: 0 | AH137: 0 | AI137: 0 | AJ137: 0 | AK137: 0 | AL137: 0 | AM137: 0 | AN137: 0 | AO137: 0 | AP137: 0 | AQ137: 0 | AR137: 0 | AS137: 0 | AT137: 0 | AU137: 0 | AV137: 0 | AW137: 0 | AX137: 0 | AY137: 0 | AZ137: 0 | BA137: 0 | BB137: 0 | BC137: 0 | BD137: 0 | BE137: 0 | BF137: 0 | BG137: 0 | BH137: 0 | BI137: 0 | BJ137: 0 | BK137: 0 | BL137: 0 | BM137: 0 | BN137: 0 | BO137: 0 | BP137: 0 | BQ137: 0 | BR137: 0 | BS137: 0 | BT137: 0 | BU137: 0 | BV137: 0 | BW137: 0 | BX137: 0 | BY137: 0 | BZ137: 0 | CA137: 0 | CB137: 0 | CC137: 0 | CD137: 0 | CE137: 0.0006597763912 | CF137: 0 | CG137: 0 | CH137: 0 | CI137: 0 | CJ137: 0 | CK137: 0 | CL137: 0 | CM137: 0 | CN137: 0 | CO137: 0 | CP137: 0 | CQ137: 0 | CR137: 0 | CS137: 0 | CT137: 0 | CU137: 0 | CV137: 0 | CW137: 0 | CX137: 0 | CY137: 0 | CZ137: 0 | DA137: 0 | DB137: 0 | DC137: =INDEX(LOOKUP!$G$2:$G$6,MATCH($A137,LOOKUP!$I$2:$I$6,0)) -> PACIFIC
A138: 2 | B138: 13 | C138: 2013 | D138: 340 | E138: 4 | F138: 1 | G138: 4 | H138: 1 | I138: 7 | J138: 0 | K138: 0 | L138: 0 | M138: 0 | N138: 0 | O138: 0.0002565595335 | P138: 1.265613709e-05 | Q138: 3.268799842e-05 | R138: 2.691035835e-06 | S138: 0.000478868399 | T138: 0 | U138: 0 | V138: 0 | W138: 0 | X138: 0 | Y138: 0 | Z138: 0 | AA138: 0 | AB138: 0 | AC138: 0 | AD138: 0 | AE138: 0 | AF138: 0 | AG138: 0 | AH138: 0 | AI138: 0 | AJ138: 0 | AK138: 0 | AL138: 0 | AM138: 0 | AN138: 0 | AO138: 0 | AP138: 0 | AQ138: 0 | AR138: 0 | AS138: 0 | AT138: 0 | AU138: 0 | AV138: 0 | AW138: 0 | AX138: 0 | AY138: 0 | AZ138: 0 | BA138: 0 | BB138: 0 | BC138: 0 | BD138: 0 | BE138: 0 | BF138: 0 | BG138: 0 | BH138: 0 | BI138: 0 | BJ138: 0 | BK138: 0 | BL138: 0 | BM138: 0 | BN138: 0 | BO138: 0 | BP138: 0 | BQ138: 0 | BR138: 0 | BS138: 0 | BT138: 0 | BU138: 0 | BV138: 0 | BW138: 0 | BX138: 0 | BY138: 0 | BZ138: 0 | CA138: 0 | CB138: 0 | CC138: 0 | CD138: 0 | CE138: 0.0007834631038 | CF138: 0 | CG138: 0 | CH138: 0 | CI138: 0 | CJ138: 0 | CK138: 0 | CL138: 0 | CM138: 0 | CN138: 0 | CO138: 0 | CP138: 0 | CQ138: 0 | CR138: 0 | CS138: 0 | CT138: 0 | CU138: 0 | CV138: 0 | CW138: 0 | CX138: 0 | CY138: 0 | CZ138: 0 | DA138: 0 | DB138: 0 | DC138: =INDEX(LOOKUP!$G$2:$G$6,MATCH($A138,LOOKUP!$I$2:$I$6,0)) -> PACIFIC
A139: 2 | B139: 13 | C139: 2013 | D139: 343 | E139: 4 | F139: 2 | G139: 1 | H139: 2 | I139: 1 | J139: 0 | K139: 0 | L139: 0 | M139: 0 | N139: 0 | O139: 0.0005331554152 | P139: 2.208238775e-05 | Q139: 0.0004228422158 | R139: 0.0001954302047 | S139: 0.001082445074 | T139: 0 | U139: 0 | V139: 0 | W139: 0 | X139: 0 | Y139: 0 | Z139: 0 | AA139: 0 | AB139: 0 | AC139: 0 | AD139: 0 | AE139: 0 | AF139: 0 | AG139: 0 | AH139: 0 | AI139: 0 | AJ139: 0 | AK139: 0 | AL139: 0 | AM139: 0 | AN139: 0 | AO139: 0 | AP139: 0 | AQ139: 0 | AR139: 0 | AS139: 0 | AT139: 0 | AU139: 0 | AV139: 0 | AW139: 0 | AX139: 0 | AY139: 0 | AZ139: 0 | BA139: 0 | BB139: 0 | BC139: 0 | BD139: 0 | BE139: 0 | BF139: 0 | BG139: 0 | BH139: 0 | BI139: 0 | BJ139: 0 | BK139: 0 | BL139: 0 | BM139: 0 | BN139: 0 | BO139: 0 | BP139: 0 | BQ139: 0 | BR139: 0 | BS139: 0 | BT139: 0 | BU139: 0 | BV139: 0 | BW139: 0 | BX139: 0 | BY139: 0 | BZ139: 0 | CA139: 0 | CB139: 0 | CC139: 0 | CD139: 0 | CE139: 0.002255955298 | CF139: 0 | CG139: 0 | CH139: 0 | CI139: 0 | CJ139: 0 | CK139: 0 | CL139: 0 | CM139: 0 | CN139: 0 | CO139: 0 | CP139: 0 | CQ139: 0 | CR139: 0 | CS139: 0 | CT139: 0 | CU139: 0 | CV139: 0 | CW139: 0 | CX139: 0 | CY139: 0 | CZ139: 0 | DA139: 0 | DB139: 0 | DC139: =INDEX(LOOKUP!$G$2:$G$6,MATCH($A139,LOOKUP!$I$2:$I$6,0)) -> PACIFIC
A140: 2 | B140: 13 | C140: 2013 | D140: 344 | E140: 4 | F140: 2 | G140: 2 | H140: 2 | I140: 2 | J140: 0 | K140: 0 | L140: 0 | M140: 0 | N140: 0 | O140: 0.005282169835 | P140: 0.003868776111 | Q140: 0.07781137003 | R140: 0.01069651971 | S140: 0.002657575684 | T140: 0 | U140: 0 | V140: 0 | W140: 0 | X140: 0 | Y140: 0 | Z140: 0 | AA140: 35845.2512 | AB140: 35845.2512 | AC140: 0 | AD140: 0 | AE140: 0 | AF140: 0 | AG140: 0 | AH140: 0 | AI140: 0 | AJ140: 0 | AK140: 310.7197792 | AL140: 310.7197792 | AM140: 0 | AN140: 0 | AO140: 0 | AP140: 0 | AQ140: 0 | AR140: 0 | AS140: 0 | AT140: 0 | AU140: 9.77506639e-10 | AV140: 9.77506639e-10 | AW140: 0 | AX140: 0 | AY140: 0 | AZ140: 0 | BA140: 0 | BB140: 0 | BC140: 0 | BD140: 0 | BE140: 1e-09 | BF140: 1e-09 | BG140: 0 | BH140: 0 | BI140: 0 | BJ140: 0 | BK140: 0 | BL140: 0 | BM140: 0 | BN140: 0 | BO140: 0.07781137003 | BP140: 0.01069651971 | BQ140: 0 | BR140: 0 | BS140: 0 | BT140: 0 | BU140: 0 | BV140: 0 | BW140: 0 | BX140: 0 | BY140: 0.07781137003 | BZ140: 0.01069651971 | CA140: 0 | CB140: 0 | CC140: 0.08850788974 | CD140: 0.08850788974 | CE140: 0.1003164114 | CF140: 0 | CG140: 0 | CH140: 0 | CI140: 0 | CJ140: 0 | CK140: 0 | CL140: 0 | CM140: 2789.168105 | CN140: 383.4194359 | CO140: 0 | CP140: 0 | CQ140: 0 | CR140: 0 | CS140: 0 | CT140: 0 | CU140: 0 | CV140: 0 | CW140: 24.17753172 | CX140: 3.323620242 | CY140: 0 | CZ140: 0 | DA140: 27.50115196 | DB140: 27.50115196 | DC140: =INDEX(LOOKUP!$G$2:$G$6,MATCH($A140,LOOKUP!$I$2:$I$6,0)) -> PACIFIC
A141: 2 | B141: 13 | C141: 2013 | D141: 345 | E141: 4 | F141: 2 | G141: 3 | H141: 2 | I141: 3 | J141: 0 | K141: 0 | L141: 0 | M141: 0 | N141: 0 | O141: 0.02028593551 | P141: 0.008691680075 | Q141: 0.07448000719 | R141: 0.0113955872 | S141: 0.6648350205 | T141: 0 | U141: 0 | V141: 0 | W141: 0 | X141: 0 | Y141: 0 | Z141: 0 | AA141: 0 | AB141: 0 | AC141: 136356.6824 | AD141: 0 | AE141: 0 | AF141: 0 | AG141: 0 | AH141: 0 | AI141: 0 | AJ141: 0 | AK141: 0 | AL141: 0 | AM141: 86.01302437 | AN141: 0 | AO141: 0 | AP141: 0 | AQ141: 0 | AR141: 0 | AS141: 0 | AT141: 0 | AU141: 0 | AV141: 0 | AW141: 9.86866084e-10 | AX141: 0 | AY141: 0 | AZ141: 0 | BA141: 0 | BB141: 0 | BC141: 0 | BD141: 0 | BE141: 0 | BF141: 0 | BG141: 950.0631111 | BH141: 0 | BI141: 0 | BJ141: 0 | BK141: 0 | BL141: 0 | BM141: 0 | BN141: 0 | BO141: 0 | BP141: 0 | BQ141: 0.6648350205 | BR141: 0 | BS141: 0 | BT141: 0 | BU141: 0 | BV141: 0 | BW141: 0 | BX141: 0 | BY141: 0 | BZ141: 0 | CA141: 0.6648350205 | CB141: 0 | CC141: 0.6648350205 | CD141: 0.6648350205 | CE141: 0.7796882304 | CF141: 0 | CG141: 0 | CH141: 0 | CI141: 0 | CJ141: 0 | CK141: 0 | CL141: 0 | CM141: 0 | CN141: 0 | CO141: 90654.69775 | CP141: 0 | CQ141: 0 | CR141: 0 | CS141: 0 | CT141: 0 | CU141: 0 | CV141: 0 | CW141: 0 | CX141: 0 | CY141: 109.8207398 | CZ141: 0 | DA141: 109.8207398 | DB141: 109.8207398 | DC141: =INDEX(LOOKUP!$G$2:$G$6,MATCH($A141,LOOKUP!$I$2:$I$6,0)) -> PACIFIC
A142: 2 | B142: 13 | C142: 2013 | D142: 347 | E142: 4 | F142: 2 | G142: 4 | H142: 2 | I142: 5 | J142: 0 | K142: 0 | L142: 0 | M142: 0 | N142: 0 | O142: 0.0002862618236 | P142: 1.018155463e-43 | Q142: 1.065478799e-42 | R142: 1.620519161e-43 | S142: 3.700334901e-43 | T142: 0 | U142: 0 | V142: 0 | W142: 0 | X142: 0 | Y142: 0 | Z142: 0 | AA142: 0 | AB142: 0 | AC142: 0 | AD142: 0 | AE142: 0 | AF142: 0 | AG142: 0 | AH142: 0 | AI142: 0 | AJ142: 0 | AK142: 0 | AL142: 0 | AM142: 0 | AN142: 0 | AO142: 0 | AP142: 0 | AQ142: 0 | AR142: 0 | AS142: 0 | AT142: 0 | AU142: 0 | AV142: 0 | AW142: 0 | AX142: 0 | AY142: 0 | AZ142: 0 | BA142: 0 | BB142: 0 | BC142: 0 | BD142: 0 | BE142: 0 | BF142: 0 | BG142: 0 | BH142: 0 | BI142: 0 | BJ142: 0 | BK142: 0 | BL142: 0 | BM142: 0 | BN142: 0 | BO142: 0 | BP142: 0 | BQ142: 0 | BR142: 0 | BS142: 0 | BT142: 0 | BU142: 0 | BV142: 0 | BW142: 0 | BX142: 0 | BY142: 0 | BZ142: 0 | CA142: 0 | CB142: 0 | CC142: 0 | CD142: 0 | CE142: 0.0002862618236 | CF142: 0 | CG142: 0 | CH142: 0 | CI142: 0 | CJ142: 0 | CK142: 0 | CL142: 0 | CM142: 0 | CN142: 0 | CO142: 0 | CP142: 0 | CQ142: 0 | CR142: 0 | CS142: 0 | CT142: 0 | CU142: 0 | CV142: 0 | CW142: 0 | CX142: 0 | CY142: 0 | CZ142: 0 | DA142: 0 | DB142: 0 | DC142: =INDEX(LOOKUP!$G$2:$G$6,MATCH($A142,LOOKUP!$I$2:$I$6,0)) -> PACIFIC
A143: 2 | B143: 13 | C143: 2013 | D143: 349 | E143: 4 | F143: 2 | G143: 4 | H143: 2 | I143: 7 | J143: 0 | K143: 0 | L143: 0 | M143: 0 | N143: 0 | O143: 0.0001597935673 | P143: 8.252057915e-06 | Q143: 0.0001677148063 | R143: 2.106637356e-05 | S143: 0.000407562886 | T143: 0 | U143: 0 | V143: 0 | W143: 0 | X143: 0 | Y143: 0 | Z143: 0 | AA143: 0 | AB143: 0 | AC143: 0 | AD143: 0 | AE143: 0 | AF143: 0 | AG143: 0 | AH143: 0 | AI143: 0 | AJ143: 0 | AK143: 0 | AL143: 0 | AM143: 0 | AN143: 0 | AO143: 0 | AP143: 0 | AQ143: 0 | AR143: 0 | AS143: 0 | AT143: 0 | AU143: 0 | AV143: 0 | AW143: 0 | AX143: 0 | AY143: 0 | AZ143: 0 | BA143: 0 | BB143: 0 | BC143: 0 | BD143: 0 | BE143: 0 | BF143: 0 | BG143: 0 | BH143: 0 | BI143: 0 | BJ143: 0 | BK143: 0 | BL143: 0 | BM143: 0 | BN143: 0 | BO143: 0 | BP143: 0 | BQ143: 0 | BR143: 0 | BS143: 0 | BT143: 0 | BU143: 0 | BV143: 0 | BW143: 0 | BX143: 0 | BY143: 0 | BZ143: 0 | CA143: 0 | CB143: 0 | CC143: 0 | CD143: 0 | CE143: 0.000764389691 | CF143: 0 | CG143: 0 | CH143: 0 | CI143: 0 | CJ143: 0 | CK143: 0 | CL143: 0 | CM143: 0 | CN143: 0 | CO143: 0 | CP143: 0 | CQ143: 0 | CR143: 0 | CS143: 0 | CT143: 0 | CU143: 0 | CV143: 0 | CW143: 0 | CX143: 0 | CY143: 0 | CZ143: 0 | DA143: 0 | DB143: 0 | DC143: =INDEX(LOOKUP!$G$2:$G$6,MATCH($A143,LOOKUP!$I$2:$I$6,0)) -> PACIFIC
A144: 2 | B144: 13 | C144: 2013 | D144: 352 | E144: 4 | F144: 2 | G144: 1 | H144: 3 | I144: 1 | J144: 0 | K144: 0 | L144: 0 | M144: 0 | N144: 0 | O144: 0.0007305274418 | P144: 3.086006494e-05 | Q144: 0.004761184242 | R144: 0.002333011099 | S144: 0.004774896929 | T144: 0 | U144: 0 | V144: 0 | W144: 0 | X144: 0 | Y144: 0 | Z144: 0 | AA144: 0 | AB144: 0 | AC144: 0 | AD144: 0 | AE144: 0 | AF144: 0 | AG144: 0 | AH144: 0 | AI144: 0 | AJ144: 0 | AK144: 0 | AL144: 0 | AM144: 0 | AN144: 0 | AO144: 0 | AP144: 0 | AQ144: 0 | AR144: 0 | AS144: 0 | AT144: 0 | AU144: 0 | AV144: 0 | AW144: 0 | AX144: 0 | AY144: 0 | AZ144: 0 | BA144: 0 | BB144: 0 | BC144: 0 | BD144: 0 | BE144: 0 | BF144: 0 | BG144: 0 | BH144: 0 | BI144: 0 | BJ144: 0 | BK144: 0 | BL144: 0 | BM144: 0 | BN144: 0 | BO144: 0 | BP144: 0 | BQ144: 0 | BR144: 0 | BS144: 0 | BT144: 0 | BU144: 0 | BV144: 0 | BW144: 0 | BX144: 0 | BY144: 0 | BZ144: 0 | CA144: 0 | CB144: 0 | CC144: 0 | CD144: 0 | CE144: 0.01263047978 | CF144: 0 | CG144: 0 | CH144: 0 | CI144: 0 | CJ144: 0 | CK144: 0 | CL144: 0 | CM144: 0 | CN144: 0 | CO144: 0 | CP144: 0 | CQ144: 0 | CR144: 0 | CS144: 0 | CT144: 0 | CU144: 0 | CV144: 0 | CW144: 0 | CX144: 0 | CY144: 0 | CZ144: 0 | DA144: 0 | DB144: 0 | DC144: =INDEX(LOOKUP!$G$2:$G$6,MATCH($A144,LOOKUP!$I$2:$I$6,0)) -> PACIFIC
A145: 2 | B145: 13 | C145: 2013 | D145: 353 | E145: 4 | F145: 2 | G145: 2 | H145: 3 | I145: 2 | J145: 0 | K145: 0 | L145: 0 | M145: 0 | N145: 0 | O145: 0.08559923525 | P145: 0.2999169211 | Q145: 0.04504203354 | R145: 0.03427228021 | S145: 0.2969692485 | T145: 0 | U145: 0 | V145: 0 | W145: 0 | X145: 0 | Y145: 0 | Z145: 20565.96256 | AA145: 45155.4916 | AB145: 45155.4916 | AC145: 45155.4916 | AD145: 0 | AE145: 0 | AF145: 0 | AG145: 0 | AH145: 0 | AI145: 0 | AJ145: 59.7538037 | AK145: 123.3694957 | AL145: 123.3694957 | AM145: 123.3694957 | AN145: 0 | AO145: 0 | AP145: 0 | AQ145: 0 | AR145: 0 | AS145: 0 | AT145: 9.77506639e-10 | AU145: 1.009094766e-09 | AV145: 1.009094766e-09 | AW145: 1.009094766e-09 | AX145: 0 | AY145: 0 | AZ145: 0 | BA145: 0 | BB145: 0 | BC145: 0 | BD145: 1e-09 | BE145: 1.032315e-09 | BF145: 1.032315e-09 | BG145: 1.032315e-09 | BH145: 0 | BI145: 0 | BJ145: 0 | BK145: 0 | BL145: 0 | BM145: 0 | BN145: 0.2999169211 | BO145: 0.04504203354 | BP145: 0.03427228021 | BQ145: 0.2969692485 | BR145: 0 | BS145: 0 | BT145: 0 | BU145: 0 | BV145: 0 | BW145: 0 | BX145: 0.2999169211 | BY145: 0.04504203354 | BZ145: 0.03427228021 | CA145: 0.2969692485 | CB145: 0 | CC145: 0.6762004834 | CD145: 0.6762004834 | CE145: 0.7617997186 | CF145: 0 | CG145: 0 | CH145: 0 | CI145: 0 | CJ145: 0 | CK145: 0 | CL145: 6168.08017 | CM145: 2033.895167 | CN145: 1547.581661 | CO145: 13409.79241 | CP145: 0 | CQ145: 0 | CR145: 0 | CS145: 0 | CT145: 0 | CU145: 0 | CV145: 17.92117683 | CW145: 5.556812965 | CX145: 4.228153927 | CY145: 36.63694644 | CZ145: 0 | DA145: 64.34309016 | DB145: 64.34309016 | DC145: =INDEX(LOOKUP!$G$2:$G$6,MATCH($A145,LOOKUP!$I$2:$I$6,0)) -> PACIFIC
A146: 2 | B146: 13 | C146: 2013 | D146: 354 | E146: 4 | F146: 2 | G146: 3 | H146: 3 | I146: 3 | J146: 0 | K146: 0 | L146: 0 | M146: 0 | N146: 0 | O146: 0.1428517775 | P146: 1.602541648 | Q146: 0.401944222 | R146: 0.2294202766 | S146: 3.959696296 | T146: 0 | U146: 0 | V146: 0 | W146: 0 | X146: 0 | Y146: 0 | Z146: 21482.7512 | AA146: 70872.867 | AB146: 70872.867 | AC146: 157420.7942 | AD146: 0 | AE146: 0 | AF146: 0 | AG146: 0 | AH146: 0 | AI146: 0 | AJ146: 1.233694957e-09 | AK146: 179.4675617 | AL146: 179.4675617 | AM146: 120.2664779 | AN146: 0 | AO146: 0 | AP146: 0 | AQ146: 0 | AR146: 0 | AS146: 0 | AT146: 1.009094766e-09 | AU146: 440.3838472 | AV146: 440.3838472 | AW146: 39.53847021 | AX146: 0 | AY146: 0 | AZ146: 0 | BA146: 0 | BB146: 0 | BC146: 0 | BD146: 1.032315e-09 | BE146: 1.00115e-09 | BF146: 1.00115e-09 | BG146: 298.8076627 | BH146: 0 | BI146: 0 | BJ146: 0 | BK146: 0 | BL146: 0 | BM146: 0 | BN146: 1.602541648 | BO146: 0.401944222 | BP146: 0.2294202766 | BQ146: 3.959696296 | BR146: 0 | BS146: 0 | BT146: 0 | BU146: 0 | BV146: 0 | BW146: 0 | BX146: 1.602541648 | BY146: 0.401944222 | BZ146: 0.2294202766 | CA146: 3.959696296 | CB146: 0 | CC146: 6.193602443 | CD146: 6.193602443 | CE146: 6.33645422 | CF146: 0 | CG146: 0 | CH146: 0 | CI146: 0 | CJ146: 0 | CK146: 0 | CL146: 34427.00351 | CM146: 28486.93939 | CN146: 16259.67275 | CO146: 623338.5358 | CP146: 0 | CQ146: 0 | CR146: 0 | CS146: 0 | CT146: 0 | CU146: 0 | CV146: 3.732024587e-09 | CW146: 249.1456923 | CX146: 142.2064817 | CY146: 731.3780276 | CZ146: 0 | DA146: 1122.730202 | DB146: 1122.730202 | DC146: =INDEX(LOOKUP!$G$2:$G$6,MATCH($A146,LOOKUP!$I$2:$I$6,0)) -> PACIFIC
A147: 2 | B147: 13 | C147: 2013 | D147: 356 | E147: 4 | F147: 2 | G147: 4 | H147: 3 | I147: 5 | J147: 0 | K147: 0 | L147: 0 | M147: 0 | N147: 0 | O147: 0.001601791482 | P147: 6.224191603e-43 | Q147: 1.228236875e-41 | R147: 5.772410972e-42 | S147: 1.106124311e-41 | T147: 0 | U147: 0 | V147: 0 | W147: 0 | X147: 0 | Y147: 0 | Z147: 0 | AA147: 0 | AB147: 0 | AC147: 0 | AD147: 0 | AE147: 0 | AF147: 0 | AG147: 0 | AH147: 0 | AI147: 0 | AJ147: 0 | AK147: 0 | AL147: 0 | AM147: 0 | AN147: 0 | AO147: 0 | AP147: 0 | AQ147: 0 | AR147: 0 | AS147: 0 | AT147: 0 | AU147: 0 | AV147: 0 | AW147: 0 | AX147: 0 | AY147: 0 | AZ147: 0 | BA147: 0 | BB147: 0 | BC147: 0 | BD147: 0 | BE147: 0 | BF147: 0 | BG147: 0 | BH147: 0 | BI147: 0 | BJ147: 0 | BK147: 0 | BL147: 0 | BM147: 0 | BN147: 0 | BO147: 0 | BP147: 0 | BQ147: 0 | BR147: 0 | BS147: 0 | BT147: 0 | BU147: 0 | BV147: 0 | BW147: 0 | BX147: 0 | BY147: 0 | BZ147: 0 | CA147: 0 | CB147: 0 | CC147: 0 | CD147: 0 | CE147: 0.001601791482 | CF147: 0 | CG147: 0 | CH147: 0 | CI147: 0 | CJ147: 0 | CK147: 0 | CL147: 0 | CM147: 0 | CN147: 0 | CO147: 0 | CP147: 0 | CQ147: 0 | CR147: 0 | CS147: 0 | CT147: 0 | CU147: 0 | CV147: 0 | CW147: 0 | CX147: 0 | CY147: 0 | CZ147: 0 | DA147: 0 | DB147: 0 | DC147: =INDEX(LOOKUP!$G$2:$G$6,MATCH($A147,LOOKUP!$I$2:$I$6,0)) -> PACIFIC
A148: 2 | B148: 13 | C148: 2013 | D148: 358 | E148: 4 | F148: 2 | G148: 4 | H148: 3 | I148: 7 | J148: 0 | K148: 0 | L148: 0 | M148: 0 | N148: 0 | O148: 0.001486977392 | P148: 8.159424689e-05 | Q148: 0.0004461628735 | R148: 5.527451863e-05 | S148: 0.002204981152 | T148: 0 | U148: 0 | V148: 0 | W148: 0 | X148: 0 | Y148: 0 | Z148: 0 | AA148: 0 | AB148: 0 | AC148: 0 | AD148: 0 | AE148: 0 | AF148: 0 | AG148: 0 | AH148: 0 | AI148: 0 | AJ148: 0 | AK148: 0 | AL148: 0 | AM148: 0 | AN148: 0 | AO148: 0 | AP148: 0 | AQ148: 0 | AR148: 0 | AS148: 0 | AT148: 0 | AU148: 0 | AV148: 0 | AW148: 0 | AX148: 0 | AY148: 0 | AZ148: 0 | BA148: 0 | BB148: 0 | BC148: 0 | BD148: 0 | BE148: 0 | BF148: 0 | BG148: 0 | BH148: 0 | BI148: 0 | BJ148: 0 | BK148: 0 | BL148: 0 | BM148: 0 | BN148: 0 | BO148: 0 | BP148: 0 | BQ148: 0 | BR148: 0 | BS148: 0 | BT148: 0 | BU148: 0 | BV148: 0 | BW148: 0 | BX148: 0 | BY148: 0 | BZ148: 0 | CA148: 0 | CB148: 0 | CC148: 0 | CD148: 0 | CE148: 0.004274990183 | CF148: 0 | CG148: 0 | CH148: 0 | CI148: 0 | CJ148: 0 | CK148: 0 | CL148: 0 | CM148: 0 | CN148: 0 | CO148: 0 | CP148: 0 | CQ148: 0 | CR148: 0 | CS148: 0 | CT148: 0 | CU148: 0 | CV148: 0 | CW148: 0 | CX148: 0 | CY148: 0 | CZ148: 0 | DA148: 0 | DB148: 0 | DC148: =INDEX(LOOKUP!$G$2:$G$6,MATCH($A148,LOOKUP!$I$2:$I$6,0)) -> PACIFIC
A149: 2 | B149: 13 | C149: 2013 | D149: 405 | E149: 5 | F149: 0 | G149: 0 | H149: 0 | I149: 0 | J149: 0.001258620362 | K149: 0.005635775732 | L149: 0.009217072988 | M149: 0.00031043796 | N149: 0.1365952525 | O149: 0 | P149: 0 | Q149: 0 | R149: 0 | S149: 0 | T149: 37347.1472 | U149: 37347.1472 | V149: 37347.1472 | W149: 0 | X149: 56971.9216 | Y149: 0 | Z149: 0 | AA149: 0 | AB149: 0 | AC149: 0 | AD149: 131.4583681 | AE149: 131.4583681 | AF149: 131.4583681 | AG149: 0 | AH149: 167.3106504 | AI149: 0 | AJ149: 0 | AK149: 0 | AL149: 0 | AM149: 0 | AN149: 117.3007967 | AO149: 117.3007967 | AP149: 117.3007967 | AQ149: 0 | AR149: 87.97559751 | AS149: 0 | AT149: 0 | AU149: 0 | AV149: 0 | AW149: 0 | AX149: 1e-09 | AY149: 1e-09 | AZ149: 1e-09 | BA149: 0 | BB149: 1e-09 | BC149: 0 | BD149: 0 | BE149: 0 | BF149: 0 | BG149: 0 | BH149: 0.001258620362 | BI149: 0.005635775732 | BJ149: 0.009217072988 | BK149: 0 | BL149: 0.1365952525 | BM149: 0 | BN149: 0 | BO149: 0 | BP149: 0 | BQ149: 0 | BR149: 0.001258620362 | BS149: 0.005635775732 | BT149: 0.009217072988 | BU149: 0 | BV149: 0.1365952525 | BW149: 0 | BX149: 0 | BY149: 0 | BZ149: 0 | CA149: 0 | CB149: 0.1527067216 | CC149: 0 | CD149: 0.1527067216 | CE149: 0.1530171596 | CF149: 47.00587994 | CG149: 210.4801458 | CH149: 344.2313816 | CI149: 0 | CJ149: 7782.094019 | CK149: 0 | CL149: 0 | CM149: 0 | CN149: 0 | CO149: 0 | CP149: 0.3130933501 | CQ149: 1.401950864 | CR149: 2.292831379 | CS149: 0 | CT149: 34.8708895 | CU149: 0 | CV149: 0 | CW149: 0 | CX149: 0 | CY149: 0 | CZ149: 38.87876509 | DA149: 0 | DB149: 38.87876509 | DC149: =INDEX(LOOKUP!$G$2:$G$6,MATCH($A149,LOOKUP!$I$2:$I$6,0)) -> PACIFIC
A150: 2 | B150: 13 | C150: 2013 | D150: 406 | E150: 5 | F150: 0 | G150: 1 | H150: 0 | I150: 1 | J150: 0 | K150: 0 | L150: 0 | M150: 0 | N150: 0 | O150: 0.006642975749 | P150: 0.02301602525 | Q150: 0.0247693518 | R150: 0.002545328267 | S150: 0.07448896143 | T150: 0 | U150: 0 | V150: 0 | W150: 0 | X150: 0 | Y150: 0 | Z150: 0 | AA150: 0 | AB150: 0 | AC150: 97223.0355 | AD150: 0 | AE150: 0 | AF150: 0 | AG150: 0 | AH150: 0 | AI150: 0 | AJ150: 0 | AK150: 0 | AL150: 0 | AM150: 227.3255782 | AN150: 0 | AO150: 0 | AP150: 0 | AQ150: 0 | AR150: 0 | AS150: 0 | AT150: 0 | AU150: 0 | AV150: 0 | AW150: 195.7261543 | AX150: 0 | AY150: 0 | AZ150: 0 | BA150: 0 | BB150: 0 | BC150: 0 | BD150: 0 | BE150: 0 | BF150: 0 | BG150: 1.00115e-09 | BH150: 0 | BI150: 0 | BJ150: 0 | BK150: 0 | BL150: 0 | BM150: 0 | BN150: 0 | BO150: 0 | BP150: 0 | BQ150: 0.07448896143 | BR150: 0 | BS150: 0 | BT150: 0 | BU150: 0 | BV150: 0 | BW150: 0 | BX150: 0 | BY150: 0 | BZ150: 0 | CA150: 0.07448896143 | CB150: 0 | CC150: 0.07448896143 | CD150: 0.07448896143 | CE150: 0.1314626425 | CF150: 0 | CG150: 0 | CH150: 0 | CI150: 0 | CJ150: 0 | CK150: 0 | CL150: 0 | CM150: 0 | CN150: 0 | CO150: 7242.042941 | CP150: 0 | CQ150: 0 | CR150: 0 | CS150: 0 | CT150: 0 | CU150: 0 | CV150: 0 | CW150: 0 | CX150: 0 | CY150: 31.51268418 | CZ150: 0 | DA150: 31.51268418 | DB150: 31.51268418 | DC150: =INDEX(LOOKUP!$G$2:$G$6,MATCH($A150,LOOKUP!$I$2:$I$6,0)) -> PACIFIC
A151: 2 | B151: 13 | C151: 2013 | D151: 407 | E151: 5 | F151: 0 | G151: 2 | H151: 0 | I151: 2 | J151: 0.02608042833 | K151: 0.04687678908 | L151: 0.1027170977 | M151: 0.04194827808 | N151: 0.3403446776 | O151: 0.04119854103 | P151: 0.09308344454 | Q151: 0.08441404772 | R151: 7.881535707e-05 | S151: 0.02456907752 | T151: 7781.850638 | U151: 21790.205 | V151: 44617.25353 | W151: 50321.51675 | X151: 160192.6768 | Y151: 18083.40118 | Z151: 27004.1631 | AA151: 72690.12 | AB151: 72690.12 | AC151: 122463.0853 | AD151: 44.12588581 | AE151: 147.025544 | AF151: 250.7766841 | AG151: 287.4027046 | AH151: 334.8220333 | AI151: 442.864941 | AJ151: 668.8167958 | AK151: 1.196450411e-09 | AL151: 1.196450411e-09 | AM151: 295.294354 | AN151: 9.840987934e-10 | AO151: 9.940302608e-10 | AP151: 2.416372277 | AQ151: 14.73607567 | AR151: 13.90160303 | AS151: 1.006559603e-09 | AT151: 9.946462404e-10 | AU151: 9.786307716e-10 | AV151: 9.786307716e-10 | AW151: 9.855109925e-10 | AX151: 30.76923077 | AY151: 1.016903846e-09 | AZ151: 114.9003967 | BA151: 158.6574993 | BB151: 51.52408202 | BC151: 1.0297215e-09 | BD151: 1.017534e-09 | BE151: 1.00115e-09 | BF151: 1.00115e-09 | BG151: 1.008188541e-09 | BH151: 0.02608042833 | BI151: 0.04687678908 | BJ151: 0.1027170977 | BK151: 0.04194827808 | BL151: 0.3403446776 | BM151: 0.04119854103 | BN151: 0.09308344454 | BO151: 0.08441404772 | BP151: 7.881535707e-05 | BQ151: 0.02456907752 | BR151: 0.02608042833 | BS151: 0.04687678908 | BT151: 0.1027170977 | BU151: 0.04194827808 | BV151: 0.3403446776 | BW151: 0.04119854103 | BX151: 0.09308344454 | BY151: 0.08441404772 | BZ151: 7.881535707e-05 | CA151: 0.02456907752 | CB151: 0.5579672708 | CC151: 0.2433439262 | CD151: 0.801311197 | CE151: 0.801311197 | CF151: 202.9539979 | CG151: 1021.454844 | CH151: 4582.95479 | CI151: 2110.900978 | CJ151: 54520.72494 | CK151: 745.0097454 | CL151: 2513.640518 | CM151: 6136.067258 | CN151: 5.729097763 | CO151: 3008.805037 | CP151: 1.217694896 | CQ151: 6.892085415 | CR151: 26.99077552 | CS151: 13.22881898 | CT151: 120.1475625 | CU151: 18.24538944 | CV151: 62.25577112 | CW151: 1.906500004e-10 | CX151: 1.780052997e-13 | CY151: 7.255109876 | CZ151: 168.4769373 | DA151: 87.75627044 | DB151: 256.2332077 | DC151: =INDEX(LOOKUP!$G$2:$G$6,MATCH($A151,LOOKUP!$I$2:$I$6,0)) -> PACIFIC
A152: 2 | B152: 13 | C152: 2013 | D152: 408 | E152: 5 | F152: 0 | G152: 3 | H152: 0 | I152: 3 | J152: 0.5987306513 | K152: 1.169893944 | L152: 1.86663542 | M152: 0.4588479599 | N152: 6.462935384 | O152: 0.2874918219 | P152: 0.5669969633 | Q152: 0.5128692608 | R152: 0.1077823834 | S152: 0.8485068168 | T152: 10579.87549 | U152: 25250.87768 | V152: 39426.20663 | W152: 43557.96417 | X152: 120607.9591 | Y152: 28279.83651 | Z152: 21230.42426 | AA152: 41769.669 | AB152: 45059.64421 | AC152: 97281.08777 | AD152: 214.7060803 | AE152: 103.7323789 | AF152: 175.236618 | AG152: 202.3514659 | AH152: 220.8573653 | AI152: 423.046548 | AJ152: 457.5802628 | AK152: 205.8925363 | AL152: 213.8404293 | AM152: 197.9117825 | AN152: 16.05992567 | AO152: 24.81480719 | AP152: 75.32738205 | AQ152: 116.0307665 | AR152: 16.00671023 | AS152: 9.843427706e-10 | AT152: 1.007861355e-09 | AU152: 9.888432577e-10 | AV152: 9.91818831e-10 | AW152: 9.889961728e-10 | AX152: 2776.974081 | AY152: 1283.887095 | AZ152: 1516.751025 | BA152: 1358.767261 | BB152: 2091.040299 | BC152: 1212.311938 | BD152: 173.7253171 | BE152: 1669.796725 | BF152: 1288.644517 | BG152: 1806.131595 | BH152: 0.5987306513 | BI152: 1.169893944 | BJ152: 1.86663542 | BK152: 0.4588479599 | BL152: 6.462935384 | BM152: 0.2874918219 | BN152: 0.5669969633 | BO152: 0.5128692608 | BP152: 0.1077823834 | BQ152: 0.8485068168 | BR152: 0.5987306513 | BS152: 1.169893944 | BT152: 1.86663542 | BU152: 0.4588479599 | BV152: 6.462935384 | BW152: 0.2874918219 | BX152: 0.5669969633 | BY152: 0.5128692608 | BZ152: 0.1077823834 | CA152: 0.8485068168 | CB152: 10.55704336 | CC152: 2.323647246 | CD152: 12.88069061 | CE152: 12.88069061 | CF152: 6334.495745 | CG152: 29540.84888 | CH152: 73594.35375 | CI152: 19986.483 | CJ152: 779481.4465 | CK152: 8130.221723 | CL152: 12037.58609 | CM152: 21422.37926 | CN152: 4856.635847 | CO152: 82543.66612 | CP152: 276.7216394 | CQ152: 275.5542193 | CR152: 703.6467362 | CS152: 198.0446699 | CT152: 2657.02541 | CU152: 150.6665701 | CV152: 267.6550967 | CW152: 176.9615705 | CX152: 34.62266258 | CY152: 295.6390775 | CZ152: 4110.992675 | DA152: 925.5449775 | DB152: 5036.537652 | DC152: =INDEX(LOOKUP!$G$2:$G$6,MATCH($A152,LOOKUP!$I$2:$I$6,0)) -> PACIFIC
A153: 2 | B153: 13 | C153: 2013 | D153: 410 | E153: 5 | F153: 0 | G153: 4 | H153: 0 | I153: 5 | J153: 0.05107002201 | K153: 0.2841240848 | L153: 0.04775994549 | M153: 0.01248366857 | N153: 0.2351236176 | O153: 0.0580980303 | P153: 0.00267675658 | Q153: 0.005356928607 | R153: 0.0008050528013 | S153: 0.002133814507 | T153: 2502.8448 | U153: 22817.60176 | V153: 48409.69425 | W153: 46615.18754 | X153: 167202.6303 | Y153: 11400.87636 | Z153: 42131.2208 | AA153: 41274.64846 | AB153: 40484.3585 | AC153: 40484.3585 | AD153: 148.0433949 | AE153: 74.02169744 | AF153: 234.5672991 | AG153: 237.8080746 | AH153: 148.6436684 | AI153: 217.7016255 | AJ153: 160.3803445 | AK153: 145.4159659 | AL153: 131.6095453 | AM153: 131.6095453 | AN153: 1.009094766e-09 | AO153: 10.09094766 | AP153: 9.873585471e-10 | AQ153: 9.8523078e-10 | AR153: 6.708086531 | AS153: 27.00950959 | AT153: 20.18189532 | AU153: 9.684810449 | AV153: 9.786307716e-10 | AW153: 9.786307716e-10 | AX153: 2477.556 | AY153: 41.2926 | AZ153: 734.8055361 | BA153: 734.4928305 | BB153: 1058.865213 | BC153: 1132.516426 | BD153: 309.6945 | BE153: 559.9853731 | BF153: 790.9085 | BG153: 790.9085 | BH153: 0.05107002201 | BI153: 0.2841240848 | BJ153: 0.04775994549 | BK153: 0.01248366857 | BL153: 0.2351236176 | BM153: 0.0580980303 | BN153: 0.00267675658 | BO153: 0.005356928607 | BP153: 0.0008050528013 | BQ153: 0.002133814507 | BR153: 0.05107002201 | BS153: 0.2841240848 | BT153: 0.04775994549 | BU153: 0.01248366857 | BV153: 0.2351236176 | BW153: 0.0580980303 | BX153: 0.00267675658 | BY153: 0.005356928607 | BZ153: 0.0008050528013 | CA153: 0.002133814507 | CB153: 0.6305613384 | CC153: 0.0690705828 | CD153: 0.6996319212 | CE153: 0.6996319212 | CF153: 127.820339 | CG153: 6483.030217 | CH153: 2312.044358 | CI153: 581.9285517 | CJ153: 39313.2873 | CK153: 662.3684602 | CL153: 112.7750225 | CM153: 221.1053451 | CN153: 32.59204622 | CO153: 86.38611147 | CP153: 18.10464939 | CQ153: 24.87611349 | CR153: 14.12744411 | CS153: 3.732814275 | CT153: 57.27388491 | CU153: 19.70031608 | CV153: 0.5524025627 | CW153: 1.080847258 | CX153: 0.1590128917 | CY153: 0.4214680262 | CZ153: 118.1149062 | DA153: 21.91404682 | DB153: 140.028953 | DC153: =INDEX(LOOKUP!$G$2:$G$6,MATCH($A153,LOOKUP!$I$2:$I$6,0)) -> PACIFIC
A154: 2 | B154: 13 | C154: 2013 | D154: 412 | E154: 5 | F154: 0 | G154: 4 | H154: 0 | I154: 7 | J154: 0 | K154: 0 | L154: 0 | M154: 0 | N154: 0 | O154: 0.0001135473639 | P154: 1.926547997e-05 | Q154: 5.742950691e-05 | R154: 2.64090035e-05 | S154: 0.0005260019181 | T154: 0 | U154: 0 | V154: 0 | W154: 0 | X154: 0 | Y154: 0 | Z154: 0 | AA154: 0 | AB154: 0 | AC154: 0 | AD154: 0 | AE154: 0 | AF154: 0 | AG154: 0 | AH154: 0 | AI154: 0 | AJ154: 0 | AK154: 0 | AL154: 0 | AM154: 0 | AN154: 0 | AO154: 0 | AP154: 0 | AQ154: 0 | AR154: 0 | AS154: 0 | AT154: 0 | AU154: 0 | AV154: 0 | AW154: 0 | AX154: 0 | AY154: 0 | AZ154: 0 | BA154: 0 | BB154: 0 | BC154: 0 | BD154: 0 | BE154: 0 | BF154: 0 | BG154: 0 | BH154: 0 | BI154: 0 | BJ154: 0 | BK154: 0 | BL154: 0 | BM154: 0 | BN154: 0 | BO154: 0 | BP154: 0 | BQ154: 0 | BR154: 0 | BS154: 0 | BT154: 0 | BU154: 0 | BV154: 0 | BW154: 0 | BX154: 0 | BY154: 0 | BZ154: 0 | CA154: 0 | CB154: 0 | CC154: 0 | CD154: 0 | CE154: 0.0007426532724 | CF154: 0 | CG154: 0 | CH154: 0 | CI154: 0 | CJ154: 0 | CK154: 0 | CL154: 0 | CM154: 0 | CN154: 0 | CO154: 0 | CP154: 0 | CQ154: 0 | CR154: 0 | CS154: 0 | CT154: 0 | CU154: 0 | CV154: 0 | CW154: 0 | CX154: 0 | CY154: 0 | CZ154: 0 | DA154: 0 | DB154: 0 | DC154: =INDEX(LOOKUP!$G$2:$G$6,MATCH($A154,LOOKUP!$I$2:$I$6,0)) -> PACIFIC
A155: 2 | B155: 13 | C155: 2013 | D155: 414 | E155: 5 | F155: 1 | G155: 0 | H155: 1 | I155: 0 | J155: 0.0009919744471 | K155: 0.0001289385246 | L155: 0.0002181127687 | M155: 5.315061031e-05 | N155: 0.001027272735 | O155: 0 | P155: 0 | Q155: 0 | R155: 0 | S155: 0 | T155: 0 | U155: 0 | V155: 0 | W155: 0 | X155: 0 | Y155: 0 | Z155: 0 | AA155: 0 | AB155: 0 | AC155: 0 | AD155: 0 | AE155: 0 | AF155: 0 | AG155: 0 | AH155: 0 | AI155: 0 | AJ155: 0 | AK155: 0 | AL155: 0 | AM155: 0 | AN155: 0 | AO155: 0 | AP155: 0 | AQ155: 0 | AR155: 0 | AS155: 0 | AT155: 0 | AU155: 0 | AV155: 0 | AW155: 0 | AX155: 0 | AY155: 0 | AZ155: 0 | BA155: 0 | BB155: 0 | BC155: 0 | BD155: 0 | BE155: 0 | BF155: 0 | BG155: 0 | BH155: 0 | BI155: 0 | BJ155: 0 | BK155: 0 | BL155: 0 | BM155: 0 | BN155: 0 | BO155: 0 | BP155: 0 | BQ155: 0 | BR155: 0 | BS155: 0 | BT155: 0 | BU155: 0 | BV155: 0 | BW155: 0 | BX155: 0 | BY155: 0 | BZ155: 0 | CA155: 0 | CB155: 0 | CC155: 0 | CD155: 0 | CE155: 0.002419449086 | CF155: 0 | CG155: 0 | CH155: 0 | CI155: 0 | CJ155: 0 | CK155: 0 | CL155: 0 | CM155: 0 | CN155: 0 | CO155: 0 | CP155: 0 | CQ155: 0 | CR155: 0 | CS155: 0 | CT155: 0 | CU155: 0 | CV155: 0 | CW155: 0 | CX155: 0 | CY155: 0 | CZ155: 0 | DA155: 0 | DB155: 0 | DC155: =INDEX(LOOKUP!$G$2:$G$6,MATCH($A155,LOOKUP!$I$2:$I$6,0)) -> PACIFIC
A156: 2 | B156: 13 | C156: 2013 | D156: 415 | E156: 5 | F156: 1 | G156: 1 | H156: 1 | I156: 1 | J156: 0 | K156: 0 | L156: 0 | M156: 0 | N156: 0 | O156: 0.0003108285494 | P156: 1.328777453e-05 | Q156: 0.0001839114529 | R156: 8.818289672e-05 | S156: 0.0005206418558 | T156: 0 | U156: 0 | V156: 0 | W156: 0 | X156: 0 | Y156: 0 | Z156: 0 | AA156: 0 | AB156: 0 | AC156: 0 | AD156: 0 | AE156: 0 | AF156: 0 | AG156: 0 | AH156: 0 | AI156: 0 | AJ156: 0 | AK156: 0 | AL156: 0 | AM156: 0 | AN156: 0 | AO156: 0 | AP156: 0 | AQ156: 0 | AR156: 0 | AS156: 0 | AT156: 0 | AU156: 0 | AV156: 0 | AW156: 0 | AX156: 0 | AY156: 0 | AZ156: 0 | BA156: 0 | BB156: 0 | BC156: 0 | BD156: 0 | BE156: 0 | BF156: 0 | BG156: 0 | BH156: 0 | BI156: 0 | BJ156: 0 | BK156: 0 | BL156: 0 | BM156: 0 | BN156: 0 | BO156: 0 | BP156: 0 | BQ156: 0 | BR156: 0 | BS156: 0 | BT156: 0 | BU156: 0 | BV156: 0 | BW156: 0 | BX156: 0 | BY156: 0 | BZ156: 0 | CA156: 0 | CB156: 0 | CC156: 0 | CD156: 0 | CE156: 0.001116852529 | CF156: 0 | CG156: 0 | CH156: 0 | CI156: 0 | CJ156: 0 | CK156: 0 | CL156: 0 | CM156: 0 | CN156: 0 | CO156: 0 | CP156: 0 | CQ156: 0 | CR156: 0 | CS156: 0 | CT156: 0 | CU156: 0 | CV156: 0 | CW156: 0 | CX156: 0 | CY156: 0 | CZ156: 0 | DA156: 0 | DB156: 0 | DC156: =INDEX(LOOKUP!$G$2:$G$6,MATCH($A156,LOOKUP!$I$2:$I$6,0)) -> PACIFIC
A157: 2 | B157: 13 | C157: 2013 | D157: 416 | E157: 5 | F157: 1 | G157: 2 | H157: 1 | I157: 2 | J157: 0.00696611734 | K157: 0.00329455666 | L157: 0.003506659852 | M157: 0.004894750815 | N157: 0.0539036996 | O157: 0.0003478686668 | P157: 6.468743805e-06 | Q157: 2.968495249e-08 | R157: 1.601205251e-08 | S157: 3.303227406e-07 | T157: 0 | U157: 0 | V157: 0 | W157: 70124.706 | X157: 70124.706 | Y157: 0 | Z157: 0 | AA157: 0 | AB157: 0 | AC157: 0 | AD157: 0 | AE157: 0 | AF157: 0 | AG157: 158.0839699 | AH157: 158.0839699 | AI157: 0 | AJ157: 0 | AK157: 0 | AL157: 0 | AM157: 0 | AN157: 0 | AO157: 0 | AP157: 0 | AQ157: 9.946462404e-10 | AR157: 9.946462404e-10 | AS157: 0 | AT157: 0 | AU157: 0 | AV157: 0 | AW157: 0 | AX157: 0 | AY157: 0 | AZ157: 0 | BA157: 661.3971 | BB157: 661.3971 | BC157: 0 | BD157: 0 | BE157: 0 | BF157: 0 | BG157: 0 | BH157: 0 | BI157: 0 | BJ157: 0 | BK157: 0.004894750815 | BL157: 0.0539036996 | BM157: 0 | BN157: 0 | BO157: 0 | BP157: 0 | BQ157: 0 | BR157: 0 | BS157: 0 | BT157: 0 | BU157: 0.004894750815 | BV157: 0.0539036996 | BW157: 0 | BX157: 0 | BY157: 0 | BZ157: 0 | CA157: 0 | CB157: 0.05879845041 | CC157: 0 | CD157: 0.05879845041 | CE157: 0.0729204977 | CF157: 0 | CG157: 0 | CH157: 0 | CI157: 343.2429619 | CJ157: 3779.981087 | CK157: 0 | CL157: 0 | CM157: 0 | CN157: 0 | CO157: 0 | CP157: 0 | CQ157: 0 | CR157: 0 | CS157: 1.043562807 | CT157: 11.49229004 | CU157: 0 | CV157: 0 | CW157: 0 | CX157: 0 | CY157: 0 | CZ157: 12.53585285 | DA157: 0 | DB157: 12.53585285 | DC157: =INDEX(LOOKUP!$G$2:$G$6,MATCH($A157,LOOKUP!$I$2:$I$6,0)) -> PACIFIC
A158: 2 | B158: 13 | C158: 2013 | D158: 417 | E158: 5 | F158: 1 | G158: 3 | H158: 1 | I158: 3 | J158: 0.007971078435 | K158: 0.0005917260244 | L158: 0.001090701292 | M158: 0.00017937475 | N158: 0.002758773652 | O158: 0.01190052323 | P158: 0.00605639604 | Q158: 0.004761089371 | R158: 0.001292669164 | S158: 0.2057341781 | T158: 0 | U158: 0 | V158: 0 | W158: 0 | X158: 0 | Y158: 0 | Z158: 0 | AA158: 0 | AB158: 0 | AC158: 129642.6057 | AD158: 0 | AE158: 0 | AF158: 0 | AG158: 0 | AH158: 0 | AI158: 0 | AJ158: 0 | AK158: 0 | AL158: 0 | AM158: 1.225564666e-09 | AN158: 0 | AO158: 0 | AP158: 0 | AQ158: 0 | AR158: 0 | AS158: 0 | AT158: 0 | AU158: 0 | AV158: 0 | AW158: 1.002444634e-09 | AX158: 0 | AY158: 0 | AZ158: 0 | BA158: 0 | BB158: 0 | BC158: 0 | BD158: 0 | BE158: 0 | BF158: 0 | BG158: 325.9942105 | BH158: 0 | BI158: 0 | BJ158: 0 | BK158: 0 | BL158: 0 | BM158: 0 | BN158: 0 | BO158: 0 | BP158: 0 | BQ158: 0.2057341781 | BR158: 0 | BS158: 0 | BT158: 0 | BU158: 0 | BV158: 0 | BW158: 0 | BX158: 0 | BY158: 0 | BZ158: 0 | CA158: 0.2057341781 | CB158: 0 | CC158: 0.2057341781 | CD158: 0.2057341781 | CE158: 0.2423365101 | CF158: 0 | CG158: 0 | CH158: 0 | CI158: 0 | CJ158: 0 | CK158: 0 | CL158: 0 | CM158: 0 | CN158: 0 | CO158: 26671.91493 | CP158: 0 | CQ158: 0 | CR158: 0 | CS158: 0 | CT158: 0 | CU158: 0 | CV158: 0 | CW158: 0 | CX158: 0 | CY158: 5.589012582 | CZ158: 0 | DA158: 5.589012582 | DB158: 5.589012582 | DC158: =INDEX(LOOKUP!$G$2:$G$6,MATCH($A158,LOOKUP!$I$2:$I$6,0)) -> PACIFIC
A159: 2 | B159: 13 | C159: 2013 | D159: 419 | E159: 5 | F159: 1 | G159: 4 | H159: 1 | I159: 5 | J159: 0.0004078326913 | K159: 6.671361169e-05 | L159: 0.0001126658691 | M159: 2.443083801e-05 | N159: 0.002497476827 | O159: 0.0001417089983 | P159: 7.841001861e-44 | Q159: 6.896913381e-44 | R159: 1.889027749e-44 | S159: 2.032016155e-43 | T159: 0 | U159: 0 | V159: 0 | W159: 0 | X159: 0 | Y159: 0 | Z159: 0 | AA159: 0 | AB159: 0 | AC159: 0 | AD159: 0 | AE159: 0 | AF159: 0 | AG159: 0 | AH159: 0 | AI159: 0 | AJ159: 0 | AK159: 0 | AL159: 0 | AM159: 0 | AN159: 0 | AO159: 0 | AP159: 0 | AQ159: 0 | AR159: 0 | AS159: 0 | AT159: 0 | AU159: 0 | AV159: 0 | AW159: 0 | AX159: 0 | AY159: 0 | AZ159: 0 | BA159: 0 | BB159: 0 | BC159: 0 | BD159: 0 | BE159: 0 | BF159: 0 | BG159: 0 | BH159: 0 | BI159: 0 | BJ159: 0 | BK159: 0 | BL159: 0 | BM159: 0 | BN159: 0 | BO159: 0 | BP159: 0 | BQ159: 0 | BR159: 0 | BS159: 0 | BT159: 0 | BU159: 0 | BV159: 0 | BW159: 0 | BX159: 0 | BY159: 0 | BZ159: 0 | CA159: 0 | CB159: 0 | CC159: 0 | CD159: 0 | CE159: 0.003250828835 | CF159: 0 | CG159: 0 | CH159: 0 | CI159: 0 | CJ159: 0 | CK159: 0 | CL159: 0 | CM159: 0 | CN159: 0 | CO159: 0 | CP159: 0 | CQ159: 0 | CR159: 0 | CS159: 0 | CT159: 0 | CU159: 0 | CV159: 0 | CW159: 0 | CX159: 0 | CY159: 0 | CZ159: 0 | DA159: 0 | DB159: 0 | DC159: =INDEX(LOOKUP!$G$2:$G$6,MATCH($A159,LOOKUP!$I$2:$I$6,0)) -> PACIFIC
A160: 2 | B160: 13 | C160: 2013 | D160: 421 | E160: 5 | F160: 1 | G160: 4 | H160: 1 | I160: 7 | J160: 0 | K160: 0 | L160: 0 | M160: 0 | N160: 0 | O160: 0.0001224623559 | P160: 5.69166453e-06 | Q160: 1.470384782e-05 | R160: 1.211831725e-06 | S160: 0.0002343482943 | T160: 0 | U160: 0 | V160: 0 | W160: 0 | X160: 0 | Y160: 0 | Z160: 0 | AA160: 0 | AB160: 0 | AC160: 0 | AD160: 0 | AE160: 0 | AF160: 0 | AG160: 0 | AH160: 0 | AI160: 0 | AJ160: 0 | AK160: 0 | AL160: 0 | AM160: 0 | AN160: 0 | AO160: 0 | AP160: 0 | AQ160: 0 | AR160: 0 | AS160: 0 | AT160: 0 | AU160: 0 | AV160: 0 | AW160: 0 | AX160: 0 | AY160: 0 | AZ160: 0 | BA160: 0 | BB160: 0 | BC160: 0 | BD160: 0 | BE160: 0 | BF160: 0 | BG160: 0 | BH160: 0 | BI160: 0 | BJ160: 0 | BK160: 0 | BL160: 0 | BM160: 0 | BN160: 0 | BO160: 0 | BP160: 0 | BQ160: 0 | BR160: 0 | BS160: 0 | BT160: 0 | BU160: 0 | BV160: 0 | BW160: 0 | BX160: 0 | BY160: 0 | BZ160: 0 | CA160: 0 | CB160: 0 | CC160: 0 | CD160: 0 | CE160: 0.0003784179943 | CF160: 0 | CG160: 0 | CH160: 0 | CI160: 0 | CJ160: 0 | CK160: 0 | CL160: 0 | CM160: 0 | CN160: 0 | CO160: 0 | CP160: 0 | CQ160: 0 | CR160: 0 | CS160: 0 | CT160: 0 | CU160: 0 | CV160: 0 | CW160: 0 | CX160: 0 | CY160: 0 | CZ160: 0 | DA160: 0 | DB160: 0 | DC160: =INDEX(LOOKUP!$G$2:$G$6,MATCH($A160,LOOKUP!$I$2:$I$6,0)) -> PACIFIC
A161: 2 | B161: 16 | C161: 2016 | D161: 0 | E161: 0 | F161: 0 | G161: 0 | H161: 0 | I161: 0 | J161: 0.002908635389 | K161: 0.0003505469908 | L161: 0.0001207947009 | M161: 8.278386023e-05 | N161: 0.03237740282 | O161: 6.245034439e-07 | P161: 3.82661544e-08 | Q161: 3.033528518e-05 | R161: 0.0001314299381 | S161: 4.109597719e-05 | T161: 0 | U161: 0 | V161: 0 | W161: 0 | X161: 101327.9168 | Y161: 0 | Z161: 0 | AA161: 0 | AB161: 0 | AC161: 0 | AD161: 0 | AE161: 0 | AF161: 0 | AG161: 0 | AH161: 361.5835196 | AI161: 0 | AJ161: 0 | AK161: 0 | AL161: 0 | AM161: 0 | AN161: 0 | AO161: 0 | AP161: 0 | AQ161: 0 | AR161: 195.5013278 | AS161: 0 | AT161: 0 | AU161: 0 | AV161: 0 | AW161: 0 | AX161: 0 | AY161: 0 | AZ161: 0 | BA161: 0 | BB161: 1e-09 | BC161: 0 | BD161: 0 | BE161: 0 | BF161: 0 | BG161: 0 | BH161: 0 | BI161: 0 | BJ161: 0 | BK161: 0 | BL161: 0.03237740282 | BM161: 0 | BN161: 0 | BO161: 0 | BP161: 0 | BQ161: 0 | BR161: 0 | BS161: 0 | BT161: 0 | BU161: 0 | BV161: 0.03237740282 | BW161: 0 | BX161: 0 | BY161: 0 | BZ161: 0 | CA161: 0 | CB161: 0.03237740282 | CC161: 0 | CD161: 0.03237740282 | CE161: 0.03604368773 | CF161: 0 | CG161: 0 | CH161: 0 | CI161: 0 | CJ161: 3280.734779 | CK161: 0 | CL161: 0 | CM161: 0 | CN161: 0 | CO161: 0 | CP161: 0 | CQ161: 0 | CR161: 0 | CS161: 0 | CT161: 18.03696051 | CU161: 0 | CV161: 0 | CW161: 0 | CX161: 0 | CY161: 0 | CZ161: 18.03696051 | DA161: 0 | DB161: 18.03696051 | DC161: =INDEX(LOOKUP!$G$2:$G$6,MATCH($A161,LOOKUP!$I$2:$I$6,0)) -> PACIFIC
A162: 2 | B162: 16 | C162: 2016 | D162: 1 | E162: 0 | F162: 0 | G162: 1 | H162: 0 | I162: 1 | J162: 6.838137206e-06 | K162: 9.209056278e-07 | L162: 1.687609197e-05 | M162: 5.894113955e-06 | N162: 0.003687281994 | O162: 1.202432878e-05 | P162: 1.979901317e-06 | Q162: 7.800184011e-05 | R162: 0.0001331345486 | S162: 0.0001625471935 | T162: 0 | U162: 0 | V162: 0 | W162: 0 | X162: 0 | Y162: 0 | Z162: 0 | AA162: 0 | AB162: 0 | AC162: 0 | AD162: 0 | AE162: 0 | AF162: 0 | AG162: 0 | AH162: 0 | AI162: 0 | AJ162: 0 | AK162: 0 | AL162: 0 | AM162: 0 | AN162: 0 | AO162: 0 | AP162: 0 | AQ162: 0 | AR162: 0 | AS162: 0 | AT162: 0 | AU162: 0 | AV162: 0 | AW162: 0 | AX162: 0 | AY162: 0 | AZ162: 0 | BA162: 0 | BB162: 0 | BC162: 0 | BD162: 0 | BE162: 0 | BF162: 0 | BG162: 0 | BH162: 0 | BI162: 0 | BJ162: 0 | BK162: 0 | BL162: 0 | BM162: 0 | BN162: 0 | BO162: 0 | BP162: 0 | BQ162: 0 | BR162: 0 | BS162: 0 | BT162: 0 | BU162: 0 | BV162: 0 | BW162: 0 | BX162: 0 | BY162: 0 | BZ162: 0 | CA162: 0 | CB162: 0 | CC162: 0 | CD162: 0 | CE162: 0.004105499056 | CF162: 0 | CG162: 0 | CH162: 0 | CI162: 0 | CJ162: 0 | CK162: 0 | CL162: 0 | CM162: 0 | CN162: 0 | CO162: 0 | CP162: 0 | CQ162: 0 | CR162: 0 | CS162: 0 | CT162: 0 | CU162: 0 | CV162: 0 | CW162: 0 | CX162: 0 | CY162: 0 | CZ162: 0 | DA162: 0 | DB162: 0 | DC162: =INDEX(LOOKUP!$G$2:$G$6,MATCH($A162,LOOKUP!$I$2:$I$6,0)) -> PACIFIC
A163: 2 | B163: 16 | C163: 2016 | D163: 2 | E163: 0 | F163: 0 | G163: 2 | H163: 0 | I163: 2 | J163: 0 | K163: 0 | L163: 0 | M163: 0 | N163: 0 | O163: 0.0001806874526 | P163: 7.673174088e-07 | Q163: 9.904183687e-07 | R163: 5.4986068e-07 | S163: 0.0003120540316 | T163: 0 | U163: 0 | V163: 0 | W163: 0 | X163: 0 | Y163: 0 | Z163: 0 | AA163: 0 | AB163: 0 | AC163: 0 | AD163: 0 | AE163: 0 | AF163: 0 | AG163: 0 | AH163: 0 | AI163: 0 | AJ163: 0 | AK163: 0 | AL163: 0 | AM163: 0 | AN163: 0 | AO163: 0 | AP163: 0 | AQ163: 0 | AR163: 0 | AS163: 0 | AT163: 0 | AU163: 0 | AV163: 0 | AW163: 0 | AX163: 0 | AY163: 0 | AZ163: 0 | BA163: 0 | BB163: 0 | BC163: 0 | BD163: 0 | BE163: 0 | BF163: 0 | BG163: 0 | BH163: 0 | BI163: 0 | BJ163: 0 | BK163: 0 | BL163: 0 | BM163: 0 | BN163: 0 | BO163: 0 | BP163: 0 | BQ163: 0 | BR163: 0 | BS163: 0 | BT163: 0 | BU163: 0 | BV163: 0 | BW163: 0 | BX163: 0 | BY163: 0 | BZ163: 0 | CA163: 0 | CB163: 0 | CC163: 0 | CD163: 0 | CE163: 0.0004950490807 | CF163: 0 | CG163: 0 | CH163: 0 | CI163: 0 | CJ163: 0 | CK163: 0 | CL163: 0 | CM163: 0 | CN163: 0 | CO163: 0 | CP163: 0 | CQ163: 0 | CR163: 0 | CS163: 0 | CT163: 0 | CU163: 0 | CV163: 0 | CW163: 0 | CX163: 0 | CY163: 0 | CZ163: 0 | DA163: 0 | DB163: 0 | DC163: =INDEX(LOOKUP!$G$2:$G$6,MATCH($A163,LOOKUP!$I$2:$I$6,0)) -> PACIFIC
A164: 2 | B164: 16 | C164: 2016 | D164: 3 | E164: 0 | F164: 0 | G164: 3 | H164: 0 | I164: 3 | J164: 0.33449974 | K164: 0.1603960902 | L164: 0.4393320864 | M164: 0.1493529013 | N164: 0.5904182918 | O164: 0.1184448638 | P164: 0.05655388989 | Q164: 0.06032257045 | R164: 0.2287269148 | S164: 0.4617997534 | T164: 22175.34684 | U164: 28759.98266 | V164: 56247.22687 | W164: 54816.95621 | X164: 126765.862 | Y164: 0 | Z164: 32469.88517 | AA164: 58468.1038 | AB164: 68085.952 | AC164: 68085.952 | AD164: 138.9883111 | AE164: 139.9720121 | AF164: 200.6263583 | AG164: 224.4201087 | AH164: 116.2216656 | AI164: 72.31670392 | AJ164: 90.17818621 | AK164: 72.9918422 | AL164: 45.19793995 | AM164: 45.19793995 | AN164: 9.821303903e-10 | AO164: 9.867109995e-10 | AP164: 9.965477375e-10 | AQ164: 9.836520323e-10 | AR164: 9.78549441e-10 | AS164: 498.5283859 | AT164: 28.97045886 | AU164: 0.9646447105 | AV164: 19.55013278 | AW164: 19.55013278 | AX164: 923.7103755 | AY164: 2805.022535 | AZ164: 2215.567893 | BA164: 1902.191462 | BB164: 3049.051029 | BC164: 1000 | BD164: 2018.193851 | BE164: 3454.550493 | BF164: 1e-09 | BG164: 1e-09 | BH164: 0.33449974 | BI164: 0.1603960902 | BJ164: 0.4393320864 | BK164: 0.1493529013 | BL164: 0.5904182918 | BM164: 0 | BN164: 0.05655388989 | BO164: 0.06032257045 | BP164: 0.2287269148 | BQ164: 0.4617997534 | BR164: 0.33449974 | BS164: 0.1603960902 | BT164: 0.4393320864 | BU164: 0.1493529013 | BV164: 0.5904182918 | BW164: 0.1184448638 | BX164: 0.05655388989 | BY164: 0.06032257045 | BZ164: 0.2287269148 | CA164: 0.4617997534 | CB164: 1.67399911 | CC164: 0.9258479923 | CD164: 2.599847102 | CE164: 2.599847102 | CF164: 7417.647754 | CG164: 4612.988772 | CH164: 24711.21153 | CI164: 8187.071449 | CJ164: 74844.88372 | CK164: 0 | CL164: 1836.298311 | CM164: 3526.946311 | CN164: 15573.08974 | CO164: 31442.07584 | CP164: 72.23996062 | CQ164: 59.94385076 | CR164: 169.2557687 | CS164: 57.19261213 | CT164: 218.6373556 | CU164: 77.48407422 | CV164: 16.24971209 | CW164: 21.82685918 | CX164: 14.80962691 | CY164: 29.90064402 | CZ164: 577.2695478 | DA164: 160.2709164 | DB164: 737.5404643 | DC164: =INDEX(LOOKUP!$G$2:$G$6,MATCH($A164,LOOKUP!$I$2:$I$6,0)) -> PACIFIC
A165: 2 | B165: 16 | C165: 2016 | D165: 5 | E165: 0 | F165: 0 | G165: 4 | H165: 0 | I165: 5 | J165: 0 | K165: 0 | L165: 0 | M165: 0 | N165: 0 | O165: 0.001735395526 | P165: 1.164689879e-06 | Q165: 0.000214381324 | R165: 0.000937388938 | S165: 0.02298065844 | T165: 0 | U165: 0 | V165: 0 | W165: 0 | X165: 0 | Y165: 33327.16426 | Z165: 0 | AA165: 78646.6715 | AB165: 78646.6715 | AC165: 184793.3744 | AD165: 0 | AE165: 0 | AF165: 0 | AG165: 0 | AH165: 0 | AI165: 115.6441723 | AJ165: 0 | AK165: 9.049983516e-10 | AL165: 9.049983516e-10 | AM165: 46.65851138 | AN165: 0 | AO165: 0 | AP165: 0 | AQ165: 0 | AR165: 0 | AS165: 1.001870503e-09 | AT165: 0 | AU165: 9.786307716e-10 | AV165: 9.786307716e-10 | AW165: 1.009094766e-09 | AX165: 0 | AY165: 0 | AZ165: 0 | BA165: 0 | BB165: 0 | BC165: 1017.534 | BD165: 0 | BE165: 1.00115e-09 | BF165: 1.00115e-09 | BG165: 2477.556 | BH165: 0 | BI165: 0 | BJ165: 0 | BK165: 0 | BL165: 0 | BM165: 0.001735395526 | BN165: 0 | BO165: 0.000214381324 | BP165: 0.000937388938 | BQ165: 0.02298065844 | BR165: 0 | BS165: 0 | BT165: 0 | BU165: 0 | BV165: 0 | BW165: 0.001735395526 | BX165: 0 | BY165: 0.000214381324 | BZ165: 0.000937388938 | CA165: 0.02298065844 | CB165: 0 | CC165: 0.02586782423 | CD165: 0.02586782423 | CE165: 0.02586898892 | CF165: 0 | CG165: 0 | CH165: 0 | CI165: 0 | CJ165: 0 | CK165: 57.83581175 | CL165: 0 | CM165: 16.86037756 | CN165: 73.72251987 | CO165: 4246.673419 | CP165: 0 | CQ165: 0 | CR165: 0 | CS165: 0 | CT165: 0 | CU165: 0.3478403752 | CV165: 0 | CW165: 4.217005606e-13 | CX165: 1.843898681e-12 | CY165: 5.816898997 | CZ165: 0 | DA165: 6.164739372 | DB165: 6.164739372 | DC165: =INDEX(LOOKUP!$G$2:$G$6,MATCH($A165,LOOKUP!$I$2:$I$6,0)) -> PACIFIC
A166: 2 | B166: 16 | C166: 2016 | D166: 7 | E166: 0 | F166: 0 | G166: 4 | H166: 0 | I166: 7 | J166: 9.827582615e-06 | K166: 1.455668578e-05 | L166: 0.0007230763987 | M166: 0.001128781393 | N166: 0.0356708335 | O166: 3.826887813e-05 | P166: 9.698292797e-29 | Q166: 1.953974284e-28 | R166: 0.0007474522868 | S166: 0.00102478909 | T166: 0 | U166: 0 | V166: 0 | W166: 0 | X166: 0 | Y166: 0 | Z166: 0 | AA166: 0 | AB166: 0 | AC166: 0 | AD166: 0 | AE166: 0 | AF166: 0 | AG166: 0 | AH166: 0 | AI166: 0 | AJ166: 0 | AK166: 0 | AL166: 0 | AM166: 0 | AN166: 0 | AO166: 0 | AP166: 0 | AQ166: 0 | AR166: 0 | AS166: 0 | AT166: 0 | AU166: 0 | AV166: 0 | AW166: 0 | AX166: 0 | AY166: 0 | AZ166: 0 | BA166: 0 | BB166: 0 | BC166: 0 | BD166: 0 | BE166: 0 | BF166: 0 | BG166: 0 | BH166: 0 | BI166: 0 | BJ166: 0 | BK166: 0 | BL166: 0 | BM166: 0 | BN166: 0 | BO166: 0 | BP166: 0 | BQ166: 0 | BR166: 0 | BS166: 0 | BT166: 0 | BU166: 0 | BV166: 0 | BW166: 0 | BX166: 0 | BY166: 0 | BZ166: 0 | CA166: 0 | CB166: 0 | CC166: 0 | CD166: 0 | CE166: 0.03935758582 | CF166: 0 | CG166: 0 | CH166: 0 | CI166: 0 | CJ166: 0 | CK166: 0 | CL166: 0 | CM166: 0 | CN166: 0 | CO166: 0 | CP166: 0 | CQ166: 0 | CR166: 0 | CS166: 0 | CT166: 0 | CU166: 0 | CV166: 0 | CW166: 0 | CX166: 0 | CY166: 0 | CZ166: 0 | DA166: 0 | DB166: 0 | DC166: =INDEX(LOOKUP!$G$2:$G$6,MATCH($A166,LOOKUP!$I$2:$I$6,0)) -> PACIFIC
A167: 2 | B167: 16 | C167: 2016 | D167: 8 | E167: 0 | F167: 0 | G167: 5 | H167: 0 | I167: 8 | J167: 0 | K167: 0 | L167: 0 | M167: 0 | N167: 0 | O167: 0 | P167: 0 | Q167: 0.001052389921 | R167: 0 | S167: 0.001264832676 | T167: 0 | U167: 0 | V167: 0 | W167: 0 | X167: 0 | Y167: 0 | Z167: 0 | AA167: 0 | AB167: 0 | AC167: 0 | AD167: 0 | AE167: 0 | AF167: 0 | AG167: 0 | AH167: 0 | AI167: 0 | AJ167: 0 | AK167: 0 | AL167: 0 | AM167: 0 | AN167: 0 | AO167: 0 | AP167: 0 | AQ167: 0 | AR167: 0 | AS167: 0 | AT167: 0 | AU167: 0 | AV167: 0 | AW167: 0 | AX167: 0 | AY167: 0 | AZ167: 0 | BA167: 0 | BB167: 0 | BC167: 0 | BD167: 0 | BE167: 0 | BF167: 0 | BG167: 0 | BH167: 0 | BI167: 0 | BJ167: 0 | BK167: 0 | BL167: 0 | BM167: 0 | BN167: 0 | BO167: 0 | BP167: 0 | BQ167: 0 | BR167: 0 | BS167: 0 | BT167: 0 | BU167: 0 | BV167: 0 | BW167: 0 | BX167: 0 | BY167: 0 | BZ167: 0 | CA167: 0 | CB167: 0 | CC167: 0 | CD167: 0 | CE167: 0.002317222597 | CF167: 0 | CG167: 0 | CH167: 0 | CI167: 0 | CJ167: 0 | CK167: 0 | CL167: 0 | CM167: 0 | CN167: 0 | CO167: 0 | CP167: 0 | CQ167: 0 | CR167: 0 | CS167: 0 | CT167: 0 | CU167: 0 | CV167: 0 | CW167: 0 | CX167: 0 | CY167: 0 | CZ167: 0 | DA167: 0 | DB167: 0 | DC167: =INDEX(LOOKUP!$G$2:$G$6,MATCH($A167,LOOKUP!$I$2:$I$6,0)) -> PACIFIC
A168: 2 | B168: 16 | C168: 2016 | D168: 9 | E168: 0 | F168: 1 | G168: 0 | H168: 1 | I168: 0 | J168: 0.002901137271 | K168: 0.0003447138843 | L168: 5.014838292e-05 | M168: 4.437311552e-05 | N168: 0.0004509938289 | O168: 2.57848484e-06 | P168: 9.979933389e-07 | Q168: 2.719507331e-05 | R168: 0.0001118873276 | S168: 0.001239579001 | T168: 0 | U168: 0 | V168: 0 | W168: 0 | X168: 0 | Y168: 0 | Z168: 0 | AA168: 0 | AB168: 0 | AC168: 0 | AD168: 0 | AE168: 0 | AF168: 0 | AG168: 0 | AH168: 0 | AI168: 0 | AJ168: 0 | AK168: 0 | AL168: 0 | AM168: 0 | AN168: 0 | AO168: 0 | AP168: 0 | AQ168: 0 | AR168: 0 | AS168: 0 | AT168: 0 | AU168: 0 | AV168: 0 | AW168: 0 | AX168: 0 | AY168: 0 | AZ168: 0 | BA168: 0 | BB168: 0 | BC168: 0 | BD168: 0 | BE168: 0 | BF168: 0 | BG168: 0 | BH168: 0 | BI168: 0 | BJ168: 0 | BK168: 0 | BL168: 0 | BM168: 0 | BN168: 0 | BO168: 0 | BP168: 0 | BQ168: 0 | BR168: 0 | BS168: 0 | BT168: 0 | BU168: 0 | BV168: 0 | BW168: 0 | BX168: 0 | BY168: 0 | BZ168: 0 | CA168: 0 | CB168: 0 | CC168: 0 | CD168: 0 | CE168: 0.005173604363 | CF168: 0 | CG168: 0 | CH168: 0 | CI168: 0 | CJ168: 0 | CK168: 0 | CL168: 0 | CM168: 0 | CN168: 0 | CO168: 0 | CP168: 0 | CQ168: 0 | CR168: 0 | CS168: 0 | CT168: 0 | CU168: 0 | CV168: 0 | CW168: 0 | CX168: 0 | CY168: 0 | CZ168: 0 | DA168: 0 | DB168: 0 | DC168: =INDEX(LOOKUP!$G$2:$G$6,MATCH($A168,LOOKUP!$I$2:$I$6,0)) -> PACIFIC
A169: 2 | B169: 16 | C169: 2016 | D169: 10 | E169: 0 | F169: 1 | G169: 1 | H169: 1 | I169: 1 | J169: 0.0007650232385 | K169: 0.0001703481013 | L169: 0.001445808404 | M169: 0.0007051769041 | N169: 0.004750483434 | O169: 0.000396410266 | P169: 0.0002247259971 | Q169: 0.0007440674081 | R169: 0.0003726571671 | S169: 0.0008861012777 | T169: 0 | U169: 0 | V169: 0 | W169: 0 | X169: 0 | Y169: 0 | Z169: 0 | AA169: 0 | AB169: 0 | AC169: 0 | AD169: 0 | AE169: 0 | AF169: 0 | AG169: 0 | AH169: 0 | AI169: 0 | AJ169: 0 | AK169: 0 | AL169: 0 | AM169: 0 | AN169: 0 | AO169: 0 | AP169: 0 | AQ169: 0 | AR169: 0 | AS169: 0 | AT169: 0 | AU169: 0 | AV169: 0 | AW169: 0 | AX169: 0 | AY169: 0 | AZ169: 0 | BA169: 0 | BB169: 0 | BC169: 0 | BD169: 0 | BE169: 0 | BF169: 0 | BG169: 0 | BH169: 0 | BI169: 0 | BJ169: 0 | BK169: 0 | BL169: 0 | BM169: 0 | BN169: 0 | BO169: 0 | BP169: 0 | BQ169: 0 | BR169: 0 | BS169: 0 | BT169: 0 | BU169: 0 | BV169: 0 | BW169: 0 | BX169: 0 | BY169: 0 | BZ169: 0 | CA169: 0 | CB169: 0 | CC169: 0 | CD169: 0 | CE169: 0.0104608022 | CF169: 0 | CG169: 0 | CH169: 0 | CI169: 0 | CJ169: 0 | CK169: 0 | CL169: 0 | CM169: 0 | CN169: 0 | CO169: 0 | CP169: 0 | CQ169: 0 | CR169: 0 | CS169: 0 | CT169: 0 | CU169: 0 | CV169: 0 | CW169: 0 | CX169: 0 | CY169: 0 | CZ169: 0 | DA169: 0 | DB169: 0 | DC169: =INDEX(LOOKUP!$G$2:$G$6,MATCH($A169,LOOKUP!$I$2:$I$6,0)) -> PACIFIC
A170: 2 | B170: 16 | C170: 2016 | D170: 11 | E170: 0 | F170: 1 | G170: 2 | H170: 1 | I170: 2 | J170: 0 | K170: 0 | L170: 0 | M170: 0 | N170: 0 | O170: 0.0006848815715 | P170: 0.0004591162998 | Q170: 4.279161792e-05 | R170: 0.0001006056017 | S170: 0.00205901195 | T170: 0 | U170: 0 | V170: 0 | W170: 0 | X170: 0 | Y170: 0 | Z170: 0 | AA170: 0 | AB170: 0 | AC170: 0 | AD170: 0 | AE170: 0 | AF170: 0 | AG170: 0 | AH170: 0 | AI170: 0 | AJ170: 0 | AK170: 0 | AL170: 0 | AM170: 0 | AN170: 0 | AO170: 0 | AP170: 0 | AQ170: 0 | AR170: 0 | AS170: 0 | AT170: 0 | AU170: 0 | AV170: 0 | AW170: 0 | AX170: 0 | AY170: 0 | AZ170: 0 | BA170: 0 | BB170: 0 | BC170: 0 | BD170: 0 | BE170: 0 | BF170: 0 | BG170: 0 | BH170: 0 | BI170: 0 | BJ170: 0 | BK170: 0 | BL170: 0 | BM170: 0 | BN170: 0 | BO170: 0 | BP170: 0 | BQ170: 0 | BR170: 0 | BS170: 0 | BT170: 0 | BU170: 0 | BV170: 0 | BW170: 0 | BX170: 0 | BY170: 0 | BZ170: 0 | CA170: 0 | CB170: 0 | CC170: 0 | CD170: 0 | CE170: 0.003346407041 | CF170: 0 | CG170: 0 | CH170: 0 | CI170: 0 | CJ170: 0 | CK170: 0 | CL170: 0 | CM170: 0 | CN170: 0 | CO170: 0 | CP170: 0 | CQ170: 0 | CR170: 0 | CS170: 0 | CT170: 0 | CU170: 0 | CV170: 0 | CW170: 0 | CX170: 0 | CY170: 0 | CZ170: 0 | DA170: 0 | DB170: 0 | DC170: =INDEX(LOOKUP!$G$2:$G$6,MATCH($A170,LOOKUP!$I$2:$I$6,0)) -> PACIFIC
A171: 2 | B171: 16 | C171: 2016 | D171: 12 | E171: 0 | F171: 1 | G171: 3 | H171: 1 | I171: 3 | J171: 0.03879444092 | K171: 0.07917998534 | L171: 0.01315988325 | M171: 0.006575401934 | N171: 0.02129114857 | O171: 0.002258129396 | P171: 0.001693981302 | Q171: 0.001775907677 | R171: 0.0009922483144 | S171: 0.005610157336 | T171: 29926.02585 | U171: 29926.02585 | V171: 0 | W171: 0 | X171: 0 | Y171: 0 | Z171: 0 | AA171: 0 | AB171: 0 | AC171: 0 | AD171: 220.754115 | AE171: 220.754115 | AF171: 0 | AG171: 0 | AH171: 0 | AI171: 0 | AJ171: 0 | AK171: 0 | AL171: 0 | AM171: 0 | AN171: 9.946462404e-10 | AO171: 9.946462404e-10 | AP171: 0 | AQ171: 0 | AR171: 0 | AS171: 0 | AT171: 0 | AU171: 0 | AV171: 0 | AW171: 0 | AX171: 1.017534e-09 | AY171: 1.017534e-09 | AZ171: 0 | BA171: 0 | BB171: 0 | BC171: 0 | BD171: 0 | BE171: 0 | BF171: 0 | BG171: 0 | BH171: 0.03879444092 | BI171: 0.07917998534 | BJ171: 0 | BK171: 0 | BL171: 0 | BM171: 0 | BN171: 0 | BO171: 0 | BP171: 0 | BQ171: 0 | BR171: 0.03879444092 | BS171: 0.07917998534 | BT171: 0 | BU171: 0 | BV171: 0 | BW171: 0 | BX171: 0 | BY171: 0 | BZ171: 0 | CA171: 0 | CB171: 0.1179744263 | CC171: 0 | CD171: 0.1179744263 | CE171: 0.171331284 | CF171: 1160.963442 | CG171: 2369.542288 | CH171: 0 | CI171: 0 | CJ171: 0 | CK171: 0 | CL171: 0 | CM171: 0 | CN171: 0 | CO171: 0 | CP171: 8.564032473 | CQ171: 17.47930759 | CR171: 0 | CS171: 0 | CT171: 0 | CU171: 0 | CV171: 0 | CW171: 0 | CX171: 0 | CY171: 0 | CZ171: 26.04334006 | DA171: 0 | DB171: 26.04334006 | DC171: =INDEX(LOOKUP!$G$2:$G$6,MATCH($A171,LOOKUP!$I$2:$I$6,0)) -> PACIFIC
A172: 2 | B172: 16 | C172: 2016 | D172: 14 | E172: 0 | F172: 1 | G172: 4 | H172: 1 | I172: 5 | J172: 0 | K172: 0 | L172: 0 | M172: 0 | N172: 0 | O172: 0.0002155837022 | P172: 0.0001361210232 | Q172: 6.527551858e-05 | R172: 0.0001042250516 | S172: 0.0003142832839 | T172: 0 | U172: 0 | V172: 0 | W172: 0 | X172: 0 | Y172: 0 | Z172: 0 | AA172: 0 | AB172: 0 | AC172: 0 | AD172: 0 | AE172: 0 | AF172: 0 | AG172: 0 | AH172: 0 | AI172: 0 | AJ172: 0 | AK172: 0 | AL172: 0 | AM172: 0 | AN172: 0 | AO172: 0 | AP172: 0 | AQ172: 0 | AR172: 0 | AS172: 0 | AT172: 0 | AU172: 0 | AV172: 0 | AW172: 0 | AX172: 0 | AY172: 0 | AZ172: 0 | BA172: 0 | BB172: 0 | BC172: 0 | BD172: 0 | BE172: 0 | BF172: 0 | BG172: 0 | BH172: 0 | BI172: 0 | BJ172: 0 | BK172: 0 | BL172: 0 | BM172: 0 | BN172: 0 | BO172: 0 | BP172: 0 | BQ172: 0 | BR172: 0 | BS172: 0 | BT172: 0 | BU172: 0 | BV172: 0 | BW172: 0 | BX172: 0 | BY172: 0 | BZ172: 0 | CA172: 0 | CB172: 0 | CC172: 0 | CD172: 0 | CE172: 0.0008354885794 | CF172: 0 | CG172: 0 | CH172: 0 | CI172: 0 | CJ172: 0 | CK172: 0 | CL172: 0 | CM172: 0 | CN172: 0 | CO172: 0 | CP172: 0 | CQ172: 0 | CR172: 0 | CS172: 0 | CT172: 0 | CU172: 0 | CV172: 0 | CW172: 0 | CX172: 0 | CY172: 0 | CZ172: 0 | DA172: 0 | DB172: 0 | DC172: =INDEX(LOOKUP!$G$2:$G$6,MATCH($A172,LOOKUP!$I$2:$I$6,0)) -> PACIFIC
A173: 2 | B173: 16 | C173: 2016 | D173: 16 | E173: 0 | F173: 1 | G173: 4 | H173: 1 | I173: 7 | J173: 0.04196393042 | K173: 0.006760250123 | L173: 0.0088029716 | M173: 0.003705844475 | N173: 0.0189912965 | O173: 0.001039702397 | P173: 0.000783100269 | Q173: 0.000823700378 | R173: 0.001541393381 | S173: 0.007992785546 | T173: 0 | U173: 0 | V173: 0 | W173: 0 | X173: 0 | Y173: 0 | Z173: 0 | AA173: 0 | AB173: 0 | AC173: 0 | AD173: 0 | AE173: 0 | AF173: 0 | AG173: 0 | AH173: 0 | AI173: 0 | AJ173: 0 | AK173: 0 | AL173: 0 | AM173: 0 | AN173: 0 | AO173: 0 | AP173: 0 | AQ173: 0 | AR173: 0 | AS173: 0 | AT173: 0 | AU173: 0 | AV173: 0 | AW173: 0 | AX173: 0 | AY173: 0 | AZ173: 0 | BA173: 0 | BB173: 0 | BC173: 0 | BD173: 0 | BE173: 0 | BF173: 0 | BG173: 0 | BH173: 0 | BI173: 0 | BJ173: 0 | BK173: 0 | BL173: 0 | BM173: 0 | BN173: 0 | BO173: 0 | BP173: 0 | BQ173: 0 | BR173: 0 | BS173: 0 | BT173: 0 | BU173: 0 | BV173: 0 | BW173: 0 | BX173: 0 | BY173: 0 | BZ173: 0 | CA173: 0 | CB173: 0 | CC173: 0 | CD173: 0 | CE173: 0.0924049751 | CF173: 0 | CG173: 0 | CH173: 0 | CI173: 0 | CJ173: 0 | CK173: 0 | CL173: 0 | CM173: 0 | CN173: 0 | CO173: 0 | CP173: 0 | CQ173: 0 | CR173: 0 | CS173: 0 | CT173: 0 | CU173: 0 | CV173: 0 | CW173: 0 | CX173: 0 | CY173: 0 | CZ173: 0 | DA173: 0 | DB173: 0 | DC173: =INDEX(LOOKUP!$G$2:$G$6,MATCH($A173,LOOKUP!$I$2:$I$6,0)) -> PACIFIC
A174: 2 | B174: 16 | C174: 2016 | D174: 17 | E174: 0 | F174: 1 | G174: 5 | H174: 1 | I174: 8 | J174: 0 | K174: 0 | L174: 0 | M174: 0 | N174: 0 | O174: 0.001208300087 | P174: 0.0003484275297 | Q174: 0.001432864461 | R174: 0.0002613245635 | S174: 0.007766317262 | T174: 0 | U174: 0 | V174: 0 | W174: 0 | X174: 0 | Y174: 0 | Z174: 0 | AA174: 0 | AB174: 0 | AC174: 0 | AD174: 0 | AE174: 0 | AF174: 0 | AG174: 0 | AH174: 0 | AI174: 0 | AJ174: 0 | AK174: 0 | AL174: 0 | AM174: 0 | AN174: 0 | AO174: 0 | AP174: 0 | AQ174: 0 | AR174: 0 | AS174: 0 | AT174: 0 | AU174: 0 | AV174: 0 | AW174: 0 | AX174: 0 | AY174: 0 | AZ174: 0 | BA174: 0 | BB174: 0 | BC174: 0 | BD174: 0 | BE174: 0 | BF174: 0 | BG174: 0 | BH174: 0 | BI174: 0 | BJ174: 0 | BK174: 0 | BL174: 0 | BM174: 0 | BN174: 0 | BO174: 0 | BP174: 0 | BQ174: 0 | BR174: 0 | BS174: 0 | BT174: 0 | BU174: 0 | BV174: 0 | BW174: 0 | BX174: 0 | BY174: 0 | BZ174: 0 | CA174: 0 | CB174: 0 | CC174: 0 | CD174: 0 | CE174: 0.0110172339 | CF174: 0 | CG174: 0 | CH174: 0 | CI174: 0 | CJ174: 0 | CK174: 0 | CL174: 0 | CM174: 0 | CN174: 0 | CO174: 0 | CP174: 0 | CQ174: 0 | CR174: 0 | CS174: 0 | CT174: 0 | CU174: 0 | CV174: 0 | CW174: 0 | CX174: 0 | CY174: 0 | CZ174: 0 | DA174: 0 | DB174: 0 | DC174: =INDEX(LOOKUP!$G$2:$G$6,MATCH($A174,LOOKUP!$I$2:$I$6,0)) -> PACIFIC
A175: 2 | B175: 16 | C175: 2016 | D175: 18 | E175: 0 | F175: 2 | G175: 0 | H175: 2 | I175: 0 | J175: 0 | K175: 0 | L175: 0 | M175: 0 | N175: 0 | O175: 2.871842188e-05 | P175: 1.916057845e-06 | Q175: 5.804509158e-05 | R175: 0.0001916841705 | S175: 0.002032456387 | T175: 0 | U175: 0 | V175: 0 | W175: 0 | X175: 0 | Y175: 0 | Z175: 0 | AA175: 0 | AB175: 0 | AC175: 0 | AD175: 0 | AE175: 0 | AF175: 0 | AG175: 0 | AH175: 0 | AI175: 0 | AJ175: 0 | AK175: 0 | AL175: 0 | AM175: 0 | AN175: 0 | AO175: 0 | AP175: 0 | AQ175: 0 | AR175: 0 | AS175: 0 | AT175: 0 | AU175: 0 | AV175: 0 | AW175: 0 | AX175: 0 | AY175: 0 | AZ175: 0 | BA175: 0 | BB175: 0 | BC175: 0 | BD175: 0 | BE175: 0 | BF175: 0 | BG175: 0 | BH175: 0 | BI175: 0 | BJ175: 0 | BK175: 0 | BL175: 0 | BM175: 0 | BN175: 0 | BO175: 0 | BP175: 0 | BQ175: 0 | BR175: 0 | BS175: 0 | BT175: 0 | BU175: 0 | BV175: 0 | BW175: 0 | BX175: 0 | BY175: 0 | BZ175: 0 | CA175: 0 | CB175: 0 | CC175: 0 | CD175: 0 | CE175: 0.002312820129 | CF175: 0 | CG175: 0 | CH175: 0 | CI175: 0 | CJ175: 0 | CK175: 0 | CL175: 0 | CM175: 0 | CN175: 0 | CO175: 0 | CP175: 0 | CQ175: 0 | CR175: 0 | CS175: 0 | CT175: 0 | CU175: 0 | CV175: 0 | CW175: 0 | CX175: 0 | CY175: 0 | CZ175: 0 | DA175: 0 | DB175: 0 | DC175: =INDEX(LOOKUP!$G$2:$G$6,MATCH($A175,LOOKUP!$I$2:$I$6,0)) -> PACIFIC
A176: 2 | B176: 16 | C176: 2016 | D176: 19 | E176: 0 | F176: 2 | G176: 1 | H176: 2 | I176: 1 | J176: 0 | K176: 0 | L176: 0 | M176: 0 | N176: 0 | O176: 1.460549962e-05 | P176: 2.069729602e-06 | Q176: 0.003612037774 | R176: 0.0006586373013 | S176: 0.0001030183937 | T176: 0 | U176: 0 | V176: 0 | W176: 0 | X176: 0 | Y176: 0 | Z176: 0 | AA176: 0 | AB176: 0 | AC176: 0 | AD176: 0 | AE176: 0 | AF176: 0 | AG176: 0 | AH176: 0 | AI176: 0 | AJ176: 0 | AK176: 0 | AL176: 0 | AM176: 0 | AN176: 0 | AO176: 0 | AP176: 0 | AQ176: 0 | AR176: 0 | AS176: 0 | AT176: 0 | AU176: 0 | AV176: 0 | AW176: 0 | AX176: 0 | AY176: 0 | AZ176: 0 | BA176: 0 | BB176: 0 | BC176: 0 | BD176: 0 | BE176: 0 | BF176: 0 | BG176: 0 | BH176: 0 | BI176: 0 | BJ176: 0 | BK176: 0 | BL176: 0 | BM176: 0 | BN176: 0 | BO176: 0 | BP176: 0 | BQ176: 0 | BR176: 0 | BS176: 0 | BT176: 0 | BU176: 0 | BV176: 0 | BW176: 0 | BX176: 0 | BY176: 0 | BZ176: 0 | CA176: 0 | CB176: 0 | CC176: 0 | CD176: 0 | CE176: 0.004390368698 | CF176: 0 | CG176: 0 | CH176: 0 | CI176: 0 | CJ176: 0 | CK176: 0 | CL176: 0 | CM176: 0 | CN176: 0 | CO176: 0 | CP176: 0 | CQ176: 0 | CR176: 0 | CS176: 0 | CT176: 0 | CU176: 0 | CV176: 0 | CW176: 0 | CX176: 0 | CY176: 0 | CZ176: 0 | DA176: 0 | DB176: 0 | DC176: =INDEX(LOOKUP!$G$2:$G$6,MATCH($A176,LOOKUP!$I$2:$I$6,0)) -> PACIFIC
A177: 2 | B177: 16 | C177: 2016 | D177: 20 | E177: 0 | F177: 2 | G177: 2 | H177: 2 | I177: 2 | J177: 0 | K177: 0 | L177: 0 | M177: 0 | N177: 0 | O177: 0.02050122911 | P177: 0.01011517136 | Q177: 0.08899671276 | R177: 0.01808616966 | S177: 0.08648409403 | T177: 0 | U177: 0 | V177: 0 | W177: 0 | X177: 0 | Y177: 0 | Z177: 0 | AA177: 0 | AB177: 0 | AC177: 0 | AD177: 0 | AE177: 0 | AF177: 0 | AG177: 0 | AH177: 0 | AI177: 0 | AJ177: 0 | AK177: 0 | AL177: 0 | AM177: 0 | AN177: 0 | AO177: 0 | AP177: 0 | AQ177: 0 | AR177: 0 | AS177: 0 | AT177: 0 | AU177: 0 | AV177: 0 | AW177: 0 | AX177: 0 | AY177: 0 | AZ177: 0 | BA177: 0 | BB177: 0 | BC177: 0 | BD177: 0 | BE177: 0 | BF177: 0 | BG177: 0 | BH177: 0 | BI177: 0 | BJ177: 0 | BK177: 0 | BL177: 0 | BM177: 0 | BN177: 0 | BO177: 0 | BP177: 0 | BQ177: 0 | BR177: 0 | BS177: 0 | BT177: 0 | BU177: 0 | BV177: 0 | BW177: 0 | BX177: 0 | BY177: 0 | BZ177: 0 | CA177: 0 | CB177: 0 | CC177: 0 | CD177: 0 | CE177: 0.2241833769 | CF177: 0 | CG177: 0 | CH177: 0 | CI177: 0 | CJ177: 0 | CK177: 0 | CL177: 0 | CM177: 0 | CN177: 0 | CO177: 0 | CP177: 0 | CQ177: 0 | CR177: 0 | CS177: 0 | CT177: 0 | CU177: 0 | CV177: 0 | CW177: 0 | CX177: 0 | CY177: 0 | CZ177: 0 | DA177: 0 | DB177: 0 | DC177: =INDEX(LOOKUP!$G$2:$G$6,MATCH($A177,LOOKUP!$I$2:$I$6,0)) -> PACIFIC
A178: 2 | B178: 16 | C178: 2016 | D178: 21 | E178: 0 | F178: 2 | G178: 3 | H178: 2 | I178: 3 | J178: 0 | K178: 0 | L178: 0 | M178: 0 | N178: 0 | O178: 0.2176285288 | P178: 0.1923664998 | Q178: 0.9955953172 | R178: 0.4609161193 | S178: 2.036436947 | T178: 0 | U178: 0 | V178: 0 | W178: 0 | X178: 0 | Y178: 0 | Z178: 53106.137 | AA178: 56434.62647 | AB178: 70589.112 | AC178: 70589.112 | AD178: 0 | AE178: 0 | AF178: 0 | AG178: 0 | AH178: 0 | AI178: 0 | AJ178: 9.198088126e-10 | AK178: 18.93098331 | AL178: 99.43546789 | AM178: 99.43546789 | AN178: 0 | AO178: 0 | AP178: 0 | AQ178: 0 | AR178: 0 | AS178: 0 | AT178: 9.946462404e-10 | AU178: 9.91383124e-10 | AV178: 9.77506639e-10 | AW178: 9.77506639e-10 | AX178: 0 | AY178: 0 | AZ178: 0 | BA178: 0 | BB178: 0 | BC178: 0 | BD178: 1.017534e-09 | BE178: 28.55769231 | BF178: 150 | BG178: 150 | BH178: 0 | BI178: 0 | BJ178: 0 | BK178: 0 | BL178: 0 | BM178: 0 | BN178: 0.1923664998 | BO178: 0.9955953172 | BP178: 0.4609161193 | BQ178: 2.036436947 | BR178: 0 | BS178: 0 | BT178: 0 | BU178: 0 | BV178: 0 | BW178: 0 | BX178: 0.1923664998 | BY178: 0.9955953172 | BZ178: 0.4609161193 | CA178: 2.036436947 | CB178: 0 | CC178: 3.685314883 | CD178: 3.685314883 | CE178: 3.902943412 | CF178: 0 | CG178: 0 | CH178: 0 | CI178: 0 | CJ178: 0 | CK178: 0 | CL178: 10215.84169 | CM178: 56186.04984 | CN178: 32535.65956 | CO178: 143750.2757 | CP178: 0 | CQ178: 0 | CR178: 0 | CS178: 0 | CT178: 0 | CU178: 0 | CV178: 3.845886387e-10 | CW178: 21.21692373 | CX178: 51.59286147 | CY178: 227.9495225 | CZ178: 0 | DA178: 300.7593077 | DB178: 300.7593077 | DC178: =INDEX(LOOKUP!$G$2:$G$6,MATCH($A178,LOOKUP!$I$2:$I$6,0)) -> PACIFIC
A179: 2 | B179: 16 | C179: 2016 | D179: 23 | E179: 0 | F179: 2 | G179: 4 | H179: 2 | I179: 5 | J179: 0 | K179: 0 | L179: 0 | M179: 0 | N179: 0 | O179: 0.001293004762 | P179: 2.440227597e-06 | Q179: 4.340882557e-06 | R179: 5.920183652e-06 | S179: 1.837887315e-05 | T179: 0 | U179: 0 | V179: 0 | W179: 0 | X179: 0 | Y179: 0 | Z179: 0 | AA179: 0 | AB179: 0 | AC179: 0 | AD179: 0 | AE179: 0 | AF179: 0 | AG179: 0 | AH179: 0 | AI179: 0 | AJ179: 0 | AK179: 0 | AL179: 0 | AM179: 0 | AN179: 0 | AO179: 0 | AP179: 0 | AQ179: 0 | AR179: 0 | AS179: 0 | AT179: 0 | AU179: 0 | AV179: 0 | AW179: 0 | AX179: 0 | AY179: 0 | AZ179: 0 | BA179: 0 | BB179: 0 | BC179: 0 | BD179: 0 | BE179: 0 | BF179: 0 | BG179: 0 | BH179: 0 | BI179: 0 | BJ179: 0 | BK179: 0 | BL179: 0 | BM179: 0 | BN179: 0 | BO179: 0 | BP179: 0 | BQ179: 0 | BR179: 0 | BS179: 0 | BT179: 0 | BU179: 0 | BV179: 0 | BW179: 0 | BX179: 0 | BY179: 0 | BZ179: 0 | CA179: 0 | CB179: 0 | CC179: 0 | CD179: 0 | CE179: 0.001324084929 | CF179: 0 | CG179: 0 | CH179: 0 | CI179: 0 | CJ179: 0 | CK179: 0 | CL179: 0 | CM179: 0 | CN179: 0 | CO179: 0 | CP179: 0 | CQ179: 0 | CR179: 0 | CS179: 0 | CT179: 0 | CU179: 0 | CV179: 0 | CW179: 0 | CX179: 0 | CY179: 0 | CZ179: 0 | DA179: 0 | DB179: 0 | DC179: =INDEX(LOOKUP!$G$2:$G$6,MATCH($A179,LOOKUP!$I$2:$I$6,0)) -> PACIFIC
A180: 2 | B180: 16 | C180: 2016 | D180: 25 | E180: 0 | F180: 2 | G180: 4 | H180: 2 | I180: 7 | J180: 0 | K180: 0 | L180: 0 | M180: 0 | N180: 0 | O180: 0.001323096378 | P180: 1.627646279e-27 | Q180: 3.455607092e-27 | R180: 0.01260733194 | S180: 0.006516378548 | T180: 0 | U180: 0 | V180: 0 | W180: 0 | X180: 0 | Y180: 0 | Z180: 0 | AA180: 0 | AB180: 0 | AC180: 0 | AD180: 0 | AE180: 0 | AF180: 0 | AG180: 0 | AH180: 0 | AI180: 0 | AJ180: 0 | AK180: 0 | AL180: 0 | AM180: 0 | AN180: 0 | AO180: 0 | AP180: 0 | AQ180: 0 | AR180: 0 | AS180: 0 | AT180: 0 | AU180: 0 | AV180: 0 | AW180: 0 | AX180: 0 | AY180: 0 | AZ180: 0 | BA180: 0 | BB180: 0 | BC180: 0 | BD180: 0 | BE180: 0 | BF180: 0 | BG180: 0 | BH180: 0 | BI180: 0 | BJ180: 0 | BK180: 0 | BL180: 0 | BM180: 0 | BN180: 0 | BO180: 0 | BP180: 0 | BQ180: 0 | BR180: 0 | BS180: 0 | BT180: 0 | BU180: 0 | BV180: 0 | BW180: 0 | BX180: 0 | BY180: 0 | BZ180: 0 | CA180: 0 | CB180: 0 | CC180: 0 | CD180: 0 | CE180: 0.02044680687 | CF180: 0 | CG180: 0 | CH180: 0 | CI180: 0 | CJ180: 0 | CK180: 0 | CL180: 0 | CM180: 0 | CN180: 0 | CO180: 0 | CP180: 0 | CQ180: 0 | CR180: 0 | CS180: 0 | CT180: 0 | CU180: 0 | CV180: 0 | CW180: 0 | CX180: 0 | CY180: 0 | CZ180: 0 | DA180: 0 | DB180: 0 | DC180: =INDEX(LOOKUP!$G$2:$G$6,MATCH($A180,LOOKUP!$I$2:$I$6,0)) -> PACIFIC
A181: 2 | B181: 16 | C181: 2016 | D181: 26 | E181: 0 | F181: 2 | G181: 5 | H181: 2 | I181: 8 | J181: 0 | K181: 0 | L181: 0 | M181: 0 | N181: 0 | O181: 0 | P181: 0 | Q181: 0.01216043401 | R181: 0 | S181: 0.01407707227 | T181: 0 | U181: 0 | V181: 0 | W181: 0 | X181: 0 | Y181: 0 | Z181: 0 | AA181: 0 | AB181: 0 | AC181: 0 | AD181: 0 | AE181: 0 | AF181: 0 | AG181: 0 | AH181: 0 | AI181: 0 | AJ181: 0 | AK181: 0 | AL181: 0 | AM181: 0 | AN181: 0 | AO181: 0 | AP181: 0 | AQ181: 0 | AR181: 0 | AS181: 0 | AT181: 0 | AU181: 0 | AV181: 0 | AW181: 0 | AX181: 0 | AY181: 0 | AZ181: 0 | BA181: 0 | BB181: 0 | BC181: 0 | BD181: 0 | BE181: 0 | BF181: 0 | BG181: 0 | BH181: 0 | BI181: 0 | BJ181: 0 | BK181: 0 | BL181: 0 | BM181: 0 | BN181: 0 | BO181: 0 | BP181: 0 | BQ181: 0 | BR181: 0 | BS181: 0 | BT181: 0 | BU181: 0 | BV181: 0 | BW181: 0 | BX181: 0 | BY181: 0 | BZ181: 0 | CA181: 0 | CB181: 0 | CC181: 0 | CD181: 0 | CE181: 0.02623750628 | CF181: 0 | CG181: 0 | CH181: 0 | CI181: 0 | CJ181: 0 | CK181: 0 | CL181: 0 | CM181: 0 | CN181: 0 | CO181: 0 | CP181: 0 | CQ181: 0 | CR181: 0 | CS181: 0 | CT181: 0 | CU181: 0 | CV181: 0 | CW181: 0 | CX181: 0 | CY181: 0 | CZ181: 0 | DA181: 0 | DB181: 0 | DC181: =INDEX(LOOKUP!$G$2:$G$6,MATCH($A181,LOOKUP!$I$2:$I$6,0)) -> PACIFIC
A182: 2 | B182: 16 | C182: 2016 | D182: 27 | E182: 0 | F182: 2 | G182: 0 | H182: 3 | I182: 0 | J182: 0 | K182: 0 | L182: 0 | M182: 0 | N182: 0 | O182: 6.00578073e-05 | P182: 5.374088562e-06 | Q182: 0.0001594894153 | R182: 0.0005078475446 | S182: 0.005317183953 | T182: 0 | U182: 0 | V182: 0 | W182: 0 | X182: 0 | Y182: 0 | Z182: 0 | AA182: 0 | AB182: 0 | AC182: 0 | AD182: 0 | AE182: 0 | AF182: 0 | AG182: 0 | AH182: 0 | AI182: 0 | AJ182: 0 | AK182: 0 | AL182: 0 | AM182: 0 | AN182: 0 | AO182: 0 | AP182: 0 | AQ182: 0 | AR182: 0 | AS182: 0 | AT182: 0 | AU182: 0 | AV182: 0 | AW182: 0 | AX182: 0 | AY182: 0 | AZ182: 0 | BA182: 0 | BB182: 0 | BC182: 0 | BD182: 0 | BE182: 0 | BF182: 0 | BG182: 0 | BH182: 0 | BI182: 0 | BJ182: 0 | BK182: 0 | BL182: 0 | BM182: 0 | BN182: 0 | BO182: 0 | BP182: 0 | BQ182: 0 | BR182: 0 | BS182: 0 | BT182: 0 | BU182: 0 | BV182: 0 | BW182: 0 | BX182: 0 | BY182: 0 | BZ182: 0 | CA182: 0 | CB182: 0 | CC182: 0 | CD182: 0 | CE182: 0.006049952809 | CF182: 0 | CG182: 0 | CH182: 0 | CI182: 0 | CJ182: 0 | CK182: 0 | CL182: 0 | CM182: 0 | CN182: 0 | CO182: 0 | CP182: 0 | CQ182: 0 | CR182: 0 | CS182: 0 | CT182: 0 | CU182: 0 | CV182: 0 | CW182: 0 | CX182: 0 | CY182: 0 | CZ182: 0 | DA182: 0 | DB182: 0 | DC182: =INDEX(LOOKUP!$G$2:$G$6,MATCH($A182,LOOKUP!$I$2:$I$6,0)) -> PACIFIC
A183: 2 | B183: 16 | C183: 2016 | D183: 28 | E183: 0 | F183: 2 | G183: 1 | H183: 3 | I183: 1 | J183: 0 | K183: 0 | L183: 0 | M183: 0 | N183: 0 | O183: 0.0003120759267 | P183: 0.000120085845 | Q183: 0.004081714436 | R183: 0.00352722672 | S183: 0.003440756817 | T183: 0 | U183: 0 | V183: 0 | W183: 0 | X183: 0 | Y183: 0 | Z183: 0 | AA183: 0 | AB183: 0 | AC183: 0 | AD183: 0 | AE183: 0 | AF183: 0 | AG183: 0 | AH183: 0 | AI183: 0 | AJ183: 0 | AK183: 0 | AL183: 0 | AM183: 0 | AN183: 0 | AO183: 0 | AP183: 0 | AQ183: 0 | AR183: 0 | AS183: 0 | AT183: 0 | AU183: 0 | AV183: 0 | AW183: 0 | AX183: 0 | AY183: 0 | AZ183: 0 | BA183: 0 | BB183: 0 | BC183: 0 | BD183: 0 | BE183: 0 | BF183: 0 | BG183: 0 | BH183: 0 | BI183: 0 | BJ183: 0 | BK183: 0 | BL183: 0 | BM183: 0 | BN183: 0 | BO183: 0 | BP183: 0 | BQ183: 0 | BR183: 0 | BS183: 0 | BT183: 0 | BU183: 0 | BV183: 0 | BW183: 0 | BX183: 0 | BY183: 0 | BZ183: 0 | CA183: 0 | CB183: 0 | CC183: 0 | CD183: 0 | CE183: 0.01148185975 | CF183: 0 | CG183: 0 | CH183: 0 | CI183: 0 | CJ183: 0 | CK183: 0 | CL183: 0 | CM183: 0 | CN183: 0 | CO183: 0 | CP183: 0 | CQ183: 0 | CR183: 0 | CS183: 0 | CT183: 0 | CU183: 0 | CV183: 0 | CW183: 0 | CX183: 0 | CY183: 0 | CZ183: 0 | DA183: 0 | DB183: 0 | DC183: =INDEX(LOOKUP!$G$2:$G$6,MATCH($A183,LOOKUP!$I$2:$I$6,0)) -> PACIFIC
A184: 2 | B184: 16 | C184: 2016 | D184: 29 | E184: 0 | F184: 2 | G184: 2 | H184: 3 | I184: 2 | J184: 0 | K184: 0 | L184: 0 | M184: 0 | N184: 0 | O184: 0.00773594305 | P184: 0.0005153252127 | Q184: 0.0006277216275 | R184: 0.0003503151989 | S184: 0.005428351455 | T184: 0 | U184: 0 | V184: 0 | W184: 0 | X184: 0 | Y184: 0 | Z184: 0 | AA184: 0 | AB184: 0 | AC184: 0 | AD184: 0 | AE184: 0 | AF184: 0 | AG184: 0 | AH184: 0 | AI184: 0 | AJ184: 0 | AK184: 0 | AL184: 0 | AM184: 0 | AN184: 0 | AO184: 0 | AP184: 0 | AQ184: 0 | AR184: 0 | AS184: 0 | AT184: 0 | AU184: 0 | AV184: 0 | AW184: 0 | AX184: 0 | AY184: 0 | AZ184: 0 | BA184: 0 | BB184: 0 | BC184: 0 | BD184: 0 | BE184: 0 | BF184: 0 | BG184: 0 | BH184: 0 | BI184: 0 | BJ184: 0 | BK184: 0 | BL184: 0 | BM184: 0 | BN184: 0 | BO184: 0 | BP184: 0 | BQ184: 0 | BR184: 0 | BS184: 0 | BT184: 0 | BU184: 0 | BV184: 0 | BW184: 0 | BX184: 0 | BY184: 0 | BZ184: 0 | CA184: 0 | CB184: 0 | CC184: 0 | CD184: 0 | CE184: 0.01465765654 | CF184: 0 | CG184: 0 | CH184: 0 | CI184: 0 | CJ184: 0 | CK184: 0 | CL184: 0 | CM184: 0 | CN184: 0 | CO184: 0 | CP184: 0 | CQ184: 0 | CR184: 0 | CS184: 0 | CT184: 0 | CU184: 0 | CV184: 0 | CW184: 0 | CX184: 0 | CY184: 0 | CZ184: 0 | DA184: 0 | DB184: 0 | DC184: =INDEX(LOOKUP!$G$2:$G$6,MATCH($A184,LOOKUP!$I$2:$I$6,0)) -> PACIFIC
A185: 2 | B185: 16 | C185: 2016 | D185: 30 | E185: 0 | F185: 2 | G185: 3 | H185: 3 | I185: 3 | J185: 0 | K185: 0 | L185: 0 | M185: 0 | N185: 0 | O185: 0.1437353727 | P185: 0.1027342887 | Q185: 0.1010712016 | R185: 0.0698443889 | S185: 2.265557746 | T185: 0 | U185: 0 | V185: 0 | W185: 0 | X185: 0 | Y185: 0 | Z185: 0 | AA185: 0 | AB185: 0 | AC185: 0 | AD185: 0 | AE185: 0 | AF185: 0 | AG185: 0 | AH185: 0 | AI185: 0 | AJ185: 0 | AK185: 0 | AL185: 0 | AM185: 0 | AN185: 0 | AO185: 0 | AP185: 0 | AQ185: 0 | AR185: 0 | AS185: 0 | AT185: 0 | AU185: 0 | AV185: 0 | AW185: 0 | AX185: 0 | AY185: 0 | AZ185: 0 | BA185: 0 | BB185: 0 | BC185: 0 | BD185: 0 | BE185: 0 | BF185: 0 | BG185: 0 | BH185: 0 | BI185: 0 | BJ185: 0 | BK185: 0 | BL185: 0 | BM185: 0 | BN185: 0 | BO185: 0 | BP185: 0 | BQ185: 0 | BR185: 0 | BS185: 0 | BT185: 0 | BU185: 0 | BV185: 0 | BW185: 0 | BX185: 0 | BY185: 0 | BZ185: 0 | CA185: 0 | CB185: 0 | CC185: 0 | CD185: 0 | CE185: 2.682942998 | CF185: 0 | CG185: 0 | CH185: 0 | CI185: 0 | CJ185: 0 | CK185: 0 | CL185: 0 | CM185: 0 | CN185: 0 | CO185: 0 | CP185: 0 | CQ185: 0 | CR185: 0 | CS185: 0 | CT185: 0 | CU185: 0 | CV185: 0 | CW185: 0 | CX185: 0 | CY185: 0 | CZ185: 0 | DA185: 0 | DB185: 0 | DC185: =INDEX(LOOKUP!$G$2:$G$6,MATCH($A185,LOOKUP!$I$2:$I$6,0)) -> PACIFIC
A186: 2 | B186: 16 | C186: 2016 | D186: 32 | E186: 0 | F186: 2 | G186: 4 | H186: 3 | I186: 5 | J186: 0 | K186: 0 | L186: 0 | M186: 0 | N186: 0 | O186: 0.002737501888 | P186: 6.31409615e-05 | Q186: 3.860858188e-05 | R186: 8.518057603e-05 | S186: 0.0005781086579 | T186: 0 | U186: 0 | V186: 0 | W186: 0 | X186: 0 | Y186: 0 | Z186: 0 | AA186: 0 | AB186: 0 | AC186: 0 | AD186: 0 | AE186: 0 | AF186: 0 | AG186: 0 | AH186: 0 | AI186: 0 | AJ186: 0 | AK186: 0 | AL186: 0 | AM186: 0 | AN186: 0 | AO186: 0 | AP186: 0 | AQ186: 0 | AR186: 0 | AS186: 0 | AT186: 0 | AU186: 0 | AV186: 0 | AW186: 0 | AX186: 0 | AY186: 0 | AZ186: 0 | BA186: 0 | BB186: 0 | BC186: 0 | BD186: 0 | BE186: 0 | BF186: 0 | BG186: 0 | BH186: 0 | BI186: 0 | BJ186: 0 | BK186: 0 | BL186: 0 | BM186: 0 | BN186: 0 | BO186: 0 | BP186: 0 | BQ186: 0 | BR186: 0 | BS186: 0 | BT186: 0 | BU186: 0 | BV186: 0 | BW186: 0 | BX186: 0 | BY186: 0 | BZ186: 0 | CA186: 0 | CB186: 0 | CC186: 0 | CD186: 0 | CE186: 0.003502540665 | CF186: 0 | CG186: 0 | CH186: 0 | CI186: 0 | CJ186: 0 | CK186: 0 | CL186: 0 | CM186: 0 | CN186: 0 | CO186: 0 | CP186: 0 | CQ186: 0 | CR186: 0 | CS186: 0 | CT186: 0 | CU186: 0 | CV186: 0 | CW186: 0 | CX186: 0 | CY186: 0 | CZ186: 0 | DA186: 0 | DB186: 0 | DC186: =INDEX(LOOKUP!$G$2:$G$6,MATCH($A186,LOOKUP!$I$2:$I$6,0)) -> PACIFIC
A187: 2 | B187: 16 | C187: 2016 | D187: 34 | E187: 0 | F187: 2 | G187: 4 | H187: 3 | I187: 7 | J187: 0 | K187: 0 | L187: 0 | M187: 0 | N187: 0 | O187: 0.004765877401 | P187: 8.648988304e-26 | Q187: 1.280273756e-25 | R187: 0.02431895874 | S187: 0.02426242601 | T187: 0 | U187: 0 | V187: 0 | W187: 0 | X187: 0 | Y187: 0 | Z187: 0 | AA187: 0 | AB187: 0 | AC187: 0 | AD187: 0 | AE187: 0 | AF187: 0 | AG187: 0 | AH187: 0 | AI187: 0 | AJ187: 0 | AK187: 0 | AL187: 0 | AM187: 0 | AN187: 0 | AO187: 0 | AP187: 0 | AQ187: 0 | AR187: 0 | AS187: 0 | AT187: 0 | AU187: 0 | AV187: 0 | AW187: 0 | AX187: 0 | AY187: 0 | AZ187: 0 | BA187: 0 | BB187: 0 | BC187: 0 | BD187: 0 | BE187: 0 | BF187: 0 | BG187: 0 | BH187: 0 | BI187: 0 | BJ187: 0 | BK187: 0 | BL187: 0 | BM187: 0 | BN187: 0 | BO187: 0 | BP187: 0 | BQ187: 0 | BR187: 0 | BS187: 0 | BT187: 0 | BU187: 0 | BV187: 0 | BW187: 0 | BX187: 0 | BY187: 0 | BZ187: 0 | CA187: 0 | CB187: 0 | CC187: 0 | CD187: 0 | CE187: 0.05334726215 | CF187: 0 | CG187: 0 | CH187: 0 | CI187: 0 | CJ187: 0 | CK187: 0 | CL187: 0 | CM187: 0 | CN187: 0 | CO187: 0 | CP187: =BR187*(AD187*$DD$1+AN187*$DE$1+AX187*$DF$1/12) -> 0 | CQ187: =BS187*(AE187*$DD$1+AO187*$DE$1+AY187*$DF$1/12) -> 0 | CR187: =BT187*(AF187*$DD$1+AP187*$DE$1+AZ187*$DF$1/12) -> 0 | CS187: =BU187*(AG187*$DD$1+AQ187*$DE$1+BA187*$DF$1/12) -> 0 | CT187: =BV187*(AH187*$DD$1+AR187*$DE$1+BB187*$DF$1/12) -> 0 | CU187: =BW187*(AI187*$DD$1+AS187*$DE$1+BC187*$DF$1/12) -> 0 | CV187: =BX187*(AJ187*$DD$1+AT187*$DE$1+BD187*$DF$1/12) -> 0 | CW187: =BY187*(AK187*$DD$1+AU187*$DE$1+BE187*$DF$1/12) -> 0 | CX187: =BZ187*(AL187*$DD$1+AV187*$DE$1+BF187*$DF$1/12) -> 0 | CY187: =CA187*(AM187*$DD$1+AW187*$DE$1+BG187*$DF$1/12) -> 0 | CZ187: 0 | DA187: 0 | DB187: 0 | DC187: =INDEX(LOOKUP!$G$2:$G$6,MATCH($A187,LOOKUP!$I$2:$I$6,0)) -> PACIFIC
A188: 2 | B188: 16 | C188: 2016 | D188: 35 | E188: 0 | F188: 2 | G188: 5 | H188: 3 | I188: 8 | J188: 0 | K188: 0 | L188: 0 | M188: 0 | N188: 0 | O188: 0 | P188: 0 | Q188: 0.01544789226 | R188: 0 | S188: 0.05269756456 | T188: 0 | U188: 0 | V188: 0 | W188: 0 | X188: 0 | Y188: 0 | Z188: 0 | AA188: 0 | AB188: 0 | AC188: 0 | AD188: 0 | AE188: 0 | AF188: 0 | AG188: 0 | AH188: 0 | AI188: 0 | AJ188: 0 | AK188: 0 | AL188: 0 | AM188: 0 | AN188: 0 | AO188: 0 | AP188: 0 | AQ188: 0 | AR188: 0 | AS188: 0 | AT188: 0 | AU188: 0 | AV188: 0 | AW188: 0 | AX188: 0 | AY188: 0 | AZ188: 0 | BA188: 0 | BB188: 0 | BC188: 0 | BD188: 0 | BE188: 0 | BF188: 0 | BG188: 0 | BH188: 0 | BI188: 0 | BJ188: 0 | BK188: 0 | BL188: 0 | BM188: 0 | BN188: 0 | BO188: 0 | BP188: 0 | BQ188: 0 | BR188: 0 | BS188: 0 | BT188: 0 | BU188: 0 | BV188: 0 | BW188: 0 | BX188: 0 | BY188: 0 | BZ188: 0 | CA188: 0 | CB188: =SUM(BR188:BV188) -> 0 | CC188: =SUM(BW188:CA188) -> 0 | CD188: =SUM(BR188:CA188) -> 0 | CE188: 0.06814545682 | CF188: 0 | CG188: 0 | CH188: 0 | CI188: 0 | CJ188: 0 | CK188: 0 | CL188: 0 | CM188: 0 | CN188: 0 | CO188: 0 | CP188: 0 | CQ188: 0 | CR188: 0 | CS188: 0 | CT188: 0 | CU188: 0 | CV188: 0 | CW188: 0 | CX188: 0 | CY188: 0 | CZ188: =SUM(CP188:CT188) -> 0 | DA188: =SUM(CU188:CY188) -> 0 | DB188: =SUM(CP188:CY188) -> 0 | DC188: =INDEX(LOOKUP!$G$2:$G$6,MATCH($A188,LOOKUP!$I$2:$I$6,0)) -> PACIFIC
A189: 2 | B189: 16 | C189: 2016 | D189: 36 | E189: 0 | F189: 3 | G189: 0 | H189: 4 | I189: 0 | J189: 0 | K189: 0 | L189: 0 | M189: 0 | N189: 0 | O189: 0.0002083314133 | P189: 1.886710146e-05 | Q189: 0.0005577420725 | R189: 0.00177781546 | S189: 0.01859157311 | T189: 0 | U189: 0 | V189: 0 | W189: 0 | X189: 0 | Y189: 0 | Z189: 0 | AA189: 0 | AB189: 0 | AC189: 0 | AD189: 0 | AE189: 0 | AF189: 0 | AG189: 0 | AH189: 0 | AI189: 0 | AJ189: 0 | AK189: 0 | AL189: 0 | AM189: 0 | AN189: 0 | AO189: 0 | AP189: 0 | AQ189: 0 | AR189: 0 | AS189: 0 | AT189: 0 | AU189: 0 | AV189: 0 | AW189: 0 | AX189: 0 | AY189: 0 | AZ189: 0 | BA189: 0 | BB189: 0 | BC189: 0 | BD189: 0 | BE189: 0 | BF189: 0 | BG189: 0 | BH189: 0 | BI189: 0 | BJ189: 0 | BK189: 0 | BL189: 0 | BM189: 0 | BN189: 0 | BO189: 0 | BP189: 0 | BQ189: 0 | BR189: 0 | BS189: 0 | BT189: 0 | BU189: 0 | BV189: 0 | BW189: 0 | BX189: 0 | BY189: 0 | BZ189: 0 | CA189: 0 | CB189: 0 | CC189: 0 | CD189: 0 | CE189: 0.02115432916 | CF189: 0 | CG189: 0 | CH189: 0 | CI189: 0 | CJ189: 0 | CK189: 0 | CL189: 0 | CM189: 0 | CN189: 0 | CO189: 0 | CP189: 0 | CQ189: 0 | CR189: 0 | CS189: 0 | CT189: 0 | CU189: 0 | CV189: 0 | CW189: 0 | CX189: 0 | CY189: 0 | CZ189: 0 | DA189: 0 | DB189: 0 | DC189: =INDEX(LOOKUP!$G$2:$G$6,MATCH($A189,LOOKUP!$I$2:$I$6,0)) -> PACIFIC
A190: 2 | B190: 16 | C190: 2016 | D190: 37 | E190: 0 | F190: 3 | G190: 1 | H190: 4 | I190: 1 | J190: 0 | K190: 0 | L190: 0 | M190: 0 | N190: 0 | O190: 0.001071641629 | P190: 0.000429900269 | Q190: 0.01436361526 | R190: 0.01224736194 | S190: 0.0120377352 | T190: 0 | U190: 0 | V190: 0 | W190: 0 | X190: 0 | Y190: 0 | Z190: 0 | AA190: 0 | AB190: 0 | AC190: 0 | AD190: 0 | AE190: 0 | AF190: 0 | AG190: 0 | AH190: 0 | AI190: 0 | AJ190: 0 | AK190: 0 | AL190: 0 | AM190: 0 | AN190: 0 | AO190: 0 | AP190: 0 | AQ190: 0 | AR190: 0 | AS190: 0 | AT190: 0 | AU190: 0 | AV190: 0 | AW190: 0 | AX190: 0 | AY190: 0 | AZ190: 0 | BA190: 0 | BB190: 0 | BC190: 0 | BD190: 0 | BE190: 0 | BF190: 0 | BG190: 0 | BH190: 0 | BI190: 0 | BJ190: 0 | BK190: 0 | BL190: 0 | BM190: 0 | BN190: 0 | BO190: 0 | BP190: 0 | BQ190: 0 | BR190: 0 | BS190: 0 | BT190: 0 | BU190: 0 | BV190: 0 | BW190: 0 | BX190: 0 | BY190: 0 | BZ190: 0 | CA190: 0 | CB190: 0 | CC190: 0 | CD190: 0 | CE190: 0.04015025429 | CF190: 0 | CG190: 0 | CH190: 0 | CI190: 0 | CJ190: 0 | CK190: 0 | CL190: 0 | CM190: 0 | CN190: 0 | CO190: 0 | CP190: 0 | CQ190: 0 | CR190: 0 | CS190: 0 | CT190: 0 | CU190: 0 | CV190: 0 | CW190: 0 | CX190: 0 | CY190: 0 | CZ190: 0 | DA190: 0 | DB190: 0 | DC190: =INDEX(LOOKUP!$G$2:$G$6,MATCH($A190,LOOKUP!$I$2:$I$6,0)) -> PACIFIC
A191: 2 | B191: 16 | C191: 2016 | D191: 38 | E191: 0 | F191: 3 | G191: 2 | H191: 4 | I191: 2 | J191: 0 | K191: 0 | L191: 0 | M191: 0 | N191: 0 | O191: 0.02603045292 | P191: 0.001939950558 | Q191: 0.002343671197 | R191: 0.001309518358 | S191: 0.01962873303 | T191: 0 | U191: 0 | V191: 0 | W191: 0 | X191: 0 | Y191: 0 | Z191: 0 | AA191: 0 | AB191: 0 | AC191: 0 | AD191: 0 | AE191: 0 | AF191: 0 | AG191: 0 | AH191: 0 | AI191: 0 | AJ191: 0 | AK191: 0 | AL191: 0 | AM191: 0 | AN191: 0 | AO191: 0 | AP191: 0 | AQ191: 0 | AR191: 0 | AS191: 0 | AT191: 0 | AU191: 0 | AV191: 0 | AW191: 0 | AX191: 0 | AY191: 0 | AZ191: 0 | BA191: 0 | BB191: 0 | BC191: 0 | BD191: 0 | BE191: 0 | BF191: 0 | BG191: 0 | BH191: 0 | BI191: 0 | BJ191: 0 | BK191: 0 | BL191: 0 | BM191: 0 | BN191: 0 | BO191: 0 | BP191: 0 | BQ191: 0 | BR191: 0 | BS191: 0 | BT191: 0 | BU191: 0 | BV191: 0 | BW191: 0 | BX191: 0 | BY191: 0 | BZ191: 0 | CA191: 0 | CB191: 0 | CC191: 0 | CD191: 0 | CE191: 0.05125232607 | CF191: 0 | CG191: 0 | CH191: 0 | CI191: 0 | CJ191: 0 | CK191: 0 | CL191: 0 | CM191: 0 | CN191: 0 | CO191: 0 | CP191: 0 | CQ191: 0 | CR191: 0 | CS191: 0 | CT191: 0 | CU191: 0 | CV191: 0 | CW191: 0 | CX191: 0 | CY191: 0 | CZ191: 0 | DA191: 0 | DB191: 0 | DC191: =INDEX(LOOKUP!$G$2:$G$6,MATCH($A191,LOOKUP!$I$2:$I$6,0)) -> PACIFIC
A192: 2 | B192: 16 | C192: 2016 | D192: 39 | E192: 0 | F192: 3 | G192: 3 | H192: 4 | I192: 3 | J192: 0 | K192: 0 | L192: 0 | M192: 0 | N192: 0 | O192: 0.4655902354 | P192: 0.333549922 | Q192: 0.326717258 | R192: 0.2251276066 | S192: 6.161375662 | T192: 0 | U192: 0 | V192: 0 | W192: 0 | X192: 0 | Y192: 0 | Z192: 0 | AA192: 0 | AB192: 0 | AC192: 0 | AD192: 0 | AE192: 0 | AF192: 0 | AG192: 0 | AH192: 0 | AI192: 0 | AJ192: 0 | AK192: 0 | AL192: 0 | AM192: 0 | AN192: 0 | AO192: 0 | AP192: 0 | AQ192: 0 | AR192: 0 | AS192: 0 | AT192: 0 | AU192: 0 | AV192: 0 | AW192: 0 | AX192: 0 | AY192: 0 | AZ192: 0 | BA192: 0 | BB192: 0 | BC192: 0 | BD192: 0 | BE192: 0 | BF192: 0 | BG192: 0 | BH192: 0 | BI192: 0 | BJ192: 0 | BK192: 0 | BL192: 0 | BM192: 0 | BN192: 0 | BO192: 0 | BP192: 0 | BQ192: 0 | BR192: 0 | BS192: 0 | BT192: 0 | BU192: 0 | BV192: 0 | BW192: 0 | BX192: 0 | BY192: 0 | BZ192: 0 | CA192: 0 | CB192: 0 | CC192: 0 | CD192: 0 | CE192: 7.512360684 | CF192: 0 | CG192: 0 | CH192: 0 | CI192: 0 | CJ192: 0 | CK192: 0 | CL192: 0 | CM192: 0 | CN192: 0 | CO192: 0 | CP192: 0 | CQ192: 0 | CR192: 0 | CS192: 0 | CT192: 0 | CU192: 0 | CV192: 0 | CW192: 0 | CX192: 0 | CY192: 0 | CZ192: 0 | DA192: 0 | DB192: 0 | DC192: =INDEX(LOOKUP!$G$2:$G$6,MATCH($A192,LOOKUP!$I$2:$I$6,0)) -> PACIFIC
A193: 2 | B193: 16 | C193: 2016 | D193: 41 | E193: 0 | F193: 3 | G193: 4 | H193: 4 | I193: 5 | J193: 0 | K193: 0 | L193: 0 | M193: 0 | N193: 0 | O193: 0.008912104322 | P193: 0.0002885730198 | Q193: 0.0001753883205 | R193: 0.0003835563166 | S193: 0.002535229669 | T193: 0 | U193: 0 | V193: 0 | W193: 0 | X193: 0 | Y193: 0 | Z193: 0 | AA193: 0 | AB193: 0 | AC193: 0 | AD193: 0 | AE193: 0 | AF193: 0 | AG193: 0 | AH193: 0 | AI193: 0 | AJ193: 0 | AK193: 0 | AL193: 0 | AM193: 0 | AN193: 0 | AO193: 0 | AP193: 0 | AQ193: 0 | AR193: 0 | AS193: 0 | AT193: 0 | AU193: 0 | AV193: 0 | AW193: 0 | AX193: 0 | AY193: 0 | AZ193: 0 | BA193: 0 | BB193: 0 | BC193: 0 | BD193: 0 | BE193: 0 | BF193: 0 | BG193: 0 | BH193: 0 | BI193: 0 | BJ193: 0 | BK193: 0 | BL193: 0 | BM193: 0 | BN193: 0 | BO193: 0 | BP193: 0 | BQ193: 0 | BR193: 0 | BS193: 0 | BT193: 0 | BU193: 0 | BV193: 0 | BW193: 0 | BX193: 0 | BY193: 0 | BZ193: 0 | CA193: 0 | CB193: 0 | CC193: 0 | CD193: 0 | CE193: 0.01229485165 | CF193: 0 | CG193: 0 | CH193: 0 | CI193: 0 | CJ193: 0 | CK193: 0 | CL193: 0 | CM193: 0 | CN193: 0 | CO193: 0 | CP193: 0 | CQ193: 0 | CR193: 0 | CS193: 0 | CT193: 0 | CU193: 0 | CV193: 0 | CW193: 0 | CX193: 0 | CY193: 0 | CZ193: 0 | DA193: 0 | DB193: 0 | DC193: =INDEX(LOOKUP!$G$2:$G$6,MATCH($A193,LOOKUP!$I$2:$I$6,0)) -> PACIFIC
A194: 2 | B194: 16 | C194: 2016 | D194: 43 | E194: 0 | F194: 3 | G194: 4 | H194: 4 | I194: 7 | J194: 0 | K194: 0 | L194: 0 | M194: 0 | N194: 0 | O194: 0.0161460971 | P194: 4.209668251e-25 | Q194: 6.118522632e-25 | R194: 0.07976492606 | S194: 0.09064761608 | T194: 0 | U194: 0 | V194: 0 | W194: 0 | X194: 0 | Y194: 0 | Z194: 0 | AA194: 0 | AB194: 0 | AC194: 0 | AD194: 0 | AE194: 0 | AF194: 0 | AG194: 0 | AH194: 0 | AI194: 0 | AJ194: 0 | AK194: 0 | AL194: 0 | AM194: 0 | AN194: 0 | AO194: 0 | AP194: 0 | AQ194: 0 | AR194: 0 | AS194: 0 | AT194: 0 | AU194: 0 | AV194: 0 | AW194: 0 | AX194: 0 | AY194: 0 | AZ194: 0 | BA194: 0 | BB194: 0 | BC194: 0 | BD194: 0 | BE194: 0 | BF194: 0 | BG194: 0 | BH194: 0 | BI194: 0 | BJ194: 0 | BK194: 0 | BL194: 0 | BM194: 0 | BN194: 0 | BO194: 0 | BP194: 0 | BQ194: 0 | BR194: 0 | BS194: 0 | BT194: 0 | BU194: 0 | BV194: 0 | BW194: 0 | BX194: 0 | BY194: 0 | BZ194: 0 | CA194: 0 | CB194: 0 | CC194: 0 | CD194: 0 | CE194: 0.1865586392 | CF194: 0 | CG194: 0 | CH194: 0 | CI194: 0 | CJ194: 0 | CK194: 0 | CL194: 0 | CM194: 0 | CN194: 0 | CO194: 0 | CP194: 0 | CQ194: 0 | CR194: 0 | CS194: 0 | CT194: 0 | CU194: 0 | CV194: 0 | CW194: 0 | CX194: 0 | CY194: 0 | CZ194: 0 | DA194: 0 | DB194: 0 | DC194: =INDEX(LOOKUP!$G$2:$G$6,MATCH($A194,LOOKUP!$I$2:$I$6,0)) -> PACIFIC
A195: 2 | B195: 16 | C195: 2016 | D195: 44 | E195: 0 | F195: 3 | G195: 5 | H195: 4 | I195: 8 | J195: 0 | K195: 0 | L195: 0 | M195: 0 | N195: 0 | O195: 0 | P195: 0 | Q195: 0.05054110001 | R195: 0 | S195: 0.1876353222 | T195: 0 | U195: 0 | V195: 0 | W195: 0 | X195: 0 | Y195: 0 | Z195: 0 | AA195: 0 | AB195: 0 | AC195: 0 | AD195: 0 | AE195: 0 | AF195: 0 | AG195: 0 | AH195: 0 | AI195: 0 | AJ195: 0 | AK195: 0 | AL195: 0 | AM195: 0 | AN195: 0 | AO195: 0 | AP195: 0 | AQ195: 0 | AR195: 0 | AS195: 0 | AT195: 0 | AU195: 0 | AV195: 0 | AW195: 0 | AX195: 0 | AY195: 0 | AZ195: 0 | BA195: 0 | BB195: 0 | BC195: 0 | BD195: 0 | BE195: 0 | BF195: 0 | BG195: 0 | BH195: 0 | BI195: 0 | BJ195: 0 | BK195: 0 | BL195: 0 | BM195: 0 | BN195: 0 | BO195: 0 | BP195: 0 | BQ195: 0 | BR195: 0 | BS195: 0 | BT195: 0 | BU195: 0 | BV195: 0 | BW195: 0 | BX195: 0 | BY195: 0 | BZ195: 0 | CA195: 0 | CB195: 0 | CC195: 0 | CD195: 0 | CE195: 0.2381764222 | CF195: 0 | CG195: 0 | CH195: 0 | CI195: 0 | CJ195: 0 | CK195: 0 | CL195: 0 | CM195: 0 | CN195: 0 | CO195: 0 | CP195: 0 | CQ195: 0 | CR195: 0 | CS195: 0 | CT195: 0 | CU195: 0 | CV195: 0 | CW195: 0 | CX195: 0 | CY195: 0 | CZ195: 0 | DA195: 0 | DB195: 0 | DC195: =INDEX(LOOKUP!$G$2:$G$6,MATCH($A195,LOOKUP!$I$2:$I$6,0)) -> PACIFIC
A196: 2 | B196: 16 | C196: 2016 | D196: 45 | E196: 0 | F196: 4 | G196: 0 | H196: 5 | I196: 0 | J196: 0 | K196: 0 | L196: 0 | M196: 0 | N196: 0 | O196: 0.0001172266769 | P196: 4.537216619e-05 | Q196: 0.001236380382 | R196: 0.005086777862 | S196: 0.05635547077 | T196: 0 | U196: 0 | V196: 0 | W196: 0 | X196: 0 | Y196: 0 | Z196: 0 | AA196: 0 | AB196: 0 | AC196: 0 | AD196: 0 | AE196: 0 | AF196: 0 | AG196: 0 | AH196: 0 | AI196: 0 | AJ196: 0 | AK196: 0 | AL196: 0 | AM196: 0 | AN196: 0 | AO196: 0 | AP196: 0 | AQ196: 0 | AR196: 0 | AS196: 0 | AT196: 0 | AU196: 0 | AV196: 0 | AW196: 0 | AX196: 0 | AY196: 0 | AZ196: 0 | BA196: 0 | BB196: 0 | BC196: 0 | BD196: 0 | BE196: 0 | BF196: 0 | BG196: 0 | BH196: 0 | BI196: 0 | BJ196: 0 | BK196: 0 | BL196: 0 | BM196: 0 | BN196: 0 | BO196: 0 | BP196: 0 | BQ196: 0 | BR196: 0 | BS196: 0 | BT196: 0 | BU196: 0 | BV196: 0 | BW196: 0 | BX196: 0 | BY196: 0 | BZ196: 0 | CA196: 0 | CB196: 0 | CC196: 0 | CD196: 0 | CE196: 0.06284122786 | CF196: 0 | CG196: 0 | CH196: 0 | CI196: 0 | CJ196: 0 | CK196: 0 | CL196: 0 | CM196: 0 | CN196: 0 | CO196: 0 | CP196: 0 | CQ196: 0 | CR196: 0 | CS196: 0 | CT196: 0 | CU196: 0 | CV196: 0 | CW196: 0 | CX196: 0 | CY196: 0 | CZ196: 0 | DA196: 0 | DB196: 0 | DC196: =INDEX(LOOKUP!$G$2:$G$6,MATCH($A196,LOOKUP!$I$2:$I$6,0)) -> PACIFIC
A197: 2 | B197: 16 | C197: 2016 | D197: 46 | E197: 0 | F197: 4 | G197: 1 | H197: 5 | I197: 1 | J197: 0 | K197: 0 | L197: 0 | M197: 0 | N197: 0 | O197: 0.01802215683 | P197: 0.01021680696 | Q197: 0.03382783109 | R197: 0.01694226029 | S197: 0.04028517313 | T197: 0 | U197: 0 | V197: 0 | W197: 0 | X197: 0 | Y197: 0 | Z197: 0 | AA197: 0 | AB197: 0 | AC197: 0 | AD197: 0 | AE197: 0 | AF197: 0 | AG197: 0 | AH197: 0 | AI197: 0 | AJ197: 0 | AK197: 0 | AL197: 0 | AM197: 0 | AN197: 0 | AO197: 0 | AP197: 0 | AQ197: 0 | AR197: 0 | AS197: 0 | AT197: 0 | AU197: 0 | AV197: 0 | AW197: 0 | AX197: 0 | AY197: 0 | AZ197: 0 | BA197: 0 | BB197: 0 | BC197: 0 | BD197: 0 | BE197: 0 | BF197: 0 | BG197: 0 | BH197: 0 | BI197: 0 | BJ197: 0 | BK197: 0 | BL197: 0 | BM197: 0 | BN197: 0 | BO197: 0 | BP197: 0 | BQ197: 0 | BR197: 0 | BS197: 0 | BT197: 0 | BU197: 0 | BV197: 0 | BW197: 0 | BX197: 0 | BY197: 0 | BZ197: 0 | CA197: 0 | CB197: 0 | CC197: 0 | CD197: 0 | CE197: 0.1192942283 | CF197: 0 | CG197: 0 | CH197: 0 | CI197: 0 | CJ197: 0 | CK197: 0 | CL197: 0 | CM197: 0 | CN197: 0 | CO197: 0 | CP197: 0 | CQ197: 0 | CR197: 0 | CS197: 0 | CT197: 0 | CU197: 0 | CV197: 0 | CW197: 0 | CX197: 0 | CY197: 0 | CZ197: 0 | DA197: 0 | DB197: 0 | DC197: =INDEX(LOOKUP!$G$2:$G$6,MATCH($A197,LOOKUP!$I$2:$I$6,0)) -> PACIFIC
A198: 2 | B198: 16 | C198: 2016 | D198: 47 | E198: 0 | F198: 4 | G198: 2 | H198: 5 | I198: 2 | J198: 0 | K198: 0 | L198: 0 | M198: 0 | N198: 0 | O198: 0.03113704198 | P198: 0.02087298607 | Q198: 0.001945452263 | R198: 0.004573872294 | S198: 0.09360967528 | T198: 0 | U198: 0 | V198: 0 | W198: 0 | X198: 0 | Y198: 0 | Z198: 0 | AA198: 0 | AB198: 0 | AC198: 0 | AD198: 0 | AE198: 0 | AF198: 0 | AG198: 0 | AH198: 0 | AI198: 0 | AJ198: 0 | AK198: 0 | AL198: 0 | AM198: 0 | AN198: 0 | AO198: 0 | AP198: 0 | AQ198: 0 | AR198: 0 | AS198: 0 | AT198: 0 | AU198: 0 | AV198: 0 | AW198: 0 | AX198: 0 | AY198: 0 | AZ198: 0 | BA198: 0 | BB198: 0 | BC198: 0 | BD198: 0 | BE198: 0 | BF198: 0 | BG198: 0 | BH198: 0 | BI198: 0 | BJ198: 0 | BK198: 0 | BL198: 0 | BM198: 0 | BN198: 0 | BO198: 0 | BP198: 0 | BQ198: 0 | BR198: 0 | BS198: 0 | BT198: 0 | BU198: 0 | BV198: 0 | BW198: 0 | BX198: 0 | BY198: 0 | BZ198: 0 | CA198: 0 | CB198: 0 | CC198: 0 | CD198: 0 | CE198: 0.1521390279 | CF198: 0 | CG198: 0 | CH198: 0 | CI198: 0 | CJ198: 0 | CK198: 0 | CL198: 0 | CM198: 0 | CN198: 0 | CO198: 0 | CP198: 0 | CQ198: 0 | CR198: 0 | CS198: 0 | CT198: 0 | CU198: 0 | CV198: 0 | CW198: 0 | CX198: 0 | CY198: 0 | CZ198: 0 | DA198: 0 | DB198: 0 | DC198: =INDEX(LOOKUP!$G$2:$G$6,MATCH($A198,LOOKUP!$I$2:$I$6,0)) -> PACIFIC
A199: 2 | B199: 16 | C199: 2016 | D199: 48 | E199: 0 | F199: 4 | G199: 3 | H199: 5 | I199: 3 | J199: 0 | K199: 0 | L199: 0 | M199: 0 | N199: 0 | O199: 0.1026622305 | P199: 0.07701414245 | Q199: 0.08073879366 | R199: 0.04511097787 | S199: 0.2550568036 | T199: 0 | U199: 0 | V199: 0 | W199: 0 | X199: 0 | Y199: 0 | Z199: 0 | AA199: 0 | AB199: 0 | AC199: 0 | AD199: 0 | AE199: 0 | AF199: 0 | AG199: 0 | AH199: 0 | AI199: 0 | AJ199: 0 | AK199: 0 | AL199: 0 | AM199: 0 | AN199: 0 | AO199: 0 | AP199: 0 | AQ199: 0 | AR199: 0 | AS199: 0 | AT199: 0 | AU199: 0 | AV199: 0 | AW199: 0 | AX199: 0 | AY199: 0 | AZ199: 0 | BA199: 0 | BB199: 0 | BC199: 0 | BD199: 0 | BE199: 0 | BF199: 0 | BG199: 0 | BH199: 0 | BI199: 0 | BJ199: 0 | BK199: 0 | BL199: 0 | BM199: 0 | BN199: 0 | BO199: 0 | BP199: 0 | BQ199: 0 | BR199: 0 | BS199: 0 | BT199: 0 | BU199: 0 | BV199: 0 | BW199: 0 | BX199: 0 | BY199: 0 | BZ199: 0 | CA199: 0 | CB199: 0 | CC199: 0 | CD199: 0 | CE199: 0.5605829481 | CF199: 0 | CG199: 0 | CH199: 0 | CI199: 0 | CJ199: 0 | CK199: 0 | CL199: 0 | CM199: 0 | CN199: 0 | CO199: 0 | CP199: 0 | CQ199: 0 | CR199: 0 | CS199: 0 | CT199: 0 | CU199: 0 | CV199: 0 | CW199: 0 | CX199: 0 | CY199: 0 | CZ199: 0 | DA199: 0 | DB199: 0 | DC199: =INDEX(LOOKUP!$G$2:$G$6,MATCH($A199,LOOKUP!$I$2:$I$6,0)) -> PACIFIC
A200: 2 | B200: 16 | C200: 2016 | D200: 50 | E200: 0 | F200: 4 | G200: 4 | H200: 5 | I200: 5 | J200: 0 | K200: 0 | L200: 0 | M200: 0 | N200: 0 | O200: 0.009801167185 | P200: 0.006188523956 | Q200: 0.002967646739 | R200: 0.004738424776 | S200: 0.01428838533 | T200: 0 | U200: 0 | V200: 0 | W200: 0 | X200: 0 | Y200: 0 | Z200: 0 | AA200: 0 | AB200: 0 | AC200: 0 | AD200: 0 | AE200: 0 | AF200: 0 | AG200: 0 | AH200: 0 | AI200: 0 | AJ200: 0 | AK200: 0 | AL200: 0 | AM200: 0 | AN200: 0 | AO200: 0 | AP200: 0 | AQ200: 0 | AR200: 0 | AS200: 0 | AT200: 0 | AU200: 0 | AV200: 0 | AW200: 0 | AX200: 0 | AY200: 0 | AZ200: 0 | BA200: 0 | BB200: 0 | BC200: 0 | BD200: 0 | BE200: 0 | BF200: 0 | BG200: 0 | BH200: 0 | BI200: 0 | BJ200: 0 | BK200: 0 | BL200: 0 | BM200: 0 | BN200: 0 | BO200: 0 | BP200: 0 | BQ200: 0 | BR200: 0 | BS200: 0 | BT200: 0 | BU200: 0 | BV200: 0 | BW200: 0 | BX200: 0 | BY200: 0 | BZ200: 0 | CA200: 0 | CB200: 0 | CC200: 0 | CD200: 0 | CE200: 0.03798414799 | CF200: 0 | CG200: 0 | CH200: 0 | CI200: 0 | CJ200: 0 | CK200: 0 | CL200: 0 | CM200: 0 | CN200: 0 | CO200: 0 | CP200: 0 | CQ200: 0 | CR200: 0 | CS200: 0 | CT200: 0 | CU200: 0 | CV200: 0 | CW200: 0 | CX200: 0 | CY200: 0 | CZ200: 0 | DA200: 0 | DB200: 0 | DC200: =INDEX(LOOKUP!$G$2:$G$6,MATCH($A200,LOOKUP!$I$2:$I$6,0)) -> PACIFIC
... 362 more rows

Sheet LOOKUP
A1: STATE | B1: STATEFP | C1: COUNTYFP | D1: COUNTY | E1: COUNTY NAME | G1: CENSUS DIV | H1: STATE | I1: STATEFP | J1: RANGE | N1: STATE | O1: CA | R1: COUNTY | S1: COUNTYFP | U1: COUNTY | V1: El Dorado County | Y1: BUILDING AGE | Z1: NUMBER OF UNITS | AA1: HEATING FUEL | AC1: CATEGORY | AD1: NUMBER OF UNITS
A2: AL | B2: 1 | C2: 1 | D2: 1001 | E2: Autauga County | G2: PACIFIC | H2: AK | I2: 2 | J2: =CONCATENATE("LOOKUP!$D$",K2,":$E$",L2+K2) -> LOOKUP!$D$69:$E$97 | K2: =MATCH($H2,$A$2:$A$3236,0)+1 -> 69 | L2: =COUNTIF($A$2:$A$3236,$H2)-1 -> 28 | Q2: 1 | R2: =IFERROR(INDEX(INDIRECT($N$4),Q2,2),"") -> Alameda County | S2: =IFERROR(INDEX(INDIRECT($N$4),Q2,1),"") -> 6001 | Y2: 2010+ | Z2: 1 UNIT DETACHED | AA2: UTILITY GAS
A3: AL | B3: 1 | C3: 3 | D3: 1003 | E3: Baldwin County | G3: PACIFIC | H3: CA | I3: 6 | J3: =CONCATENATE("LOOKUP!$D$",K3,":$E$",L3+K3) -> LOOKUP!$D$188:$E$245 | K3: =MATCH($H3,$A$2:$A$3236,0)+1 -> 188 | L3: =COUNTIF($A$2:$A$3236,$H3)-1 -> 57 | N3: Row Labels | O3: Average of STATEFP | Q3: =Q2+1 -> 2 | R3: =IFERROR(INDEX(INDIRECT($N$4),Q3,2),"") -> Alpine County | S3: =IFERROR(INDEX(INDIRECT($N$4),Q3,1),"") -> 6003 | U3: Row Labels | Y3: 2000-09 | Z3: 1 UNIT ATTACHED | AA3: BOTTLED GAS | AC3: Row Labels
A4: AL | B4: 1 | C4: 5 | D4: 1005 | E4: Barbour County | G4: PACIFIC | H4: HI | I4: 15 | J4: =CONCATENATE("LOOKUP!$D$",K4,":$E$",L4+K4) -> LOOKUP!$D$548:$E$552 | K4: =MATCH($H4,$A$2:$A$3236,0)+1 -> 548 | L4: =COUNTIF($A$2:$A$3236,$H4)-1 -> 4 | N4: LOOKUP!$D$188:$E$245 | O4: 6 | Q4: =Q3+1 -> 3 | R4: Amador County | S4: 6005 | U4: 6017 | Y4: 1980-99 | Z4: 2-4 UNITS | AA4: ELECTRICITY | AC4: 2
A5: AL | B5: 1 | C5: 7 | D5: 1007 | E5: Bibb County | G5: PACIFIC | H5: OR | I5: 41 | J5: =CONCATENATE("LOOKUP!$D$",K5,":$E$",L5+K5) -> LOOKUP!$D$2210:$E$2245 | K5: =MATCH($H5,$A$2:$A$3236,0)+1 -> 2210 | L5: =COUNTIF($A$2:$A$3236,$H5)-1 -> 35 | N5: Grand Total | O5: 6 | Q5: 4 | R5: Butte County | S5: 6007 | U5: Grand Total | Y5: 1960-79 | Z5: 5-9 UNITS | AA5: FUEL OIL | AC5: Grand Total
A6: AL | B6: 1 | C6: 9 | D6: 1009 | E6: Blount County | G6: PACIFIC | H6: WA | I6: 53 | J6: =CONCATENATE("LOOKUP!$D$",K6,":$E$",L6+K6) -> LOOKUP!$D$2956:$E$2994 | K6: =MATCH($H6,$A$2:$A$3236,0)+1 -> 2956 | L6: =COUNTIF($A$2:$A$3236,$H6)-1 -> 38 | Q6: 5 | R6: Calaveras County | S6: 6009 | Y6: 1940-59 | Z6: 10-19 UNITS | AA6: OTHER
A7: AL | B7: 1 | C7: 11 | D7: 1011 | E7: Bullock County | Q7: 6 | R7: Colusa County | S7: 6011 | Y7: BEFORE 1940 | Z7: 20+ UNITS | AA7: NONE
A8: AL | B8: 1 | C8: 13 | D8: 1013 | E8: Butler County | Q8: 7 | R8: Contra Costa County | S8: 6013 | Z8: OTHER UNIT
A9: AL | B9: 1 | C9: 15 | D9: 1015 | E9: Calhoun County | Q9: 8 | R9: Del Norte County | S9: 6015
A10: AL | B10: 1 | C10: 17 | D10: 1017 | E10: Chambers County | Q10: 9 | R10: El Dorado County | S10: 6017
A11: AL | B11: 1 | C11: 19 | D11: 1019 | E11: Cherokee County | Q11: 10 | R11: Fresno County | S11: 6019
A12: AL | B12: 1 | C12: 21 | D12: 1021 | E12: Chilton County | Q12: 11 | R12: Glenn County | S12: 6021
A13: AL | B13: 1 | C13: 23 | D13: 1023 | E13: Choctaw County | Q13: 12 | R13: Humboldt County | S13: 6023 | Y13: CATEGORY | Z13: INDEX
A14: AL | B14: 1 | C14: 25 | D14: 1025 | E14: Clarke County | Q14: 13 | R14: Imperial County | S14: 6025 | Y14: BUILDING AGE | Z14: 1
A15: AL | B15: 1 | C15: 27 | D15: 1027 | E15: Clay County | Q15: 14 | R15: Inyo County | S15: 6027 | Y15: NUMBER OF UNITS | Z15: 2
A16: AL | B16: 1 | C16: 29 | D16: 1029 | E16: Cleburne County | Q16: 15 | R16: Kern County | S16: 6029 | Y16: HEATING FUEL | Z16: 3
A17: AL | B17: 1 | C17: 31 | D17: 1031 | E17: Coffee County | Q17: 16 | R17: Kings County | S17: 6031
A18: AL | B18: 1 | C18: 33 | D18: 1033 | E18: Colbert County | Q18: 17 | R18: Lake County | S18: 6033
A19: AL | B19: 1 | C19: 35 | D19: 1035 | E19: Conecuh County | Q19: 18 | R19: Lassen County | S19: 6035
A20: AL | B20: 1 | C20: 37 | D20: 1037 | E20: Coosa County | Q20: 19 | R20: Los Angeles County | S20: 6037
A21: AL | B21: 1 | C21: 39 | D21: 1039 | E21: Covington County | Q21: 20 | R21: Madera County | S21: 6039
A22: AL | B22: 1 | C22: 41 | D22: 1041 | E22: Crenshaw County | Q22: 21 | R22: Marin County | S22: 6041 | AA22: COAL
A23: AL | B23: 1 | C23: 43 | D23: 1043 | E23: Cullman County | Q23: 22 | R23: Mariposa County | S23: 6043 | AA23: WOOD
A24: AL | B24: 1 | C24: 45 | D24: 1045 | E24: Dale County | Q24: 23 | R24: Mendocino County | S24: 6045 | AA24: SOLAR
A25: AL | B25: 1 | C25: 47 | D25: 1047 | E25: Dallas County | Q25: 24 | R25: Merced County | S25: 6047
A26: AL | B26: 1 | C26: 49 | D26: 1049 | E26: DeKalb County | Q26: 25 | R26: Modoc County | S26: 6049
A27: AL | B27: 1 | C27: 51 | D27: 1051 | E27: Elmore County | Q27: 26 | R27: Mono County | S27: 6051
A28: AL | B28: 1 | C28: 53 | D28: 1053 | E28: Escambia County | Q28: 27 | R28: Monterey County | S28: 6053
A29: AL | B29: 1 | C29: 55 | D29: 1055 | E29: Etowah County | Q29: 28 | R29: Napa County | S29: 6055 | Y29: 1 UNIT DETACHED | Z29: 0 | AA29: 0
A30: AL | B30: 1 | C30: 57 | D30: 1057 | E30: Fayette County | Q30: 29 | R30: Nevada County | S30: 6057 | Y30: 1 UNIT ATTACHED | Z30: =Z29+1 -> 1 | AA30: 1
A31: AL | B31: 1 | C31: 59 | D31: 1059 | E31: Franklin County | Q31: 30 | R31: Orange County | S31: 6059 | Y31: 2 UNITS | Z31: =Z30+1 -> 2 | AA31: 2
A32: AL | B32: 1 | C32: 61 | D32: 1061 | E32: Geneva County | Q32: 31 | R32: Placer County | S32: 6061 | Y32: 3-4 UNITS | Z32: 3 | AA32: 2
A33: AL | B33: 1 | C33: 63 | D33: 1063 | E33: Greene County | Q33: 32 | R33: Plumas County | S33: 6063 | Y33: 5-9 UNITS | Z33: 4 | AA33: 3
A34: AL | B34: 1 | C34: 65 | D34: 1065 | E34: Hale County | Q34: 33 | R34: Riverside County | S34: 6065 | Y34: 10-19 UNITS | Z34: 5 | AA34: 4
A35: AL | B35: 1 | C35: 67 | D35: 1067 | E35: Henry County | Q35: 34 | R35: Sacramento County | S35: 6067 | Y35: 20-49 UNITS | Z35: 6 | AA35: 5
A36: AL | B36: 1 | C36: 69 | D36: 1069 | E36: Houston County | Q36: 35 | R36: San Benito County | S36: 6069 | Y36: 50+ UNITS | Z36: 7 | AA36: 5
A37: AL | B37: 1 | C37: 71 | D37: 1071 | E37: Jackson County | Q37: 36 | R37: San Bernardino County | S37: 6071 | Y37: OTHER UNIT | Z37: 8 | AA37: 6
